Workbook

Sheet Play
D1: VR-REPAIR Energy Game
B3: Region | C3: Wind Parks Medium Size | D3: Solar Parks Medium Size | E3: Wind Energy gWh | F3: Solar Energy gWh | G3: Renewable Energy gWh | H3: Available Area km2
B4: Albania | C4: 0 | D4: 0 | E4: =_xlfn.XLOOKUP($B4,C_CALC[Country],C_CALC[GWh_Wind]) -> 0 | F4: =_xlfn.XLOOKUP($B4,C_CALC[Country],C_CALC[GWh_PV]) -> 0 | G4: =_xlfn.XLOOKUP($B4,C_CALC[Country],C_CALC[GWh_Total]) -> 0 | H4: =_xlfn.XLOOKUP($B4,C_CALC[Country],C_CALC[Area_Left]) -> 574
B5: Austria | C5: 0 | D5: 0 | E5: =_xlfn.XLOOKUP($B5,C_CALC[Country],C_CALC[GWh_Wind]) -> 0 | F5: =_xlfn.XLOOKUP($B5,C_CALC[Country],C_CALC[GWh_PV]) -> 0 | G5: =_xlfn.XLOOKUP($B5,C_CALC[Country],C_CALC[GWh_Total]) -> 0 | H5: =_xlfn.XLOOKUP($B5,C_CALC[Country],C_CALC[Area_Left]) -> 1678 | J5: 0
B6: Belgium | C6: 0 | D6: 0 | E6: =_xlfn.XLOOKUP($B6,C_CALC[Country],C_CALC[GWh_Wind]) -> 0 | F6: =_xlfn.XLOOKUP($B6,C_CALC[Country],C_CALC[GWh_PV]) -> 0 | G6: =_xlfn.XLOOKUP($B6,C_CALC[Country],C_CALC[GWh_Total]) -> 0 | H6: =_xlfn.XLOOKUP($B6,C_CALC[Country],C_CALC[Area_Left]) -> 610
B7: Bosnia and Herzegovina | C7: 0 | D7: 0 | E7: =_xlfn.XLOOKUP($B7,C_CALC[Country],C_CALC[GWh_Wind]) -> 0 | F7: =_xlfn.XLOOKUP($B7,C_CALC[Country],C_CALC[GWh_PV]) -> 0 | G7: =_xlfn.XLOOKUP($B7,C_CALC[Country],C_CALC[GWh_Total]) -> 0 | H7: =_xlfn.XLOOKUP($B7,C_CALC[Country],C_CALC[Area_Left]) -> 1022
B8: Bulgaria | C8: 0 | D8: 0 | E8: =_xlfn.XLOOKUP($B8,C_CALC[Country],C_CALC[GWh_Wind]) -> 0 | F8: =_xlfn.XLOOKUP($B8,C_CALC[Country],C_CALC[GWh_PV]) -> 0 | G8: =_xlfn.XLOOKUP($B8,C_CALC[Country],C_CALC[GWh_Total]) -> 0 | H8: =_xlfn.XLOOKUP($B8,C_CALC[Country],C_CALC[Area_Left]) -> 2220
B9: Croatia | C9: 0 | D9: 0 | E9: =_xlfn.XLOOKUP($B9,C_CALC[Country],C_CALC[GWh_Wind]) -> 0 | F9: =_xlfn.XLOOKUP($B9,C_CALC[Country],C_CALC[GWh_PV]) -> 0 | G9: =_xlfn.XLOOKUP($B9,C_CALC[Country],C_CALC[GWh_Total]) -> 0 | H9: =_xlfn.XLOOKUP($B9,C_CALC[Country],C_CALC[Area_Left]) -> 1132
B10: Czech Republic | C10: 0 | D10: 0 | E10: =_xlfn.XLOOKUP($B10,C_CALC[Country],C_CALC[GWh_Wind]) -> 0 | F10: =_xlfn.XLOOKUP($B10,C_CALC[Country],C_CALC[GWh_PV]) -> 0 | G10: =_xlfn.XLOOKUP($B10,C_CALC[Country],C_CALC[GWh_Total]) -> 0 | H10: =_xlfn.XLOOKUP($B10,C_CALC[Country],C_CALC[Area_Left]) -> 1578
B11: Denmark | C11: 0 | D11: 0 | E11: =_xlfn.XLOOKUP($B11,C_CALC[Country],C_CALC[GWh_Wind]) -> 0 | F11: =_xlfn.XLOOKUP($B11,C_CALC[Country],C_CALC[GWh_PV]) -> 0 | G11: =_xlfn.XLOOKUP($B11,C_CALC[Country],C_CALC[GWh_Total]) -> 0 | H11: =_xlfn.XLOOKUP($B11,C_CALC[Country],C_CALC[Area_Left]) -> 890
B12: Estonia | C12: 0 | D12: 0 | E12: =_xlfn.XLOOKUP($B12,C_CALC[Country],C_CALC[GWh_Wind]) -> 0 | F12: =_xlfn.XLOOKUP($B12,C_CALC[Country],C_CALC[GWh_PV]) -> 0 | G12: =_xlfn.XLOOKUP($B12,C_CALC[Country],C_CALC[GWh_Total]) -> 0 | H12: =_xlfn.XLOOKUP($B12,C_CALC[Country],C_CALC[Area_Left]) -> 906
B13: Finland | C13: 0 | D13: 0 | E13: =_xlfn.XLOOKUP($B13,C_CALC[Country],C_CALC[GWh_Wind]) -> 0 | F13: =_xlfn.XLOOKUP($B13,C_CALC[Country],C_CALC[GWh_PV]) -> 0 | G13: =_xlfn.XLOOKUP($B13,C_CALC[Country],C_CALC[GWh_Total]) -> 0 | H13: =_xlfn.XLOOKUP($B13,C_CALC[Country],C_CALC[Area_Left]) -> 6762
B14: France (Coast) | C14: 0 | D14: 0 | E14: =_xlfn.XLOOKUP($B14,C_CALC[Country],C_CALC[GWh_Wind]) -> 0 | F14: =_xlfn.XLOOKUP($B14,C_CALC[Country],C_CALC[GWh_PV]) -> 0 | G14: =_xlfn.XLOOKUP($B14,C_CALC[Country],C_CALC[GWh_Total]) -> 0 | H14: =_xlfn.XLOOKUP($B14,C_CALC[Country],C_CALC[Area_Left]) -> 3752
B15: France (Main) | C15: 0 | D15: 0 | E15: =_xlfn.XLOOKUP($B15,C_CALC[Country],C_CALC[GWh_Wind]) -> 0 | F15: =_xlfn.XLOOKUP($B15,C_CALC[Country],C_CALC[GWh_PV]) -> 0 | G15: =_xlfn.XLOOKUP($B15,C_CALC[Country],C_CALC[GWh_Total]) -> 0 | H15: =_xlfn.XLOOKUP($B15,C_CALC[Country],C_CALC[Area_Left]) -> 7282
B16: Germany (North) | C16: 0 | D16: 0 | E16: =_xlfn.XLOOKUP($B16,C_CALC[Country],C_CALC[GWh_Wind]) -> 0 | F16: =_xlfn.XLOOKUP($B16,C_CALC[Country],C_CALC[GWh_PV]) -> 0 | G16: =_xlfn.XLOOKUP($B16,C_CALC[Country],C_CALC[GWh_Total]) -> 0 | H16: =_xlfn.XLOOKUP($B16,C_CALC[Country],C_CALC[Area_Left]) -> 3574
B17: Germany (South) | C17: 0 | D17: 0 | E17: =_xlfn.XLOOKUP($B17,C_CALC[Country],C_CALC[GWh_Wind]) -> 0 | F17: =_xlfn.XLOOKUP($B17,C_CALC[Country],C_CALC[GWh_PV]) -> 0 | G17: =_xlfn.XLOOKUP($B17,C_CALC[Country],C_CALC[GWh_Total]) -> 0 | H17: =_xlfn.XLOOKUP($B17,C_CALC[Country],C_CALC[Area_Left]) -> 3574
B18: Greece | C18: 0 | D18: 0 | E18: =_xlfn.XLOOKUP($B18,C_CALC[Country],C_CALC[GWh_Wind]) -> 0 | F18: =_xlfn.XLOOKUP($B18,C_CALC[Country],C_CALC[GWh_PV]) -> 0 | G18: =_xlfn.XLOOKUP($B18,C_CALC[Country],C_CALC[GWh_Total]) -> 0 | H18: =_xlfn.XLOOKUP($B18,C_CALC[Country],C_CALC[Area_Left]) -> 2638
B19: Hungaria | C19: 0 | D19: 0 | E19: =_xlfn.XLOOKUP($B19,C_CALC[Country],C_CALC[GWh_Wind]) -> 0 | F19: =_xlfn.XLOOKUP($B19,C_CALC[Country],C_CALC[GWh_PV]) -> 0 | G19: =_xlfn.XLOOKUP($B19,C_CALC[Country],C_CALC[GWh_Total]) -> 0 | H19: =_xlfn.XLOOKUP($B19,C_CALC[Country],C_CALC[Area_Left]) -> 1860
B20: Ireland | C20: 0 | D20: 0 | E20: =_xlfn.XLOOKUP($B20,C_CALC[Country],C_CALC[GWh_Wind]) -> 0 | F20: =_xlfn.XLOOKUP($B20,C_CALC[Country],C_CALC[GWh_PV]) -> 0 | G20: =_xlfn.XLOOKUP($B20,C_CALC[Country],C_CALC[GWh_Total]) -> 0 | H20: =_xlfn.XLOOKUP($B20,C_CALC[Country],C_CALC[Area_Left]) -> 1406
B21: Italy (North) | C21: 0 | D21: 0 | E21: =_xlfn.XLOOKUP($B21,C_CALC[Country],C_CALC[GWh_Wind]) -> 0 | F21: =_xlfn.XLOOKUP($B21,C_CALC[Country],C_CALC[GWh_PV]) -> 0 | G21: =_xlfn.XLOOKUP($B21,C_CALC[Country],C_CALC[GWh_Total]) -> 0 | H21: =_xlfn.XLOOKUP($B21,C_CALC[Country],C_CALC[Area_Left]) -> 3014
B22: Italy (South) | C22: 0 | D22: 0 | E22: =_xlfn.XLOOKUP($B22,C_CALC[Country],C_CALC[GWh_Wind]) -> 0 | F22: =_xlfn.XLOOKUP($B22,C_CALC[Country],C_CALC[GWh_PV]) -> 0 | G22: =_xlfn.XLOOKUP($B22,C_CALC[Country],C_CALC[GWh_Total]) -> 0 | H22: =_xlfn.XLOOKUP($B22,C_CALC[Country],C_CALC[Area_Left]) -> 3014
B23: Latvia | C23: 0 | D23: 0 | E23: =_xlfn.XLOOKUP($B23,C_CALC[Country],C_CALC[GWh_Wind]) -> 0 | F23: =_xlfn.XLOOKUP($B23,C_CALC[Country],C_CALC[GWh_PV]) -> 0 | G23: =_xlfn.XLOOKUP($B23,C_CALC[Country],C_CALC[GWh_Total]) -> 0 | H23: =_xlfn.XLOOKUP($B23,C_CALC[Country],C_CALC[Area_Left]) -> 1292
B24: Lithuania | C24: 0 | D24: 0 | E24: =_xlfn.XLOOKUP($B24,C_CALC[Country],C_CALC[GWh_Wind]) -> 0 | F24: =_xlfn.XLOOKUP($B24,C_CALC[Country],C_CALC[GWh_PV]) -> 0 | G24: =_xlfn.XLOOKUP($B24,C_CALC[Country],C_CALC[GWh_Total]) -> 0 | H24: =_xlfn.XLOOKUP($B24,C_CALC[Country],C_CALC[Area_Left]) -> 1306
B25: Moldova | C25: 0 | D25: 0 | E25: =_xlfn.XLOOKUP($B25,C_CALC[Country],C_CALC[GWh_Wind]) -> 0 | F25: =_xlfn.XLOOKUP($B25,C_CALC[Country],C_CALC[GWh_PV]) -> 0 | G25: =_xlfn.XLOOKUP($B25,C_CALC[Country],C_CALC[GWh_Total]) -> 0 | H25: =_xlfn.XLOOKUP($B25,C_CALC[Country],C_CALC[Area_Left]) -> 676
B26: Netherlands | C26: 0 | D26: 0 | E26: =_xlfn.XLOOKUP($B26,C_CALC[Country],C_CALC[GWh_Wind]) -> 0 | F26: =_xlfn.XLOOKUP($B26,C_CALC[Country],C_CALC[GWh_PV]) -> 0 | G26: =_xlfn.XLOOKUP($B26,C_CALC[Country],C_CALC[GWh_Total]) -> 0 | H26: =_xlfn.XLOOKUP($B26,C_CALC[Country],C_CALC[Area_Left]) -> 824
B27: North Macedonia | C27: 0 | D27: 0 | E27: =_xlfn.XLOOKUP($B27,C_CALC[Country],C_CALC[GWh_Wind]) -> 0 | F27: =_xlfn.XLOOKUP($B27,C_CALC[Country],C_CALC[GWh_PV]) -> 0 | G27: =_xlfn.XLOOKUP($B27,C_CALC[Country],C_CALC[GWh_Total]) -> 0 | H27: =_xlfn.XLOOKUP($B27,C_CALC[Country],C_CALC[Area_Left]) -> 514
B28: Norway | C28: 0 | D28: 0 | E28: =_xlfn.XLOOKUP($B28,C_CALC[Country],C_CALC[GWh_Wind]) -> 0 | F28: =_xlfn.XLOOKUP($B28,C_CALC[Country],C_CALC[GWh_PV]) -> 0 | G28: =_xlfn.XLOOKUP($B28,C_CALC[Country],C_CALC[GWh_Total]) -> 0 | H28: =_xlfn.XLOOKUP($B28,C_CALC[Country],C_CALC[Area_Left]) -> 7704
B29: Poland | C29: 0 | D29: 0 | E29: =_xlfn.XLOOKUP($B29,C_CALC[Country],C_CALC[GWh_Wind]) -> 0 | F29: =_xlfn.XLOOKUP($B29,C_CALC[Country],C_CALC[GWh_PV]) -> 0 | G29: =_xlfn.XLOOKUP($B29,C_CALC[Country],C_CALC[GWh_Total]) -> 0 | H29: =_xlfn.XLOOKUP($B29,C_CALC[Country],C_CALC[Area_Left]) -> 6254
B30: Portugal | C30: 0 | D30: 0 | E30: =_xlfn.XLOOKUP($B30,C_CALC[Country],C_CALC[GWh_Wind]) -> 0 | F30: =_xlfn.XLOOKUP($B30,C_CALC[Country],C_CALC[GWh_PV]) -> 0 | G30: =_xlfn.XLOOKUP($B30,C_CALC[Country],C_CALC[GWh_Total]) -> 0 | H30: =_xlfn.XLOOKUP($B30,C_CALC[Country],C_CALC[Area_Left]) -> 1768
B31: Romania | C31: 0 | D31: 0 | E31: =_xlfn.XLOOKUP($B31,C_CALC[Country],C_CALC[GWh_Wind]) -> 0 | F31: =_xlfn.XLOOKUP($B31,C_CALC[Country],C_CALC[GWh_PV]) -> 0 | G31: =_xlfn.XLOOKUP($B31,C_CALC[Country],C_CALC[GWh_Total]) -> 0 | H31: =_xlfn.XLOOKUP($B31,C_CALC[Country],C_CALC[Area_Left]) -> 4768
B32: Serbia | C32: 0 | D32: 0 | E32: =_xlfn.XLOOKUP($B32,C_CALC[Country],C_CALC[GWh_Wind]) -> 0 | F32: =_xlfn.XLOOKUP($B32,C_CALC[Country],C_CALC[GWh_PV]) -> 0 | G32: =_xlfn.XLOOKUP($B32,C_CALC[Country],C_CALC[GWh_Total]) -> 0 | H32: =_xlfn.XLOOKUP($B32,C_CALC[Country],C_CALC[Area_Left]) -> 1768
B33: Slovakia | C33: 0 | D33: 0 | E33: =_xlfn.XLOOKUP($B33,C_CALC[Country],C_CALC[GWh_Wind]) -> 0 | F33: =_xlfn.XLOOKUP($B33,C_CALC[Country],C_CALC[GWh_PV]) -> 0 | G33: =_xlfn.XLOOKUP($B33,C_CALC[Country],C_CALC[GWh_Total]) -> 0 | H33: =_xlfn.XLOOKUP($B33,C_CALC[Country],C_CALC[Area_Left]) -> 980
B34: Slovenia | C34: 0 | D34: 0 | E34: =_xlfn.XLOOKUP($B34,C_CALC[Country],C_CALC[GWh_Wind]) -> 0 | F34: =_xlfn.XLOOKUP($B34,C_CALC[Country],C_CALC[GWh_PV]) -> 0 | G34: =_xlfn.XLOOKUP($B34,C_CALC[Country],C_CALC[GWh_Total]) -> 0 | H34: =_xlfn.XLOOKUP($B34,C_CALC[Country],C_CALC[Area_Left]) -> 406
B35: Spain | C35: 0 | D35: 0 | E35: =_xlfn.XLOOKUP($B35,C_CALC[Country],C_CALC[GWh_Wind]) -> 0 | F35: =_xlfn.XLOOKUP($B35,C_CALC[Country],C_CALC[GWh_PV]) -> 0 | G35: =_xlfn.XLOOKUP($B35,C_CALC[Country],C_CALC[GWh_Total]) -> 0 | H35: =_xlfn.XLOOKUP($B35,C_CALC[Country],C_CALC[Area_Left]) -> 9970
B36: Sweden | C36: 0 | D36: 0 | E36: =_xlfn.XLOOKUP($B36,C_CALC[Country],C_CALC[GWh_Wind]) -> 0 | F36: =_xlfn.XLOOKUP($B36,C_CALC[Country],C_CALC[GWh_PV]) -> 0 | G36: =_xlfn.XLOOKUP($B36,C_CALC[Country],C_CALC[GWh_Total]) -> 0 | H36: =_xlfn.XLOOKUP($B36,C_CALC[Country],C_CALC[Area_Left]) -> 9006
B37: Switzerland | C37: 0 | D37: 0 | E37: =_xlfn.XLOOKUP($B37,C_CALC[Country],C_CALC[GWh_Wind]) -> 0 | F37: =_xlfn.XLOOKUP($B37,C_CALC[Country],C_CALC[GWh_PV]) -> 0 | G37: =_xlfn.XLOOKUP($B37,C_CALC[Country],C_CALC[GWh_Total]) -> 0 | H37: =_xlfn.XLOOKUP($B37,C_CALC[Country],C_CALC[Area_Left]) -> 826
B38: United Kingdom | C38: 0 | D38: 0 | E38: =_xlfn.XLOOKUP($B38,C_CALC[Country],C_CALC[GWh_Wind]) -> 0 | F38: =_xlfn.XLOOKUP($B38,C_CALC[Country],C_CALC[GWh_PV]) -> 0 | G38: =_xlfn.XLOOKUP($B38,C_CALC[Country],C_CALC[GWh_Total]) -> 0 | H38: =_xlfn.XLOOKUP($B38,C_CALC[Country],C_CALC[Area_Left]) -> 4850

Sheet Country_Calculated (hidden)
A1: STATIC -> Loaded as Scriptable Objects | P1: USER INPUT | R1: CALCULATED
A2: Country | B2: code | C2: Code2 | D2: Metaregion | E2: Population | F2: KWh_Capita | G2: GWh_Demand_L1 | H2: GWh_Demand_L1_Corrected | I2: Gwh_Demand_Percent | J2: Area_QKM | K2: Area_Max | L2: Trans_Factor | M2: Trans_Factor_2 | N2: Wind_Yield | O2: PV_Yield | P2: No_WP | Q2: No_PV | R2: GWh_Wind | S2: GWh_PV | T2: GWh_Total | U2: GWh_Delta | V2: Delta_Corrected | W2: Trans_Costs | X2: Area_Left | Y2: Max. Wind | Z2: Max Solar | AA2: Alter_Sum | AB2: Countries_concat | AC2: DC transmission | AD2: Alert | AE2: List wind | AG2: List solar
A3: Albania | B3: =LOWER(_xlfn.XLOOKUP(C_CALC[[#This Row],[Country]],RAW_DATA[Country],RAW_DATA[Code])) -> al | C3: AL | D3: Southern Europe | E3: =ROUND(raw!E32,-3) -> 41892000 | F3: =ROUND(raw!F32,-2) -> 6300 | G3: =_xlfn.XLOOKUP(C_CALC[[#This Row],[code]],RAW_DATA[Code],RAW_DATA[GWh_demand_2021]) -> 7000 | H3: =C_CALC[[#This Row],[GWh_Demand_L1]]-(_xlfn.XLOOKUP(C_CALC[[#This Row],[Country]],Table13[Country],Table13[% in 2021],0)*C_CALC[[#This Row],[GWh_Demand_L1]]) -> 6976.801546 | I3: =C_CALC[[#This Row],[GWh_Demand_L1]]/Global_Constants!$B$12 -> 0.002131222408 | J3: =ROUND(_xlfn.XLOOKUP(C_CALC[[#This Row],[code]],RAW_DATA[Code],RAW_DATA[Area_QKM]),-2) -> 28700 | K3: =C_CALC[[#This Row],[Area_QKM]]*0.02 -> 574 | L3: 150000 | M3: =(LN((C_CALC[[#This Row],[Trans_Factor]]/100000)))+1 -> 1.405465108 | N3: =Global_Constants!$B$5*(_xlfn.XLOOKUP(C_CALC[[#This Row],[code]],RAW_DATA[Code],RAW_DATA[Wind_Trans])) -> 690.7396943 | O3: =Global_Constants!$B$8*(_xlfn.XLOOKUP(C_CALC[[#This Row],[code]],RAW_DATA[Code],RAW_DATA[PV_Trans])) -> 198.9132208 | P3: =_xlfn.XLOOKUP(C_CALC[[#This Row],[Country]],PLAY[Region],PLAY[Wind Parks Medium Size]) -> 0 | Q3: =_xlfn.XLOOKUP(C_CALC[[#This Row],[Country]],PLAY[Region],PLAY[Solar Parks Medium Size]) -> 0 | R3: =C_CALC[[#This Row],[No_WP]]*C_CALC[[#This Row],[Wind_Yield]] -> 0 | S3: =C_CALC[[#This Row],[No_PV]]*C_CALC[[#This Row],[PV_Yield]] -> 0 | T3: =C_CALC[[#This Row],[GWh_Wind]]+C_CALC[[#This Row],[GWh_PV]] -> 0 | U3: =C_CALC[[#This Row],[GWh_Demand_L1]]-C_CALC[[#This Row],[GWh_Total]] -> 7000 | V3: =C_CALC[[#This Row],[GWh_Demand_L1_Corrected]]-C_CALC[[#This Row],[GWh_Total]] -> 6976.801546 | W3: =IF(C_CALC[[#This Row],[GWh_Delta]]<0,(C_CALC[[#This Row],[GWh_Delta]]*-1)*C_CALC[[#This Row],[Trans_Factor]],0)/raw!$J$53 -> 0 | X3: =C_CALC[[#This Row],[Area_Max]]-(C_CALC[[#This Row],[No_WP]]*Global_Constants!$B$4+C_CALC[[#This Row],[No_PV]]*Global_Constants!$B$7) -> 574 | Y3: =ROUND(C_CALC[[#This Row],[Area_Max]]/Global_Constants!$B$4,0) -> 64 | Z3: =ROUND(C_CALC[[#This Row],[Area_Max]]/Global_Constants!$B$7,0) -> 287 | AA3: =IF(C_CALC[[#This Row],[Area_Left]]<0,1,0) -> 0 | AB3: =IF(C_CALC[[#This Row],[Alter_Sum]]=1,IF(SUM(AA4:AA$37)>0,_xlfn.CONCAT(C_CALC[[#This Row],[Country]],", "),C_CALC[[#This Row],[Country]]),"") ->  | AC3: =IF(C_CALC[[#This Row],[Delta_Corrected]]<0,ABS(C_CALC[[#This Row],[Delta_Corrected]])/C_CALC[[#This Row],[GWh_Demand_L1_Corrected]],0) -> 0 | AD3: =IF(C_CALC[[#Totals],[Alter_Sum]]=0,"",_xlfn.CONCAT("Area exceeded in: ",C_CALC[[#Totals],[Countries_concat]])) ->  | AE3: 0 | AF3: =C_CALC[[#This Row],[Max. Wind]] -> 64 | AG3: 0 | AH3: =C_CALC[[#This Row],[Max Solar]] -> 287
A4: Austria | B4: =LOWER(_xlfn.XLOOKUP(C_CALC[[#This Row],[Country]],RAW_DATA[Country],RAW_DATA[Code])) -> at | C4: AT | D4: Western Europe | E4: =ROUND(raw!E30,-3) -> 30231000 | F4: =ROUND(raw!F30,-2) -> 7900 | G4: =_xlfn.XLOOKUP(C_CALC[[#This Row],[code]],RAW_DATA[Code],RAW_DATA[GWh_demand_2021]) -> 70385.8701 | H4: =C_CALC[[#This Row],[GWh_Demand_L1]]-(_xlfn.XLOOKUP(C_CALC[[#This Row],[Country]],Table13[Country],Table13[% in 2021],0)*C_CALC[[#This Row],[GWh_Demand_L1]]) -> 63801.40424 | I4: =C_CALC[[#This Row],[GWh_Demand_L1]]/Global_Constants!$B$12 -> 0.02142970623 | J4: =ROUND(_xlfn.XLOOKUP(C_CALC[[#This Row],[code]],RAW_DATA[Code],RAW_DATA[Area_QKM]),-2) -> 83900 | K4: =C_CALC[[#This Row],[Area_QKM]]*0.02 -> 1678 | L4: 100000 | M4: =(LN((C_CALC[[#This Row],[Trans_Factor]]/100000)))+1 -> 1 | N4: =Global_Constants!$B$5*(_xlfn.XLOOKUP(C_CALC[[#This Row],[code]],RAW_DATA[Code],RAW_DATA[Wind_Trans])) -> 830.1041651 | O4: =Global_Constants!$B$8*(_xlfn.XLOOKUP(C_CALC[[#This Row],[code]],RAW_DATA[Code],RAW_DATA[PV_Trans])) -> 166.6135642 | P4: =_xlfn.XLOOKUP(C_CALC[[#This Row],[Country]],PLAY[Region],PLAY[Wind Parks Medium Size]) -> 0 | Q4: =_xlfn.XLOOKUP(C_CALC[[#This Row],[Country]],PLAY[Region],PLAY[Solar Parks Medium Size]) -> 0 | R4: =C_CALC[[#This Row],[No_WP]]*C_CALC[[#This Row],[Wind_Yield]] -> 0 | S4: =C_CALC[[#This Row],[No_PV]]*C_CALC[[#This Row],[PV_Yield]] -> 0 | T4: =C_CALC[[#This Row],[GWh_Wind]]+C_CALC[[#This Row],[GWh_PV]] -> 0 | U4: =C_CALC[[#This Row],[GWh_Demand_L1]]-C_CALC[[#This Row],[GWh_Total]] -> 70385.8701 | V4: =C_CALC[[#This Row],[GWh_Demand_L1_Corrected]]-C_CALC[[#This Row],[GWh_Total]] -> 63801.40424 | W4: =IF(C_CALC[[#This Row],[GWh_Delta]]<0,(C_CALC[[#This Row],[GWh_Delta]]*-1)*C_CALC[[#This Row],[Trans_Factor]],0)/raw!$J$53 -> 0 | X4: =C_CALC[[#This Row],[Area_Max]]-(C_CALC[[#This Row],[No_WP]]*Global_Constants!$B$4+C_CALC[[#This Row],[No_PV]]*Global_Constants!$B$7) -> 1678 | Y4: =ROUND(C_CALC[[#This Row],[Area_Max]]/Global_Constants!$B$4,0) -> 186 | Z4: =ROUND(C_CALC[[#This Row],[Area_Max]]/Global_Constants!$B$7,0) -> 839 | AA4: =IF(C_CALC[[#This Row],[Area_Left]]<0,1,0) -> 0 | AB4: =IF(C_CALC[[#This Row],[Alter_Sum]]=1,IF(SUM(AA5:AA$37)>0,_xlfn.CONCAT(C_CALC[[#This Row],[Country]],", "),C_CALC[[#This Row],[Country]]),"") ->  | AC4: =IF(C_CALC[[#This Row],[Delta_Corrected]]<0,ABS(C_CALC[[#This Row],[Delta_Corrected]])/C_CALC[[#This Row],[GWh_Demand_L1_Corrected]],0) -> 0 | AE4: 0 | AF4: =C_CALC[[#This Row],[Max. Wind]] -> 186 | AG4: 0 | AH4: =C_CALC[[#This Row],[Max Solar]] -> 839
A5: Belgium | B5: =LOWER(_xlfn.XLOOKUP(C_CALC[[#This Row],[Country]],RAW_DATA[Country],RAW_DATA[Code])) -> be | C5: BE | D5: Western Europe | E5: =ROUND(raw!E2,-3) -> 517000 | F5: =ROUND(raw!F2,-2) -> 5200 | G5: =_xlfn.XLOOKUP(C_CALC[[#This Row],[code]],RAW_DATA[Code],RAW_DATA[GWh_demand_2021]) -> 85440.2914 | H5: =C_CALC[[#This Row],[GWh_Demand_L1]]-(_xlfn.XLOOKUP(C_CALC[[#This Row],[Country]],Table13[Country],Table13[% in 2021],0)*C_CALC[[#This Row],[GWh_Demand_L1]]) -> 76672.48891 | I5: =C_CALC[[#This Row],[GWh_Demand_L1]]/Global_Constants!$B$12 -> 0.02601318051 | J5: =ROUND(_xlfn.XLOOKUP(C_CALC[[#This Row],[code]],RAW_DATA[Code],RAW_DATA[Area_QKM]),-2) -> 30500 | K5: =C_CALC[[#This Row],[Area_QKM]]*0.02 -> 610 | L5: 100000 | M5: =(LN((C_CALC[[#This Row],[Trans_Factor]]/100000)))+1 -> 1 | N5: =Global_Constants!$B$5*(_xlfn.XLOOKUP(C_CALC[[#This Row],[code]],RAW_DATA[Code],RAW_DATA[Wind_Trans])) -> 694.4575981 | O5: =Global_Constants!$B$8*(_xlfn.XLOOKUP(C_CALC[[#This Row],[code]],RAW_DATA[Code],RAW_DATA[PV_Trans])) -> 154.2811492 | P5: =_xlfn.XLOOKUP(C_CALC[[#This Row],[Country]],PLAY[Region],PLAY[Wind Parks Medium Size]) -> 0 | Q5: =_xlfn.XLOOKUP(C_CALC[[#This Row],[Country]],PLAY[Region],PLAY[Solar Parks Medium Size]) -> 0 | R5: =C_CALC[[#This Row],[No_WP]]*C_CALC[[#This Row],[Wind_Yield]] -> 0 | S5: =C_CALC[[#This Row],[No_PV]]*C_CALC[[#This Row],[PV_Yield]] -> 0 | T5: =C_CALC[[#This Row],[GWh_Wind]]+C_CALC[[#This Row],[GWh_PV]] -> 0 | U5: =C_CALC[[#This Row],[GWh_Demand_L1]]-C_CALC[[#This Row],[GWh_Total]] -> 85440.2914 | V5: =C_CALC[[#This Row],[GWh_Demand_L1_Corrected]]-C_CALC[[#This Row],[GWh_Total]] -> 76672.48891 | W5: =IF(C_CALC[[#This Row],[GWh_Delta]]<0,(C_CALC[[#This Row],[GWh_Delta]]*-1)*C_CALC[[#This Row],[Trans_Factor]],0)/raw!$J$53 -> 0 | X5: =C_CALC[[#This Row],[Area_Max]]-(C_CALC[[#This Row],[No_WP]]*Global_Constants!$B$4+C_CALC[[#This Row],[No_PV]]*Global_Constants!$B$7) -> 610 | Y5: =ROUND(C_CALC[[#This Row],[Area_Max]]/Global_Constants!$B$4,0) -> 68 | Z5: =ROUND(C_CALC[[#This Row],[Area_Max]]/Global_Constants!$B$7,0) -> 305 | AA5: =IF(C_CALC[[#This Row],[Area_Left]]<0,1,0) -> 0 | AB5: =IF(C_CALC[[#This Row],[Alter_Sum]]=1,IF(SUM(AA6:AA$37)>0,_xlfn.CONCAT(C_CALC[[#This Row],[Country]],", "),C_CALC[[#This Row],[Country]]),"") ->  | AC5: =IF(C_CALC[[#This Row],[Delta_Corrected]]<0,ABS(C_CALC[[#This Row],[Delta_Corrected]])/C_CALC[[#This Row],[GWh_Demand_L1_Corrected]],0) -> 0 | AE5: 0 | AF5: =C_CALC[[#This Row],[Max. Wind]] -> 68 | AG5: 0 | AH5: =C_CALC[[#This Row],[Max Solar]] -> 305
A6: Bosnia and Herzegovina | B6: =LOWER(_xlfn.XLOOKUP(C_CALC[[#This Row],[Country]],RAW_DATA[Country],RAW_DATA[Code])) -> ba | C6: BA | D6: Southern Europe | E6: =ROUND(raw!E36,-3) -> 37847000 | F6: =ROUND(raw!F36,-2) -> 4000 | G6: =_xlfn.XLOOKUP(C_CALC[[#This Row],[code]],RAW_DATA[Code],RAW_DATA[GWh_demand_2021]) -> 12422.5908 | H6: =C_CALC[[#This Row],[GWh_Demand_L1]]-(_xlfn.XLOOKUP(C_CALC[[#This Row],[Country]],Table13[Country],Table13[% in 2021],0)*C_CALC[[#This Row],[GWh_Demand_L1]]) -> 12422.5908 | I6: =C_CALC[[#This Row],[GWh_Demand_L1]]/Global_Constants!$B$12 -> 0.003782186269 | J6: =ROUND(_xlfn.XLOOKUP(C_CALC[[#This Row],[code]],RAW_DATA[Code],RAW_DATA[Area_QKM]),-2) -> 51100 | K6: =C_CALC[[#This Row],[Area_QKM]]*0.02 -> 1022 | L6: 150000 | M6: =(LN((C_CALC[[#This Row],[Trans_Factor]]/100000)))+1 -> 1.405465108 | N6: =Global_Constants!$B$5*(_xlfn.XLOOKUP(C_CALC[[#This Row],[code]],RAW_DATA[Code],RAW_DATA[Wind_Trans])) -> 695.892065 | O6: =Global_Constants!$B$8*(_xlfn.XLOOKUP(C_CALC[[#This Row],[code]],RAW_DATA[Code],RAW_DATA[PV_Trans])) -> 195.8802524 | P6: =_xlfn.XLOOKUP(C_CALC[[#This Row],[Country]],PLAY[Region],PLAY[Wind Parks Medium Size]) -> 0 | Q6: =_xlfn.XLOOKUP(C_CALC[[#This Row],[Country]],PLAY[Region],PLAY[Solar Parks Medium Size]) -> 0 | R6: =C_CALC[[#This Row],[No_WP]]*C_CALC[[#This Row],[Wind_Yield]] -> 0 | S6: =C_CALC[[#This Row],[No_PV]]*C_CALC[[#This Row],[PV_Yield]] -> 0 | T6: =C_CALC[[#This Row],[GWh_Wind]]+C_CALC[[#This Row],[GWh_PV]] -> 0 | U6: =C_CALC[[#This Row],[GWh_Demand_L1]]-C_CALC[[#This Row],[GWh_Total]] -> 12422.5908 | V6: =C_CALC[[#This Row],[GWh_Demand_L1_Corrected]]-C_CALC[[#This Row],[GWh_Total]] -> 12422.5908 | W6: =IF(C_CALC[[#This Row],[GWh_Delta]]<0,(C_CALC[[#This Row],[GWh_Delta]]*-1)*C_CALC[[#This Row],[Trans_Factor]],0)/raw!$J$53 -> 0 | X6: =C_CALC[[#This Row],[Area_Max]]-(C_CALC[[#This Row],[No_WP]]*Global_Constants!$B$4+C_CALC[[#This Row],[No_PV]]*Global_Constants!$B$7) -> 1022 | Y6: =ROUND(C_CALC[[#This Row],[Area_Max]]/Global_Constants!$B$4,0) -> 114 | Z6: =ROUND(C_CALC[[#This Row],[Area_Max]]/Global_Constants!$B$7,0) -> 511 | AA6: =IF(C_CALC[[#This Row],[Area_Left]]<0,1,0) -> 0 | AB6: =IF(C_CALC[[#This Row],[Alter_Sum]]=1,IF(SUM(AA7:AA$37)>0,_xlfn.CONCAT(C_CALC[[#This Row],[Country]],", "),C_CALC[[#This Row],[Country]]),"") ->  | AC6: =IF(C_CALC[[#This Row],[Delta_Corrected]]<0,ABS(C_CALC[[#This Row],[Delta_Corrected]])/C_CALC[[#This Row],[GWh_Demand_L1_Corrected]],0) -> 0 | AE6: 0 | AF6: =C_CALC[[#This Row],[Max. Wind]] -> 114 | AG6: 0 | AH6: =C_CALC[[#This Row],[Max Solar]] -> 511
A7: Bulgaria | B7: =LOWER(_xlfn.XLOOKUP(C_CALC[[#This Row],[Country]],RAW_DATA[Country],RAW_DATA[Code])) -> bg | C7: BG | D7: Eastern Europe | E7: =ROUND(raw!#REF!,-3) ->  | F7: =ROUND(raw!#REF!,-2) ->  | G7: =_xlfn.XLOOKUP(C_CALC[[#This Row],[code]],RAW_DATA[Code],RAW_DATA[GWh_demand_2021]) -> 37955.0409 | H7: =C_CALC[[#This Row],[GWh_Demand_L1]]-(_xlfn.XLOOKUP(C_CALC[[#This Row],[Country]],Table13[Country],Table13[% in 2021],0)*C_CALC[[#This Row],[GWh_Demand_L1]]) -> 35065.69559 | I7: =C_CALC[[#This Row],[GWh_Demand_L1]]/Global_Constants!$B$12 -> 0.01155580481 | J7: =ROUND(_xlfn.XLOOKUP(C_CALC[[#This Row],[code]],RAW_DATA[Code],RAW_DATA[Area_QKM]),-2) -> 111000 | K7: =C_CALC[[#This Row],[Area_QKM]]*0.02 -> 2220 | L7: 140000 | M7: =(LN((C_CALC[[#This Row],[Trans_Factor]]/100000)))+1 -> 1.336472237 | N7: =Global_Constants!$B$5*(_xlfn.XLOOKUP(C_CALC[[#This Row],[code]],RAW_DATA[Code],RAW_DATA[Wind_Trans])) -> 577.0118456 | O7: =Global_Constants!$B$8*(_xlfn.XLOOKUP(C_CALC[[#This Row],[code]],RAW_DATA[Code],RAW_DATA[PV_Trans])) -> 198.9132208 | P7: =_xlfn.XLOOKUP(C_CALC[[#This Row],[Country]],PLAY[Region],PLAY[Wind Parks Medium Size]) -> 0 | Q7: =_xlfn.XLOOKUP(C_CALC[[#This Row],[Country]],PLAY[Region],PLAY[Solar Parks Medium Size]) -> 0 | R7: =C_CALC[[#This Row],[No_WP]]*C_CALC[[#This Row],[Wind_Yield]] -> 0 | S7: =C_CALC[[#This Row],[No_PV]]*C_CALC[[#This Row],[PV_Yield]] -> 0 | T7: =C_CALC[[#This Row],[GWh_Wind]]+C_CALC[[#This Row],[GWh_PV]] -> 0 | U7: =C_CALC[[#This Row],[GWh_Demand_L1]]-C_CALC[[#This Row],[GWh_Total]] -> 37955.0409 | V7: =C_CALC[[#This Row],[GWh_Demand_L1_Corrected]]-C_CALC[[#This Row],[GWh_Total]] -> 35065.69559 | W7: =IF(C_CALC[[#This Row],[GWh_Delta]]<0,(C_CALC[[#This Row],[GWh_Delta]]*-1)*C_CALC[[#This Row],[Trans_Factor]],0)/raw!$J$53 -> 0 | X7: =C_CALC[[#This Row],[Area_Max]]-(C_CALC[[#This Row],[No_WP]]*Global_Constants!$B$4+C_CALC[[#This Row],[No_PV]]*Global_Constants!$B$7) -> 2220 | Y7: =ROUND(C_CALC[[#This Row],[Area_Max]]/Global_Constants!$B$4,0) -> 247 | Z7: =ROUND(C_CALC[[#This Row],[Area_Max]]/Global_Constants!$B$7,0) -> 1110 | AA7: =IF(C_CALC[[#This Row],[Area_Left]]<0,1,0) -> 0 | AB7: =IF(C_CALC[[#This Row],[Alter_Sum]]=1,IF(SUM(AA8:AA$37)>0,_xlfn.CONCAT(C_CALC[[#This Row],[Country]],", "),C_CALC[[#This Row],[Country]]),"") ->  | AC7: =IF(C_CALC[[#This Row],[Delta_Corrected]]<0,ABS(C_CALC[[#This Row],[Delta_Corrected]])/C_CALC[[#This Row],[GWh_Demand_L1_Corrected]],0) -> 0 | AE7: 0 | AF7: =C_CALC[[#This Row],[Max. Wind]] -> 247 | AG7: 0 | AH7: =C_CALC[[#This Row],[Max Solar]] -> 1110
A8: Croatia | B8: =LOWER(_xlfn.XLOOKUP(C_CALC[[#This Row],[Country]],RAW_DATA[Country],RAW_DATA[Code])) -> hr | C8: HR | D8: Southern Europe | E8: =ROUND(raw!E35,-3) -> 67886000 | F8: =ROUND(raw!F35,-2) -> 5000 | G8: =_xlfn.XLOOKUP(C_CALC[[#This Row],[code]],RAW_DATA[Code],RAW_DATA[GWh_demand_2021]) -> 17369.4409 | H8: =C_CALC[[#This Row],[GWh_Demand_L1]]-(_xlfn.XLOOKUP(C_CALC[[#This Row],[Country]],Table13[Country],Table13[% in 2021],0)*C_CALC[[#This Row],[GWh_Demand_L1]]) -> 16156.61185 | I8: =C_CALC[[#This Row],[GWh_Demand_L1]]/Global_Constants!$B$12 -> 0.005288305952 | J8: =ROUND(_xlfn.XLOOKUP(C_CALC[[#This Row],[code]],RAW_DATA[Code],RAW_DATA[Area_QKM]),-2) -> 56600 | K8: =C_CALC[[#This Row],[Area_QKM]]*0.02 -> 1132 | L8: 150000 | M8: =(LN((C_CALC[[#This Row],[Trans_Factor]]/100000)))+1 -> 1.405465108 | N8: =Global_Constants!$B$5*(_xlfn.XLOOKUP(C_CALC[[#This Row],[code]],RAW_DATA[Code],RAW_DATA[Wind_Trans])) -> 698.7902735 | O8: =Global_Constants!$B$8*(_xlfn.XLOOKUP(C_CALC[[#This Row],[code]],RAW_DATA[Code],RAW_DATA[PV_Trans])) -> 195.8802524 | P8: =_xlfn.XLOOKUP(C_CALC[[#This Row],[Country]],PLAY[Region],PLAY[Wind Parks Medium Size]) -> 0 | Q8: =_xlfn.XLOOKUP(C_CALC[[#This Row],[Country]],PLAY[Region],PLAY[Solar Parks Medium Size]) -> 0 | R8: =C_CALC[[#This Row],[No_WP]]*C_CALC[[#This Row],[Wind_Yield]] -> 0 | S8: =C_CALC[[#This Row],[No_PV]]*C_CALC[[#This Row],[PV_Yield]] -> 0 | T8: =C_CALC[[#This Row],[GWh_Wind]]+C_CALC[[#This Row],[GWh_PV]] -> 0 | U8: =C_CALC[[#This Row],[GWh_Demand_L1]]-C_CALC[[#This Row],[GWh_Total]] -> 17369.4409 | V8: =C_CALC[[#This Row],[GWh_Demand_L1_Corrected]]-C_CALC[[#This Row],[GWh_Total]] -> 16156.61185 | W8: =IF(C_CALC[[#This Row],[GWh_Delta]]<0,(C_CALC[[#This Row],[GWh_Delta]]*-1)*C_CALC[[#This Row],[Trans_Factor]],0)/raw!$J$53 -> 0 | X8: =C_CALC[[#This Row],[Area_Max]]-(C_CALC[[#This Row],[No_WP]]*Global_Constants!$B$4+C_CALC[[#This Row],[No_PV]]*Global_Constants!$B$7) -> 1132 | Y8: =ROUND(C_CALC[[#This Row],[Area_Max]]/Global_Constants!$B$4,0) -> 126 | Z8: =ROUND(C_CALC[[#This Row],[Area_Max]]/Global_Constants!$B$7,0) -> 566 | AA8: =IF(C_CALC[[#This Row],[Area_Left]]<0,1,0) -> 0 | AB8: =IF(C_CALC[[#This Row],[Alter_Sum]]=1,IF(SUM(AA9:AA$37)>0,_xlfn.CONCAT(C_CALC[[#This Row],[Country]],", "),C_CALC[[#This Row],[Country]]),"") ->  | AC8: =IF(C_CALC[[#This Row],[Delta_Corrected]]<0,ABS(C_CALC[[#This Row],[Delta_Corrected]])/C_CALC[[#This Row],[GWh_Demand_L1_Corrected]],0) -> 0 | AE8: 0 | AF8: =C_CALC[[#This Row],[Max. Wind]] -> 126 | AG8: 0 | AH8: =C_CALC[[#This Row],[Max Solar]] -> 566
A9: Czech Republic | B9: =LOWER(_xlfn.XLOOKUP(C_CALC[[#This Row],[Country]],RAW_DATA[Country],RAW_DATA[Code])) -> cz | C9: CZ | D9: Eastern Europe | E9: =ROUND(raw!E4,-3) -> 1216000 | F9: =ROUND(raw!F4,-2) -> 71500 | G9: =_xlfn.XLOOKUP(C_CALC[[#This Row],[code]],RAW_DATA[Code],RAW_DATA[GWh_demand_2021]) -> 63399.4049 | H9: =C_CALC[[#This Row],[GWh_Demand_L1]]-(_xlfn.XLOOKUP(C_CALC[[#This Row],[Country]],Table13[Country],Table13[% in 2021],0)*C_CALC[[#This Row],[GWh_Demand_L1]]) -> 63399.4049 | I9: =C_CALC[[#This Row],[GWh_Demand_L1]]/Global_Constants!$B$12 -> 0.01930260463 | J9: =ROUND(_xlfn.XLOOKUP(C_CALC[[#This Row],[code]],RAW_DATA[Code],RAW_DATA[Area_QKM]),-2) -> 78900 | K9: =C_CALC[[#This Row],[Area_QKM]]*0.02 -> 1578 | L9: 120000 | M9: =(LN((C_CALC[[#This Row],[Trans_Factor]]/100000)))+1 -> 1.182321557 | N9: =Global_Constants!$B$5*(_xlfn.XLOOKUP(C_CALC[[#This Row],[code]],RAW_DATA[Code],RAW_DATA[Wind_Trans])) -> 778.6117661 | O9: =Global_Constants!$B$8*(_xlfn.XLOOKUP(C_CALC[[#This Row],[code]],RAW_DATA[Code],RAW_DATA[PV_Trans])) -> 157.4084153 | P9: =_xlfn.XLOOKUP(C_CALC[[#This Row],[Country]],PLAY[Region],PLAY[Wind Parks Medium Size]) -> 0 | Q9: =_xlfn.XLOOKUP(C_CALC[[#This Row],[Country]],PLAY[Region],PLAY[Solar Parks Medium Size]) -> 0 | R9: =C_CALC[[#This Row],[No_WP]]*C_CALC[[#This Row],[Wind_Yield]] -> 0 | S9: =C_CALC[[#This Row],[No_PV]]*C_CALC[[#This Row],[PV_Yield]] -> 0 | T9: =C_CALC[[#This Row],[GWh_Wind]]+C_CALC[[#This Row],[GWh_PV]] -> 0 | U9: =C_CALC[[#This Row],[GWh_Demand_L1]]-C_CALC[[#This Row],[GWh_Total]] -> 63399.4049 | V9: =C_CALC[[#This Row],[GWh_Demand_L1_Corrected]]-C_CALC[[#This Row],[GWh_Total]] -> 63399.4049 | W9: =IF(C_CALC[[#This Row],[GWh_Delta]]<0,(C_CALC[[#This Row],[GWh_Delta]]*-1)*C_CALC[[#This Row],[Trans_Factor]],0)/raw!$J$53 -> 0 | X9: =C_CALC[[#This Row],[Area_Max]]-(C_CALC[[#This Row],[No_WP]]*Global_Constants!$B$4+C_CALC[[#This Row],[No_PV]]*Global_Constants!$B$7) -> 1578 | Y9: =ROUND(C_CALC[[#This Row],[Area_Max]]/Global_Constants!$B$4,0) -> 175 | Z9: =ROUND(C_CALC[[#This Row],[Area_Max]]/Global_Constants!$B$7,0) -> 789 | AA9: =IF(C_CALC[[#This Row],[Area_Left]]<0,1,0) -> 0 | AB9: =IF(C_CALC[[#This Row],[Alter_Sum]]=1,IF(SUM(AA10:AA$37)>0,_xlfn.CONCAT(C_CALC[[#This Row],[Country]],", "),C_CALC[[#This Row],[Country]]),"") ->  | AC9: =IF(C_CALC[[#This Row],[Delta_Corrected]]<0,ABS(C_CALC[[#This Row],[Delta_Corrected]])/C_CALC[[#This Row],[GWh_Demand_L1_Corrected]],0) -> 0 | AE9: 0 | AF9: =C_CALC[[#This Row],[Max. Wind]] -> 175 | AG9: 0 | AH9: =C_CALC[[#This Row],[Max Solar]] -> 789
A10: Denmark | B10: =LOWER(_xlfn.XLOOKUP(C_CALC[[#This Row],[Country]],RAW_DATA[Country],RAW_DATA[Code])) -> dk | C10: DK | D10: Northern Europe | E10: =ROUND(raw!E5,-3) -> 1873000 | F10: =ROUND(raw!F5,-2) -> 2100 | G10: =_xlfn.XLOOKUP(C_CALC[[#This Row],[code]],RAW_DATA[Code],RAW_DATA[GWh_demand_2021]) -> 33730.7477 | H10: =C_CALC[[#This Row],[GWh_Demand_L1]]-(_xlfn.XLOOKUP(C_CALC[[#This Row],[Country]],Table13[Country],Table13[% in 2021],0)*C_CALC[[#This Row],[GWh_Demand_L1]]) -> 30173.43161 | I10: =C_CALC[[#This Row],[GWh_Demand_L1]]/Global_Constants!$B$12 -> 0.01026967505 | J10: =ROUND(_xlfn.XLOOKUP(C_CALC[[#This Row],[code]],RAW_DATA[Code],RAW_DATA[Area_QKM]),-2) -> 44500 | K10: =C_CALC[[#This Row],[Area_QKM]]*0.02 -> 890 | L10: 120000 | M10: =(LN((C_CALC[[#This Row],[Trans_Factor]]/100000)))+1 -> 1.182321557 | N10: =Global_Constants!$B$5*(_xlfn.XLOOKUP(C_CALC[[#This Row],[code]],RAW_DATA[Code],RAW_DATA[Wind_Trans])) -> 1204.68867 | O10: =Global_Constants!$B$8*(_xlfn.XLOOKUP(C_CALC[[#This Row],[code]],RAW_DATA[Code],RAW_DATA[PV_Trans])) -> 152.1450938 | P10: =_xlfn.XLOOKUP(C_CALC[[#This Row],[Country]],PLAY[Region],PLAY[Wind Parks Medium Size]) -> 0 | Q10: =_xlfn.XLOOKUP(C_CALC[[#This Row],[Country]],PLAY[Region],PLAY[Solar Parks Medium Size]) -> 0 | R10: =C_CALC[[#This Row],[No_WP]]*C_CALC[[#This Row],[Wind_Yield]] -> 0 | S10: =C_CALC[[#This Row],[No_PV]]*C_CALC[[#This Row],[PV_Yield]] -> 0 | T10: =C_CALC[[#This Row],[GWh_Wind]]+C_CALC[[#This Row],[GWh_PV]] -> 0 | U10: =C_CALC[[#This Row],[GWh_Demand_L1]]-C_CALC[[#This Row],[GWh_Total]] -> 33730.7477 | V10: =C_CALC[[#This Row],[GWh_Demand_L1_Corrected]]-C_CALC[[#This Row],[GWh_Total]] -> 30173.43161 | W10: =IF(C_CALC[[#This Row],[GWh_Delta]]<0,(C_CALC[[#This Row],[GWh_Delta]]*-1)*C_CALC[[#This Row],[Trans_Factor]],0)/raw!$J$53 -> 0 | X10: =C_CALC[[#This Row],[Area_Max]]-(C_CALC[[#This Row],[No_WP]]*Global_Constants!$B$4+C_CALC[[#This Row],[No_PV]]*Global_Constants!$B$7) -> 890 | Y10: =ROUND(C_CALC[[#This Row],[Area_Max]]/Global_Constants!$B$4,0) -> 99 | Z10: =ROUND(C_CALC[[#This Row],[Area_Max]]/Global_Constants!$B$7,0) -> 445 | AA10: =IF(C_CALC[[#This Row],[Area_Left]]<0,1,0) -> 0 | AB10: =IF(C_CALC[[#This Row],[Alter_Sum]]=1,IF(SUM(AA11:AA$37)>0,_xlfn.CONCAT(C_CALC[[#This Row],[Country]],", "),C_CALC[[#This Row],[Country]]),"") ->  | AC10: =IF(C_CALC[[#This Row],[Delta_Corrected]]<0,ABS(C_CALC[[#This Row],[Delta_Corrected]])/C_CALC[[#This Row],[GWh_Demand_L1_Corrected]],0) -> 0 | AE10: 0 | AF10: =C_CALC[[#This Row],[Max. Wind]] -> 99 | AG10: 0 | AH10: =C_CALC[[#This Row],[Max Solar]] -> 445
A11: Estonia | B11: =LOWER(_xlfn.XLOOKUP(C_CALC[[#This Row],[Country]],RAW_DATA[Country],RAW_DATA[Code])) -> ee | C11: EE | D11: Northern Europe | E11: =ROUND(raw!E6,-3) -> 628000 | F11: =ROUND(raw!F6,-2) -> 5500 | G11: =_xlfn.XLOOKUP(C_CALC[[#This Row],[code]],RAW_DATA[Code],RAW_DATA[GWh_demand_2021]) -> 8029.7853 | H11: =C_CALC[[#This Row],[GWh_Demand_L1]]-(_xlfn.XLOOKUP(C_CALC[[#This Row],[Country]],Table13[Country],Table13[% in 2021],0)*C_CALC[[#This Row],[GWh_Demand_L1]]) -> 7336.867308 | I11: =C_CALC[[#This Row],[GWh_Demand_L1]]/Global_Constants!$B$12 -> 0.002444751195 | J11: =ROUND(_xlfn.XLOOKUP(C_CALC[[#This Row],[code]],RAW_DATA[Code],RAW_DATA[Area_QKM]),-2) -> 45300 | K11: =C_CALC[[#This Row],[Area_QKM]]*0.02 -> 906 | L11: 150000 | M11: =(LN((C_CALC[[#This Row],[Trans_Factor]]/100000)))+1 -> 1.405465108 | N11: =Global_Constants!$B$5*(_xlfn.XLOOKUP(C_CALC[[#This Row],[code]],RAW_DATA[Code],RAW_DATA[Wind_Trans])) -> 888.7839423 | O11: =Global_Constants!$B$8*(_xlfn.XLOOKUP(C_CALC[[#This Row],[code]],RAW_DATA[Code],RAW_DATA[PV_Trans])) -> 142.0672221 | P11: =_xlfn.XLOOKUP(C_CALC[[#This Row],[Country]],PLAY[Region],PLAY[Wind Parks Medium Size]) -> 0 | Q11: =_xlfn.XLOOKUP(C_CALC[[#This Row],[Country]],PLAY[Region],PLAY[Solar Parks Medium Size]) -> 0 | R11: =C_CALC[[#This Row],[No_WP]]*C_CALC[[#This Row],[Wind_Yield]] -> 0 | S11: =C_CALC[[#This Row],[No_PV]]*C_CALC[[#This Row],[PV_Yield]] -> 0 | T11: =C_CALC[[#This Row],[GWh_Wind]]+C_CALC[[#This Row],[GWh_PV]] -> 0 | U11: =C_CALC[[#This Row],[GWh_Demand_L1]]-C_CALC[[#This Row],[GWh_Total]] -> 8029.7853 | V11: =C_CALC[[#This Row],[GWh_Demand_L1_Corrected]]-C_CALC[[#This Row],[GWh_Total]] -> 7336.867308 | W11: =IF(C_CALC[[#This Row],[GWh_Delta]]<0,(C_CALC[[#This Row],[GWh_Delta]]*-1)*C_CALC[[#This Row],[Trans_Factor]],0)/raw!$J$53 -> 0 | X11: =C_CALC[[#This Row],[Area_Max]]-(C_CALC[[#This Row],[No_WP]]*Global_Constants!$B$4+C_CALC[[#This Row],[No_PV]]*Global_Constants!$B$7) -> 906 | Y11: =ROUND(C_CALC[[#This Row],[Area_Max]]/Global_Constants!$B$4,0) -> 101 | Z11: =ROUND(C_CALC[[#This Row],[Area_Max]]/Global_Constants!$B$7,0) -> 453 | AA11: =IF(C_CALC[[#This Row],[Area_Left]]<0,1,0) -> 0 | AB11: =IF(C_CALC[[#This Row],[Alter_Sum]]=1,IF(SUM(AA12:AA$37)>0,_xlfn.CONCAT(C_CALC[[#This Row],[Country]],", "),C_CALC[[#This Row],[Country]]),"") ->  | AC11: =IF(C_CALC[[#This Row],[Delta_Corrected]]<0,ABS(C_CALC[[#This Row],[Delta_Corrected]])/C_CALC[[#This Row],[GWh_Demand_L1_Corrected]],0) -> 0 | AE11: 0 | AF11: =C_CALC[[#This Row],[Max. Wind]] -> 101 | AG11: 0 | AH11: =C_CALC[[#This Row],[Max Solar]] -> 453
A12: Finland | B12: =LOWER(_xlfn.XLOOKUP(C_CALC[[#This Row],[Country]],RAW_DATA[Country],RAW_DATA[Code])) -> fi | C12: FI | D12: Northern Europe | E12: =ROUND(raw!E7,-3) -> 2079000 | F12: =ROUND(raw!F7,-2) -> 6600 | G12: =_xlfn.XLOOKUP(C_CALC[[#This Row],[code]],RAW_DATA[Code],RAW_DATA[GWh_demand_2021]) -> 83887.4848 | H12: =C_CALC[[#This Row],[GWh_Demand_L1]]-(_xlfn.XLOOKUP(C_CALC[[#This Row],[Country]],Table13[Country],Table13[% in 2021],0)*C_CALC[[#This Row],[GWh_Demand_L1]]) -> 66680.60396 | I12: =C_CALC[[#This Row],[GWh_Demand_L1]]/Global_Constants!$B$12 -> 0.02554041248 | J12: =ROUND(_xlfn.XLOOKUP(C_CALC[[#This Row],[code]],RAW_DATA[Code],RAW_DATA[Area_QKM]),-2) -> 338100 | K12: =C_CALC[[#This Row],[Area_QKM]]*0.02 -> 6762 | L12: 160000 | M12: =(LN((C_CALC[[#This Row],[Trans_Factor]]/100000)))+1 -> 1.470003629 | N12: =Global_Constants!$B$5*(_xlfn.XLOOKUP(C_CALC[[#This Row],[code]],RAW_DATA[Code],RAW_DATA[Wind_Trans])) -> 912.9356799 | O12: =Global_Constants!$B$8*(_xlfn.XLOOKUP(C_CALC[[#This Row],[code]],RAW_DATA[Code],RAW_DATA[PV_Trans])) -> 133.3781268 | P12: =_xlfn.XLOOKUP(C_CALC[[#This Row],[Country]],PLAY[Region],PLAY[Wind Parks Medium Size]) -> 0 | Q12: =_xlfn.XLOOKUP(C_CALC[[#This Row],[Country]],PLAY[Region],PLAY[Solar Parks Medium Size]) -> 0 | R12: =C_CALC[[#This Row],[No_WP]]*C_CALC[[#This Row],[Wind_Yield]] -> 0 | S12: =C_CALC[[#This Row],[No_PV]]*C_CALC[[#This Row],[PV_Yield]] -> 0 | T12: =C_CALC[[#This Row],[GWh_Wind]]+C_CALC[[#This Row],[GWh_PV]] -> 0 | U12: =C_CALC[[#This Row],[GWh_Demand_L1]]-C_CALC[[#This Row],[GWh_Total]] -> 83887.4848 | V12: =C_CALC[[#This Row],[GWh_Demand_L1_Corrected]]-C_CALC[[#This Row],[GWh_Total]] -> 66680.60396 | W12: =IF(C_CALC[[#This Row],[GWh_Delta]]<0,(C_CALC[[#This Row],[GWh_Delta]]*-1)*C_CALC[[#This Row],[Trans_Factor]],0)/raw!$J$53 -> 0 | X12: =C_CALC[[#This Row],[Area_Max]]-(C_CALC[[#This Row],[No_WP]]*Global_Constants!$B$4+C_CALC[[#This Row],[No_PV]]*Global_Constants!$B$7) -> 6762 | Y12: =ROUND(C_CALC[[#This Row],[Area_Max]]/Global_Constants!$B$4,0) -> 751 | Z12: =ROUND(C_CALC[[#This Row],[Area_Max]]/Global_Constants!$B$7,0) -> 3381 | AA12: =IF(C_CALC[[#This Row],[Area_Left]]<0,1,0) -> 0 | AB12: =IF(C_CALC[[#This Row],[Alter_Sum]]=1,IF(SUM(AA13:AA$37)>0,_xlfn.CONCAT(C_CALC[[#This Row],[Country]],", "),C_CALC[[#This Row],[Country]]),"") ->  | AC12: =IF(C_CALC[[#This Row],[Delta_Corrected]]<0,ABS(C_CALC[[#This Row],[Delta_Corrected]])/C_CALC[[#This Row],[GWh_Demand_L1_Corrected]],0) -> 0 | AE12: 0 | AF12: =C_CALC[[#This Row],[Max. Wind]] -> 751 | AG12: 0 | AH12: =C_CALC[[#This Row],[Max Solar]] -> 3381
A13: France (Coast) | B13: fr1 | C13: FR | D13: Western Europe | E13: =ROUND(raw!E10,-3) -> 11590000 | F13: =ROUND(raw!F10,-2) -> 7400 | G13: =_xlfn.XLOOKUP(C_CALC[[#This Row],[code]],RAW_DATA[Code],RAW_DATA[GWh_demand_2021]) -> 166455.8652 | H13: =C_CALC[[#This Row],[GWh_Demand_L1]]-(_xlfn.XLOOKUP(C_CALC[[#This Row],[Country]],Table13[Country],Table13[% in 2021],0)*C_CALC[[#This Row],[GWh_Demand_L1]]) -> 166455.8652 | I13: =C_CALC[[#This Row],[GWh_Demand_L1]]/Global_Constants!$B$12 -> 0.05067920998 | J13: =ROUND(_xlfn.XLOOKUP(C_CALC[[#This Row],[code]],RAW_DATA[Code],RAW_DATA[Area_QKM]),-2) -> 187600 | K13: =C_CALC[[#This Row],[Area_QKM]]*0.02 -> 3752 | L13: 100000 | M13: =(LN((C_CALC[[#This Row],[Trans_Factor]]/100000)))+1 -> 1 | N13: =Global_Constants!$B$5*(_xlfn.XLOOKUP(C_CALC[[#This Row],[code]],RAW_DATA[Code],RAW_DATA[Wind_Trans])) -> 939.249573 | O13: =Global_Constants!$B$8*(_xlfn.XLOOKUP(C_CALC[[#This Row],[code]],RAW_DATA[Code],RAW_DATA[PV_Trans])) -> 171.9243207 | P13: =_xlfn.XLOOKUP(C_CALC[[#This Row],[Country]],PLAY[Region],PLAY[Wind Parks Medium Size]) -> 0 | Q13: =_xlfn.XLOOKUP(C_CALC[[#This Row],[Country]],PLAY[Region],PLAY[Solar Parks Medium Size]) -> 0 | R13: =C_CALC[[#This Row],[No_WP]]*C_CALC[[#This Row],[Wind_Yield]] -> 0 | S13: =C_CALC[[#This Row],[No_PV]]*C_CALC[[#This Row],[PV_Yield]] -> 0 | T13: =C_CALC[[#This Row],[GWh_Wind]]+C_CALC[[#This Row],[GWh_PV]] -> 0 | U13: =C_CALC[[#This Row],[GWh_Demand_L1]]-C_CALC[[#This Row],[GWh_Total]] -> 166455.8652 | V13: =C_CALC[[#This Row],[GWh_Demand_L1_Corrected]]-C_CALC[[#This Row],[GWh_Total]] -> 166455.8652 | W13: =IF(C_CALC[[#This Row],[GWh_Delta]]<0,(C_CALC[[#This Row],[GWh_Delta]]*-1)*C_CALC[[#This Row],[Trans_Factor]],0)/raw!$J$53 -> 0 | X13: =C_CALC[[#This Row],[Area_Max]]-(C_CALC[[#This Row],[No_WP]]*Global_Constants!$B$4+C_CALC[[#This Row],[No_PV]]*Global_Constants!$B$7) -> 3752 | Y13: =ROUND(C_CALC[[#This Row],[Area_Max]]/Global_Constants!$B$4,0) -> 417 | Z13: =ROUND(C_CALC[[#This Row],[Area_Max]]/Global_Constants!$B$7,0) -> 1876 | AA13: =IF(C_CALC[[#This Row],[Area_Left]]<0,1,0) -> 0 | AB13: =IF(C_CALC[[#This Row],[Alter_Sum]]=1,IF(SUM(AA14:AA$37)>0,_xlfn.CONCAT(C_CALC[[#This Row],[Country]],", "),C_CALC[[#This Row],[Country]]),"") ->  | AC13: =IF(C_CALC[[#This Row],[Delta_Corrected]]<0,ABS(C_CALC[[#This Row],[Delta_Corrected]])/C_CALC[[#This Row],[GWh_Demand_L1_Corrected]],0) -> 0 | AE13: 0 | AF13: =C_CALC[[#This Row],[Max. Wind]] -> 417 | AG13: 0 | AH13: =C_CALC[[#This Row],[Max Solar]] -> 1876
A14: France (Main) | B14: fr2 | C14: FR | D14: Western Europe | E14: =ROUND(raw!E11,-3) -> 4034000 | F14: =ROUND(raw!F11,-2) -> 1100 | G14: =_xlfn.XLOOKUP(C_CALC[[#This Row],[code]],RAW_DATA[Code],RAW_DATA[GWh_demand_2021]) -> 323120.2089 | H14: =C_CALC[[#This Row],[GWh_Demand_L1]]-(_xlfn.XLOOKUP(C_CALC[[#This Row],[Country]],Table13[Country],Table13[% in 2021],0)*C_CALC[[#This Row],[GWh_Demand_L1]]) -> 323120.2089 | I14: =C_CALC[[#This Row],[GWh_Demand_L1]]/Global_Constants!$B$12 -> 0.09837728997 | J14: =ROUND(_xlfn.XLOOKUP(C_CALC[[#This Row],[code]],RAW_DATA[Code],RAW_DATA[Area_QKM]),-2) -> 364100 | K14: =C_CALC[[#This Row],[Area_QKM]]*0.02 -> 7282 | L14: 100000 | M14: =(LN((C_CALC[[#This Row],[Trans_Factor]]/100000)))+1 -> 1 | N14: =Global_Constants!$B$5*(_xlfn.XLOOKUP(C_CALC[[#This Row],[code]],RAW_DATA[Code],RAW_DATA[Wind_Trans])) -> 810.0170755 | O14: =Global_Constants!$B$8*(_xlfn.XLOOKUP(C_CALC[[#This Row],[code]],RAW_DATA[Code],RAW_DATA[PV_Trans])) -> 187.8662684 | P14: =_xlfn.XLOOKUP(C_CALC[[#This Row],[Country]],PLAY[Region],PLAY[Wind Parks Medium Size]) -> 0 | Q14: =_xlfn.XLOOKUP(C_CALC[[#This Row],[Country]],PLAY[Region],PLAY[Solar Parks Medium Size]) -> 0 | R14: =C_CALC[[#This Row],[No_WP]]*C_CALC[[#This Row],[Wind_Yield]] -> 0 | S14: =C_CALC[[#This Row],[No_PV]]*C_CALC[[#This Row],[PV_Yield]] -> 0 | T14: =C_CALC[[#This Row],[GWh_Wind]]+C_CALC[[#This Row],[GWh_PV]] -> 0 | U14: =C_CALC[[#This Row],[GWh_Demand_L1]]-C_CALC[[#This Row],[GWh_Total]] -> 323120.2089 | V14: =C_CALC[[#This Row],[GWh_Demand_L1_Corrected]]-C_CALC[[#This Row],[GWh_Total]] -> 323120.2089 | W14: =IF(C_CALC[[#This Row],[GWh_Delta]]<0,(C_CALC[[#This Row],[GWh_Delta]]*-1)*C_CALC[[#This Row],[Trans_Factor]],0)/raw!$J$53 -> 0 | X14: =C_CALC[[#This Row],[Area_Max]]-(C_CALC[[#This Row],[No_WP]]*Global_Constants!$B$4+C_CALC[[#This Row],[No_PV]]*Global_Constants!$B$7) -> 7282 | Y14: =ROUND(C_CALC[[#This Row],[Area_Max]]/Global_Constants!$B$4,0) -> 809 | Z14: =ROUND(C_CALC[[#This Row],[Area_Max]]/Global_Constants!$B$7,0) -> 3641 | AA14: =IF(C_CALC[[#This Row],[Area_Left]]<0,1,0) -> 0 | AB14: =IF(C_CALC[[#This Row],[Alter_Sum]]=1,IF(SUM(AA15:AA$37)>0,_xlfn.CONCAT(C_CALC[[#This Row],[Country]],", "),C_CALC[[#This Row],[Country]]),"") ->  | AC14: =IF(C_CALC[[#This Row],[Delta_Corrected]]<0,ABS(C_CALC[[#This Row],[Delta_Corrected]])/C_CALC[[#This Row],[GWh_Demand_L1_Corrected]],0) -> 0 | AE14: 0 | AF14: =C_CALC[[#This Row],[Max. Wind]] -> 809 | AG14: 0 | AH14: =C_CALC[[#This Row],[Max Solar]] -> 3641
A15: Germany (North) | B15: de1 | C15: DE | D15: Western Europe | E15: =ROUND(raw!E12,-3) -> 17135000 | F15: =ROUND(raw!F12,-2) -> 6500 | G15: =_xlfn.XLOOKUP(C_CALC[[#This Row],[code]],RAW_DATA[Code],RAW_DATA[GWh_demand_2021]) -> 263091.0988 | H15: =C_CALC[[#This Row],[GWh_Demand_L1]]-(_xlfn.XLOOKUP(C_CALC[[#This Row],[Country]],Table13[Country],Table13[% in 2021],0)*C_CALC[[#This Row],[GWh_Demand_L1]]) -> 263091.0988 | I15: =C_CALC[[#This Row],[GWh_Demand_L1]]/Global_Constants!$B$12 -> 0.08010080645 | J15: =ROUND(_xlfn.XLOOKUP(C_CALC[[#This Row],[code]],RAW_DATA[Code],RAW_DATA[Area_QKM]),-2) -> 178700 | K15: =C_CALC[[#This Row],[Area_QKM]]*0.02 -> 3574 | L15: 100000 | M15: =(LN((C_CALC[[#This Row],[Trans_Factor]]/100000)))+1 -> 1 | N15: =Global_Constants!$B$5*(_xlfn.XLOOKUP(C_CALC[[#This Row],[code]],RAW_DATA[Code],RAW_DATA[Wind_Trans])) -> 795.3113509 | O15: =Global_Constants!$B$8*(_xlfn.XLOOKUP(C_CALC[[#This Row],[code]],RAW_DATA[Code],RAW_DATA[PV_Trans])) -> 150.2627979 | P15: =_xlfn.XLOOKUP(C_CALC[[#This Row],[Country]],PLAY[Region],PLAY[Wind Parks Medium Size]) -> 0 | Q15: =_xlfn.XLOOKUP(C_CALC[[#This Row],[Country]],PLAY[Region],PLAY[Solar Parks Medium Size]) -> 0 | R15: =C_CALC[[#This Row],[No_WP]]*C_CALC[[#This Row],[Wind_Yield]] -> 0 | S15: =C_CALC[[#This Row],[No_PV]]*C_CALC[[#This Row],[PV_Yield]] -> 0 | T15: =C_CALC[[#This Row],[GWh_Wind]]+C_CALC[[#This Row],[GWh_PV]] -> 0 | U15: =C_CALC[[#This Row],[GWh_Demand_L1]]-C_CALC[[#This Row],[GWh_Total]] -> 263091.0988 | V15: =C_CALC[[#This Row],[GWh_Demand_L1_Corrected]]-C_CALC[[#This Row],[GWh_Total]] -> 263091.0988 | W15: =IF(C_CALC[[#This Row],[GWh_Delta]]<0,(C_CALC[[#This Row],[GWh_Delta]]*-1)*C_CALC[[#This Row],[Trans_Factor]],0)/raw!$J$53 -> 0 | X15: =C_CALC[[#This Row],[Area_Max]]-(C_CALC[[#This Row],[No_WP]]*Global_Constants!$B$4+C_CALC[[#This Row],[No_PV]]*Global_Constants!$B$7) -> 3574 | Y15: =ROUND(C_CALC[[#This Row],[Area_Max]]/Global_Constants!$B$4,0) -> 397 | Z15: =ROUND(C_CALC[[#This Row],[Area_Max]]/Global_Constants!$B$7,0) -> 1787 | AA15: =IF(C_CALC[[#This Row],[Area_Left]]<0,1,0) -> 0 | AB15: =IF(C_CALC[[#This Row],[Alter_Sum]]=1,IF(SUM(AA16:AA$37)>0,_xlfn.CONCAT(C_CALC[[#This Row],[Country]],", "),C_CALC[[#This Row],[Country]]),"") ->  | AC15: =IF(C_CALC[[#This Row],[Delta_Corrected]]<0,ABS(C_CALC[[#This Row],[Delta_Corrected]])/C_CALC[[#This Row],[GWh_Demand_L1_Corrected]],0) -> 0 | AE15: 0 | AF15: =C_CALC[[#This Row],[Max. Wind]] -> 397 | AG15: 0 | AH15: =C_CALC[[#This Row],[Max Solar]] -> 1787
A16: Germany (South) | B16: de2 | C16: DE | D16: Western Europe | E16: =ROUND(raw!#REF!,-3) ->  | F16: =ROUND(raw!#REF!,-2) ->  | G16: =_xlfn.XLOOKUP(C_CALC[[#This Row],[code]],RAW_DATA[Code],RAW_DATA[GWh_demand_2021]) -> 263091.0988 | H16: =C_CALC[[#This Row],[GWh_Demand_L1]]-(_xlfn.XLOOKUP(C_CALC[[#This Row],[Country]],Table13[Country],Table13[% in 2021],0)*C_CALC[[#This Row],[GWh_Demand_L1]]) -> 263091.0988 | I16: =C_CALC[[#This Row],[GWh_Demand_L1]]/Global_Constants!$B$12 -> 0.08010080645 | J16: =ROUND(_xlfn.XLOOKUP(C_CALC[[#This Row],[code]],RAW_DATA[Code],RAW_DATA[Area_QKM]),-2) -> 178700 | K16: =C_CALC[[#This Row],[Area_QKM]]*0.02 -> 3574 | L16: 100000 | M16: =(LN((C_CALC[[#This Row],[Trans_Factor]]/100000)))+1 -> 1 | N16: =Global_Constants!$B$5*(_xlfn.XLOOKUP(C_CALC[[#This Row],[code]],RAW_DATA[Code],RAW_DATA[Wind_Trans])) -> 603.5554219 | O16: =Global_Constants!$B$8*(_xlfn.XLOOKUP(C_CALC[[#This Row],[code]],RAW_DATA[Code],RAW_DATA[PV_Trans])) -> 156.9304434 | P16: =_xlfn.XLOOKUP(C_CALC[[#This Row],[Country]],PLAY[Region],PLAY[Wind Parks Medium Size]) -> 0 | Q16: =_xlfn.XLOOKUP(C_CALC[[#This Row],[Country]],PLAY[Region],PLAY[Solar Parks Medium Size]) -> 0 | R16: =C_CALC[[#This Row],[No_WP]]*C_CALC[[#This Row],[Wind_Yield]] -> 0 | S16: =C_CALC[[#This Row],[No_PV]]*C_CALC[[#This Row],[PV_Yield]] -> 0 | T16: =C_CALC[[#This Row],[GWh_Wind]]+C_CALC[[#This Row],[GWh_PV]] -> 0 | U16: =C_CALC[[#This Row],[GWh_Demand_L1]]-C_CALC[[#This Row],[GWh_Total]] -> 263091.0988 | V16: =C_CALC[[#This Row],[GWh_Demand_L1_Corrected]]-C_CALC[[#This Row],[GWh_Total]] -> 263091.0988 | W16: =IF(C_CALC[[#This Row],[GWh_Delta]]<0,(C_CALC[[#This Row],[GWh_Delta]]*-1)*C_CALC[[#This Row],[Trans_Factor]],0)/raw!$J$53 -> 0 | X16: =C_CALC[[#This Row],[Area_Max]]-(C_CALC[[#This Row],[No_WP]]*Global_Constants!$B$4+C_CALC[[#This Row],[No_PV]]*Global_Constants!$B$7) -> 3574 | Y16: =ROUND(C_CALC[[#This Row],[Area_Max]]/Global_Constants!$B$4,0) -> 397 | Z16: =ROUND(C_CALC[[#This Row],[Area_Max]]/Global_Constants!$B$7,0) -> 1787 | AA16: =IF(C_CALC[[#This Row],[Area_Left]]<0,1,0) -> 0 | AB16: =IF(C_CALC[[#This Row],[Alter_Sum]]=1,IF(SUM(AA17:AA$37)>0,_xlfn.CONCAT(C_CALC[[#This Row],[Country]],", "),C_CALC[[#This Row],[Country]]),"") ->  | AC16: =IF(C_CALC[[#This Row],[Delta_Corrected]]<0,ABS(C_CALC[[#This Row],[Delta_Corrected]])/C_CALC[[#This Row],[GWh_Demand_L1_Corrected]],0) -> 0 | AE16: 0 | AF16: =C_CALC[[#This Row],[Max. Wind]] -> 397 | AG16: 0 | AH16: =C_CALC[[#This Row],[Max Solar]] -> 1787
A17: Greece | B17: =LOWER(_xlfn.XLOOKUP(C_CALC[[#This Row],[Country]],RAW_DATA[Country],RAW_DATA[Code])) -> el | C17: EL | D17: Southern Europe | E17: =ROUND(raw!E13,-3) -> 8655000 | F17: =ROUND(raw!F13,-2) -> 7500 | G17: =_xlfn.XLOOKUP(C_CALC[[#This Row],[code]],RAW_DATA[Code],RAW_DATA[GWh_demand_2021]) -> 49881.5016 | H17: =C_CALC[[#This Row],[GWh_Demand_L1]]-(_xlfn.XLOOKUP(C_CALC[[#This Row],[Country]],Table13[Country],Table13[% in 2021],0)*C_CALC[[#This Row],[GWh_Demand_L1]]) -> 47731.79654 | I17: =C_CALC[[#This Row],[GWh_Demand_L1]]/Global_Constants!$B$12 -> 0.01518693914 | J17: =ROUND(_xlfn.XLOOKUP(C_CALC[[#This Row],[code]],RAW_DATA[Code],RAW_DATA[Area_QKM]),-2) -> 131900 | K17: =C_CALC[[#This Row],[Area_QKM]]*0.02 -> 2638 | L17: 240000 | M17: =(LN((C_CALC[[#This Row],[Trans_Factor]]/100000)))+1 -> 1.875468737 | N17: =Global_Constants!$B$5*(_xlfn.XLOOKUP(C_CALC[[#This Row],[code]],RAW_DATA[Code],RAW_DATA[Wind_Trans])) -> 689.9883069 | O17: =Global_Constants!$B$8*(_xlfn.XLOOKUP(C_CALC[[#This Row],[code]],RAW_DATA[Code],RAW_DATA[PV_Trans])) -> 228.1873301 | P17: =_xlfn.XLOOKUP(C_CALC[[#This Row],[Country]],PLAY[Region],PLAY[Wind Parks Medium Size]) -> 0 | Q17: =_xlfn.XLOOKUP(C_CALC[[#This Row],[Country]],PLAY[Region],PLAY[Solar Parks Medium Size]) -> 0 | R17: =C_CALC[[#This Row],[No_WP]]*C_CALC[[#This Row],[Wind_Yield]] -> 0 | S17: =C_CALC[[#This Row],[No_PV]]*C_CALC[[#This Row],[PV_Yield]] -> 0 | T17: =C_CALC[[#This Row],[GWh_Wind]]+C_CALC[[#This Row],[GWh_PV]] -> 0 | U17: =C_CALC[[#This Row],[GWh_Demand_L1]]-C_CALC[[#This Row],[GWh_Total]] -> 49881.5016 | V17: =C_CALC[[#This Row],[GWh_Demand_L1_Corrected]]-C_CALC[[#This Row],[GWh_Total]] -> 47731.79654 | W17: =IF(C_CALC[[#This Row],[GWh_Delta]]<0,(C_CALC[[#This Row],[GWh_Delta]]*-1)*C_CALC[[#This Row],[Trans_Factor]],0)/raw!$J$53 -> 0 | X17: =C_CALC[[#This Row],[Area_Max]]-(C_CALC[[#This Row],[No_WP]]*Global_Constants!$B$4+C_CALC[[#This Row],[No_PV]]*Global_Constants!$B$7) -> 2638 | Y17: =ROUND(C_CALC[[#This Row],[Area_Max]]/Global_Constants!$B$4,0) -> 293 | Z17: =ROUND(C_CALC[[#This Row],[Area_Max]]/Global_Constants!$B$7,0) -> 1319 | AA17: =IF(C_CALC[[#This Row],[Area_Left]]<0,1,0) -> 0 | AB17: =IF(C_CALC[[#This Row],[Alter_Sum]]=1,IF(SUM(AA18:AA$37)>0,_xlfn.CONCAT(C_CALC[[#This Row],[Country]],", "),C_CALC[[#This Row],[Country]]),"") ->  | AC17: =IF(C_CALC[[#This Row],[Delta_Corrected]]<0,ABS(C_CALC[[#This Row],[Delta_Corrected]])/C_CALC[[#This Row],[GWh_Demand_L1_Corrected]],0) -> 0 | AE17: 0 | AF17: =C_CALC[[#This Row],[Max. Wind]] -> 293 | AG17: 0 | AH17: =C_CALC[[#This Row],[Max Solar]] -> 1319
A18: Hungaria | B18: =LOWER(_xlfn.XLOOKUP(C_CALC[[#This Row],[Country]],RAW_DATA[Country],RAW_DATA[Code])) -> hu | C18: HU | D18: Eastern Europe | E18: =ROUND(raw!E14,-3) -> 5792000 | F18: =ROUND(raw!F14,-2) -> 5800 | G18: =_xlfn.XLOOKUP(C_CALC[[#This Row],[code]],RAW_DATA[Code],RAW_DATA[GWh_demand_2021]) -> 40825.0404 | H18: =C_CALC[[#This Row],[GWh_Demand_L1]]-(_xlfn.XLOOKUP(C_CALC[[#This Row],[Country]],Table13[Country],Table13[% in 2021],0)*C_CALC[[#This Row],[GWh_Demand_L1]]) -> 40825.0404 | I18: =C_CALC[[#This Row],[GWh_Demand_L1]]/Global_Constants!$B$12 -> 0.01242960585 | J18: =ROUND(_xlfn.XLOOKUP(C_CALC[[#This Row],[code]],RAW_DATA[Code],RAW_DATA[Area_QKM]),-2) -> 93000 | K18: =C_CALC[[#This Row],[Area_QKM]]*0.02 -> 1860 | L18: 120000 | M18: =(LN((C_CALC[[#This Row],[Trans_Factor]]/100000)))+1 -> 1.182321557 | N18: =Global_Constants!$B$5*(_xlfn.XLOOKUP(C_CALC[[#This Row],[code]],RAW_DATA[Code],RAW_DATA[Wind_Trans])) -> 649.7047421 | O18: =Global_Constants!$B$8*(_xlfn.XLOOKUP(C_CALC[[#This Row],[code]],RAW_DATA[Code],RAW_DATA[PV_Trans])) -> 186.982452 | P18: =_xlfn.XLOOKUP(C_CALC[[#This Row],[Country]],PLAY[Region],PLAY[Wind Parks Medium Size]) -> 0 | Q18: =_xlfn.XLOOKUP(C_CALC[[#This Row],[Country]],PLAY[Region],PLAY[Solar Parks Medium Size]) -> 0 | R18: =C_CALC[[#This Row],[No_WP]]*C_CALC[[#This Row],[Wind_Yield]] -> 0 | S18: =C_CALC[[#This Row],[No_PV]]*C_CALC[[#This Row],[PV_Yield]] -> 0 | T18: =C_CALC[[#This Row],[GWh_Wind]]+C_CALC[[#This Row],[GWh_PV]] -> 0 | U18: =C_CALC[[#This Row],[GWh_Demand_L1]]-C_CALC[[#This Row],[GWh_Total]] -> 40825.0404 | V18: =C_CALC[[#This Row],[GWh_Demand_L1_Corrected]]-C_CALC[[#This Row],[GWh_Total]] -> 40825.0404 | W18: =IF(C_CALC[[#This Row],[GWh_Delta]]<0,(C_CALC[[#This Row],[GWh_Delta]]*-1)*C_CALC[[#This Row],[Trans_Factor]],0)/raw!$J$53 -> 0 | X18: =C_CALC[[#This Row],[Area_Max]]-(C_CALC[[#This Row],[No_WP]]*Global_Constants!$B$4+C_CALC[[#This Row],[No_PV]]*Global_Constants!$B$7) -> 1860 | Y18: =ROUND(C_CALC[[#This Row],[Area_Max]]/Global_Constants!$B$4,0) -> 207 | Z18: =ROUND(C_CALC[[#This Row],[Area_Max]]/Global_Constants!$B$7,0) -> 930 | AA18: =IF(C_CALC[[#This Row],[Area_Left]]<0,1,0) -> 0 | AB18: =IF(C_CALC[[#This Row],[Alter_Sum]]=1,IF(SUM(AA19:AA$37)>0,_xlfn.CONCAT(C_CALC[[#This Row],[Country]],", "),C_CALC[[#This Row],[Country]]),"") ->  | AC18: =IF(C_CALC[[#This Row],[Delta_Corrected]]<0,ABS(C_CALC[[#This Row],[Delta_Corrected]])/C_CALC[[#This Row],[GWh_Demand_L1_Corrected]],0) -> 0 | AE18: 0 | AF18: =C_CALC[[#This Row],[Max. Wind]] -> 207 | AG18: 0 | AH18: =C_CALC[[#This Row],[Max Solar]] -> 930
A19: Ireland | B19: =LOWER(_xlfn.XLOOKUP(C_CALC[[#This Row],[Country]],RAW_DATA[Country],RAW_DATA[Code])) -> ie | C19: IE | D19: Northern Europe | E19: =ROUND(raw!E15,-3) -> 1327000 | F19: =ROUND(raw!F15,-2) -> 6100 | G19: =_xlfn.XLOOKUP(C_CALC[[#This Row],[code]],RAW_DATA[Code],RAW_DATA[GWh_demand_2021]) -> 26127.9257 | H19: =C_CALC[[#This Row],[GWh_Demand_L1]]-(_xlfn.XLOOKUP(C_CALC[[#This Row],[Country]],Table13[Country],Table13[% in 2021],0)*C_CALC[[#This Row],[GWh_Demand_L1]]) -> 25005.4616 | I19: =C_CALC[[#This Row],[GWh_Demand_L1]]/Global_Constants!$B$12 -> 0.007954917248 | J19: =ROUND(_xlfn.XLOOKUP(C_CALC[[#This Row],[code]],RAW_DATA[Code],RAW_DATA[Area_QKM]),-2) -> 70300 | K19: =C_CALC[[#This Row],[Area_QKM]]*0.02 -> 1406 | L19: 170000 | M19: =(LN((C_CALC[[#This Row],[Trans_Factor]]/100000)))+1 -> 1.530628251 | N19: =Global_Constants!$B$5*(_xlfn.XLOOKUP(C_CALC[[#This Row],[code]],RAW_DATA[Code],RAW_DATA[Wind_Trans])) -> 1438.799512 | O19: =Global_Constants!$B$8*(_xlfn.XLOOKUP(C_CALC[[#This Row],[code]],RAW_DATA[Code],RAW_DATA[PV_Trans])) -> 137.6165376 | P19: =_xlfn.XLOOKUP(C_CALC[[#This Row],[Country]],PLAY[Region],PLAY[Wind Parks Medium Size]) -> 0 | Q19: =_xlfn.XLOOKUP(C_CALC[[#This Row],[Country]],PLAY[Region],PLAY[Solar Parks Medium Size]) -> 0 | R19: =C_CALC[[#This Row],[No_WP]]*C_CALC[[#This Row],[Wind_Yield]] -> 0 | S19: =C_CALC[[#This Row],[No_PV]]*C_CALC[[#This Row],[PV_Yield]] -> 0 | T19: =C_CALC[[#This Row],[GWh_Wind]]+C_CALC[[#This Row],[GWh_PV]] -> 0 | U19: =C_CALC[[#This Row],[GWh_Demand_L1]]-C_CALC[[#This Row],[GWh_Total]] -> 26127.9257 | V19: =C_CALC[[#This Row],[GWh_Demand_L1_Corrected]]-C_CALC[[#This Row],[GWh_Total]] -> 25005.4616 | W19: =IF(C_CALC[[#This Row],[GWh_Delta]]<0,(C_CALC[[#This Row],[GWh_Delta]]*-1)*C_CALC[[#This Row],[Trans_Factor]],0)/raw!$J$53 -> 0 | X19: =C_CALC[[#This Row],[Area_Max]]-(C_CALC[[#This Row],[No_WP]]*Global_Constants!$B$4+C_CALC[[#This Row],[No_PV]]*Global_Constants!$B$7) -> 1406 | Y19: =ROUND(C_CALC[[#This Row],[Area_Max]]/Global_Constants!$B$4,0) -> 156 | Z19: =ROUND(C_CALC[[#This Row],[Area_Max]]/Global_Constants!$B$7,0) -> 703 | AA19: =IF(C_CALC[[#This Row],[Area_Left]]<0,1,0) -> 0 | AB19: =IF(C_CALC[[#This Row],[Alter_Sum]]=1,IF(SUM(AA20:AA$37)>0,_xlfn.CONCAT(C_CALC[[#This Row],[Country]],", "),C_CALC[[#This Row],[Country]]),"") ->  | AC19: =IF(C_CALC[[#This Row],[Delta_Corrected]]<0,ABS(C_CALC[[#This Row],[Delta_Corrected]])/C_CALC[[#This Row],[GWh_Demand_L1_Corrected]],0) -> 0 | AE19: 0 | AF19: =C_CALC[[#This Row],[Max. Wind]] -> 156 | AG19: 0 | AH19: =C_CALC[[#This Row],[Max Solar]] -> 703
A20: Italy (North) | B20: it1 | C20: IT | D20: Southern Europe | E20: =ROUND(raw!E17,-3) -> 3281000 | F20: =ROUND(raw!F17,-2) -> 3800 | G20: =_xlfn.XLOOKUP(C_CALC[[#This Row],[code]],RAW_DATA[Code],RAW_DATA[GWh_demand_2021]) -> 158560.1519 | H20: =C_CALC[[#This Row],[GWh_Demand_L1]]-(_xlfn.XLOOKUP(C_CALC[[#This Row],[Country]],Table13[Country],Table13[% in 2021],0)*C_CALC[[#This Row],[GWh_Demand_L1]]) -> 158560.1519 | I20: =C_CALC[[#This Row],[GWh_Demand_L1]]/Global_Constants!$B$12 -> 0.0482752784 | J20: =ROUND(_xlfn.XLOOKUP(C_CALC[[#This Row],[code]],RAW_DATA[Code],RAW_DATA[Area_QKM]),-2) -> 150700 | K20: =C_CALC[[#This Row],[Area_QKM]]*0.02 -> 3014 | L20: 220000 | M20: =(LN((C_CALC[[#This Row],[Trans_Factor]]/100000)))+1 -> 1.78845736 | N20: =Global_Constants!$B$5*(_xlfn.XLOOKUP(C_CALC[[#This Row],[code]],RAW_DATA[Code],RAW_DATA[Wind_Trans])) -> 588.6046797 | O20: =Global_Constants!$B$8*(_xlfn.XLOOKUP(C_CALC[[#This Row],[code]],RAW_DATA[Code],RAW_DATA[PV_Trans])) -> 214.5070335 | P20: =_xlfn.XLOOKUP(C_CALC[[#This Row],[Country]],PLAY[Region],PLAY[Wind Parks Medium Size]) -> 0 | Q20: =_xlfn.XLOOKUP(C_CALC[[#This Row],[Country]],PLAY[Region],PLAY[Solar Parks Medium Size]) -> 0 | R20: =C_CALC[[#This Row],[No_WP]]*C_CALC[[#This Row],[Wind_Yield]] -> 0 | S20: =C_CALC[[#This Row],[No_PV]]*C_CALC[[#This Row],[PV_Yield]] -> 0 | T20: =C_CALC[[#This Row],[GWh_Wind]]+C_CALC[[#This Row],[GWh_PV]] -> 0 | U20: =C_CALC[[#This Row],[GWh_Demand_L1]]-C_CALC[[#This Row],[GWh_Total]] -> 158560.1519 | V20: =C_CALC[[#This Row],[GWh_Demand_L1_Corrected]]-C_CALC[[#This Row],[GWh_Total]] -> 158560.1519 | W20: =IF(C_CALC[[#This Row],[GWh_Delta]]<0,(C_CALC[[#This Row],[GWh_Delta]]*-1)*C_CALC[[#This Row],[Trans_Factor]],0)/raw!$J$53 -> 0 | X20: =C_CALC[[#This Row],[Area_Max]]-(C_CALC[[#This Row],[No_WP]]*Global_Constants!$B$4+C_CALC[[#This Row],[No_PV]]*Global_Constants!$B$7) -> 3014 | Y20: =ROUND(C_CALC[[#This Row],[Area_Max]]/Global_Constants!$B$4,0) -> 335 | Z20: =ROUND(C_CALC[[#This Row],[Area_Max]]/Global_Constants!$B$7,0) -> 1507 | AA20: =IF(C_CALC[[#This Row],[Area_Left]]<0,1,0) -> 0 | AB20: =IF(C_CALC[[#This Row],[Alter_Sum]]=1,IF(SUM(AA21:AA$37)>0,_xlfn.CONCAT(C_CALC[[#This Row],[Country]],", "),C_CALC[[#This Row],[Country]]),"") ->  | AC20: =IF(C_CALC[[#This Row],[Delta_Corrected]]<0,ABS(C_CALC[[#This Row],[Delta_Corrected]])/C_CALC[[#This Row],[GWh_Demand_L1_Corrected]],0) -> 0 | AE20: 0 | AF20: =C_CALC[[#This Row],[Max. Wind]] -> 335 | AG20: 0 | AH20: =C_CALC[[#This Row],[Max Solar]] -> 1507
A21: Italy (South) | B21: it2 | C21: IT | D21: Southern Europe | E21: =ROUND(raw!E18,-3) -> 4105000 | F21: =ROUND(raw!F18,-2) -> 4200 | G21: =_xlfn.XLOOKUP(C_CALC[[#This Row],[code]],RAW_DATA[Code],RAW_DATA[GWh_demand_2021]) -> 158560.1519 | H21: =C_CALC[[#This Row],[GWh_Demand_L1]]-(_xlfn.XLOOKUP(C_CALC[[#This Row],[Country]],Table13[Country],Table13[% in 2021],0)*C_CALC[[#This Row],[GWh_Demand_L1]]) -> 158560.1519 | I21: =C_CALC[[#This Row],[GWh_Demand_L1]]/Global_Constants!$B$12 -> 0.0482752784 | J21: =ROUND(_xlfn.XLOOKUP(C_CALC[[#This Row],[code]],RAW_DATA[Code],RAW_DATA[Area_QKM]),-2) -> 150700 | K21: =C_CALC[[#This Row],[Area_QKM]]*0.02 -> 3014 | L21: 220000 | M21: =(LN((C_CALC[[#This Row],[Trans_Factor]]/100000)))+1 -> 1.78845736 | N21: =Global_Constants!$B$5*(_xlfn.XLOOKUP(C_CALC[[#This Row],[code]],RAW_DATA[Code],RAW_DATA[Wind_Trans])) -> 708.4509685 | O21: =Global_Constants!$B$8*(_xlfn.XLOOKUP(C_CALC[[#This Row],[code]],RAW_DATA[Code],RAW_DATA[PV_Trans])) -> 224.1076404 | P21: =_xlfn.XLOOKUP(C_CALC[[#This Row],[Country]],PLAY[Region],PLAY[Wind Parks Medium Size]) -> 0 | Q21: =_xlfn.XLOOKUP(C_CALC[[#This Row],[Country]],PLAY[Region],PLAY[Solar Parks Medium Size]) -> 0 | R21: =C_CALC[[#This Row],[No_WP]]*C_CALC[[#This Row],[Wind_Yield]] -> 0 | S21: =C_CALC[[#This Row],[No_PV]]*C_CALC[[#This Row],[PV_Yield]] -> 0 | T21: =C_CALC[[#This Row],[GWh_Wind]]+C_CALC[[#This Row],[GWh_PV]] -> 0 | U21: =C_CALC[[#This Row],[GWh_Demand_L1]]-C_CALC[[#This Row],[GWh_Total]] -> 158560.1519 | V21: =C_CALC[[#This Row],[GWh_Demand_L1_Corrected]]-C_CALC[[#This Row],[GWh_Total]] -> 158560.1519 | W21: =IF(C_CALC[[#This Row],[GWh_Delta]]<0,(C_CALC[[#This Row],[GWh_Delta]]*-1)*C_CALC[[#This Row],[Trans_Factor]],0)/raw!$J$53 -> 0 | X21: =C_CALC[[#This Row],[Area_Max]]-(C_CALC[[#This Row],[No_WP]]*Global_Constants!$B$4+C_CALC[[#This Row],[No_PV]]*Global_Constants!$B$7) -> 3014 | Y21: =ROUND(C_CALC[[#This Row],[Area_Max]]/Global_Constants!$B$4,0) -> 335 | Z21: =ROUND(C_CALC[[#This Row],[Area_Max]]/Global_Constants!$B$7,0) -> 1507 | AA21: =IF(C_CALC[[#This Row],[Area_Left]]<0,1,0) -> 0 | AB21: =IF(C_CALC[[#This Row],[Alter_Sum]]=1,IF(SUM(AA22:AA$37)>0,_xlfn.CONCAT(C_CALC[[#This Row],[Country]],", "),C_CALC[[#This Row],[Country]]),"") ->  | AC21: =IF(C_CALC[[#This Row],[Delta_Corrected]]<0,ABS(C_CALC[[#This Row],[Delta_Corrected]])/C_CALC[[#This Row],[GWh_Demand_L1_Corrected]],0) -> 0 | AE21: 0 | AF21: =C_CALC[[#This Row],[Max. Wind]] -> 335 | AG21: 0 | AH21: =C_CALC[[#This Row],[Max Solar]] -> 1507
A22: Latvia | B22: =LOWER(_xlfn.XLOOKUP(C_CALC[[#This Row],[Country]],RAW_DATA[Country],RAW_DATA[Code])) -> lv | C22: LV | D22: Northern Europe | E22: =ROUND(raw!E18,-3) -> 4105000 | F22: =ROUND(raw!F18,-2) -> 4200 | G22: =_xlfn.XLOOKUP(C_CALC[[#This Row],[code]],RAW_DATA[Code],RAW_DATA[GWh_demand_2021]) -> 7195.809 | H22: =C_CALC[[#This Row],[GWh_Demand_L1]]-(_xlfn.XLOOKUP(C_CALC[[#This Row],[Country]],Table13[Country],Table13[% in 2021],0)*C_CALC[[#This Row],[GWh_Demand_L1]]) -> 6732.696007 | I22: =C_CALC[[#This Row],[GWh_Demand_L1]]/Global_Constants!$B$12 -> 0.002190838484 | J22: =ROUND(_xlfn.XLOOKUP(C_CALC[[#This Row],[code]],RAW_DATA[Code],RAW_DATA[Area_QKM]),-2) -> 64600 | K22: =C_CALC[[#This Row],[Area_QKM]]*0.02 -> 1292 | L22: 150000 | M22: =(LN((C_CALC[[#This Row],[Trans_Factor]]/100000)))+1 -> 1.405465108 | N22: =Global_Constants!$B$5*(_xlfn.XLOOKUP(C_CALC[[#This Row],[code]],RAW_DATA[Code],RAW_DATA[Wind_Trans])) -> 927.4267224 | O22: =Global_Constants!$B$8*(_xlfn.XLOOKUP(C_CALC[[#This Row],[code]],RAW_DATA[Code],RAW_DATA[PV_Trans])) -> 145.4237489 | P22: =_xlfn.XLOOKUP(C_CALC[[#This Row],[Country]],PLAY[Region],PLAY[Wind Parks Medium Size]) -> 0 | Q22: =_xlfn.XLOOKUP(C_CALC[[#This Row],[Country]],PLAY[Region],PLAY[Solar Parks Medium Size]) -> 0 | R22: =C_CALC[[#This Row],[No_WP]]*C_CALC[[#This Row],[Wind_Yield]] -> 0 | S22: =C_CALC[[#This Row],[No_PV]]*C_CALC[[#This Row],[PV_Yield]] -> 0 | T22: =C_CALC[[#This Row],[GWh_Wind]]+C_CALC[[#This Row],[GWh_PV]] -> 0 | U22: =C_CALC[[#This Row],[GWh_Demand_L1]]-C_CALC[[#This Row],[GWh_Total]] -> 7195.809 | V22: =C_CALC[[#This Row],[GWh_Demand_L1_Corrected]]-C_CALC[[#This Row],[GWh_Total]] -> 6732.696007 | W22: =IF(C_CALC[[#This Row],[GWh_Delta]]<0,(C_CALC[[#This Row],[GWh_Delta]]*-1)*C_CALC[[#This Row],[Trans_Factor]],0)/raw!$J$53 -> 0 | X22: =C_CALC[[#This Row],[Area_Max]]-(C_CALC[[#This Row],[No_WP]]*Global_Constants!$B$4+C_CALC[[#This Row],[No_PV]]*Global_Constants!$B$7) -> 1292 | Y22: =ROUND(C_CALC[[#This Row],[Area_Max]]/Global_Constants!$B$4,0) -> 144 | Z22: =ROUND(C_CALC[[#This Row],[Area_Max]]/Global_Constants!$B$7,0) -> 646 | AA22: =IF(C_CALC[[#This Row],[Area_Left]]<0,1,0) -> 0 | AB22: =IF(C_CALC[[#This Row],[Alter_Sum]]=1,IF(SUM(AA23:AA$37)>0,_xlfn.CONCAT(C_CALC[[#This Row],[Country]],", "),C_CALC[[#This Row],[Country]]),"") ->  | AC22: =IF(C_CALC[[#This Row],[Delta_Corrected]]<0,ABS(C_CALC[[#This Row],[Delta_Corrected]])/C_CALC[[#This Row],[GWh_Demand_L1_Corrected]],0) -> 0 | AE22: 0 | AF22: =C_CALC[[#This Row],[Max. Wind]] -> 144 | AG22: 0 | AH22: =C_CALC[[#This Row],[Max Solar]] -> 646
A23: Lithuania | B23: =LOWER(_xlfn.XLOOKUP(C_CALC[[#This Row],[Country]],RAW_DATA[Country],RAW_DATA[Code])) -> lt | C23: LT | D23: Northern Europe | E23: =ROUND(raw!E19,-3) -> 1886000 | F23: =ROUND(raw!F19,-2) -> 3800 | G23: =_xlfn.XLOOKUP(C_CALC[[#This Row],[code]],RAW_DATA[Code],RAW_DATA[GWh_demand_2021]) -> 10885.1985 | H23: =C_CALC[[#This Row],[GWh_Demand_L1]]-(_xlfn.XLOOKUP(C_CALC[[#This Row],[Country]],Table13[Country],Table13[% in 2021],0)*C_CALC[[#This Row],[GWh_Demand_L1]]) -> 10181.79443 | I23: =C_CALC[[#This Row],[GWh_Demand_L1]]/Global_Constants!$B$12 -> 0.00331411128 | J23: =ROUND(_xlfn.XLOOKUP(C_CALC[[#This Row],[code]],RAW_DATA[Code],RAW_DATA[Area_QKM]),-2) -> 65300 | K23: =C_CALC[[#This Row],[Area_QKM]]*0.02 -> 1306 | L23: 150000 | M23: =(LN((C_CALC[[#This Row],[Trans_Factor]]/100000)))+1 -> 1.405465108 | N23: =Global_Constants!$B$5*(_xlfn.XLOOKUP(C_CALC[[#This Row],[code]],RAW_DATA[Code],RAW_DATA[Wind_Trans])) -> 947.7141819 | O23: =Global_Constants!$B$8*(_xlfn.XLOOKUP(C_CALC[[#This Row],[code]],RAW_DATA[Code],RAW_DATA[PV_Trans])) -> 146.6351883 | P23: =_xlfn.XLOOKUP(C_CALC[[#This Row],[Country]],PLAY[Region],PLAY[Wind Parks Medium Size]) -> 0 | Q23: =_xlfn.XLOOKUP(C_CALC[[#This Row],[Country]],PLAY[Region],PLAY[Solar Parks Medium Size]) -> 0 | R23: =C_CALC[[#This Row],[No_WP]]*C_CALC[[#This Row],[Wind_Yield]] -> 0 | S23: =C_CALC[[#This Row],[No_PV]]*C_CALC[[#This Row],[PV_Yield]] -> 0 | T23: =C_CALC[[#This Row],[GWh_Wind]]+C_CALC[[#This Row],[GWh_PV]] -> 0 | U23: =C_CALC[[#This Row],[GWh_Demand_L1]]-C_CALC[[#This Row],[GWh_Total]] -> 10885.1985 | V23: =C_CALC[[#This Row],[GWh_Demand_L1_Corrected]]-C_CALC[[#This Row],[GWh_Total]] -> 10181.79443 | W23: =IF(C_CALC[[#This Row],[GWh_Delta]]<0,(C_CALC[[#This Row],[GWh_Delta]]*-1)*C_CALC[[#This Row],[Trans_Factor]],0)/raw!$J$53 -> 0 | X23: =C_CALC[[#This Row],[Area_Max]]-(C_CALC[[#This Row],[No_WP]]*Global_Constants!$B$4+C_CALC[[#This Row],[No_PV]]*Global_Constants!$B$7) -> 1306 | Y23: =ROUND(C_CALC[[#This Row],[Area_Max]]/Global_Constants!$B$4,0) -> 145 | Z23: =ROUND(C_CALC[[#This Row],[Area_Max]]/Global_Constants!$B$7,0) -> 653 | AA23: =IF(C_CALC[[#This Row],[Area_Left]]<0,1,0) -> 0 | AB23: =IF(C_CALC[[#This Row],[Alter_Sum]]=1,IF(SUM(AA24:AA$37)>0,_xlfn.CONCAT(C_CALC[[#This Row],[Country]],", "),C_CALC[[#This Row],[Country]]),"") ->  | AC23: =IF(C_CALC[[#This Row],[Delta_Corrected]]<0,ABS(C_CALC[[#This Row],[Delta_Corrected]])/C_CALC[[#This Row],[GWh_Demand_L1_Corrected]],0) -> 0 | AE23: 0 | AF23: =C_CALC[[#This Row],[Max. Wind]] -> 145 | AG23: 0 | AH23: =C_CALC[[#This Row],[Max Solar]] -> 653
A24: Moldova | B24: =LOWER(_xlfn.XLOOKUP(C_CALC[[#This Row],[Country]],RAW_DATA[Country],RAW_DATA[Code])) -> md | C24: MD | D24: Eastern Europe | E24: =ROUND(raw!E40,-3) -> 10099000 | F24: =ROUND(raw!F40,-2) -> 13800 | G24: =_xlfn.XLOOKUP(C_CALC[[#This Row],[code]],RAW_DATA[Code],RAW_DATA[GWh_demand_2021]) -> 4400 | H24: =C_CALC[[#This Row],[GWh_Demand_L1]]-(_xlfn.XLOOKUP(C_CALC[[#This Row],[Country]],Table13[Country],Table13[% in 2021],0)*C_CALC[[#This Row],[GWh_Demand_L1]]) -> 4399.273166 | I24: =C_CALC[[#This Row],[GWh_Demand_L1]]/Global_Constants!$B$12 -> 0.001339625514 | J24: =ROUND(_xlfn.XLOOKUP(C_CALC[[#This Row],[code]],RAW_DATA[Code],RAW_DATA[Area_QKM]),-2) -> 33800 | K24: =C_CALC[[#This Row],[Area_QKM]]*0.02 -> 676 | L24: 180000 | M24: =(LN((C_CALC[[#This Row],[Trans_Factor]]/100000)))+1 -> 1.587786665 | N24: =Global_Constants!$B$5*(_xlfn.XLOOKUP(C_CALC[[#This Row],[code]],RAW_DATA[Code],RAW_DATA[Wind_Trans])) -> 751.9240961 | O24: =Global_Constants!$B$8*(_xlfn.XLOOKUP(C_CALC[[#This Row],[code]],RAW_DATA[Code],RAW_DATA[PV_Trans])) -> 189.1075834 | P24: =_xlfn.XLOOKUP(C_CALC[[#This Row],[Country]],PLAY[Region],PLAY[Wind Parks Medium Size]) -> 0 | Q24: =_xlfn.XLOOKUP(C_CALC[[#This Row],[Country]],PLAY[Region],PLAY[Solar Parks Medium Size]) -> 0 | R24: =C_CALC[[#This Row],[No_WP]]*C_CALC[[#This Row],[Wind_Yield]] -> 0 | S24: =C_CALC[[#This Row],[No_PV]]*C_CALC[[#This Row],[PV_Yield]] -> 0 | T24: =C_CALC[[#This Row],[GWh_Wind]]+C_CALC[[#This Row],[GWh_PV]] -> 0 | U24: =C_CALC[[#This Row],[GWh_Demand_L1]]-C_CALC[[#This Row],[GWh_Total]] -> 4400 | V24: =C_CALC[[#This Row],[GWh_Demand_L1_Corrected]]-C_CALC[[#This Row],[GWh_Total]] -> 4399.273166 | W24: =IF(C_CALC[[#This Row],[GWh_Delta]]<0,(C_CALC[[#This Row],[GWh_Delta]]*-1)*C_CALC[[#This Row],[Trans_Factor]],0)/raw!$J$53 -> 0 | X24: =C_CALC[[#This Row],[Area_Max]]-(C_CALC[[#This Row],[No_WP]]*Global_Constants!$B$4+C_CALC[[#This Row],[No_PV]]*Global_Constants!$B$7) -> 676 | Y24: =ROUND(C_CALC[[#This Row],[Area_Max]]/Global_Constants!$B$4,0) -> 75 | Z24: =ROUND(C_CALC[[#This Row],[Area_Max]]/Global_Constants!$B$7,0) -> 338 | AA24: =IF(C_CALC[[#This Row],[Area_Left]]<0,1,0) -> 0 | AB24: =IF(C_CALC[[#This Row],[Alter_Sum]]=1,IF(SUM(AA25:AA$37)>0,_xlfn.CONCAT(C_CALC[[#This Row],[Country]],", "),C_CALC[[#This Row],[Country]]),"") ->  | AC24: =IF(C_CALC[[#This Row],[Delta_Corrected]]<0,ABS(C_CALC[[#This Row],[Delta_Corrected]])/C_CALC[[#This Row],[GWh_Demand_L1_Corrected]],0) -> 0 | AE24: 0 | AF24: =C_CALC[[#This Row],[Max. Wind]] -> 75 | AG24: 0 | AH24: =C_CALC[[#This Row],[Max Solar]] -> 338
A25: Netherlands | B25: =LOWER(_xlfn.XLOOKUP(C_CALC[[#This Row],[Country]],RAW_DATA[Country],RAW_DATA[Code])) -> nl | C25: NL | D25: Western Europe | E25: =ROUND(raw!E21,-3) -> 4938000 | F25: =ROUND(raw!F21,-2) -> 5300 | G25: =_xlfn.XLOOKUP(C_CALC[[#This Row],[code]],RAW_DATA[Code],RAW_DATA[GWh_demand_2021]) -> 111987.697 | H25: =C_CALC[[#This Row],[GWh_Demand_L1]]-(_xlfn.XLOOKUP(C_CALC[[#This Row],[Country]],Table13[Country],Table13[% in 2021],0)*C_CALC[[#This Row],[GWh_Demand_L1]]) -> 101918.6386 | I25: =C_CALC[[#This Row],[GWh_Demand_L1]]/Global_Constants!$B$12 -> 0.03409581276 | J25: =ROUND(_xlfn.XLOOKUP(C_CALC[[#This Row],[code]],RAW_DATA[Code],RAW_DATA[Area_QKM]),-2) -> 41200 | K25: =C_CALC[[#This Row],[Area_QKM]]*0.02 -> 824 | L25: 100000 | M25: =(LN((C_CALC[[#This Row],[Trans_Factor]]/100000)))+1 -> 1 | N25: =Global_Constants!$B$5*(_xlfn.XLOOKUP(C_CALC[[#This Row],[code]],RAW_DATA[Code],RAW_DATA[Wind_Trans])) -> 1026.958716 | O25: =Global_Constants!$B$8*(_xlfn.XLOOKUP(C_CALC[[#This Row],[code]],RAW_DATA[Code],RAW_DATA[PV_Trans])) -> 152.8567923 | P25: =_xlfn.XLOOKUP(C_CALC[[#This Row],[Country]],PLAY[Region],PLAY[Wind Parks Medium Size]) -> 0 | Q25: =_xlfn.XLOOKUP(C_CALC[[#This Row],[Country]],PLAY[Region],PLAY[Solar Parks Medium Size]) -> 0 | R25: =C_CALC[[#This Row],[No_WP]]*C_CALC[[#This Row],[Wind_Yield]] -> 0 | S25: =C_CALC[[#This Row],[No_PV]]*C_CALC[[#This Row],[PV_Yield]] -> 0 | T25: =C_CALC[[#This Row],[GWh_Wind]]+C_CALC[[#This Row],[GWh_PV]] -> 0 | U25: =C_CALC[[#This Row],[GWh_Demand_L1]]-C_CALC[[#This Row],[GWh_Total]] -> 111987.697 | V25: =C_CALC[[#This Row],[GWh_Demand_L1_Corrected]]-C_CALC[[#This Row],[GWh_Total]] -> 101918.6386 | W25: =IF(C_CALC[[#This Row],[GWh_Delta]]<0,(C_CALC[[#This Row],[GWh_Delta]]*-1)*C_CALC[[#This Row],[Trans_Factor]],0)/raw!$J$53 -> 0 | X25: =C_CALC[[#This Row],[Area_Max]]-(C_CALC[[#This Row],[No_WP]]*Global_Constants!$B$4+C_CALC[[#This Row],[No_PV]]*Global_Constants!$B$7) -> 824 | Y25: =ROUND(C_CALC[[#This Row],[Area_Max]]/Global_Constants!$B$4,0) -> 92 | Z25: =ROUND(C_CALC[[#This Row],[Area_Max]]/Global_Constants!$B$7,0) -> 412 | AA25: =IF(C_CALC[[#This Row],[Area_Left]]<0,1,0) -> 0 | AB25: =IF(C_CALC[[#This Row],[Alter_Sum]]=1,IF(SUM(AA26:AA$37)>0,_xlfn.CONCAT(C_CALC[[#This Row],[Country]],", "),C_CALC[[#This Row],[Country]]),"") ->  | AC25: =IF(C_CALC[[#This Row],[Delta_Corrected]]<0,ABS(C_CALC[[#This Row],[Delta_Corrected]])/C_CALC[[#This Row],[GWh_Demand_L1_Corrected]],0) -> 0 | AE25: 0 | AF25: =C_CALC[[#This Row],[Max. Wind]] -> 92 | AG25: 0 | AH25: =C_CALC[[#This Row],[Max Solar]] -> 412
A26: North Macedonia | B26: =LOWER(_xlfn.XLOOKUP(C_CALC[[#This Row],[Country]],RAW_DATA[Country],RAW_DATA[Code])) -> mk | C26: MK | D26: Southern Europe | E26: =ROUND(raw!E34,-3) -> 19238000 | F26: =ROUND(raw!F34,-2) -> 2700 | G26: =_xlfn.XLOOKUP(C_CALC[[#This Row],[code]],RAW_DATA[Code],RAW_DATA[GWh_demand_2021]) -> 8022.7754 | H26: =C_CALC[[#This Row],[GWh_Demand_L1]]-(_xlfn.XLOOKUP(C_CALC[[#This Row],[Country]],Table13[Country],Table13[% in 2021],0)*C_CALC[[#This Row],[GWh_Demand_L1]]) -> 8017.826092 | I26: =C_CALC[[#This Row],[GWh_Demand_L1]]/Global_Constants!$B$12 -> 0.002442616958 | J26: =ROUND(_xlfn.XLOOKUP(C_CALC[[#This Row],[code]],RAW_DATA[Code],RAW_DATA[Area_QKM]),-2) -> 25700 | K26: =C_CALC[[#This Row],[Area_QKM]]*0.02 -> 514 | L26: 150000 | M26: =(LN((C_CALC[[#This Row],[Trans_Factor]]/100000)))+1 -> 1.405465108 | N26: =Global_Constants!$B$5*(_xlfn.XLOOKUP(C_CALC[[#This Row],[code]],RAW_DATA[Code],RAW_DATA[Wind_Trans])) -> 909.7154482 | O26: =Global_Constants!$B$8*(_xlfn.XLOOKUP(C_CALC[[#This Row],[code]],RAW_DATA[Code],RAW_DATA[PV_Trans])) -> 198.9132208 | P26: =_xlfn.XLOOKUP(C_CALC[[#This Row],[Country]],PLAY[Region],PLAY[Wind Parks Medium Size]) -> 0 | Q26: =_xlfn.XLOOKUP(C_CALC[[#This Row],[Country]],PLAY[Region],PLAY[Solar Parks Medium Size]) -> 0 | R26: =C_CALC[[#This Row],[No_WP]]*C_CALC[[#This Row],[Wind_Yield]] -> 0 | S26: =C_CALC[[#This Row],[No_PV]]*C_CALC[[#This Row],[PV_Yield]] -> 0 | T26: =C_CALC[[#This Row],[GWh_Wind]]+C_CALC[[#This Row],[GWh_PV]] -> 0 | U26: =C_CALC[[#This Row],[GWh_Demand_L1]]-C_CALC[[#This Row],[GWh_Total]] -> 8022.7754 | V26: =C_CALC[[#This Row],[GWh_Demand_L1_Corrected]]-C_CALC[[#This Row],[GWh_Total]] -> 8017.826092 | W26: =IF(C_CALC[[#This Row],[GWh_Delta]]<0,(C_CALC[[#This Row],[GWh_Delta]]*-1)*C_CALC[[#This Row],[Trans_Factor]],0)/raw!$J$53 -> 0 | X26: =C_CALC[[#This Row],[Area_Max]]-(C_CALC[[#This Row],[No_WP]]*Global_Constants!$B$4+C_CALC[[#This Row],[No_PV]]*Global_Constants!$B$7) -> 514 | Y26: =ROUND(C_CALC[[#This Row],[Area_Max]]/Global_Constants!$B$4,0) -> 57 | Z26: =ROUND(C_CALC[[#This Row],[Area_Max]]/Global_Constants!$B$7,0) -> 257 | AA26: =IF(C_CALC[[#This Row],[Area_Left]]<0,1,0) -> 0 | AB26: =IF(C_CALC[[#This Row],[Alter_Sum]]=1,IF(SUM(AA27:AA$37)>0,_xlfn.CONCAT(C_CALC[[#This Row],[Country]],", "),C_CALC[[#This Row],[Country]]),"") ->  | AC26: =IF(C_CALC[[#This Row],[Delta_Corrected]]<0,ABS(C_CALC[[#This Row],[Delta_Corrected]])/C_CALC[[#This Row],[GWh_Demand_L1_Corrected]],0) -> 0 | AE26: 0 | AF26: =C_CALC[[#This Row],[Max. Wind]] -> 57 | AG26: 0 | AH26: =C_CALC[[#This Row],[Max Solar]] -> 257
A27: Norway | B27: =LOWER(_xlfn.XLOOKUP(C_CALC[[#This Row],[Country]],RAW_DATA[Country],RAW_DATA[Code])) -> no | C27: NO | D27: Northern Europe | E27: =ROUND(raw!#REF!,-3) ->  | F27: =ROUND(raw!#REF!,-2) ->  | G27: =_xlfn.XLOOKUP(C_CALC[[#This Row],[code]],RAW_DATA[Code],RAW_DATA[GWh_demand_2021]) -> 129973.4023 | H27: =C_CALC[[#This Row],[GWh_Demand_L1]]-(_xlfn.XLOOKUP(C_CALC[[#This Row],[Country]],Table13[Country],Table13[% in 2021],0)*C_CALC[[#This Row],[GWh_Demand_L1]]) -> 103494.4647 | I27: =C_CALC[[#This Row],[GWh_Demand_L1]]/Global_Constants!$B$12 -> 0.03957174678 | J27: =ROUND(_xlfn.XLOOKUP(C_CALC[[#This Row],[code]],RAW_DATA[Code],RAW_DATA[Area_QKM]),-2) -> 385200 | K27: =C_CALC[[#This Row],[Area_QKM]]*0.02 -> 7704 | L27: 160000 | M27: =(LN((C_CALC[[#This Row],[Trans_Factor]]/100000)))+1 -> 1.470003629 | N27: =Global_Constants!$B$5*(_xlfn.XLOOKUP(C_CALC[[#This Row],[code]],RAW_DATA[Code],RAW_DATA[Wind_Trans])) -> 1282.11224 | O27: =Global_Constants!$B$8*(_xlfn.XLOOKUP(C_CALC[[#This Row],[code]],RAW_DATA[Code],RAW_DATA[PV_Trans])) -> 132.1382257 | P27: =_xlfn.XLOOKUP(C_CALC[[#This Row],[Country]],PLAY[Region],PLAY[Wind Parks Medium Size]) -> 0 | Q27: =_xlfn.XLOOKUP(C_CALC[[#This Row],[Country]],PLAY[Region],PLAY[Solar Parks Medium Size]) -> 0 | R27: =C_CALC[[#This Row],[No_WP]]*C_CALC[[#This Row],[Wind_Yield]] -> 0 | S27: =C_CALC[[#This Row],[No_PV]]*C_CALC[[#This Row],[PV_Yield]] -> 0 | T27: =C_CALC[[#This Row],[GWh_Wind]]+C_CALC[[#This Row],[GWh_PV]] -> 0 | U27: =C_CALC[[#This Row],[GWh_Demand_L1]]-C_CALC[[#This Row],[GWh_Total]] -> 129973.4023 | V27: =C_CALC[[#This Row],[GWh_Demand_L1_Corrected]]-C_CALC[[#This Row],[GWh_Total]] -> 103494.4647 | W27: =IF(C_CALC[[#This Row],[GWh_Delta]]<0,(C_CALC[[#This Row],[GWh_Delta]]*-1)*C_CALC[[#This Row],[Trans_Factor]],0)/raw!$J$53 -> 0 | X27: =C_CALC[[#This Row],[Area_Max]]-(C_CALC[[#This Row],[No_WP]]*Global_Constants!$B$4+C_CALC[[#This Row],[No_PV]]*Global_Constants!$B$7) -> 7704 | Y27: =ROUND(C_CALC[[#This Row],[Area_Max]]/Global_Constants!$B$4,0) -> 856 | Z27: =ROUND(C_CALC[[#This Row],[Area_Max]]/Global_Constants!$B$7,0) -> 3852 | AA27: =IF(C_CALC[[#This Row],[Area_Left]]<0,1,0) -> 0 | AB27: =IF(C_CALC[[#This Row],[Alter_Sum]]=1,IF(SUM(AA28:AA$37)>0,_xlfn.CONCAT(C_CALC[[#This Row],[Country]],", "),C_CALC[[#This Row],[Country]]),"") ->  | AC27: =IF(C_CALC[[#This Row],[Delta_Corrected]]<0,ABS(C_CALC[[#This Row],[Delta_Corrected]])/C_CALC[[#This Row],[GWh_Demand_L1_Corrected]],0) -> 0 | AE27: 0 | AF27: =C_CALC[[#This Row],[Max. Wind]] -> 856 | AG27: 0 | AH27: =C_CALC[[#This Row],[Max Solar]] -> 3852
A28: Poland | B28: =LOWER(_xlfn.XLOOKUP(C_CALC[[#This Row],[Country]],RAW_DATA[Country],RAW_DATA[Code])) -> pl | C28: PL | D28: Eastern Europe | E28: =ROUND(raw!E24,-3) -> 8737000 | F28: =ROUND(raw!F24,-2) -> 4600 | G28: =_xlfn.XLOOKUP(C_CALC[[#This Row],[code]],RAW_DATA[Code],RAW_DATA[GWh_demand_2021]) -> 149981.2599 | H28: =C_CALC[[#This Row],[GWh_Demand_L1]]-(_xlfn.XLOOKUP(C_CALC[[#This Row],[Country]],Table13[Country],Table13[% in 2021],0)*C_CALC[[#This Row],[GWh_Demand_L1]]) -> 141484.9957 | I28: =C_CALC[[#This Row],[GWh_Demand_L1]]/Global_Constants!$B$12 -> 0.04566334599 | J28: =ROUND(_xlfn.XLOOKUP(C_CALC[[#This Row],[code]],RAW_DATA[Code],RAW_DATA[Area_QKM]),-2) -> 312700 | K28: =C_CALC[[#This Row],[Area_QKM]]*0.02 -> 6254 | L28: 140000 | M28: =(LN((C_CALC[[#This Row],[Trans_Factor]]/100000)))+1 -> 1.336472237 | N28: =Global_Constants!$B$5*(_xlfn.XLOOKUP(C_CALC[[#This Row],[code]],RAW_DATA[Code],RAW_DATA[Wind_Trans])) -> 837.9445347 | O28: =Global_Constants!$B$8*(_xlfn.XLOOKUP(C_CALC[[#This Row],[code]],RAW_DATA[Code],RAW_DATA[PV_Trans])) -> 155.059812 | P28: =_xlfn.XLOOKUP(C_CALC[[#This Row],[Country]],PLAY[Region],PLAY[Wind Parks Medium Size]) -> 0 | Q28: =_xlfn.XLOOKUP(C_CALC[[#This Row],[Country]],PLAY[Region],PLAY[Solar Parks Medium Size]) -> 0 | R28: =C_CALC[[#This Row],[No_WP]]*C_CALC[[#This Row],[Wind_Yield]] -> 0 | S28: =C_CALC[[#This Row],[No_PV]]*C_CALC[[#This Row],[PV_Yield]] -> 0 | T28: =C_CALC[[#This Row],[GWh_Wind]]+C_CALC[[#This Row],[GWh_PV]] -> 0 | U28: =C_CALC[[#This Row],[GWh_Demand_L1]]-C_CALC[[#This Row],[GWh_Total]] -> 149981.2599 | V28: =C_CALC[[#This Row],[GWh_Demand_L1_Corrected]]-C_CALC[[#This Row],[GWh_Total]] -> 141484.9957 | W28: =IF(C_CALC[[#This Row],[GWh_Delta]]<0,(C_CALC[[#This Row],[GWh_Delta]]*-1)*C_CALC[[#This Row],[Trans_Factor]],0)/raw!$J$53 -> 0 | X28: =C_CALC[[#This Row],[Area_Max]]-(C_CALC[[#This Row],[No_WP]]*Global_Constants!$B$4+C_CALC[[#This Row],[No_PV]]*Global_Constants!$B$7) -> 6254 | Y28: =ROUND(C_CALC[[#This Row],[Area_Max]]/Global_Constants!$B$4,0) -> 695 | Z28: =ROUND(C_CALC[[#This Row],[Area_Max]]/Global_Constants!$B$7,0) -> 3127 | AA28: =IF(C_CALC[[#This Row],[Area_Left]]<0,1,0) -> 0 | AB28: =IF(C_CALC[[#This Row],[Alter_Sum]]=1,IF(SUM(AA29:AA$37)>0,_xlfn.CONCAT(C_CALC[[#This Row],[Country]],", "),C_CALC[[#This Row],[Country]]),"") ->  | AC28: =IF(C_CALC[[#This Row],[Delta_Corrected]]<0,ABS(C_CALC[[#This Row],[Delta_Corrected]])/C_CALC[[#This Row],[GWh_Demand_L1_Corrected]],0) -> 0 | AE28: 0 | AF28: =C_CALC[[#This Row],[Max. Wind]] -> 695 | AG28: 0 | AH28: =C_CALC[[#This Row],[Max Solar]] -> 3127
A29: Portugal | B29: =LOWER(_xlfn.XLOOKUP(C_CALC[[#This Row],[Country]],RAW_DATA[Country],RAW_DATA[Code])) -> pt | C29: PT | D29: Southern Europe | E29: =ROUND(raw!E25,-3) -> 10197000 | F29: =ROUND(raw!F25,-2) -> 4800 | G29: =_xlfn.XLOOKUP(C_CALC[[#This Row],[code]],RAW_DATA[Code],RAW_DATA[GWh_demand_2021]) -> 49125.022 | H29: =C_CALC[[#This Row],[GWh_Demand_L1]]-(_xlfn.XLOOKUP(C_CALC[[#This Row],[Country]],Table13[Country],Table13[% in 2021],0)*C_CALC[[#This Row],[GWh_Demand_L1]]) -> 44895.92686 | I29: =C_CALC[[#This Row],[GWh_Demand_L1]]/Global_Constants!$B$12 -> 0.0149566211 | J29: =ROUND(_xlfn.XLOOKUP(C_CALC[[#This Row],[code]],RAW_DATA[Code],RAW_DATA[Area_QKM]),-2) -> 88400 | K29: =C_CALC[[#This Row],[Area_QKM]]*0.02 -> 1768 | L29: 240000 | M29: =(LN((C_CALC[[#This Row],[Trans_Factor]]/100000)))+1 -> 1.875468737 | N29: =Global_Constants!$B$5*(_xlfn.XLOOKUP(C_CALC[[#This Row],[code]],RAW_DATA[Code],RAW_DATA[Wind_Trans])) -> 667.1031938 | O29: =Global_Constants!$B$8*(_xlfn.XLOOKUP(C_CALC[[#This Row],[code]],RAW_DATA[Code],RAW_DATA[PV_Trans])) -> 247.0742492 | P29: =_xlfn.XLOOKUP(C_CALC[[#This Row],[Country]],PLAY[Region],PLAY[Wind Parks Medium Size]) -> 0 | Q29: =_xlfn.XLOOKUP(C_CALC[[#This Row],[Country]],PLAY[Region],PLAY[Solar Parks Medium Size]) -> 0 | R29: =C_CALC[[#This Row],[No_WP]]*C_CALC[[#This Row],[Wind_Yield]] -> 0 | S29: =C_CALC[[#This Row],[No_PV]]*C_CALC[[#This Row],[PV_Yield]] -> 0 | T29: =C_CALC[[#This Row],[GWh_Wind]]+C_CALC[[#This Row],[GWh_PV]] -> 0 | U29: =C_CALC[[#This Row],[GWh_Demand_L1]]-C_CALC[[#This Row],[GWh_Total]] -> 49125.022 | V29: =C_CALC[[#This Row],[GWh_Demand_L1_Corrected]]-C_CALC[[#This Row],[GWh_Total]] -> 44895.92686 | W29: =IF(C_CALC[[#This Row],[GWh_Delta]]<0,(C_CALC[[#This Row],[GWh_Delta]]*-1)*C_CALC[[#This Row],[Trans_Factor]],0)/raw!$J$53 -> 0 | X29: =C_CALC[[#This Row],[Area_Max]]-(C_CALC[[#This Row],[No_WP]]*Global_Constants!$B$4+C_CALC[[#This Row],[No_PV]]*Global_Constants!$B$7) -> 1768 | Y29: =ROUND(C_CALC[[#This Row],[Area_Max]]/Global_Constants!$B$4,0) -> 196 | Z29: =ROUND(C_CALC[[#This Row],[Area_Max]]/Global_Constants!$B$7,0) -> 884 | AA29: =IF(C_CALC[[#This Row],[Area_Left]]<0,1,0) -> 0 | AB29: =IF(C_CALC[[#This Row],[Alter_Sum]]=1,IF(SUM(AA30:AA$37)>0,_xlfn.CONCAT(C_CALC[[#This Row],[Country]],", "),C_CALC[[#This Row],[Country]]),"") ->  | AC29: =IF(C_CALC[[#This Row],[Delta_Corrected]]<0,ABS(C_CALC[[#This Row],[Delta_Corrected]])/C_CALC[[#This Row],[GWh_Demand_L1_Corrected]],0) -> 0 | AE29: 0 | AF29: =C_CALC[[#This Row],[Max. Wind]] -> 196 | AG29: 0 | AH29: =C_CALC[[#This Row],[Max Solar]] -> 884
A30: Romania | B30: =LOWER(_xlfn.XLOOKUP(C_CALC[[#This Row],[Country]],RAW_DATA[Country],RAW_DATA[Code])) -> ro | C30: RO | D30: Eastern Europe | E30: =ROUND(raw!E39,-3) -> 5421000 | F30: =ROUND(raw!F39,-2) -> 24000 | G30: =_xlfn.XLOOKUP(C_CALC[[#This Row],[code]],RAW_DATA[Code],RAW_DATA[GWh_demand_2021]) -> 52671.5229 | H30: =C_CALC[[#This Row],[GWh_Demand_L1]]-(_xlfn.XLOOKUP(C_CALC[[#This Row],[Country]],Table13[Country],Table13[% in 2021],0)*C_CALC[[#This Row],[GWh_Demand_L1]]) -> 48632.17622 | I30: =C_CALC[[#This Row],[GWh_Demand_L1]]/Global_Constants!$B$12 -> 0.01603638998 | J30: =ROUND(_xlfn.XLOOKUP(C_CALC[[#This Row],[code]],RAW_DATA[Code],RAW_DATA[Area_QKM]),-2) -> 238400 | K30: =C_CALC[[#This Row],[Area_QKM]]*0.02 -> 4768 | L30: 140000 | M30: =(LN((C_CALC[[#This Row],[Trans_Factor]]/100000)))+1 -> 1.336472237 | N30: =Global_Constants!$B$5*(_xlfn.XLOOKUP(C_CALC[[#This Row],[code]],RAW_DATA[Code],RAW_DATA[Wind_Trans])) -> 589.8659371 | O30: =Global_Constants!$B$8*(_xlfn.XLOOKUP(C_CALC[[#This Row],[code]],RAW_DATA[Code],RAW_DATA[PV_Trans])) -> 189.1075834 | P30: =_xlfn.XLOOKUP(C_CALC[[#This Row],[Country]],PLAY[Region],PLAY[Wind Parks Medium Size]) -> 0 | Q30: =_xlfn.XLOOKUP(C_CALC[[#This Row],[Country]],PLAY[Region],PLAY[Solar Parks Medium Size]) -> 0 | R30: =C_CALC[[#This Row],[No_WP]]*C_CALC[[#This Row],[Wind_Yield]] -> 0 | S30: =C_CALC[[#This Row],[No_PV]]*C_CALC[[#This Row],[PV_Yield]] -> 0 | T30: =C_CALC[[#This Row],[GWh_Wind]]+C_CALC[[#This Row],[GWh_PV]] -> 0 | U30: =C_CALC[[#This Row],[GWh_Demand_L1]]-C_CALC[[#This Row],[GWh_Total]] -> 52671.5229 | V30: =C_CALC[[#This Row],[GWh_Demand_L1_Corrected]]-C_CALC[[#This Row],[GWh_Total]] -> 48632.17622 | W30: =IF(C_CALC[[#This Row],[GWh_Delta]]<0,(C_CALC[[#This Row],[GWh_Delta]]*-1)*C_CALC[[#This Row],[Trans_Factor]],0)/raw!$J$53 -> 0 | X30: =C_CALC[[#This Row],[Area_Max]]-(C_CALC[[#This Row],[No_WP]]*Global_Constants!$B$4+C_CALC[[#This Row],[No_PV]]*Global_Constants!$B$7) -> 4768 | Y30: =ROUND(C_CALC[[#This Row],[Area_Max]]/Global_Constants!$B$4,0) -> 530 | Z30: =ROUND(C_CALC[[#This Row],[Area_Max]]/Global_Constants!$B$7,0) -> 2384 | AA30: =IF(C_CALC[[#This Row],[Area_Left]]<0,1,0) -> 0 | AB30: =IF(C_CALC[[#This Row],[Alter_Sum]]=1,IF(SUM(AA31:AA$37)>0,_xlfn.CONCAT(C_CALC[[#This Row],[Country]],", "),C_CALC[[#This Row],[Country]]),"") ->  | AC30: =IF(C_CALC[[#This Row],[Delta_Corrected]]<0,ABS(C_CALC[[#This Row],[Delta_Corrected]])/C_CALC[[#This Row],[GWh_Demand_L1_Corrected]],0) -> 0 | AE30: 0 | AF30: =C_CALC[[#This Row],[Max. Wind]] -> 530 | AG30: 0 | AH30: =C_CALC[[#This Row],[Max Solar]] -> 2384
A31: Serbia | B31: =LOWER(_xlfn.XLOOKUP(C_CALC[[#This Row],[Country]],RAW_DATA[Country],RAW_DATA[Code])) -> rs | C31: RS | D31: Southern Europe | E31: =ROUND(raw!E41,-3) -> 46755000 | F31: =ROUND(raw!F41,-2) -> 5300 | G31: =_xlfn.XLOOKUP(C_CALC[[#This Row],[code]],RAW_DATA[Code],RAW_DATA[GWh_demand_2021]) -> 39935.4853 | H31: =C_CALC[[#This Row],[GWh_Demand_L1]]-(_xlfn.XLOOKUP(C_CALC[[#This Row],[Country]],Table13[Country],Table13[% in 2021],0)*C_CALC[[#This Row],[GWh_Demand_L1]]) -> 39688.60016 | I31: =C_CALC[[#This Row],[GWh_Demand_L1]]/Global_Constants!$B$12 -> 0.01215877159 | J31: =ROUND(_xlfn.XLOOKUP(C_CALC[[#This Row],[code]],RAW_DATA[Code],RAW_DATA[Area_QKM]),-2) -> 88400 | K31: =C_CALC[[#This Row],[Area_QKM]]*0.02 -> 1768 | L31: 150000 | M31: =(LN((C_CALC[[#This Row],[Trans_Factor]]/100000)))+1 -> 1.405465108 | N31: =Global_Constants!$B$5*(_xlfn.XLOOKUP(C_CALC[[#This Row],[code]],RAW_DATA[Code],RAW_DATA[Wind_Trans])) -> 590.9125124 | O31: =Global_Constants!$B$8*(_xlfn.XLOOKUP(C_CALC[[#This Row],[code]],RAW_DATA[Code],RAW_DATA[PV_Trans])) -> 189.1075834 | P31: =_xlfn.XLOOKUP(C_CALC[[#This Row],[Country]],PLAY[Region],PLAY[Wind Parks Medium Size]) -> 0 | Q31: =_xlfn.XLOOKUP(C_CALC[[#This Row],[Country]],PLAY[Region],PLAY[Solar Parks Medium Size]) -> 0 | R31: =C_CALC[[#This Row],[No_WP]]*C_CALC[[#This Row],[Wind_Yield]] -> 0 | S31: =C_CALC[[#This Row],[No_PV]]*C_CALC[[#This Row],[PV_Yield]] -> 0 | T31: =C_CALC[[#This Row],[GWh_Wind]]+C_CALC[[#This Row],[GWh_PV]] -> 0 | U31: =C_CALC[[#This Row],[GWh_Demand_L1]]-C_CALC[[#This Row],[GWh_Total]] -> 39935.4853 | V31: =C_CALC[[#This Row],[GWh_Demand_L1_Corrected]]-C_CALC[[#This Row],[GWh_Total]] -> 39688.60016 | W31: =IF(C_CALC[[#This Row],[GWh_Delta]]<0,(C_CALC[[#This Row],[GWh_Delta]]*-1)*C_CALC[[#This Row],[Trans_Factor]],0)/raw!$J$53 -> 0 | X31: =C_CALC[[#This Row],[Area_Max]]-(C_CALC[[#This Row],[No_WP]]*Global_Constants!$B$4+C_CALC[[#This Row],[No_PV]]*Global_Constants!$B$7) -> 1768 | Y31: =ROUND(C_CALC[[#This Row],[Area_Max]]/Global_Constants!$B$4,0) -> 196 | Z31: =ROUND(C_CALC[[#This Row],[Area_Max]]/Global_Constants!$B$7,0) -> 884 | AA31: =IF(C_CALC[[#This Row],[Area_Left]]<0,1,0) -> 0 | AB31: =IF(C_CALC[[#This Row],[Alter_Sum]]=1,IF(SUM(AA32:AA$37)>0,_xlfn.CONCAT(C_CALC[[#This Row],[Country]],", "),C_CALC[[#This Row],[Country]]),"") ->  | AC31: =IF(C_CALC[[#This Row],[Delta_Corrected]]<0,ABS(C_CALC[[#This Row],[Delta_Corrected]])/C_CALC[[#This Row],[GWh_Demand_L1_Corrected]],0) -> 0 | AE31: 0 | AF31: =C_CALC[[#This Row],[Max. Wind]] -> 196 | AG31: 0 | AH31: =C_CALC[[#This Row],[Max Solar]] -> 884
A32: Slovakia | B32: =LOWER(_xlfn.XLOOKUP(C_CALC[[#This Row],[Country]],RAW_DATA[Country],RAW_DATA[Code])) -> sk | C32: SK | D32: Eastern Europe | E32: =ROUND(raw!E26,-3) -> 9660000 | F32: =ROUND(raw!F26,-2) -> 4200 | G32: =_xlfn.XLOOKUP(C_CALC[[#This Row],[code]],RAW_DATA[Code],RAW_DATA[GWh_demand_2021]) -> 28102.3145 | H32: =C_CALC[[#This Row],[GWh_Demand_L1]]-(_xlfn.XLOOKUP(C_CALC[[#This Row],[Country]],Table13[Country],Table13[% in 2021],0)*C_CALC[[#This Row],[GWh_Demand_L1]]) -> 25642.45432 | I32: =C_CALC[[#This Row],[GWh_Demand_L1]]/Global_Constants!$B$12 -> 0.008556040341 | J32: =ROUND(_xlfn.XLOOKUP(C_CALC[[#This Row],[code]],RAW_DATA[Code],RAW_DATA[Area_QKM]),-2) -> 49000 | K32: =C_CALC[[#This Row],[Area_QKM]]*0.02 -> 980 | L32: 130000 | M32: =(LN((C_CALC[[#This Row],[Trans_Factor]]/100000)))+1 -> 1.262364264 | N32: =Global_Constants!$B$5*(_xlfn.XLOOKUP(C_CALC[[#This Row],[code]],RAW_DATA[Code],RAW_DATA[Wind_Trans])) -> 667.3930146 | O32: =Global_Constants!$B$8*(_xlfn.XLOOKUP(C_CALC[[#This Row],[code]],RAW_DATA[Code],RAW_DATA[PV_Trans])) -> 169.3560546 | P32: =_xlfn.XLOOKUP(C_CALC[[#This Row],[Country]],PLAY[Region],PLAY[Wind Parks Medium Size]) -> 0 | Q32: =_xlfn.XLOOKUP(C_CALC[[#This Row],[Country]],PLAY[Region],PLAY[Solar Parks Medium Size]) -> 0 | R32: =C_CALC[[#This Row],[No_WP]]*C_CALC[[#This Row],[Wind_Yield]] -> 0 | S32: =C_CALC[[#This Row],[No_PV]]*C_CALC[[#This Row],[PV_Yield]] -> 0 | T32: =C_CALC[[#This Row],[GWh_Wind]]+C_CALC[[#This Row],[GWh_PV]] -> 0 | U32: =C_CALC[[#This Row],[GWh_Demand_L1]]-C_CALC[[#This Row],[GWh_Total]] -> 28102.3145 | V32: =C_CALC[[#This Row],[GWh_Demand_L1_Corrected]]-C_CALC[[#This Row],[GWh_Total]] -> 25642.45432 | W32: =IF(C_CALC[[#This Row],[GWh_Delta]]<0,(C_CALC[[#This Row],[GWh_Delta]]*-1)*C_CALC[[#This Row],[Trans_Factor]],0)/raw!$J$53 -> 0 | X32: =C_CALC[[#This Row],[Area_Max]]-(C_CALC[[#This Row],[No_WP]]*Global_Constants!$B$4+C_CALC[[#This Row],[No_PV]]*Global_Constants!$B$7) -> 980 | Y32: =ROUND(C_CALC[[#This Row],[Area_Max]]/Global_Constants!$B$4,0) -> 109 | Z32: =ROUND(C_CALC[[#This Row],[Area_Max]]/Global_Constants!$B$7,0) -> 490 | AA32: =IF(C_CALC[[#This Row],[Area_Left]]<0,1,0) -> 0 | AB32: =IF(C_CALC[[#This Row],[Alter_Sum]]=1,IF(SUM(AA33:AA$37)>0,_xlfn.CONCAT(C_CALC[[#This Row],[Country]],", "),C_CALC[[#This Row],[Country]]),"") ->  | AC32: =IF(C_CALC[[#This Row],[Delta_Corrected]]<0,ABS(C_CALC[[#This Row],[Delta_Corrected]])/C_CALC[[#This Row],[GWh_Demand_L1_Corrected]],0) -> 0 | AE32: 0 | AF32: =C_CALC[[#This Row],[Max. Wind]] -> 109 | AG32: 0 | AH32: =C_CALC[[#This Row],[Max Solar]] -> 490
A33: Slovenia | B33: =LOWER(_xlfn.XLOOKUP(C_CALC[[#This Row],[Country]],RAW_DATA[Country],RAW_DATA[Code])) -> si | C33: SI | D33: Southern Europe | E33: =ROUND(raw!E27,-3) -> 6948000 | F33: =ROUND(raw!F27,-2) -> 5500 | G33: =_xlfn.XLOOKUP(C_CALC[[#This Row],[code]],RAW_DATA[Code],RAW_DATA[GWh_demand_2021]) -> 13775.1326 | H33: =C_CALC[[#This Row],[GWh_Demand_L1]]-(_xlfn.XLOOKUP(C_CALC[[#This Row],[Country]],Table13[Country],Table13[% in 2021],0)*C_CALC[[#This Row],[GWh_Demand_L1]]) -> 12309.35748 | I33: =C_CALC[[#This Row],[GWh_Demand_L1]]/Global_Constants!$B$12 -> 0.004193981611 | J33: =ROUND(_xlfn.XLOOKUP(C_CALC[[#This Row],[code]],RAW_DATA[Code],RAW_DATA[Area_QKM]),-2) -> 20300 | K33: =C_CALC[[#This Row],[Area_QKM]]*0.02 -> 406 | L33: 120000 | M33: =(LN((C_CALC[[#This Row],[Trans_Factor]]/100000)))+1 -> 1.182321557 | N33: =Global_Constants!$B$5*(_xlfn.XLOOKUP(C_CALC[[#This Row],[code]],RAW_DATA[Code],RAW_DATA[Wind_Trans])) -> 515.237068 | O33: =Global_Constants!$B$8*(_xlfn.XLOOKUP(C_CALC[[#This Row],[code]],RAW_DATA[Code],RAW_DATA[PV_Trans])) -> 180.0275458 | P33: =_xlfn.XLOOKUP(C_CALC[[#This Row],[Country]],PLAY[Region],PLAY[Wind Parks Medium Size]) -> 0 | Q33: =_xlfn.XLOOKUP(C_CALC[[#This Row],[Country]],PLAY[Region],PLAY[Solar Parks Medium Size]) -> 0 | R33: =C_CALC[[#This Row],[No_WP]]*C_CALC[[#This Row],[Wind_Yield]] -> 0 | S33: =C_CALC[[#This Row],[No_PV]]*C_CALC[[#This Row],[PV_Yield]] -> 0 | T33: =C_CALC[[#This Row],[GWh_Wind]]+C_CALC[[#This Row],[GWh_PV]] -> 0 | U33: =C_CALC[[#This Row],[GWh_Demand_L1]]-C_CALC[[#This Row],[GWh_Total]] -> 13775.1326 | V33: =C_CALC[[#This Row],[GWh_Demand_L1_Corrected]]-C_CALC[[#This Row],[GWh_Total]] -> 12309.35748 | W33: =IF(C_CALC[[#This Row],[GWh_Delta]]<0,(C_CALC[[#This Row],[GWh_Delta]]*-1)*C_CALC[[#This Row],[Trans_Factor]],0)/raw!$J$53 -> 0 | X33: =C_CALC[[#This Row],[Area_Max]]-(C_CALC[[#This Row],[No_WP]]*Global_Constants!$B$4+C_CALC[[#This Row],[No_PV]]*Global_Constants!$B$7) -> 406 | Y33: =ROUND(C_CALC[[#This Row],[Area_Max]]/Global_Constants!$B$4,0) -> 45 | Z33: =ROUND(C_CALC[[#This Row],[Area_Max]]/Global_Constants!$B$7,0) -> 203 | AA33: =IF(C_CALC[[#This Row],[Area_Left]]<0,1,0) -> 0 | AB33: =IF(C_CALC[[#This Row],[Alter_Sum]]=1,IF(SUM(AA34:AA$37)>0,_xlfn.CONCAT(C_CALC[[#This Row],[Country]],", "),C_CALC[[#This Row],[Country]]),"") ->  | AC33: =IF(C_CALC[[#This Row],[Delta_Corrected]]<0,ABS(C_CALC[[#This Row],[Delta_Corrected]])/C_CALC[[#This Row],[GWh_Demand_L1_Corrected]],0) -> 0 | AE33: 0 | AF33: =C_CALC[[#This Row],[Max. Wind]] -> 45 | AG33: 0 | AH33: =C_CALC[[#This Row],[Max Solar]] -> 203
A34: Spain | B34: =LOWER(_xlfn.XLOOKUP(C_CALC[[#This Row],[Country]],RAW_DATA[Country],RAW_DATA[Code])) -> es | C34: ES | D34: Southern Europe | E34: =ROUND(raw!E28,-3) -> 10423000 | F34: =ROUND(raw!F28,-2) -> 4800 | G34: =_xlfn.XLOOKUP(C_CALC[[#This Row],[code]],RAW_DATA[Code],RAW_DATA[GWh_demand_2021]) -> 248519.3349 | H34: =C_CALC[[#This Row],[GWh_Demand_L1]]-(_xlfn.XLOOKUP(C_CALC[[#This Row],[Country]],Table13[Country],Table13[% in 2021],0)*C_CALC[[#This Row],[GWh_Demand_L1]]) -> 225669.2488 | I34: =C_CALC[[#This Row],[GWh_Demand_L1]]/Global_Constants!$B$12 -> 0.0756642822 | J34: =ROUND(_xlfn.XLOOKUP(C_CALC[[#This Row],[code]],RAW_DATA[Code],RAW_DATA[Area_QKM]),-2) -> 498500 | K34: =C_CALC[[#This Row],[Area_QKM]]*0.02 -> 9970 | L34: 220000 | M34: =(LN((C_CALC[[#This Row],[Trans_Factor]]/100000)))+1 -> 1.78845736 | N34: =Global_Constants!$B$5*(_xlfn.XLOOKUP(C_CALC[[#This Row],[code]],RAW_DATA[Code],RAW_DATA[Wind_Trans])) -> 731.7775217 | O34: =Global_Constants!$B$8*(_xlfn.XLOOKUP(C_CALC[[#This Row],[code]],RAW_DATA[Code],RAW_DATA[PV_Trans])) -> 232.2484555 | P34: =_xlfn.XLOOKUP(C_CALC[[#This Row],[Country]],PLAY[Region],PLAY[Wind Parks Medium Size]) -> 0 | Q34: =_xlfn.XLOOKUP(C_CALC[[#This Row],[Country]],PLAY[Region],PLAY[Solar Parks Medium Size]) -> 0 | R34: =C_CALC[[#This Row],[No_WP]]*C_CALC[[#This Row],[Wind_Yield]] -> 0 | S34: =C_CALC[[#This Row],[No_PV]]*C_CALC[[#This Row],[PV_Yield]] -> 0 | T34: =C_CALC[[#This Row],[GWh_Wind]]+C_CALC[[#This Row],[GWh_PV]] -> 0 | U34: =C_CALC[[#This Row],[GWh_Demand_L1]]-C_CALC[[#This Row],[GWh_Total]] -> 248519.3349 | V34: =C_CALC[[#This Row],[GWh_Demand_L1_Corrected]]-C_CALC[[#This Row],[GWh_Total]] -> 225669.2488 | W34: =IF(C_CALC[[#This Row],[GWh_Delta]]<0,(C_CALC[[#This Row],[GWh_Delta]]*-1)*C_CALC[[#This Row],[Trans_Factor]],0)/raw!$J$53 -> 0 | X34: =C_CALC[[#This Row],[Area_Max]]-(C_CALC[[#This Row],[No_WP]]*Global_Constants!$B$4+C_CALC[[#This Row],[No_PV]]*Global_Constants!$B$7) -> 9970 | Y34: =ROUND(C_CALC[[#This Row],[Area_Max]]/Global_Constants!$B$4,0) -> 1108 | Z34: =ROUND(C_CALC[[#This Row],[Area_Max]]/Global_Constants!$B$7,0) -> 4985 | AA34: =IF(C_CALC[[#This Row],[Area_Left]]<0,1,0) -> 0 | AB34: =IF(C_CALC[[#This Row],[Alter_Sum]]=1,IF(SUM(AA35:AA$37)>0,_xlfn.CONCAT(C_CALC[[#This Row],[Country]],", "),C_CALC[[#This Row],[Country]]),"") ->  | AC34: =IF(C_CALC[[#This Row],[Delta_Corrected]]<0,ABS(C_CALC[[#This Row],[Delta_Corrected]])/C_CALC[[#This Row],[GWh_Demand_L1_Corrected]],0) -> 0 | AE34: 0 | AF34: =C_CALC[[#This Row],[Max. Wind]] -> 1108 | AG34: 0 | AH34: =C_CALC[[#This Row],[Max Solar]] -> 4985
A35: Sweden | B35: =LOWER(_xlfn.XLOOKUP(C_CALC[[#This Row],[Country]],RAW_DATA[Country],RAW_DATA[Code])) -> se | C35: SE | D35: Northern Europe | E35: =ROUND(raw!E38,-3) -> 43081000 | F35: =ROUND(raw!F38,-2) -> 7500 | G35: =_xlfn.XLOOKUP(C_CALC[[#This Row],[code]],RAW_DATA[Code],RAW_DATA[GWh_demand_2021]) -> 138978.7173 | H35: =C_CALC[[#This Row],[GWh_Demand_L1]]-(_xlfn.XLOOKUP(C_CALC[[#This Row],[Country]],Table13[Country],Table13[% in 2021],0)*C_CALC[[#This Row],[GWh_Demand_L1]]) -> 96692.65821 | I35: =C_CALC[[#This Row],[GWh_Demand_L1]]/Global_Constants!$B$12 -> 0.04231350808 | J35: =ROUND(_xlfn.XLOOKUP(C_CALC[[#This Row],[code]],RAW_DATA[Code],RAW_DATA[Area_QKM]),-2) -> 450300 | K35: =C_CALC[[#This Row],[Area_QKM]]*0.02 -> 9006 | L35: 160000 | M35: =(LN((C_CALC[[#This Row],[Trans_Factor]]/100000)))+1 -> 1.470003629 | N35: =Global_Constants!$B$5*(_xlfn.XLOOKUP(C_CALC[[#This Row],[code]],RAW_DATA[Code],RAW_DATA[Wind_Trans])) -> 1039.732302 | O35: =Global_Constants!$B$8*(_xlfn.XLOOKUP(C_CALC[[#This Row],[code]],RAW_DATA[Code],RAW_DATA[PV_Trans])) -> 132.1382257 | P35: =_xlfn.XLOOKUP(C_CALC[[#This Row],[Country]],PLAY[Region],PLAY[Wind Parks Medium Size]) -> 0 | Q35: =_xlfn.XLOOKUP(C_CALC[[#This Row],[Country]],PLAY[Region],PLAY[Solar Parks Medium Size]) -> 0 | R35: =C_CALC[[#This Row],[No_WP]]*C_CALC[[#This Row],[Wind_Yield]] -> 0 | S35: =C_CALC[[#This Row],[No_PV]]*C_CALC[[#This Row],[PV_Yield]] -> 0 | T35: =C_CALC[[#This Row],[GWh_Wind]]+C_CALC[[#This Row],[GWh_PV]] -> 0 | U35: =C_CALC[[#This Row],[GWh_Demand_L1]]-C_CALC[[#This Row],[GWh_Total]] -> 138978.7173 | V35: =C_CALC[[#This Row],[GWh_Demand_L1_Corrected]]-C_CALC[[#This Row],[GWh_Total]] -> 96692.65821 | W35: =IF(C_CALC[[#This Row],[GWh_Delta]]<0,(C_CALC[[#This Row],[GWh_Delta]]*-1)*C_CALC[[#This Row],[Trans_Factor]],0)/raw!$J$53 -> 0 | X35: =C_CALC[[#This Row],[Area_Max]]-(C_CALC[[#This Row],[No_WP]]*Global_Constants!$B$4+C_CALC[[#This Row],[No_PV]]*Global_Constants!$B$7) -> 9006 | Y35: =ROUND(C_CALC[[#This Row],[Area_Max]]/Global_Constants!$B$4,0) -> 1001 | Z35: =ROUND(C_CALC[[#This Row],[Area_Max]]/Global_Constants!$B$7,0) -> 4503 | AA35: =IF(C_CALC[[#This Row],[Area_Left]]<0,1,0) -> 0 | AB35: =IF(C_CALC[[#This Row],[Alter_Sum]]=1,IF(SUM(AA36:AA$37)>0,_xlfn.CONCAT(C_CALC[[#This Row],[Country]],", "),C_CALC[[#This Row],[Country]]),"") ->  | AC35: =IF(C_CALC[[#This Row],[Delta_Corrected]]<0,ABS(C_CALC[[#This Row],[Delta_Corrected]])/C_CALC[[#This Row],[GWh_Demand_L1_Corrected]],0) -> 0 | AE35: 0 | AF35: =C_CALC[[#This Row],[Max. Wind]] -> 1001 | AG35: 0 | AH35: =C_CALC[[#This Row],[Max Solar]] -> 4503
A36: Switzerland | B36: =LOWER(_xlfn.XLOOKUP(C_CALC[[#This Row],[Country]],RAW_DATA[Country],RAW_DATA[Code])) -> ch | C36: CH | D36: Western Europe | E36: =ROUND(raw!E31,-3) -> 41892000 | F36: =ROUND(raw!F31,-2) -> 6300 | G36: =_xlfn.XLOOKUP(C_CALC[[#This Row],[code]],RAW_DATA[Code],RAW_DATA[GWh_demand_2021]) -> 64911.4981 | H36: =C_CALC[[#This Row],[GWh_Demand_L1]]-(_xlfn.XLOOKUP(C_CALC[[#This Row],[Country]],Table13[Country],Table13[% in 2021],0)*C_CALC[[#This Row],[GWh_Demand_L1]]) -> 64911.4981 | I36: =C_CALC[[#This Row],[GWh_Demand_L1]]/Global_Constants!$B$12 -> 0.01976297704 | J36: =ROUND(_xlfn.XLOOKUP(C_CALC[[#This Row],[code]],RAW_DATA[Code],RAW_DATA[Area_QKM]),-2) -> 41300 | K36: =C_CALC[[#This Row],[Area_QKM]]*0.02 -> 826 | L36: 100000 | M36: =(LN((C_CALC[[#This Row],[Trans_Factor]]/100000)))+1 -> 1 | N36: =Global_Constants!$B$5*(_xlfn.XLOOKUP(C_CALC[[#This Row],[code]],RAW_DATA[Code],RAW_DATA[Wind_Trans])) -> 764.3449897 | O36: =Global_Constants!$B$8*(_xlfn.XLOOKUP(C_CALC[[#This Row],[code]],RAW_DATA[Code],RAW_DATA[PV_Trans])) -> 166.6135642 | P36: =_xlfn.XLOOKUP(C_CALC[[#This Row],[Country]],PLAY[Region],PLAY[Wind Parks Medium Size]) -> 0 | Q36: =_xlfn.XLOOKUP(C_CALC[[#This Row],[Country]],PLAY[Region],PLAY[Solar Parks Medium Size]) -> 0 | R36: =C_CALC[[#This Row],[No_WP]]*C_CALC[[#This Row],[Wind_Yield]] -> 0 | S36: =C_CALC[[#This Row],[No_PV]]*C_CALC[[#This Row],[PV_Yield]] -> 0 | T36: =C_CALC[[#This Row],[GWh_Wind]]+C_CALC[[#This Row],[GWh_PV]] -> 0 | U36: =C_CALC[[#This Row],[GWh_Demand_L1]]-C_CALC[[#This Row],[GWh_Total]] -> 64911.4981 | V36: =C_CALC[[#This Row],[GWh_Demand_L1_Corrected]]-C_CALC[[#This Row],[GWh_Total]] -> 64911.4981 | W36: =IF(C_CALC[[#This Row],[GWh_Delta]]<0,(C_CALC[[#This Row],[GWh_Delta]]*-1)*C_CALC[[#This Row],[Trans_Factor]],0)/raw!$J$53 -> 0 | X36: =C_CALC[[#This Row],[Area_Max]]-(C_CALC[[#This Row],[No_WP]]*Global_Constants!$B$4+C_CALC[[#This Row],[No_PV]]*Global_Constants!$B$7) -> 826 | Y36: =ROUND(C_CALC[[#This Row],[Area_Max]]/Global_Constants!$B$4,0) -> 92 | Z36: =ROUND(C_CALC[[#This Row],[Area_Max]]/Global_Constants!$B$7,0) -> 413 | AA36: =IF(C_CALC[[#This Row],[Area_Left]]<0,1,0) -> 0 | AB36: =IF(C_CALC[[#This Row],[Alter_Sum]]=1,IF(SUM(AA37:AA$37)>0,_xlfn.CONCAT(C_CALC[[#This Row],[Country]],", "),C_CALC[[#This Row],[Country]]),"") ->  | AC36: =IF(C_CALC[[#This Row],[Delta_Corrected]]<0,ABS(C_CALC[[#This Row],[Delta_Corrected]])/C_CALC[[#This Row],[GWh_Demand_L1_Corrected]],0) -> 0 | AE36: 0 | AF36: =C_CALC[[#This Row],[Max. Wind]] -> 92 | AG36: 0 | AH36: =C_CALC[[#This Row],[Max Solar]] -> 413
A37: United Kingdom | B37: =LOWER(_xlfn.XLOOKUP(C_CALC[[#This Row],[Country]],RAW_DATA[Country],RAW_DATA[Code])) -> gb | C37: GB | D37: Northern Europe | E37: =ROUND(raw!E29,-3) -> 30231000 | F37: =ROUND(raw!F29,-2) -> 7900 | G37: =_xlfn.XLOOKUP(C_CALC[[#This Row],[code]],RAW_DATA[Code],RAW_DATA[GWh_demand_2021]) -> 337235.0877 | H37: =C_CALC[[#This Row],[GWh_Demand_L1]]-(_xlfn.XLOOKUP(C_CALC[[#This Row],[Country]],Table13[Country],Table13[% in 2021],0)*C_CALC[[#This Row],[GWh_Demand_L1]]) -> 337235.0877 | I37: =C_CALC[[#This Row],[GWh_Demand_L1]]/Global_Constants!$B$12 -> 0.1026747108 | J37: =ROUND(_xlfn.XLOOKUP(C_CALC[[#This Row],[code]],RAW_DATA[Code],RAW_DATA[Area_QKM]),-2) -> 242500 | K37: =C_CALC[[#This Row],[Area_QKM]]*0.02 -> 4850 | L37: 160000 | M37: =(LN((C_CALC[[#This Row],[Trans_Factor]]/100000)))+1 -> 1.470003629 | N37: =Global_Constants!$B$5*(_xlfn.XLOOKUP(C_CALC[[#This Row],[code]],RAW_DATA[Code],RAW_DATA[Wind_Trans])) -> 1114.932762 | O37: =Global_Constants!$B$8*(_xlfn.XLOOKUP(C_CALC[[#This Row],[code]],RAW_DATA[Code],RAW_DATA[PV_Trans])) -> 142.7071437 | P37: =_xlfn.XLOOKUP(C_CALC[[#This Row],[Country]],PLAY[Region],PLAY[Wind Parks Medium Size]) -> 0 | Q37: =_xlfn.XLOOKUP(C_CALC[[#This Row],[Country]],PLAY[Region],PLAY[Solar Parks Medium Size]) -> 0 | R37: =C_CALC[[#This Row],[No_WP]]*C_CALC[[#This Row],[Wind_Yield]] -> 0 | S37: =C_CALC[[#This Row],[No_PV]]*C_CALC[[#This Row],[PV_Yield]] -> 0 | T37: =C_CALC[[#This Row],[GWh_Wind]]+C_CALC[[#This Row],[GWh_PV]] -> 0 | U37: =C_CALC[[#This Row],[GWh_Demand_L1]]-C_CALC[[#This Row],[GWh_Total]] -> 337235.0877 | V37: =C_CALC[[#This Row],[GWh_Demand_L1_Corrected]]-C_CALC[[#This Row],[GWh_Total]] -> 337235.0877 | W37: =IF(C_CALC[[#This Row],[GWh_Delta]]<0,(C_CALC[[#This Row],[GWh_Delta]]*-1)*C_CALC[[#This Row],[Trans_Factor]],0)/raw!$J$53 -> 0 | X37: =C_CALC[[#This Row],[Area_Max]]-(C_CALC[[#This Row],[No_WP]]*Global_Constants!$B$4+C_CALC[[#This Row],[No_PV]]*Global_Constants!$B$7) -> 4850 | Y37: =ROUND(C_CALC[[#This Row],[Area_Max]]/Global_Constants!$B$4,0) -> 539 | Z37: =ROUND(C_CALC[[#This Row],[Area_Max]]/Global_Constants!$B$7,0) -> 2425 | AA37: =IF(C_CALC[[#This Row],[Area_Left]]<0,1,0) -> 0 | AB37: =IF(C_CALC[[#This Row],[Alter_Sum]]=1,IF(SUM(AA$37:AA38)>0,_xlfn.CONCAT(C_CALC[[#This Row],[Country]],", "),C_CALC[[#This Row],[Country]]),"") ->  | AC37: =IF(C_CALC[[#This Row],[Delta_Corrected]]<0,ABS(C_CALC[[#This Row],[Delta_Corrected]])/C_CALC[[#This Row],[GWh_Demand_L1_Corrected]],0) -> 0 | AE37: 0 | AF37: =C_CALC[[#This Row],[Max. Wind]] -> 539 | AG37: 0 | AH37: =C_CALC[[#This Row],[Max Solar]] -> 2425
A38: Total | R38: =SUBTOTAL(109,C_CALC[GWh_Wind]) -> 0 | S38: =SUBTOTAL(109,C_CALC[GWh_PV]) -> 0 | T38: =SUBTOTAL(109,C_CALC[GWh_Total]) -> 0 | U38: =SUMIFS(C_CALC[GWh_Delta],C_CALC[GWh_Delta],"<0") -> 0 | W38: =SUBTOTAL(109,C_CALC[Trans_Costs]) -> 0 | AA38: =SUBTOTAL(109,C_CALC[Alter_Sum]) -> 0 | AB38: =_xlfn.CONCAT(C_CALC[Countries_concat]) ->  | AC38: =SUBTOTAL(101,C_CALC[DC transmission]) -> 0 | AD38: =IF(Country_Calculated!AA38=0,"None",Country_Calculated!AD3&CHAR(10)&"Please reduce number of wind or solar parks there!") -> None
AD39: =IF(Global_Calculated!B31="OK",Country_Calculated!AD38,IF(AD38="None",Global_Calculated!B31,_xlfn.CONCAT(Country_Calculated!AD38,CHAR(10),Global_Calculated!B31))) -> None

Sheet Global_Calculated (hidden)
A1: User Input
A2: Storage_Build | B2: =Play!J5 -> 0
A4: Variable | B4: Value | C4: Unit | D4: Formula | E4: Game Trigger
A5: Construction_Costs_Sum | B5: =((SUM(C_CALC[No_WP])*Global_Constants!B3)+(SUM(C_CALC[No_PV])*Global_Constants!B6))/1000000000 -> 0 | C5: Mrd. € | D5: ((ΣNo_WP * WP_Cost) + (ΣNo_PV * PV_Cost)) / 1000000000
A6: Transport_Costs_Sum | B6: =SUM(C_CALC[Trans_Costs]) -> 0 | C6: Mrd. € | D6: ΣTrans_Costs
A7: Storage_Costs_Sum | B7: =(B2*Global_Constants!B10)/1000000000 -> 0 | C7: Mrd. € | D7: (Storage_Build * Storage_Cost) / 1000000000
A8: Budget | B8: =Global_Constants!B15-Global_Calculated!B5-Global_Calculated!B6-Global_Calculated!B7 -> 1000 | C8: Mrd. € | D8: Budet_Start - Storage_Costs_Sum - Transport_Costs_Sum - Construction_Costs_Sum
A9: RE_Sum | B9: =SUM(C_CALC[GWh_Total])+Global_Constants!B11 -> 1000000 | C9: GWh | D9: ΣGWh_Total + RE_Start
A10: Conventional_Sum | B10: =Global_Constants!B12-Global_Calculated!B9 -> 2284500 | C10: GWh | D10: Energy_Demand_Total - RE_SUM
A11: RE_Rate | B11: =ROUND((B9/Global_Constants!B12)*100,0) -> 30 | C11: % | D11: (RE_SUM / Energy_Demand_Total) * 100 | E11: Select Storage_Need by RE_Rate
A12: PV_storage | B12: =IF(SUM(C_CALC[GWh_PV])>(0.2*Table6[[#This Row],[Value]]),(SUM(C_CALC[GWh_PV])-(0.2*Table6[[#This Row],[Value]]))*0.0007,0) -> 0 | C12: GW
A13: Storage_Need | B13: =_xlfn.XLOOKUP($B$11,Storage_Rates[Value_forcalc],Storage_Rates[Storage_Need])-Global_Constants!B9+Global_Calculated!B12-Global_Calculated!B2 -> -10 | C13: GW | D13: (Lookup RE_Rate in RE_Range --> Retrieve corresponding Storage_Need value) - Storage_Start - Storage_Build + PV_Storage | E13: IF Positive Grid Stability Decrease by 2% per 10GW
A14: Grid_Stability | B14: =IF(B13>0,Global_Constants!B16-(Global_Calculated!B13/5),Global_Constants!B16) -> 95 | C14: % | D14: IF Storage_Need > 0 --> Grid_Stability_Start - (Storage_Need / 5) | E14: IF < 90 "Grid Stablity low. Take action!"
A15: Wind Total | B15: =SUM(C_CALC[GWh_Wind]) -> 0
A16: PV Total | B16: =SUM(C_CALC[GWh_PV]) -> 0
A17: saved Co2 | B17: =(B16*0.7)+(B15*1.3) -> 0
A18: Storage build | B18: =Play!J5 -> 0
A19: PV kwh 2040 | B19: 4
A20: Wind kwh 2040 | B20: 8
A21: DC Transmission | B21: =C_CALC[[#Totals],[DC transmission]]/1000 -> 0
A23: Renewable Rate | B23: =$B$11 -> 30
A24: Renewable Energy | B24: =B9 -> 1000000
A25: Conventional Energy | B25: =B10 -> 2284500
A26: CO2 saved | B26: =B17 -> 0
A28: Grid Stability | B28: =B14 -> 95
A29: Storage Needed | B29: =IF(B13>0,B13,0) -> 0
A30: Storage Build | B30: =Play!J5 -> 0
A31: Status | B31: =IF(B28<90,"Grid stability too low. Build storage capacity","OK") -> OK
A33: Construction Costs | B33: =B5 -> 0
A34: Transportation Costs | B34: =B6 -> 0
A35: Storage Costs | B35: =B7 -> 0
A36: Total Costs | B36: =SUM($B$5:$B$7) -> 0
A40: 2020 | B40: 8.2
A41: 2021 | B41: =(21.9+23.7)/2 -> 22.8
A42: 2022 | B42: 23.5
A43: 2030 | B43: =(B36*1000000000)/((B24-Global_Constants!B11)*1000000)*100 -> 
A44: 2040 | B44: =(((C_CALC[[#Totals],[GWh_Wind]]*(Global_Calculated!B20*1000000))+(C_CALC[[#Totals],[GWh_PV]]*(Global_Calculated!B19*1000000)))/C_CALC[[#Totals],[GWh_Total]])/1000000 -> 
B46: =B44 -> 
A47: kwh ohne transport
A48: 2020 | B48: 8.2
A49: 2021 | B49: =(21.9+23.7)/2 -> 22.8
A50: 2022 | B50: 23.5
A51: 2030 | B51: =B44 -> 
A53: kwh mit transport | B53: €/mWh/1000km | C53: $/MWh/1000 mi
A54: HVDC | B54: =(C54*0.95)*0.621371 -> 24.49755167 | C54: =(C55*C_CALC[[#Totals],[DC transmission]])+C55 -> 41.5
A55: HVDC | B55: =(C55*0.95)*0.621371 -> 24.49755167 | C55: 41.5
A56: H2 | B56: =(C56*0.95)*0.621371 -> 2.95151225 | C56: 5
A57: Natrual Gas | B57: =(C57*0.95)*0.621371 -> 2.184119065 | C57: 3.7
A58: Crude Oil | B58: =(C58*0.95)*0.621371 -> 0.4545328865 | C58: 0.77

Sheet Global_Constants (hidden)
A1: Constants
A2: Name | B2: Value | C2: Unit
A3: WP_Cost | B3: 800000000 | C3: €
A4: WP_Area | B4: 9 | C4: km2
A5: WP_Energy | B5: 800 | C5: GWh
A6: PV_Cost | B6: 100000000 | C6: €
A7: PV_Area | B7: 2 | C7: km2
A8: PV_Energy | B8: 180 | C8: GWh
A9: Storage_Start | B9: 40 | C9: GW
A10: Storage_Cost | B10: 300000000 | C10: €/GW
A11: RE_Start | B11: =1000*1000 -> 1000000 | C11: GWh
A12: Energy_Demand_L1 | B12: 3284500 | C12: GWh | E12: =Table6[[#This Row],[Value]]*0.4 -> 1313800
A13: Energy_Demand_L2 | B13: 4000000 | C13: GWh
A14: Energy_Demand_L3 | B14: 4900000 | C14: GWh
A15: Budget_Start | B15: 1000 | C15: Mrd. €
A16: Grid_Stability_Start | B16: 95 | C16: % | E16: $/MWh/1000 mi | F16: €/gWh/1000km
A17: DC transmission gWh/1000km | B17: =F17 -> 24497.55167 | E17: 41.5 | F17: =((E17*0.95)*0.621371)*1000 -> 24497.55167
A21: Storage Need Ranges
A22: RE_Range | B22: Storage_Need | C22: Unit | D22: Value_forcalc | E22: Growth | F22: 6
A23: 0.01 | B23: =ROUND($F$23*EXP(Storage_Rates[[#This Row],[RE_Range]]*$F$22),0) -> 5 | C23: GW | D23: 1 | E23: Start | F23: 5 | H23: =_xlfn.CONCAT("- ",Storage_Rates[[#This Row],[Storage_Need]]) -> - 5
A24: 0.02 | B24: =ROUND($F$23*EXP(Storage_Rates[[#This Row],[RE_Range]]*$F$22),0) -> 6 | C24: GW | D24: 2 | H24: =_xlfn.CONCAT("- ",Storage_Rates[[#This Row],[Storage_Need]]) -> - 6
A25: 0.03 | B25: =ROUND($F$23*EXP(Storage_Rates[[#This Row],[RE_Range]]*$F$22),0) -> 6 | C25: GW | D25: 3 | H25: =_xlfn.CONCAT("- ",Storage_Rates[[#This Row],[Storage_Need]]) -> - 6
A26: 0.04 | B26: =ROUND($F$23*EXP(Storage_Rates[[#This Row],[RE_Range]]*$F$22),0) -> 6 | C26: GW | D26: 4 | H26: =_xlfn.CONCAT("- ",Storage_Rates[[#This Row],[Storage_Need]]) -> - 6
A27: 0.05 | B27: =ROUND($F$23*EXP(Storage_Rates[[#This Row],[RE_Range]]*$F$22),0) -> 7 | C27: GW | D27: 5 | H27: =_xlfn.CONCAT("- ",Storage_Rates[[#This Row],[Storage_Need]]) -> - 7
A28: 0.06 | B28: =ROUND($F$23*EXP(Storage_Rates[[#This Row],[RE_Range]]*$F$22),0) -> 7 | C28: GW | D28: 6 | H28: =_xlfn.CONCAT("- ",Storage_Rates[[#This Row],[Storage_Need]]) -> - 7
A29: 0.07 | B29: =ROUND($F$23*EXP(Storage_Rates[[#This Row],[RE_Range]]*$F$22),0) -> 8 | C29: GW | D29: 7 | H29: =_xlfn.CONCAT("- ",Storage_Rates[[#This Row],[Storage_Need]]) -> - 8
A30: 0.08 | B30: =ROUND($F$23*EXP(Storage_Rates[[#This Row],[RE_Range]]*$F$22),0) -> 8 | C30: GW | D30: 8 | H30: =_xlfn.CONCAT("- ",Storage_Rates[[#This Row],[Storage_Need]]) -> - 8
A31: 0.09 | B31: =ROUND($F$23*EXP(Storage_Rates[[#This Row],[RE_Range]]*$F$22),0) -> 9 | C31: GW | D31: 9 | H31: =_xlfn.CONCAT("- ",Storage_Rates[[#This Row],[Storage_Need]]) -> - 9
A32: 0.1 | B32: =ROUND($F$23*EXP(Storage_Rates[[#This Row],[RE_Range]]*$F$22),0) -> 9 | C32: GW | D32: 10 | H32: =_xlfn.CONCAT("- ",Storage_Rates[[#This Row],[Storage_Need]]) -> - 9
A33: 0.11 | B33: =ROUND($F$23*EXP(Storage_Rates[[#This Row],[RE_Range]]*$F$22),0) -> 10 | C33: GW | D33: 11 | H33: =_xlfn.CONCAT("- ",Storage_Rates[[#This Row],[Storage_Need]]) -> - 10
A34: 0.12 | B34: =ROUND($F$23*EXP(Storage_Rates[[#This Row],[RE_Range]]*$F$22),0) -> 10 | C34: GW | D34: 12 | H34: =_xlfn.CONCAT("- ",Storage_Rates[[#This Row],[Storage_Need]]) -> - 10
A35: 0.13 | B35: =ROUND($F$23*EXP(Storage_Rates[[#This Row],[RE_Range]]*$F$22),0) -> 11 | C35: GW | D35: 13 | H35: =_xlfn.CONCAT("- ",Storage_Rates[[#This Row],[Storage_Need]]) -> - 11
A36: 0.14 | B36: =ROUND($F$23*EXP(Storage_Rates[[#This Row],[RE_Range]]*$F$22),0) -> 12 | C36: GW | D36: 14 | H36: =_xlfn.CONCAT("- ",Storage_Rates[[#This Row],[Storage_Need]]) -> - 12
A37: 0.15 | B37: =ROUND($F$23*EXP(Storage_Rates[[#This Row],[RE_Range]]*$F$22),0) -> 12 | C37: GW | D37: 15 | H37: =_xlfn.CONCAT("- ",Storage_Rates[[#This Row],[Storage_Need]]) -> - 12
A38: 0.16 | B38: =ROUND($F$23*EXP(Storage_Rates[[#This Row],[RE_Range]]*$F$22),0) -> 13 | C38: GW | D38: 16 | H38: =_xlfn.CONCAT("- ",Storage_Rates[[#This Row],[Storage_Need]]) -> - 13
A39: 0.17 | B39: =ROUND($F$23*EXP(Storage_Rates[[#This Row],[RE_Range]]*$F$22),0) -> 14 | C39: GW | D39: 17 | H39: =_xlfn.CONCAT("- ",Storage_Rates[[#This Row],[Storage_Need]]) -> - 14
A40: 0.18 | B40: =ROUND($F$23*EXP(Storage_Rates[[#This Row],[RE_Range]]*$F$22),0) -> 15 | C40: GW | D40: 18 | H40: =_xlfn.CONCAT("- ",Storage_Rates[[#This Row],[Storage_Need]]) -> - 15
A41: 0.19 | B41: =ROUND($F$23*EXP(Storage_Rates[[#This Row],[RE_Range]]*$F$22),0) -> 16 | C41: GW | D41: 19 | H41: =_xlfn.CONCAT("- ",Storage_Rates[[#This Row],[Storage_Need]]) -> - 16
A42: 0.2 | B42: =ROUND($F$23*EXP(Storage_Rates[[#This Row],[RE_Range]]*$F$22),0) -> 17 | C42: GW | D42: 20 | H42: =_xlfn.CONCAT("- ",Storage_Rates[[#This Row],[Storage_Need]]) -> - 17
A43: 0.21 | B43: =ROUND($F$23*EXP(Storage_Rates[[#This Row],[RE_Range]]*$F$22),0) -> 18 | C43: GW | D43: 21 | H43: =_xlfn.CONCAT("- ",Storage_Rates[[#This Row],[Storage_Need]]) -> - 18
A44: 0.22 | B44: =ROUND($F$23*EXP(Storage_Rates[[#This Row],[RE_Range]]*$F$22),0) -> 19 | C44: GW | D44: 22 | H44: =_xlfn.CONCAT("- ",Storage_Rates[[#This Row],[Storage_Need]]) -> - 19
A45: 0.23 | B45: =ROUND($F$23*EXP(Storage_Rates[[#This Row],[RE_Range]]*$F$22),0) -> 20 | C45: GW | D45: 23 | H45: =_xlfn.CONCAT("- ",Storage_Rates[[#This Row],[Storage_Need]]) -> - 20
A46: 0.24 | B46: =ROUND($F$23*EXP(Storage_Rates[[#This Row],[RE_Range]]*$F$22),0) -> 21 | C46: GW | D46: 24 | H46: =_xlfn.CONCAT("- ",Storage_Rates[[#This Row],[Storage_Need]]) -> - 21
A47: 0.25 | B47: =ROUND($F$23*EXP(Storage_Rates[[#This Row],[RE_Range]]*$F$22),0) -> 22 | C47: GW | D47: 25 | H47: =_xlfn.CONCAT("- ",Storage_Rates[[#This Row],[Storage_Need]]) -> - 22
A48: 0.26 | B48: =ROUND($F$23*EXP(Storage_Rates[[#This Row],[RE_Range]]*$F$22),0) -> 24 | C48: GW | D48: 26 | H48: =_xlfn.CONCAT("- ",Storage_Rates[[#This Row],[Storage_Need]]) -> - 24
A49: 0.27 | B49: =ROUND($F$23*EXP(Storage_Rates[[#This Row],[RE_Range]]*$F$22),0) -> 25 | C49: GW | D49: 27 | H49: =_xlfn.CONCAT("- ",Storage_Rates[[#This Row],[Storage_Need]]) -> - 25
A50: 0.28 | B50: =ROUND($F$23*EXP(Storage_Rates[[#This Row],[RE_Range]]*$F$22),0) -> 27 | C50: GW | D50: 28 | H50: =_xlfn.CONCAT("- ",Storage_Rates[[#This Row],[Storage_Need]]) -> - 27
A51: 0.29 | B51: =ROUND($F$23*EXP(Storage_Rates[[#This Row],[RE_Range]]*$F$22),0) -> 28 | C51: GW | D51: 29 | H51: =_xlfn.CONCAT("- ",Storage_Rates[[#This Row],[Storage_Need]]) -> - 28
A52: 0.3 | B52: =ROUND($F$23*EXP(Storage_Rates[[#This Row],[RE_Range]]*$F$22),0) -> 30 | C52: GW | D52: 30 | H52: =_xlfn.CONCAT("- ",Storage_Rates[[#This Row],[Storage_Need]]) -> - 30
A53: 0.31 | B53: =ROUND($F$23*EXP(Storage_Rates[[#This Row],[RE_Range]]*$F$22),0) -> 32 | C53: GW | D53: 31 | H53: =_xlfn.CONCAT("- ",Storage_Rates[[#This Row],[Storage_Need]]) -> - 32
A54: 0.32 | B54: =ROUND($F$23*EXP(Storage_Rates[[#This Row],[RE_Range]]*$F$22),0) -> 34 | C54: GW | D54: 32 | H54: =_xlfn.CONCAT("- ",Storage_Rates[[#This Row],[Storage_Need]]) -> - 34
A55: 0.33 | B55: =ROUND($F$23*EXP(Storage_Rates[[#This Row],[RE_Range]]*$F$22),0) -> 36 | C55: GW | D55: 33 | H55: =_xlfn.CONCAT("- ",Storage_Rates[[#This Row],[Storage_Need]]) -> - 36
A56: 0.34 | B56: =ROUND($F$23*EXP(Storage_Rates[[#This Row],[RE_Range]]*$F$22),0) -> 38 | C56: GW | D56: 34 | H56: =_xlfn.CONCAT("- ",Storage_Rates[[#This Row],[Storage_Need]]) -> - 38
A57: 0.35 | B57: =ROUND($F$23*EXP(Storage_Rates[[#This Row],[RE_Range]]*$F$22),0) -> 41 | C57: GW | D57: 35 | H57: =_xlfn.CONCAT("- ",Storage_Rates[[#This Row],[Storage_Need]]) -> - 41
A58: 0.36 | B58: =ROUND($F$23*EXP(Storage_Rates[[#This Row],[RE_Range]]*$F$22),0) -> 43 | C58: GW | D58: 36 | H58: =_xlfn.CONCAT("- ",Storage_Rates[[#This Row],[Storage_Need]]) -> - 43
A59: 0.37 | B59: =ROUND($F$23*EXP(Storage_Rates[[#This Row],[RE_Range]]*$F$22),0) -> 46 | C59: GW | D59: 37 | H59: =_xlfn.CONCAT("- ",Storage_Rates[[#This Row],[Storage_Need]]) -> - 46
A60: 0.38 | B60: =ROUND($F$23*EXP(Storage_Rates[[#This Row],[RE_Range]]*$F$22),0) -> 49 | C60: GW | D60: 38 | H60: =_xlfn.CONCAT("- ",Storage_Rates[[#This Row],[Storage_Need]]) -> - 49
A61: 0.39 | B61: =ROUND($F$23*EXP(Storage_Rates[[#This Row],[RE_Range]]*$F$22),0) -> 52 | C61: GW | D61: 39 | H61: =_xlfn.CONCAT("- ",Storage_Rates[[#This Row],[Storage_Need]]) -> - 52
A62: 0.4 | B62: =ROUND($F$23*EXP(Storage_Rates[[#This Row],[RE_Range]]*$F$22),0) -> 55 | C62: GW | D62: 40 | H62: =_xlfn.CONCAT("- ",Storage_Rates[[#This Row],[Storage_Need]]) -> - 55
A63: 0.41 | B63: =ROUND($F$23*EXP(Storage_Rates[[#This Row],[RE_Range]]*$F$22),0) -> 59 | C63: GW | D63: 41 | H63: =_xlfn.CONCAT("- ",Storage_Rates[[#This Row],[Storage_Need]]) -> - 59
A64: 0.42 | B64: =ROUND($F$23*EXP(Storage_Rates[[#This Row],[RE_Range]]*$F$22),0) -> 62 | C64: GW | D64: 42 | H64: =_xlfn.CONCAT("- ",Storage_Rates[[#This Row],[Storage_Need]]) -> - 62
A65: 0.43 | B65: =ROUND($F$23*EXP(Storage_Rates[[#This Row],[RE_Range]]*$F$22),0) -> 66 | C65: GW | D65: 43 | H65: =_xlfn.CONCAT("- ",Storage_Rates[[#This Row],[Storage_Need]]) -> - 66 | L65: =3284500*0.2 -> 656900
A66: 0.44 | B66: =ROUND($F$23*EXP(Storage_Rates[[#This Row],[RE_Range]]*$F$22),0) -> 70 | C66: GW | D66: 44 | H66: =_xlfn.CONCAT("- ",Storage_Rates[[#This Row],[Storage_Need]]) -> - 70 | L66: 1100280
A67: 0.45 | B67: =ROUND($F$23*EXP(Storage_Rates[[#This Row],[RE_Range]]*$F$22),0) -> 74 | C67: GW | D67: 45 | H67: =_xlfn.CONCAT("- ",Storage_Rates[[#This Row],[Storage_Need]]) -> - 74 | L67: =(L66-L65)*0.0007 -> 310.366 | M67: 233 | N67: =L67+M67-40 -> 503.366
A68: 0.46 | B68: =ROUND($F$23*EXP(Storage_Rates[[#This Row],[RE_Range]]*$F$22),0) -> 79 | C68: GW | D68: 46 | H68: =_xlfn.CONCAT("- ",Storage_Rates[[#This Row],[Storage_Need]]) -> - 79
A69: 0.47 | B69: =ROUND($F$23*EXP(Storage_Rates[[#This Row],[RE_Range]]*$F$22),0) -> 84 | C69: GW | D69: 47 | H69: =_xlfn.CONCAT("- ",Storage_Rates[[#This Row],[Storage_Need]]) -> - 84
A70: 0.48 | B70: =ROUND($F$23*EXP(Storage_Rates[[#This Row],[RE_Range]]*$F$22),0) -> 89 | C70: GW | D70: 48 | H70: =_xlfn.CONCAT("- ",Storage_Rates[[#This Row],[Storage_Need]]) -> - 89
A71: 0.49 | B71: =ROUND($F$23*EXP(Storage_Rates[[#This Row],[RE_Range]]*$F$22),0) -> 95 | C71: GW | D71: 49 | H71: =_xlfn.CONCAT("- ",Storage_Rates[[#This Row],[Storage_Need]]) -> - 95
A72: 0.5 | B72: =ROUND($F$23*EXP(Storage_Rates[[#This Row],[RE_Range]]*$F$22),0) -> 100 | C72: GW | D72: 50 | H72: =_xlfn.CONCAT("- ",Storage_Rates[[#This Row],[Storage_Need]]) -> - 100
A73: 0.51 | B73: =ROUND($F$23*EXP(Storage_Rates[[#This Row],[RE_Range]]*$F$22),0) -> 107 | C73: GW | D73: 51 | H73: =_xlfn.CONCAT("- ",Storage_Rates[[#This Row],[Storage_Need]]) -> - 107
A74: 0.52 | B74: =ROUND($F$23*EXP(Storage_Rates[[#This Row],[RE_Range]]*$F$22),0) -> 113 | C74: GW | D74: 52 | H74: =_xlfn.CONCAT("- ",Storage_Rates[[#This Row],[Storage_Need]]) -> - 113
A75: 0.53 | B75: =ROUND($F$23*EXP(Storage_Rates[[#This Row],[RE_Range]]*$F$22),0) -> 120 | C75: GW | D75: 53 | H75: =_xlfn.CONCAT("- ",Storage_Rates[[#This Row],[Storage_Need]]) -> - 120
A76: 0.54 | B76: =ROUND($F$23*EXP(Storage_Rates[[#This Row],[RE_Range]]*$F$22),0) -> 128 | C76: GW | D76: 54 | H76: =_xlfn.CONCAT("- ",Storage_Rates[[#This Row],[Storage_Need]]) -> - 128
A77: 0.55 | B77: =ROUND($F$23*EXP(Storage_Rates[[#This Row],[RE_Range]]*$F$22),0) -> 136 | C77: GW | D77: 55 | H77: =_xlfn.CONCAT("- ",Storage_Rates[[#This Row],[Storage_Need]]) -> - 136
A78: 0.56 | B78: =ROUND($F$23*EXP(Storage_Rates[[#This Row],[RE_Range]]*$F$22),0) -> 144 | C78: GW | D78: 56 | H78: =_xlfn.CONCAT("- ",Storage_Rates[[#This Row],[Storage_Need]]) -> - 144
A79: 0.57 | B79: =ROUND($F$23*EXP(Storage_Rates[[#This Row],[RE_Range]]*$F$22),0) -> 153 | C79: GW | D79: 57 | H79: =_xlfn.CONCAT("- ",Storage_Rates[[#This Row],[Storage_Need]]) -> - 153
A80: 0.58 | B80: =ROUND($F$23*EXP(Storage_Rates[[#This Row],[RE_Range]]*$F$22),0) -> 162 | C80: GW | D80: 58 | H80: =_xlfn.CONCAT("- ",Storage_Rates[[#This Row],[Storage_Need]]) -> - 162
A81: 0.59 | B81: =ROUND($F$23*EXP(Storage_Rates[[#This Row],[RE_Range]]*$F$22),0) -> 172 | C81: GW | D81: 59 | H81: =_xlfn.CONCAT("- ",Storage_Rates[[#This Row],[Storage_Need]]) -> - 172
A82: 0.6 | B82: =ROUND($F$23*EXP(Storage_Rates[[#This Row],[RE_Range]]*$F$22),0) -> 183 | C82: GW | D82: 60 | H82: =_xlfn.CONCAT("- ",Storage_Rates[[#This Row],[Storage_Need]]) -> - 183
A83: 0.61 | B83: =ROUND($F$23*EXP(Storage_Rates[[#This Row],[RE_Range]]*$F$22),0) -> 194 | C83: GW | D83: 61 | H83: =_xlfn.CONCAT("- ",Storage_Rates[[#This Row],[Storage_Need]]) -> - 194
A84: 0.62 | B84: =ROUND($F$23*EXP(Storage_Rates[[#This Row],[RE_Range]]*$F$22),0) -> 206 | C84: GW | D84: 62 | H84: =_xlfn.CONCAT("- ",Storage_Rates[[#This Row],[Storage_Need]]) -> - 206
A85: 0.63 | B85: =ROUND($F$23*EXP(Storage_Rates[[#This Row],[RE_Range]]*$F$22),0) -> 219 | C85: GW | D85: 63 | H85: =_xlfn.CONCAT("- ",Storage_Rates[[#This Row],[Storage_Need]]) -> - 219
A86: 0.64 | B86: =ROUND($F$23*EXP(Storage_Rates[[#This Row],[RE_Range]]*$F$22),0) -> 233 | C86: GW | D86: 64 | H86: =_xlfn.CONCAT("- ",Storage_Rates[[#This Row],[Storage_Need]]) -> - 233
A87: 0.65 | B87: =ROUND($F$23*EXP(Storage_Rates[[#This Row],[RE_Range]]*$F$22),0) -> 247 | C87: GW | D87: 65 | H87: =_xlfn.CONCAT("- ",Storage_Rates[[#This Row],[Storage_Need]]) -> - 247
A88: 0.66 | B88: =ROUND($F$23*EXP(Storage_Rates[[#This Row],[RE_Range]]*$F$22),0) -> 262 | C88: GW | D88: 66 | H88: =_xlfn.CONCAT("- ",Storage_Rates[[#This Row],[Storage_Need]]) -> - 262
A89: 0.67 | B89: =ROUND($F$23*EXP(Storage_Rates[[#This Row],[RE_Range]]*$F$22),0) -> 279 | C89: GW | D89: 67 | H89: =_xlfn.CONCAT("- ",Storage_Rates[[#This Row],[Storage_Need]]) -> - 279
A90: 0.68 | B90: =ROUND($F$23*EXP(Storage_Rates[[#This Row],[RE_Range]]*$F$22),0) -> 296 | C90: GW | D90: 68 | H90: =_xlfn.CONCAT("- ",Storage_Rates[[#This Row],[Storage_Need]]) -> - 296
A91: 0.69 | B91: =ROUND($F$23*EXP(Storage_Rates[[#This Row],[RE_Range]]*$F$22),0) -> 314 | C91: GW | D91: 69 | H91: =_xlfn.CONCAT("- ",Storage_Rates[[#This Row],[Storage_Need]]) -> - 314
A92: 0.7 | B92: =ROUND($F$23*EXP(Storage_Rates[[#This Row],[RE_Range]]*$F$22),0) -> 333 | C92: GW | D92: 70 | H92: =_xlfn.CONCAT("- ",Storage_Rates[[#This Row],[Storage_Need]]) -> - 333
A93: 0.71 | B93: =ROUND($F$23*EXP(Storage_Rates[[#This Row],[RE_Range]]*$F$22),0) -> 354 | C93: GW | D93: 71 | H93: =_xlfn.CONCAT("- ",Storage_Rates[[#This Row],[Storage_Need]]) -> - 354
A94: 0.72 | B94: =ROUND($F$23*EXP(Storage_Rates[[#This Row],[RE_Range]]*$F$22),0) -> 376 | C94: GW | D94: 72 | H94: =_xlfn.CONCAT("- ",Storage_Rates[[#This Row],[Storage_Need]]) -> - 376
A95: 0.73 | B95: =ROUND($F$23*EXP(Storage_Rates[[#This Row],[RE_Range]]*$F$22),0) -> 399 | C95: GW | D95: 73 | H95: =_xlfn.CONCAT("- ",Storage_Rates[[#This Row],[Storage_Need]]) -> - 399
A96: 0.74 | B96: =ROUND($F$23*EXP(Storage_Rates[[#This Row],[RE_Range]]*$F$22),0) -> 424 | C96: GW | D96: 74 | H96: =_xlfn.CONCAT("- ",Storage_Rates[[#This Row],[Storage_Need]]) -> - 424
A97: 0.75 | B97: =ROUND($F$23*EXP(Storage_Rates[[#This Row],[RE_Range]]*$F$22),0) -> 450 | C97: GW | D97: 75 | H97: =_xlfn.CONCAT("- ",Storage_Rates[[#This Row],[Storage_Need]]) -> - 450
A98: 0.76 | B98: =ROUND($F$23*EXP(Storage_Rates[[#This Row],[RE_Range]]*$F$22),0) -> 478 | C98: GW | D98: 76 | H98: =_xlfn.CONCAT("- ",Storage_Rates[[#This Row],[Storage_Need]]) -> - 478
A99: 0.77 | B99: =ROUND($F$23*EXP(Storage_Rates[[#This Row],[RE_Range]]*$F$22),0) -> 507 | C99: GW | D99: 77 | H99: =_xlfn.CONCAT("- ",Storage_Rates[[#This Row],[Storage_Need]]) -> - 507
A100: 0.78 | B100: =ROUND($F$23*EXP(Storage_Rates[[#This Row],[RE_Range]]*$F$22),0) -> 539 | C100: GW | D100: 78 | H100: =_xlfn.CONCAT("- ",Storage_Rates[[#This Row],[Storage_Need]]) -> - 539
A101: 0.79 | B101: =ROUND($F$23*EXP(Storage_Rates[[#This Row],[RE_Range]]*$F$22),0) -> 572 | C101: GW | D101: 79 | H101: =_xlfn.CONCAT("- ",Storage_Rates[[#This Row],[Storage_Need]]) -> - 572
A102: 0.8 | B102: =ROUND($F$23*EXP(Storage_Rates[[#This Row],[RE_Range]]*$F$22),0) -> 608 | C102: GW | D102: 80 | H102: =_xlfn.CONCAT("- ",Storage_Rates[[#This Row],[Storage_Need]]) -> - 608
A103: 0.81 | B103: =ROUND($F$23*EXP(Storage_Rates[[#This Row],[RE_Range]]*$F$22),0) -> 645 | C103: GW | D103: 81 | H103: =_xlfn.CONCAT("- ",Storage_Rates[[#This Row],[Storage_Need]]) -> - 645
A104: 0.82 | B104: =ROUND($F$23*EXP(Storage_Rates[[#This Row],[RE_Range]]*$F$22),0) -> 685 | C104: GW | D104: 82 | H104: =_xlfn.CONCAT("- ",Storage_Rates[[#This Row],[Storage_Need]]) -> - 685
A105: 0.83 | B105: =ROUND($F$23*EXP(Storage_Rates[[#This Row],[RE_Range]]*$F$22),0) -> 727 | C105: GW | D105: 83 | H105: =_xlfn.CONCAT("- ",Storage_Rates[[#This Row],[Storage_Need]]) -> - 727
A106: 0.84 | B106: =ROUND($F$23*EXP(Storage_Rates[[#This Row],[RE_Range]]*$F$22),0) -> 772 | C106: GW | D106: 84 | H106: =_xlfn.CONCAT("- ",Storage_Rates[[#This Row],[Storage_Need]]) -> - 772
A107: 0.85 | B107: =ROUND($F$23*EXP(Storage_Rates[[#This Row],[RE_Range]]*$F$22),0) -> 820 | C107: GW | D107: 85 | H107: =_xlfn.CONCAT("- ",Storage_Rates[[#This Row],[Storage_Need]]) -> - 820
A108: 0.86 | B108: =ROUND($F$23*EXP(Storage_Rates[[#This Row],[RE_Range]]*$F$22),0) -> 871 | C108: GW | D108: 86 | H108: =_xlfn.CONCAT("- ",Storage_Rates[[#This Row],[Storage_Need]]) -> - 871
A109: 0.87 | B109: =ROUND($F$23*EXP(Storage_Rates[[#This Row],[RE_Range]]*$F$22),0) -> 925 | C109: GW | D109: 87 | H109: =_xlfn.CONCAT("- ",Storage_Rates[[#This Row],[Storage_Need]]) -> - 925
A110: 0.88 | B110: =ROUND($F$23*EXP(Storage_Rates[[#This Row],[RE_Range]]*$F$22),0) -> 982 | C110: GW | D110: 88 | H110: =_xlfn.CONCAT("- ",Storage_Rates[[#This Row],[Storage_Need]]) -> - 982
A111: 0.89 | B111: =ROUND($F$23*EXP(Storage_Rates[[#This Row],[RE_Range]]*$F$22),0) -> 1043 | C111: GW | D111: 89 | H111: =_xlfn.CONCAT("- ",Storage_Rates[[#This Row],[Storage_Need]]) -> - 1043
A112: 0.9 | B112: =ROUND($F$23*EXP(Storage_Rates[[#This Row],[RE_Range]]*$F$22),0) -> 1107 | C112: GW | D112: 90 | H112: =_xlfn.CONCAT("- ",Storage_Rates[[#This Row],[Storage_Need]]) -> - 1107
A113: 0.91 | B113: =ROUND($F$23*EXP(Storage_Rates[[#This Row],[RE_Range]]*$F$22),0) -> 1175 | C113: GW | D113: 91 | H113: =_xlfn.CONCAT("- ",Storage_Rates[[#This Row],[Storage_Need]]) -> - 1175
A114: 0.92 | B114: =ROUND($F$23*EXP(Storage_Rates[[#This Row],[RE_Range]]*$F$22),0) -> 1248 | C114: GW | D114: 92 | H114: =_xlfn.CONCAT("- ",Storage_Rates[[#This Row],[Storage_Need]]) -> - 1248
A115: 0.93 | B115: =ROUND($F$23*EXP(Storage_Rates[[#This Row],[RE_Range]]*$F$22),0) -> 1325 | C115: GW | D115: 93 | H115: =_xlfn.CONCAT("- ",Storage_Rates[[#This Row],[Storage_Need]]) -> - 1325
A116: 0.94 | B116: =ROUND($F$23*EXP(Storage_Rates[[#This Row],[RE_Range]]*$F$22),0) -> 1407 | C116: GW | D116: 94 | H116: =_xlfn.CONCAT("- ",Storage_Rates[[#This Row],[Storage_Need]]) -> - 1407
A117: 0.95 | B117: =ROUND($F$23*EXP(Storage_Rates[[#This Row],[RE_Range]]*$F$22),0) -> 1494 | C117: GW | D117: 95 | H117: =_xlfn.CONCAT("- ",Storage_Rates[[#This Row],[Storage_Need]]) -> - 1494
A118: 0.96 | B118: =ROUND($F$23*EXP(Storage_Rates[[#This Row],[RE_Range]]*$F$22),0) -> 1587 | C118: GW | D118: 96 | H118: =_xlfn.CONCAT("- ",Storage_Rates[[#This Row],[Storage_Need]]) -> - 1587
A119: 0.97 | B119: =ROUND($F$23*EXP(Storage_Rates[[#This Row],[RE_Range]]*$F$22),0) -> 1685 | C119: GW | D119: 97 | H119: =_xlfn.CONCAT("- ",Storage_Rates[[#This Row],[Storage_Need]]) -> - 1685
A120: 0.98 | B120: =ROUND($F$23*EXP(Storage_Rates[[#This Row],[RE_Range]]*$F$22),0) -> 1789 | C120: GW | D120: 98 | H120: =_xlfn.CONCAT("- ",Storage_Rates[[#This Row],[Storage_Need]]) -> - 1789
A121: 0.99 | B121: =ROUND($F$23*EXP(Storage_Rates[[#This Row],[RE_Range]]*$F$22),0) -> 1900 | C121: GW | D121: 99 | H121: =_xlfn.CONCAT("- ",Storage_Rates[[#This Row],[Storage_Need]]) -> - 1900
A122: 1 | B122: =ROUND($F$23*EXP(Storage_Rates[[#This Row],[RE_Range]]*$F$22),0) -> 2017 | C122: GW | D122: 100 | H122: =_xlfn.CONCAT("- ",Storage_Rates[[#This Row],[Storage_Need]]) -> - 2017

Sheet Sheet2 (hidden)
A1: Country | B1: RAW_2021 | C1: % in 2021
A2: Belgium | B2: 10.26190611 | C2: =B2/100 -> 0.1026190611
A3: Bulgaria | B3: 7.612546958 | C3: =B3/100 -> 0.07612546958
A4: Czechia | B4: 7.491697476 | C4: 0.07491697476
A5: Denmark | B5: 10.54621178 | C5: 0.1054621178
A6: Germany | B6: 7.972018247 | C6: 0.07972018247
A7: Estonia | B7: 8.629346438 | C7: 0.08629346438
A8: Ireland | B8: 4.2960322 | C8: 0.042960322
A9: Greece | B9: 4.309623784 | C9: 0.04309623784
A10: Spain | B10: 9.194490264 | C10: 0.09194490264
A11: France | B11: 8.208741866 | C11: 0.08208741866
A12: Croatia | B12: 6.982545133 | C12: 0.06982545133
A13: Italy | B13: 10.00137081 | C13: 0.1000137081
A14: Cyprus | B14: 7.188487078 | C14: 0.07188487078
A15: Latvia | B15: 6.43587112 | C15: 0.0643587112
A16: Lithuania | B16: 6.462023364 | C16: 0.06462023364
A17: Luxembourg | B17: 7.961802268 | C17: 0.07961802268
A18: Hungary | B18: 6.159049449 | C18: 0.06159049449
A19: Malta | B19: 10.57982058 | C19: 0.1057982058
A20: Netherlands | B20: 8.991218386 | C20: 0.08991218386
A21: Austria | B21: 9.354812048 | C21: 0.09354812048
A22: Poland | B22: 5.664883897 | C22: 0.05664883897
A23: Portugal | B23: 8.608841223 | C23: 0.08608841223
A24: Romania | B24: 7.668938472 | C24: 0.07668938472
A25: Slovenia | B25: 10.6407333 | C25: 0.106407333
A26: Slovakia | B26: 8.753229832 | C26: 0.08753229832
A27: Finland | B27: 20.51185691 | C27: 0.2051185691
A28: Sweden | B28: 30.4262839 | C28: 0.304262839
A29: Iceland | B29: 12.72060029 | C29: 0.1272060029
A30: Norway | B30: 20.37258173 | C30: 0.2037258173
A31: Montenegro | B31: 0.2777309706 | C31: 0.002777309706
A32: Moldova | B32: 0.01651894514 | C32: 0.0001651894514
A33: North Macedonia | B33: 0.06169072121 | C33: 0.0006169072121
A34: Albania | B34: 0.3314064793 | C34: 0.003314064793
A35: Serbia | B35: 0.618209952 | C35: 0.00618209952
A36: Source: Eurostat (online data code: nrg_ind_ren)

Sheet Data_Val (hidden)
A1: Country | B1: W-Max | C1: W-Stps | D1: W0 | E1: W1 | F1: W2 | G1: W3 | H1: W4 | I1: W5 | J1: W6 | K1: W7 | L1: W8 | M1: W9 | N1: W10 | O1: W11 | P1: W12 | Q1: W13 | R1: W14 | S1: W15 | T1: W16 | U1: W17 | V1: W18 | W1: W19 | X1: W20 | Y1: S-Max | Z1: S-Stps | AA1: S0 | AB1: S1 | AC1: S2 | AD1: S3 | AE1: S4 | AF1: S5 | AG1: S6 | AH1: S7 | AI1: S8 | AJ1: S9 | AK1: S10 | AL1: S11 | AM1: S12 | AN1: S13 | AO1: S14 | AP1: S15 | AQ1: S16 | AR1: S17 | AS1: S18 | AT1: S19 | AU1: S20
A2: Albania | B2: =ROUNDDOWN(_xlfn.XLOOKUP(A2,C_CALC[Country],C_CALC[Max. Wind]),-1) -> 60 | C2: =ROUNDUP(Table12[[#This Row],[W-Max]]/20,-1) -> 10 | D2: 0 | E2: =Table12[[#This Row],[W0]]+Table12[[#This Row],[W-Stps]] -> 10 | F2: =IF(Table12[[#This Row],[W1]]<>"",IF(Table12[[#This Row],[W1]]+$C2<=$B2,Table12[[#This Row],[W1]]+$C2,""),"") -> 20 | G2: =IF(Table12[[#This Row],[W2]]<>"",IF(Table12[[#This Row],[W2]]+$C2<=$B2,Table12[[#This Row],[W2]]+$C2,""),"") -> 30 | H2: =IF(Table12[[#This Row],[W3]]<>"",IF(Table12[[#This Row],[W3]]+$C2<=$B2,Table12[[#This Row],[W3]]+$C2,""),"") -> 40 | I2: =IF(Table12[[#This Row],[W4]]<>"",IF(Table12[[#This Row],[W4]]+$C2<=$B2,Table12[[#This Row],[W4]]+$C2,""),"") -> 50 | J2: =IF(Table12[[#This Row],[W5]]<>"",IF(Table12[[#This Row],[W5]]+$C2<=$B2,Table12[[#This Row],[W5]]+$C2,""),"") -> 60 | K2: =IF(Table12[[#This Row],[W6]]<>"",IF(Table12[[#This Row],[W6]]+$C2<=$B2,Table12[[#This Row],[W6]]+$C2,""),"") ->  | L2: =IF(Table12[[#This Row],[W7]]<>"",IF(Table12[[#This Row],[W7]]+$C2<=$B2,Table12[[#This Row],[W7]]+$C2,""),"") ->  | M2: =IF(Table12[[#This Row],[W8]]<>"",IF(Table12[[#This Row],[W8]]+$C2<=$B2,Table12[[#This Row],[W8]]+$C2,""),"") ->  | N2: =IF(Table12[[#This Row],[W9]]<>"",IF(Table12[[#This Row],[W9]]+$C2<=$B2,Table12[[#This Row],[W9]]+$C2,""),"") ->  | O2: =IF(Table12[[#This Row],[W10]]<>"",IF(Table12[[#This Row],[W10]]+$C2<=$B2,Table12[[#This Row],[W10]]+$C2,""),"") ->  | P2: =IF(Table12[[#This Row],[W11]]<>"",IF(Table12[[#This Row],[W11]]+$C2<=$B2,Table12[[#This Row],[W11]]+$C2,""),"") ->  | Q2: =IF(Table12[[#This Row],[W12]]<>"",IF(Table12[[#This Row],[W12]]+$C2<=$B2,Table12[[#This Row],[W12]]+$C2,""),"") ->  | R2: =IF(Table12[[#This Row],[W13]]<>"",IF(Table12[[#This Row],[W13]]+$C2<=$B2,Table12[[#This Row],[W13]]+$C2,""),"") ->  | S2: =IF(Table12[[#This Row],[W14]]<>"",IF(Table12[[#This Row],[W14]]+$C2<=$B2,Table12[[#This Row],[W14]]+$C2,""),"") ->  | T2: =IF(Table12[[#This Row],[W15]]<>"",IF(Table12[[#This Row],[W15]]+$C2<=$B2,Table12[[#This Row],[W15]]+$C2,""),"") ->  | U2: =IF(Table12[[#This Row],[W16]]<>"",IF(Table12[[#This Row],[W16]]+$C2<=$B2,Table12[[#This Row],[W16]]+$C2,""),"") ->  | V2: =IF(Table12[[#This Row],[W17]]<>"",IF(Table12[[#This Row],[W17]]+$C2<=$B2,Table12[[#This Row],[W17]]+$C2,""),"") ->  | W2: =IF(Table12[[#This Row],[W18]]<>"",IF(Table12[[#This Row],[W18]]+$C2<=$B2,Table12[[#This Row],[W18]]+$C2,""),"") ->  | X2: =IF(Table12[[#This Row],[W19]]<>"",IF(Table12[[#This Row],[W19]]+$C2<=$B2,Table12[[#This Row],[W19]]+$C2,""),"") ->  | Y2: =ROUNDDOWN(_xlfn.XLOOKUP(Table12[[#This Row],[Country]],C_CALC[Country],C_CALC[Max Solar]),-1) -> 280 | Z2: =ROUNDUP(Table12[[#This Row],[S-Max]]/20,-1) -> 20 | AA2: 0 | AB2: =Table12[[#This Row],[S0]]+Table12[[#This Row],[S-Stps]] -> 20 | AC2: =IF(Table12[[#This Row],[S1]]<>"",IF(Table12[[#This Row],[S1]]+$Z2<=$Y2,Table12[[#This Row],[S1]]+$Z2,""),"") -> 40 | AD2: =IF(Table12[[#This Row],[S2]]<>"",IF(Table12[[#This Row],[S2]]+$Z2<=$Y2,Table12[[#This Row],[S2]]+$Z2,""),"") -> 60 | AE2: =IF(Table12[[#This Row],[S3]]<>"",IF(Table12[[#This Row],[S3]]+$Z2<=$Y2,Table12[[#This Row],[S3]]+$Z2,""),"") -> 80 | AF2: =IF(Table12[[#This Row],[S4]]<>"",IF(Table12[[#This Row],[S4]]+$Z2<=$Y2,Table12[[#This Row],[S4]]+$Z2,""),"") -> 100 | AG2: =IF(Table12[[#This Row],[S5]]<>"",IF(Table12[[#This Row],[S5]]+$Z2<=$Y2,Table12[[#This Row],[S5]]+$Z2,""),"") -> 120 | AH2: =IF(Table12[[#This Row],[S6]]<>"",IF(Table12[[#This Row],[S6]]+$Z2<=$Y2,Table12[[#This Row],[S6]]+$Z2,""),"") -> 140 | AI2: =IF(Table12[[#This Row],[S7]]<>"",IF(Table12[[#This Row],[S7]]+$Z2<=$Y2,Table12[[#This Row],[S7]]+$Z2,""),"") -> 160 | AJ2: =IF(Table12[[#This Row],[S8]]<>"",IF(Table12[[#This Row],[S8]]+$Z2<=$Y2,Table12[[#This Row],[S8]]+$Z2,""),"") -> 180 | AK2: =IF(Table12[[#This Row],[S9]]<>"",IF(Table12[[#This Row],[S9]]+$Z2<=$Y2,Table12[[#This Row],[S9]]+$Z2,""),"") -> 200 | AL2: =IF(Table12[[#This Row],[S10]]<>"",IF(Table12[[#This Row],[S10]]+$Z2<=$Y2,Table12[[#This Row],[S10]]+$Z2,""),"") -> 220 | AM2: =IF(Table12[[#This Row],[S11]]<>"",IF(Table12[[#This Row],[S11]]+$Z2<=$Y2,Table12[[#This Row],[S11]]+$Z2,""),"") -> 240 | AN2: =IF(Table12[[#This Row],[S12]]<>"",IF(Table12[[#This Row],[S12]]+$Z2<=$Y2,Table12[[#This Row],[S12]]+$Z2,""),"") -> 260 | AO2: =IF(Table12[[#This Row],[S13]]<>"",IF(Table12[[#This Row],[S13]]+$Z2<=$Y2,Table12[[#This Row],[S13]]+$Z2,""),"") -> 280 | AP2: =IF(Table12[[#This Row],[S14]]<>"",IF(Table12[[#This Row],[S14]]+$Z2<=$Y2,Table12[[#This Row],[S14]]+$Z2,""),"") ->  | AQ2: =IF(Table12[[#This Row],[S15]]<>"",IF(Table12[[#This Row],[S15]]+$Z2<=$Y2,Table12[[#This Row],[S15]]+$Z2,""),"") ->  | AR2: =IF(Table12[[#This Row],[S16]]<>"",IF(Table12[[#This Row],[S16]]+$Z2<=$Y2,Table12[[#This Row],[S16]]+$Z2,""),"") ->  | AS2: =IF(Table12[[#This Row],[S17]]<>"",IF(Table12[[#This Row],[S17]]+$Z2<=$Y2,Table12[[#This Row],[S17]]+$Z2,""),"") ->  | AT2: =IF(Table12[[#This Row],[S18]]<>"",IF(Table12[[#This Row],[S18]]+$Z2<=$Y2,Table12[[#This Row],[S18]]+$Z2,""),"") ->  | AU2: =IF(Table12[[#This Row],[S19]]<>"",IF(Table12[[#This Row],[S19]]+$Z2<=$Y2,Table12[[#This Row],[S19]]+$Z2,""),"") -> 
A3: Austria | B3: =ROUNDDOWN(_xlfn.XLOOKUP(A3,C_CALC[Country],C_CALC[Max. Wind]),-1) -> 180 | C3: =ROUNDUP(Table12[[#This Row],[W-Max]]/20,-1) -> 10 | D3: 0 | E3: =Table12[[#This Row],[W0]]+Table12[[#This Row],[W-Stps]] -> 10 | F3: =IF(Table12[[#This Row],[W1]]<>"",IF(Table12[[#This Row],[W1]]+$C3<=$B3,Table12[[#This Row],[W1]]+$C3,""),"") -> 20 | G3: =IF(Table12[[#This Row],[W2]]<>"",IF(Table12[[#This Row],[W2]]+$C3<=$B3,Table12[[#This Row],[W2]]+$C3,""),"") -> 30 | H3: =IF(Table12[[#This Row],[W3]]<>"",IF(Table12[[#This Row],[W3]]+$C3<=$B3,Table12[[#This Row],[W3]]+$C3,""),"") -> 40 | I3: =IF(Table12[[#This Row],[W4]]<>"",IF(Table12[[#This Row],[W4]]+$C3<=$B3,Table12[[#This Row],[W4]]+$C3,""),"") -> 50 | J3: =IF(Table12[[#This Row],[W5]]<>"",IF(Table12[[#This Row],[W5]]+$C3<=$B3,Table12[[#This Row],[W5]]+$C3,""),"") -> 60 | K3: =IF(Table12[[#This Row],[W6]]<>"",IF(Table12[[#This Row],[W6]]+$C3<=$B3,Table12[[#This Row],[W6]]+$C3,""),"") -> 70 | L3: =IF(Table12[[#This Row],[W7]]<>"",IF(Table12[[#This Row],[W7]]+$C3<=$B3,Table12[[#This Row],[W7]]+$C3,""),"") -> 80 | M3: =IF(Table12[[#This Row],[W8]]<>"",IF(Table12[[#This Row],[W8]]+$C3<=$B3,Table12[[#This Row],[W8]]+$C3,""),"") -> 90 | N3: =IF(Table12[[#This Row],[W9]]<>"",IF(Table12[[#This Row],[W9]]+$C3<=$B3,Table12[[#This Row],[W9]]+$C3,""),"") -> 100 | O3: =IF(Table12[[#This Row],[W10]]<>"",IF(Table12[[#This Row],[W10]]+$C3<=$B3,Table12[[#This Row],[W10]]+$C3,""),"") -> 110 | P3: =IF(Table12[[#This Row],[W11]]<>"",IF(Table12[[#This Row],[W11]]+$C3<=$B3,Table12[[#This Row],[W11]]+$C3,""),"") -> 120 | Q3: =IF(Table12[[#This Row],[W12]]<>"",IF(Table12[[#This Row],[W12]]+$C3<=$B3,Table12[[#This Row],[W12]]+$C3,""),"") -> 130 | R3: =IF(Table12[[#This Row],[W13]]<>"",IF(Table12[[#This Row],[W13]]+$C3<=$B3,Table12[[#This Row],[W13]]+$C3,""),"") -> 140 | S3: =IF(Table12[[#This Row],[W14]]<>"",IF(Table12[[#This Row],[W14]]+$C3<=$B3,Table12[[#This Row],[W14]]+$C3,""),"") -> 150 | T3: =IF(Table12[[#This Row],[W15]]<>"",IF(Table12[[#This Row],[W15]]+$C3<=$B3,Table12[[#This Row],[W15]]+$C3,""),"") -> 160 | U3: =IF(Table12[[#This Row],[W16]]<>"",IF(Table12[[#This Row],[W16]]+$C3<=$B3,Table12[[#This Row],[W16]]+$C3,""),"") -> 170 | V3: =IF(Table12[[#This Row],[W17]]<>"",IF(Table12[[#This Row],[W17]]+$C3<=$B3,Table12[[#This Row],[W17]]+$C3,""),"") -> 180 | W3: =IF(Table12[[#This Row],[W18]]<>"",IF(Table12[[#This Row],[W18]]+$C3<=$B3,Table12[[#This Row],[W18]]+$C3,""),"") ->  | X3: =IF(Table12[[#This Row],[W19]]<>"",IF(Table12[[#This Row],[W19]]+$C3<=$B3,Table12[[#This Row],[W19]]+$C3,""),"") ->  | Y3: =ROUNDDOWN(_xlfn.XLOOKUP(Table12[[#This Row],[Country]],C_CALC[Country],C_CALC[Max Solar]),-1) -> 830 | Z3: =ROUNDUP(Table12[[#This Row],[S-Max]]/20,-1) -> 50 | AA3: 0 | AB3: =Table12[[#This Row],[S0]]+Table12[[#This Row],[S-Stps]] -> 50 | AC3: =IF(Table12[[#This Row],[S1]]<>"",IF(Table12[[#This Row],[S1]]+$Z3<=$Y3,Table12[[#This Row],[S1]]+$Z3,""),"") -> 100 | AD3: =IF(Table12[[#This Row],[S2]]<>"",IF(Table12[[#This Row],[S2]]+$Z3<=$Y3,Table12[[#This Row],[S2]]+$Z3,""),"") -> 150 | AE3: =IF(Table12[[#This Row],[S3]]<>"",IF(Table12[[#This Row],[S3]]+$Z3<=$Y3,Table12[[#This Row],[S3]]+$Z3,""),"") -> 200 | AF3: =IF(Table12[[#This Row],[S4]]<>"",IF(Table12[[#This Row],[S4]]+$Z3<=$Y3,Table12[[#This Row],[S4]]+$Z3,""),"") -> 250 | AG3: =IF(Table12[[#This Row],[S5]]<>"",IF(Table12[[#This Row],[S5]]+$Z3<=$Y3,Table12[[#This Row],[S5]]+$Z3,""),"") -> 300 | AH3: =IF(Table12[[#This Row],[S6]]<>"",IF(Table12[[#This Row],[S6]]+$Z3<=$Y3,Table12[[#This Row],[S6]]+$Z3,""),"") -> 350 | AI3: =IF(Table12[[#This Row],[S7]]<>"",IF(Table12[[#This Row],[S7]]+$Z3<=$Y3,Table12[[#This Row],[S7]]+$Z3,""),"") -> 400 | AJ3: =IF(Table12[[#This Row],[S8]]<>"",IF(Table12[[#This Row],[S8]]+$Z3<=$Y3,Table12[[#This Row],[S8]]+$Z3,""),"") -> 450 | AK3: =IF(Table12[[#This Row],[S9]]<>"",IF(Table12[[#This Row],[S9]]+$Z3<=$Y3,Table12[[#This Row],[S9]]+$Z3,""),"") -> 500 | AL3: =IF(Table12[[#This Row],[S10]]<>"",IF(Table12[[#This Row],[S10]]+$Z3<=$Y3,Table12[[#This Row],[S10]]+$Z3,""),"") -> 550 | AM3: =IF(Table12[[#This Row],[S11]]<>"",IF(Table12[[#This Row],[S11]]+$Z3<=$Y3,Table12[[#This Row],[S11]]+$Z3,""),"") -> 600 | AN3: =IF(Table12[[#This Row],[S12]]<>"",IF(Table12[[#This Row],[S12]]+$Z3<=$Y3,Table12[[#This Row],[S12]]+$Z3,""),"") -> 650 | AO3: =IF(Table12[[#This Row],[S13]]<>"",IF(Table12[[#This Row],[S13]]+$Z3<=$Y3,Table12[[#This Row],[S13]]+$Z3,""),"") -> 700 | AP3: =IF(Table12[[#This Row],[S14]]<>"",IF(Table12[[#This Row],[S14]]+$Z3<=$Y3,Table12[[#This Row],[S14]]+$Z3,""),"") -> 750 | AQ3: =IF(Table12[[#This Row],[S15]]<>"",IF(Table12[[#This Row],[S15]]+$Z3<=$Y3,Table12[[#This Row],[S15]]+$Z3,""),"") -> 800 | AR3: =IF(Table12[[#This Row],[S16]]<>"",IF(Table12[[#This Row],[S16]]+$Z3<=$Y3,Table12[[#This Row],[S16]]+$Z3,""),"") ->  | AS3: =IF(Table12[[#This Row],[S17]]<>"",IF(Table12[[#This Row],[S17]]+$Z3<=$Y3,Table12[[#This Row],[S17]]+$Z3,""),"") ->  | AT3: =IF(Table12[[#This Row],[S18]]<>"",IF(Table12[[#This Row],[S18]]+$Z3<=$Y3,Table12[[#This Row],[S18]]+$Z3,""),"") ->  | AU3: =IF(Table12[[#This Row],[S19]]<>"",IF(Table12[[#This Row],[S19]]+$Z3<=$Y3,Table12[[#This Row],[S19]]+$Z3,""),"") -> 
A4: Belgium | B4: =ROUNDDOWN(_xlfn.XLOOKUP(A4,C_CALC[Country],C_CALC[Max. Wind]),-1) -> 60 | C4: =ROUNDUP(Table12[[#This Row],[W-Max]]/20,-1) -> 10 | D4: 0 | E4: =Table12[[#This Row],[W0]]+Table12[[#This Row],[W-Stps]] -> 10 | F4: =IF(Table12[[#This Row],[W1]]<>"",IF(Table12[[#This Row],[W1]]+$C4<=$B4,Table12[[#This Row],[W1]]+$C4,""),"") -> 20 | G4: =IF(Table12[[#This Row],[W2]]<>"",IF(Table12[[#This Row],[W2]]+$C4<=$B4,Table12[[#This Row],[W2]]+$C4,""),"") -> 30 | H4: =IF(Table12[[#This Row],[W3]]<>"",IF(Table12[[#This Row],[W3]]+$C4<=$B4,Table12[[#This Row],[W3]]+$C4,""),"") -> 40 | I4: =IF(Table12[[#This Row],[W4]]<>"",IF(Table12[[#This Row],[W4]]+$C4<=$B4,Table12[[#This Row],[W4]]+$C4,""),"") -> 50 | J4: =IF(Table12[[#This Row],[W5]]<>"",IF(Table12[[#This Row],[W5]]+$C4<=$B4,Table12[[#This Row],[W5]]+$C4,""),"") -> 60 | K4: =IF(Table12[[#This Row],[W6]]<>"",IF(Table12[[#This Row],[W6]]+$C4<=$B4,Table12[[#This Row],[W6]]+$C4,""),"") ->  | L4: =IF(Table12[[#This Row],[W7]]<>"",IF(Table12[[#This Row],[W7]]+$C4<=$B4,Table12[[#This Row],[W7]]+$C4,""),"") ->  | M4: =IF(Table12[[#This Row],[W8]]<>"",IF(Table12[[#This Row],[W8]]+$C4<=$B4,Table12[[#This Row],[W8]]+$C4,""),"") ->  | N4: =IF(Table12[[#This Row],[W9]]<>"",IF(Table12[[#This Row],[W9]]+$C4<=$B4,Table12[[#This Row],[W9]]+$C4,""),"") ->  | O4: =IF(Table12[[#This Row],[W10]]<>"",IF(Table12[[#This Row],[W10]]+$C4<=$B4,Table12[[#This Row],[W10]]+$C4,""),"") ->  | P4: =IF(Table12[[#This Row],[W11]]<>"",IF(Table12[[#This Row],[W11]]+$C4<=$B4,Table12[[#This Row],[W11]]+$C4,""),"") ->  | Q4: =IF(Table12[[#This Row],[W12]]<>"",IF(Table12[[#This Row],[W12]]+$C4<=$B4,Table12[[#This Row],[W12]]+$C4,""),"") ->  | R4: =IF(Table12[[#This Row],[W13]]<>"",IF(Table12[[#This Row],[W13]]+$C4<=$B4,Table12[[#This Row],[W13]]+$C4,""),"") ->  | S4: =IF(Table12[[#This Row],[W14]]<>"",IF(Table12[[#This Row],[W14]]+$C4<=$B4,Table12[[#This Row],[W14]]+$C4,""),"") ->  | T4: =IF(Table12[[#This Row],[W15]]<>"",IF(Table12[[#This Row],[W15]]+$C4<=$B4,Table12[[#This Row],[W15]]+$C4,""),"") ->  | U4: =IF(Table12[[#This Row],[W16]]<>"",IF(Table12[[#This Row],[W16]]+$C4<=$B4,Table12[[#This Row],[W16]]+$C4,""),"") ->  | V4: =IF(Table12[[#This Row],[W17]]<>"",IF(Table12[[#This Row],[W17]]+$C4<=$B4,Table12[[#This Row],[W17]]+$C4,""),"") ->  | W4: =IF(Table12[[#This Row],[W18]]<>"",IF(Table12[[#This Row],[W18]]+$C4<=$B4,Table12[[#This Row],[W18]]+$C4,""),"") ->  | X4: =IF(Table12[[#This Row],[W19]]<>"",IF(Table12[[#This Row],[W19]]+$C4<=$B4,Table12[[#This Row],[W19]]+$C4,""),"") ->  | Y4: =ROUNDDOWN(_xlfn.XLOOKUP(Table12[[#This Row],[Country]],C_CALC[Country],C_CALC[Max Solar]),-1) -> 300 | Z4: =ROUNDUP(Table12[[#This Row],[S-Max]]/20,-1) -> 20 | AA4: 0 | AB4: =Table12[[#This Row],[S0]]+Table12[[#This Row],[S-Stps]] -> 20 | AC4: =IF(Table12[[#This Row],[S1]]<>"",IF(Table12[[#This Row],[S1]]+$Z4<=$Y4,Table12[[#This Row],[S1]]+$Z4,""),"") -> 40 | AD4: =IF(Table12[[#This Row],[S2]]<>"",IF(Table12[[#This Row],[S2]]+$Z4<=$Y4,Table12[[#This Row],[S2]]+$Z4,""),"") -> 60 | AE4: =IF(Table12[[#This Row],[S3]]<>"",IF(Table12[[#This Row],[S3]]+$Z4<=$Y4,Table12[[#This Row],[S3]]+$Z4,""),"") -> 80 | AF4: =IF(Table12[[#This Row],[S4]]<>"",IF(Table12[[#This Row],[S4]]+$Z4<=$Y4,Table12[[#This Row],[S4]]+$Z4,""),"") -> 100 | AG4: =IF(Table12[[#This Row],[S5]]<>"",IF(Table12[[#This Row],[S5]]+$Z4<=$Y4,Table12[[#This Row],[S5]]+$Z4,""),"") -> 120 | AH4: =IF(Table12[[#This Row],[S6]]<>"",IF(Table12[[#This Row],[S6]]+$Z4<=$Y4,Table12[[#This Row],[S6]]+$Z4,""),"") -> 140 | AI4: =IF(Table12[[#This Row],[S7]]<>"",IF(Table12[[#This Row],[S7]]+$Z4<=$Y4,Table12[[#This Row],[S7]]+$Z4,""),"") -> 160 | AJ4: =IF(Table12[[#This Row],[S8]]<>"",IF(Table12[[#This Row],[S8]]+$Z4<=$Y4,Table12[[#This Row],[S8]]+$Z4,""),"") -> 180 | AK4: =IF(Table12[[#This Row],[S9]]<>"",IF(Table12[[#This Row],[S9]]+$Z4<=$Y4,Table12[[#This Row],[S9]]+$Z4,""),"") -> 200 | AL4: =IF(Table12[[#This Row],[S10]]<>"",IF(Table12[[#This Row],[S10]]+$Z4<=$Y4,Table12[[#This Row],[S10]]+$Z4,""),"") -> 220 | AM4: =IF(Table12[[#This Row],[S11]]<>"",IF(Table12[[#This Row],[S11]]+$Z4<=$Y4,Table12[[#This Row],[S11]]+$Z4,""),"") -> 240 | AN4: =IF(Table12[[#This Row],[S12]]<>"",IF(Table12[[#This Row],[S12]]+$Z4<=$Y4,Table12[[#This Row],[S12]]+$Z4,""),"") -> 260 | AO4: =IF(Table12[[#This Row],[S13]]<>"",IF(Table12[[#This Row],[S13]]+$Z4<=$Y4,Table12[[#This Row],[S13]]+$Z4,""),"") -> 280 | AP4: =IF(Table12[[#This Row],[S14]]<>"",IF(Table12[[#This Row],[S14]]+$Z4<=$Y4,Table12[[#This Row],[S14]]+$Z4,""),"") -> 300 | AQ4: =IF(Table12[[#This Row],[S15]]<>"",IF(Table12[[#This Row],[S15]]+$Z4<=$Y4,Table12[[#This Row],[S15]]+$Z4,""),"") ->  | AR4: =IF(Table12[[#This Row],[S16]]<>"",IF(Table12[[#This Row],[S16]]+$Z4<=$Y4,Table12[[#This Row],[S16]]+$Z4,""),"") ->  | AS4: =IF(Table12[[#This Row],[S17]]<>"",IF(Table12[[#This Row],[S17]]+$Z4<=$Y4,Table12[[#This Row],[S17]]+$Z4,""),"") ->  | AT4: =IF(Table12[[#This Row],[S18]]<>"",IF(Table12[[#This Row],[S18]]+$Z4<=$Y4,Table12[[#This Row],[S18]]+$Z4,""),"") ->  | AU4: =IF(Table12[[#This Row],[S19]]<>"",IF(Table12[[#This Row],[S19]]+$Z4<=$Y4,Table12[[#This Row],[S19]]+$Z4,""),"") -> 
A5: Bosnia and Herzegovina | B5: =ROUNDDOWN(_xlfn.XLOOKUP(A5,C_CALC[Country],C_CALC[Max. Wind]),-1) -> 110 | C5: =ROUNDUP(Table12[[#This Row],[W-Max]]/20,-1) -> 10 | D5: 0 | E5: =Table12[[#This Row],[W0]]+Table12[[#This Row],[W-Stps]] -> 10 | F5: =IF(Table12[[#This Row],[W1]]<>"",IF(Table12[[#This Row],[W1]]+$C5<=$B5,Table12[[#This Row],[W1]]+$C5,""),"") -> 20 | G5: =IF(Table12[[#This Row],[W2]]<>"",IF(Table12[[#This Row],[W2]]+$C5<=$B5,Table12[[#This Row],[W2]]+$C5,""),"") -> 30 | H5: =IF(Table12[[#This Row],[W3]]<>"",IF(Table12[[#This Row],[W3]]+$C5<=$B5,Table12[[#This Row],[W3]]+$C5,""),"") -> 40 | I5: =IF(Table12[[#This Row],[W4]]<>"",IF(Table12[[#This Row],[W4]]+$C5<=$B5,Table12[[#This Row],[W4]]+$C5,""),"") -> 50 | J5: =IF(Table12[[#This Row],[W5]]<>"",IF(Table12[[#This Row],[W5]]+$C5<=$B5,Table12[[#This Row],[W5]]+$C5,""),"") -> 60 | K5: =IF(Table12[[#This Row],[W6]]<>"",IF(Table12[[#This Row],[W6]]+$C5<=$B5,Table12[[#This Row],[W6]]+$C5,""),"") -> 70 | L5: =IF(Table12[[#This Row],[W7]]<>"",IF(Table12[[#This Row],[W7]]+$C5<=$B5,Table12[[#This Row],[W7]]+$C5,""),"") -> 80 | M5: =IF(Table12[[#This Row],[W8]]<>"",IF(Table12[[#This Row],[W8]]+$C5<=$B5,Table12[[#This Row],[W8]]+$C5,""),"") -> 90 | N5: =IF(Table12[[#This Row],[W9]]<>"",IF(Table12[[#This Row],[W9]]+$C5<=$B5,Table12[[#This Row],[W9]]+$C5,""),"") -> 100 | O5: =IF(Table12[[#This Row],[W10]]<>"",IF(Table12[[#This Row],[W10]]+$C5<=$B5,Table12[[#This Row],[W10]]+$C5,""),"") -> 110 | P5: =IF(Table12[[#This Row],[W11]]<>"",IF(Table12[[#This Row],[W11]]+$C5<=$B5,Table12[[#This Row],[W11]]+$C5,""),"") ->  | Q5: =IF(Table12[[#This Row],[W12]]<>"",IF(Table12[[#This Row],[W12]]+$C5<=$B5,Table12[[#This Row],[W12]]+$C5,""),"") ->  | R5: =IF(Table12[[#This Row],[W13]]<>"",IF(Table12[[#This Row],[W13]]+$C5<=$B5,Table12[[#This Row],[W13]]+$C5,""),"") ->  | S5: =IF(Table12[[#This Row],[W14]]<>"",IF(Table12[[#This Row],[W14]]+$C5<=$B5,Table12[[#This Row],[W14]]+$C5,""),"") ->  | T5: =IF(Table12[[#This Row],[W15]]<>"",IF(Table12[[#This Row],[W15]]+$C5<=$B5,Table12[[#This Row],[W15]]+$C5,""),"") ->  | U5: =IF(Table12[[#This Row],[W16]]<>"",IF(Table12[[#This Row],[W16]]+$C5<=$B5,Table12[[#This Row],[W16]]+$C5,""),"") ->  | V5: =IF(Table12[[#This Row],[W17]]<>"",IF(Table12[[#This Row],[W17]]+$C5<=$B5,Table12[[#This Row],[W17]]+$C5,""),"") ->  | W5: =IF(Table12[[#This Row],[W18]]<>"",IF(Table12[[#This Row],[W18]]+$C5<=$B5,Table12[[#This Row],[W18]]+$C5,""),"") ->  | X5: =IF(Table12[[#This Row],[W19]]<>"",IF(Table12[[#This Row],[W19]]+$C5<=$B5,Table12[[#This Row],[W19]]+$C5,""),"") ->  | Y5: =ROUNDDOWN(_xlfn.XLOOKUP(Table12[[#This Row],[Country]],C_CALC[Country],C_CALC[Max Solar]),-1) -> 510 | Z5: =ROUNDUP(Table12[[#This Row],[S-Max]]/20,-1) -> 30 | AA5: 0 | AB5: =Table12[[#This Row],[S0]]+Table12[[#This Row],[S-Stps]] -> 30 | AC5: =IF(Table12[[#This Row],[S1]]<>"",IF(Table12[[#This Row],[S1]]+$Z5<=$Y5,Table12[[#This Row],[S1]]+$Z5,""),"") -> 60 | AD5: =IF(Table12[[#This Row],[S2]]<>"",IF(Table12[[#This Row],[S2]]+$Z5<=$Y5,Table12[[#This Row],[S2]]+$Z5,""),"") -> 90 | AE5: =IF(Table12[[#This Row],[S3]]<>"",IF(Table12[[#This Row],[S3]]+$Z5<=$Y5,Table12[[#This Row],[S3]]+$Z5,""),"") -> 120 | AF5: =IF(Table12[[#This Row],[S4]]<>"",IF(Table12[[#This Row],[S4]]+$Z5<=$Y5,Table12[[#This Row],[S4]]+$Z5,""),"") -> 150 | AG5: =IF(Table12[[#This Row],[S5]]<>"",IF(Table12[[#This Row],[S5]]+$Z5<=$Y5,Table12[[#This Row],[S5]]+$Z5,""),"") -> 180 | AH5: =IF(Table12[[#This Row],[S6]]<>"",IF(Table12[[#This Row],[S6]]+$Z5<=$Y5,Table12[[#This Row],[S6]]+$Z5,""),"") -> 210 | AI5: =IF(Table12[[#This Row],[S7]]<>"",IF(Table12[[#This Row],[S7]]+$Z5<=$Y5,Table12[[#This Row],[S7]]+$Z5,""),"") -> 240 | AJ5: =IF(Table12[[#This Row],[S8]]<>"",IF(Table12[[#This Row],[S8]]+$Z5<=$Y5,Table12[[#This Row],[S8]]+$Z5,""),"") -> 270 | AK5: =IF(Table12[[#This Row],[S9]]<>"",IF(Table12[[#This Row],[S9]]+$Z5<=$Y5,Table12[[#This Row],[S9]]+$Z5,""),"") -> 300 | AL5: =IF(Table12[[#This Row],[S10]]<>"",IF(Table12[[#This Row],[S10]]+$Z5<=$Y5,Table12[[#This Row],[S10]]+$Z5,""),"") -> 330 | AM5: =IF(Table12[[#This Row],[S11]]<>"",IF(Table12[[#This Row],[S11]]+$Z5<=$Y5,Table12[[#This Row],[S11]]+$Z5,""),"") -> 360 | AN5: =IF(Table12[[#This Row],[S12]]<>"",IF(Table12[[#This Row],[S12]]+$Z5<=$Y5,Table12[[#This Row],[S12]]+$Z5,""),"") -> 390 | AO5: =IF(Table12[[#This Row],[S13]]<>"",IF(Table12[[#This Row],[S13]]+$Z5<=$Y5,Table12[[#This Row],[S13]]+$Z5,""),"") -> 420 | AP5: =IF(Table12[[#This Row],[S14]]<>"",IF(Table12[[#This Row],[S14]]+$Z5<=$Y5,Table12[[#This Row],[S14]]+$Z5,""),"") -> 450 | AQ5: =IF(Table12[[#This Row],[S15]]<>"",IF(Table12[[#This Row],[S15]]+$Z5<=$Y5,Table12[[#This Row],[S15]]+$Z5,""),"") -> 480 | AR5: =IF(Table12[[#This Row],[S16]]<>"",IF(Table12[[#This Row],[S16]]+$Z5<=$Y5,Table12[[#This Row],[S16]]+$Z5,""),"") -> 510 | AS5: =IF(Table12[[#This Row],[S17]]<>"",IF(Table12[[#This Row],[S17]]+$Z5<=$Y5,Table12[[#This Row],[S17]]+$Z5,""),"") ->  | AT5: =IF(Table12[[#This Row],[S18]]<>"",IF(Table12[[#This Row],[S18]]+$Z5<=$Y5,Table12[[#This Row],[S18]]+$Z5,""),"") ->  | AU5: =IF(Table12[[#This Row],[S19]]<>"",IF(Table12[[#This Row],[S19]]+$Z5<=$Y5,Table12[[#This Row],[S19]]+$Z5,""),"") -> 
A6: Bulgaria | B6: =ROUNDDOWN(_xlfn.XLOOKUP(A6,C_CALC[Country],C_CALC[Max. Wind]),-1) -> 240 | C6: =ROUNDUP(Table12[[#This Row],[W-Max]]/20,-1) -> 20 | D6: 0 | E6: =Table12[[#This Row],[W0]]+Table12[[#This Row],[W-Stps]] -> 20 | F6: =IF(Table12[[#This Row],[W1]]<>"",IF(Table12[[#This Row],[W1]]+$C6<=$B6,Table12[[#This Row],[W1]]+$C6,""),"") -> 40 | G6: =IF(Table12[[#This Row],[W2]]<>"",IF(Table12[[#This Row],[W2]]+$C6<=$B6,Table12[[#This Row],[W2]]+$C6,""),"") -> 60 | H6: =IF(Table12[[#This Row],[W3]]<>"",IF(Table12[[#This Row],[W3]]+$C6<=$B6,Table12[[#This Row],[W3]]+$C6,""),"") -> 80 | I6: =IF(Table12[[#This Row],[W4]]<>"",IF(Table12[[#This Row],[W4]]+$C6<=$B6,Table12[[#This Row],[W4]]+$C6,""),"") -> 100 | J6: =IF(Table12[[#This Row],[W5]]<>"",IF(Table12[[#This Row],[W5]]+$C6<=$B6,Table12[[#This Row],[W5]]+$C6,""),"") -> 120 | K6: =IF(Table12[[#This Row],[W6]]<>"",IF(Table12[[#This Row],[W6]]+$C6<=$B6,Table12[[#This Row],[W6]]+$C6,""),"") -> 140 | L6: =IF(Table12[[#This Row],[W7]]<>"",IF(Table12[[#This Row],[W7]]+$C6<=$B6,Table12[[#This Row],[W7]]+$C6,""),"") -> 160 | M6: =IF(Table12[[#This Row],[W8]]<>"",IF(Table12[[#This Row],[W8]]+$C6<=$B6,Table12[[#This Row],[W8]]+$C6,""),"") -> 180 | N6: =IF(Table12[[#This Row],[W9]]<>"",IF(Table12[[#This Row],[W9]]+$C6<=$B6,Table12[[#This Row],[W9]]+$C6,""),"") -> 200 | O6: =IF(Table12[[#This Row],[W10]]<>"",IF(Table12[[#This Row],[W10]]+$C6<=$B6,Table12[[#This Row],[W10]]+$C6,""),"") -> 220 | P6: =IF(Table12[[#This Row],[W11]]<>"",IF(Table12[[#This Row],[W11]]+$C6<=$B6,Table12[[#This Row],[W11]]+$C6,""),"") -> 240 | Q6: =IF(Table12[[#This Row],[W12]]<>"",IF(Table12[[#This Row],[W12]]+$C6<=$B6,Table12[[#This Row],[W12]]+$C6,""),"") ->  | R6: =IF(Table12[[#This Row],[W13]]<>"",IF(Table12[[#This Row],[W13]]+$C6<=$B6,Table12[[#This Row],[W13]]+$C6,""),"") ->  | S6: =IF(Table12[[#This Row],[W14]]<>"",IF(Table12[[#This Row],[W14]]+$C6<=$B6,Table12[[#This Row],[W14]]+$C6,""),"") ->  | T6: =IF(Table12[[#This Row],[W15]]<>"",IF(Table12[[#This Row],[W15]]+$C6<=$B6,Table12[[#This Row],[W15]]+$C6,""),"") ->  | U6: =IF(Table12[[#This Row],[W16]]<>"",IF(Table12[[#This Row],[W16]]+$C6<=$B6,Table12[[#This Row],[W16]]+$C6,""),"") ->  | V6: =IF(Table12[[#This Row],[W17]]<>"",IF(Table12[[#This Row],[W17]]+$C6<=$B6,Table12[[#This Row],[W17]]+$C6,""),"") ->  | W6: =IF(Table12[[#This Row],[W18]]<>"",IF(Table12[[#This Row],[W18]]+$C6<=$B6,Table12[[#This Row],[W18]]+$C6,""),"") ->  | X6: =IF(Table12[[#This Row],[W19]]<>"",IF(Table12[[#This Row],[W19]]+$C6<=$B6,Table12[[#This Row],[W19]]+$C6,""),"") ->  | Y6: =ROUNDDOWN(_xlfn.XLOOKUP(Table12[[#This Row],[Country]],C_CALC[Country],C_CALC[Max Solar]),-1) -> 1110 | Z6: =ROUNDUP(Table12[[#This Row],[S-Max]]/20,-1) -> 60 | AA6: 0 | AB6: =Table12[[#This Row],[S0]]+Table12[[#This Row],[S-Stps]] -> 60 | AC6: =IF(Table12[[#This Row],[S1]]<>"",IF(Table12[[#This Row],[S1]]+$Z6<=$Y6,Table12[[#This Row],[S1]]+$Z6,""),"") -> 120 | AD6: =IF(Table12[[#This Row],[S2]]<>"",IF(Table12[[#This Row],[S2]]+$Z6<=$Y6,Table12[[#This Row],[S2]]+$Z6,""),"") -> 180 | AE6: =IF(Table12[[#This Row],[S3]]<>"",IF(Table12[[#This Row],[S3]]+$Z6<=$Y6,Table12[[#This Row],[S3]]+$Z6,""),"") -> 240 | AF6: =IF(Table12[[#This Row],[S4]]<>"",IF(Table12[[#This Row],[S4]]+$Z6<=$Y6,Table12[[#This Row],[S4]]+$Z6,""),"") -> 300 | AG6: =IF(Table12[[#This Row],[S5]]<>"",IF(Table12[[#This Row],[S5]]+$Z6<=$Y6,Table12[[#This Row],[S5]]+$Z6,""),"") -> 360 | AH6: =IF(Table12[[#This Row],[S6]]<>"",IF(Table12[[#This Row],[S6]]+$Z6<=$Y6,Table12[[#This Row],[S6]]+$Z6,""),"") -> 420 | AI6: =IF(Table12[[#This Row],[S7]]<>"",IF(Table12[[#This Row],[S7]]+$Z6<=$Y6,Table12[[#This Row],[S7]]+$Z6,""),"") -> 480 | AJ6: =IF(Table12[[#This Row],[S8]]<>"",IF(Table12[[#This Row],[S8]]+$Z6<=$Y6,Table12[[#This Row],[S8]]+$Z6,""),"") -> 540 | AK6: =IF(Table12[[#This Row],[S9]]<>"",IF(Table12[[#This Row],[S9]]+$Z6<=$Y6,Table12[[#This Row],[S9]]+$Z6,""),"") -> 600 | AL6: =IF(Table12[[#This Row],[S10]]<>"",IF(Table12[[#This Row],[S10]]+$Z6<=$Y6,Table12[[#This Row],[S10]]+$Z6,""),"") -> 660 | AM6: =IF(Table12[[#This Row],[S11]]<>"",IF(Table12[[#This Row],[S11]]+$Z6<=$Y6,Table12[[#This Row],[S11]]+$Z6,""),"") -> 720 | AN6: =IF(Table12[[#This Row],[S12]]<>"",IF(Table12[[#This Row],[S12]]+$Z6<=$Y6,Table12[[#This Row],[S12]]+$Z6,""),"") -> 780 | AO6: =IF(Table12[[#This Row],[S13]]<>"",IF(Table12[[#This Row],[S13]]+$Z6<=$Y6,Table12[[#This Row],[S13]]+$Z6,""),"") -> 840 | AP6: =IF(Table12[[#This Row],[S14]]<>"",IF(Table12[[#This Row],[S14]]+$Z6<=$Y6,Table12[[#This Row],[S14]]+$Z6,""),"") -> 900 | AQ6: =IF(Table12[[#This Row],[S15]]<>"",IF(Table12[[#This Row],[S15]]+$Z6<=$Y6,Table12[[#This Row],[S15]]+$Z6,""),"") -> 960 | AR6: =IF(Table12[[#This Row],[S16]]<>"",IF(Table12[[#This Row],[S16]]+$Z6<=$Y6,Table12[[#This Row],[S16]]+$Z6,""),"") -> 1020 | AS6: =IF(Table12[[#This Row],[S17]]<>"",IF(Table12[[#This Row],[S17]]+$Z6<=$Y6,Table12[[#This Row],[S17]]+$Z6,""),"") -> 1080 | AT6: =IF(Table12[[#This Row],[S18]]<>"",IF(Table12[[#This Row],[S18]]+$Z6<=$Y6,Table12[[#This Row],[S18]]+$Z6,""),"") ->  | AU6: =IF(Table12[[#This Row],[S19]]<>"",IF(Table12[[#This Row],[S19]]+$Z6<=$Y6,Table12[[#This Row],[S19]]+$Z6,""),"") -> 
A7: Croatia | B7: =ROUNDDOWN(_xlfn.XLOOKUP(A7,C_CALC[Country],C_CALC[Max. Wind]),-1) -> 120 | C7: =ROUNDUP(Table12[[#This Row],[W-Max]]/20,-1) -> 10 | D7: 0 | E7: =Table12[[#This Row],[W0]]+Table12[[#This Row],[W-Stps]] -> 10 | F7: =IF(Table12[[#This Row],[W1]]<>"",IF(Table12[[#This Row],[W1]]+$C7<=$B7,Table12[[#This Row],[W1]]+$C7,""),"") -> 20 | G7: =IF(Table12[[#This Row],[W2]]<>"",IF(Table12[[#This Row],[W2]]+$C7<=$B7,Table12[[#This Row],[W2]]+$C7,""),"") -> 30 | H7: =IF(Table12[[#This Row],[W3]]<>"",IF(Table12[[#This Row],[W3]]+$C7<=$B7,Table12[[#This Row],[W3]]+$C7,""),"") -> 40 | I7: =IF(Table12[[#This Row],[W4]]<>"",IF(Table12[[#This Row],[W4]]+$C7<=$B7,Table12[[#This Row],[W4]]+$C7,""),"") -> 50 | J7: =IF(Table12[[#This Row],[W5]]<>"",IF(Table12[[#This Row],[W5]]+$C7<=$B7,Table12[[#This Row],[W5]]+$C7,""),"") -> 60 | K7: =IF(Table12[[#This Row],[W6]]<>"",IF(Table12[[#This Row],[W6]]+$C7<=$B7,Table12[[#This Row],[W6]]+$C7,""),"") -> 70 | L7: =IF(Table12[[#This Row],[W7]]<>"",IF(Table12[[#This Row],[W7]]+$C7<=$B7,Table12[[#This Row],[W7]]+$C7,""),"") -> 80 | M7: =IF(Table12[[#This Row],[W8]]<>"",IF(Table12[[#This Row],[W8]]+$C7<=$B7,Table12[[#This Row],[W8]]+$C7,""),"") -> 90 | N7: =IF(Table12[[#This Row],[W9]]<>"",IF(Table12[[#This Row],[W9]]+$C7<=$B7,Table12[[#This Row],[W9]]+$C7,""),"") -> 100 | O7: =IF(Table12[[#This Row],[W10]]<>"",IF(Table12[[#This Row],[W10]]+$C7<=$B7,Table12[[#This Row],[W10]]+$C7,""),"") -> 110 | P7: =IF(Table12[[#This Row],[W11]]<>"",IF(Table12[[#This Row],[W11]]+$C7<=$B7,Table12[[#This Row],[W11]]+$C7,""),"") -> 120 | Q7: =IF(Table12[[#This Row],[W12]]<>"",IF(Table12[[#This Row],[W12]]+$C7<=$B7,Table12[[#This Row],[W12]]+$C7,""),"") ->  | R7: =IF(Table12[[#This Row],[W13]]<>"",IF(Table12[[#This Row],[W13]]+$C7<=$B7,Table12[[#This Row],[W13]]+$C7,""),"") ->  | S7: =IF(Table12[[#This Row],[W14]]<>"",IF(Table12[[#This Row],[W14]]+$C7<=$B7,Table12[[#This Row],[W14]]+$C7,""),"") ->  | T7: =IF(Table12[[#This Row],[W15]]<>"",IF(Table12[[#This Row],[W15]]+$C7<=$B7,Table12[[#This Row],[W15]]+$C7,""),"") ->  | U7: =IF(Table12[[#This Row],[W16]]<>"",IF(Table12[[#This Row],[W16]]+$C7<=$B7,Table12[[#This Row],[W16]]+$C7,""),"") ->  | V7: =IF(Table12[[#This Row],[W17]]<>"",IF(Table12[[#This Row],[W17]]+$C7<=$B7,Table12[[#This Row],[W17]]+$C7,""),"") ->  | W7: =IF(Table12[[#This Row],[W18]]<>"",IF(Table12[[#This Row],[W18]]+$C7<=$B7,Table12[[#This Row],[W18]]+$C7,""),"") ->  | X7: =IF(Table12[[#This Row],[W19]]<>"",IF(Table12[[#This Row],[W19]]+$C7<=$B7,Table12[[#This Row],[W19]]+$C7,""),"") ->  | Y7: =ROUNDDOWN(_xlfn.XLOOKUP(Table12[[#This Row],[Country]],C_CALC[Country],C_CALC[Max Solar]),-1) -> 560 | Z7: =ROUNDUP(Table12[[#This Row],[S-Max]]/20,-1) -> 30 | AA7: 0 | AB7: =Table12[[#This Row],[S0]]+Table12[[#This Row],[S-Stps]] -> 30 | AC7: =IF(Table12[[#This Row],[S1]]<>"",IF(Table12[[#This Row],[S1]]+$Z7<=$Y7,Table12[[#This Row],[S1]]+$Z7,""),"") -> 60 | AD7: =IF(Table12[[#This Row],[S2]]<>"",IF(Table12[[#This Row],[S2]]+$Z7<=$Y7,Table12[[#This Row],[S2]]+$Z7,""),"") -> 90 | AE7: =IF(Table12[[#This Row],[S3]]<>"",IF(Table12[[#This Row],[S3]]+$Z7<=$Y7,Table12[[#This Row],[S3]]+$Z7,""),"") -> 120 | AF7: =IF(Table12[[#This Row],[S4]]<>"",IF(Table12[[#This Row],[S4]]+$Z7<=$Y7,Table12[[#This Row],[S4]]+$Z7,""),"") -> 150 | AG7: =IF(Table12[[#This Row],[S5]]<>"",IF(Table12[[#This Row],[S5]]+$Z7<=$Y7,Table12[[#This Row],[S5]]+$Z7,""),"") -> 180 | AH7: =IF(Table12[[#This Row],[S6]]<>"",IF(Table12[[#This Row],[S6]]+$Z7<=$Y7,Table12[[#This Row],[S6]]+$Z7,""),"") -> 210 | AI7: =IF(Table12[[#This Row],[S7]]<>"",IF(Table12[[#This Row],[S7]]+$Z7<=$Y7,Table12[[#This Row],[S7]]+$Z7,""),"") -> 240 | AJ7: =IF(Table12[[#This Row],[S8]]<>"",IF(Table12[[#This Row],[S8]]+$Z7<=$Y7,Table12[[#This Row],[S8]]+$Z7,""),"") -> 270 | AK7: =IF(Table12[[#This Row],[S9]]<>"",IF(Table12[[#This Row],[S9]]+$Z7<=$Y7,Table12[[#This Row],[S9]]+$Z7,""),"") -> 300 | AL7: =IF(Table12[[#This Row],[S10]]<>"",IF(Table12[[#This Row],[S10]]+$Z7<=$Y7,Table12[[#This Row],[S10]]+$Z7,""),"") -> 330 | AM7: =IF(Table12[[#This Row],[S11]]<>"",IF(Table12[[#This Row],[S11]]+$Z7<=$Y7,Table12[[#This Row],[S11]]+$Z7,""),"") -> 360 | AN7: =IF(Table12[[#This Row],[S12]]<>"",IF(Table12[[#This Row],[S12]]+$Z7<=$Y7,Table12[[#This Row],[S12]]+$Z7,""),"") -> 390 | AO7: =IF(Table12[[#This Row],[S13]]<>"",IF(Table12[[#This Row],[S13]]+$Z7<=$Y7,Table12[[#This Row],[S13]]+$Z7,""),"") -> 420 | AP7: =IF(Table12[[#This Row],[S14]]<>"",IF(Table12[[#This Row],[S14]]+$Z7<=$Y7,Table12[[#This Row],[S14]]+$Z7,""),"") -> 450 | AQ7: =IF(Table12[[#This Row],[S15]]<>"",IF(Table12[[#This Row],[S15]]+$Z7<=$Y7,Table12[[#This Row],[S15]]+$Z7,""),"") -> 480 | AR7: =IF(Table12[[#This Row],[S16]]<>"",IF(Table12[[#This Row],[S16]]+$Z7<=$Y7,Table12[[#This Row],[S16]]+$Z7,""),"") -> 510 | AS7: =IF(Table12[[#This Row],[S17]]<>"",IF(Table12[[#This Row],[S17]]+$Z7<=$Y7,Table12[[#This Row],[S17]]+$Z7,""),"") -> 540 | AT7: =IF(Table12[[#This Row],[S18]]<>"",IF(Table12[[#This Row],[S18]]+$Z7<=$Y7,Table12[[#This Row],[S18]]+$Z7,""),"") ->  | AU7: =IF(Table12[[#This Row],[S19]]<>"",IF(Table12[[#This Row],[S19]]+$Z7<=$Y7,Table12[[#This Row],[S19]]+$Z7,""),"") -> 
A8: Czech Republic | B8: =ROUNDDOWN(_xlfn.XLOOKUP(A8,C_CALC[Country],C_CALC[Max. Wind]),-1) -> 170 | C8: =ROUNDUP(Table12[[#This Row],[W-Max]]/20,-1) -> 10 | D8: 0 | E8: =Table12[[#This Row],[W0]]+Table12[[#This Row],[W-Stps]] -> 10 | F8: =IF(Table12[[#This Row],[W1]]<>"",IF(Table12[[#This Row],[W1]]+$C8<=$B8,Table12[[#This Row],[W1]]+$C8,""),"") -> 20 | G8: =IF(Table12[[#This Row],[W2]]<>"",IF(Table12[[#This Row],[W2]]+$C8<=$B8,Table12[[#This Row],[W2]]+$C8,""),"") -> 30 | H8: =IF(Table12[[#This Row],[W3]]<>"",IF(Table12[[#This Row],[W3]]+$C8<=$B8,Table12[[#This Row],[W3]]+$C8,""),"") -> 40 | I8: =IF(Table12[[#This Row],[W4]]<>"",IF(Table12[[#This Row],[W4]]+$C8<=$B8,Table12[[#This Row],[W4]]+$C8,""),"") -> 50 | J8: =IF(Table12[[#This Row],[W5]]<>"",IF(Table12[[#This Row],[W5]]+$C8<=$B8,Table12[[#This Row],[W5]]+$C8,""),"") -> 60 | K8: =IF(Table12[[#This Row],[W6]]<>"",IF(Table12[[#This Row],[W6]]+$C8<=$B8,Table12[[#This Row],[W6]]+$C8,""),"") -> 70 | L8: =IF(Table12[[#This Row],[W7]]<>"",IF(Table12[[#This Row],[W7]]+$C8<=$B8,Table12[[#This Row],[W7]]+$C8,""),"") -> 80 | M8: =IF(Table12[[#This Row],[W8]]<>"",IF(Table12[[#This Row],[W8]]+$C8<=$B8,Table12[[#This Row],[W8]]+$C8,""),"") -> 90 | N8: =IF(Table12[[#This Row],[W9]]<>"",IF(Table12[[#This Row],[W9]]+$C8<=$B8,Table12[[#This Row],[W9]]+$C8,""),"") -> 100 | O8: =IF(Table12[[#This Row],[W10]]<>"",IF(Table12[[#This Row],[W10]]+$C8<=$B8,Table12[[#This Row],[W10]]+$C8,""),"") -> 110 | P8: =IF(Table12[[#This Row],[W11]]<>"",IF(Table12[[#This Row],[W11]]+$C8<=$B8,Table12[[#This Row],[W11]]+$C8,""),"") -> 120 | Q8: =IF(Table12[[#This Row],[W12]]<>"",IF(Table12[[#This Row],[W12]]+$C8<=$B8,Table12[[#This Row],[W12]]+$C8,""),"") -> 130 | R8: =IF(Table12[[#This Row],[W13]]<>"",IF(Table12[[#This Row],[W13]]+$C8<=$B8,Table12[[#This Row],[W13]]+$C8,""),"") -> 140 | S8: =IF(Table12[[#This Row],[W14]]<>"",IF(Table12[[#This Row],[W14]]+$C8<=$B8,Table12[[#This Row],[W14]]+$C8,""),"") -> 150 | T8: =IF(Table12[[#This Row],[W15]]<>"",IF(Table12[[#This Row],[W15]]+$C8<=$B8,Table12[[#This Row],[W15]]+$C8,""),"") -> 160 | U8: =IF(Table12[[#This Row],[W16]]<>"",IF(Table12[[#This Row],[W16]]+$C8<=$B8,Table12[[#This Row],[W16]]+$C8,""),"") -> 170 | V8: =IF(Table12[[#This Row],[W17]]<>"",IF(Table12[[#This Row],[W17]]+$C8<=$B8,Table12[[#This Row],[W17]]+$C8,""),"") ->  | W8: =IF(Table12[[#This Row],[W18]]<>"",IF(Table12[[#This Row],[W18]]+$C8<=$B8,Table12[[#This Row],[W18]]+$C8,""),"") ->  | X8: =IF(Table12[[#This Row],[W19]]<>"",IF(Table12[[#This Row],[W19]]+$C8<=$B8,Table12[[#This Row],[W19]]+$C8,""),"") ->  | Y8: =ROUNDDOWN(_xlfn.XLOOKUP(Table12[[#This Row],[Country]],C_CALC[Country],C_CALC[Max Solar]),-1) -> 780 | Z8: =ROUNDUP(Table12[[#This Row],[S-Max]]/20,-1) -> 40 | AA8: 0 | AB8: =Table12[[#This Row],[S0]]+Table12[[#This Row],[S-Stps]] -> 40 | AC8: =IF(Table12[[#This Row],[S1]]<>"",IF(Table12[[#This Row],[S1]]+$Z8<=$Y8,Table12[[#This Row],[S1]]+$Z8,""),"") -> 80 | AD8: =IF(Table12[[#This Row],[S2]]<>"",IF(Table12[[#This Row],[S2]]+$Z8<=$Y8,Table12[[#This Row],[S2]]+$Z8,""),"") -> 120 | AE8: =IF(Table12[[#This Row],[S3]]<>"",IF(Table12[[#This Row],[S3]]+$Z8<=$Y8,Table12[[#This Row],[S3]]+$Z8,""),"") -> 160 | AF8: =IF(Table12[[#This Row],[S4]]<>"",IF(Table12[[#This Row],[S4]]+$Z8<=$Y8,Table12[[#This Row],[S4]]+$Z8,""),"") -> 200 | AG8: =IF(Table12[[#This Row],[S5]]<>"",IF(Table12[[#This Row],[S5]]+$Z8<=$Y8,Table12[[#This Row],[S5]]+$Z8,""),"") -> 240 | AH8: =IF(Table12[[#This Row],[S6]]<>"",IF(Table12[[#This Row],[S6]]+$Z8<=$Y8,Table12[[#This Row],[S6]]+$Z8,""),"") -> 280 | AI8: =IF(Table12[[#This Row],[S7]]<>"",IF(Table12[[#This Row],[S7]]+$Z8<=$Y8,Table12[[#This Row],[S7]]+$Z8,""),"") -> 320 | AJ8: =IF(Table12[[#This Row],[S8]]<>"",IF(Table12[[#This Row],[S8]]+$Z8<=$Y8,Table12[[#This Row],[S8]]+$Z8,""),"") -> 360 | AK8: =IF(Table12[[#This Row],[S9]]<>"",IF(Table12[[#This Row],[S9]]+$Z8<=$Y8,Table12[[#This Row],[S9]]+$Z8,""),"") -> 400 | AL8: =IF(Table12[[#This Row],[S10]]<>"",IF(Table12[[#This Row],[S10]]+$Z8<=$Y8,Table12[[#This Row],[S10]]+$Z8,""),"") -> 440 | AM8: =IF(Table12[[#This Row],[S11]]<>"",IF(Table12[[#This Row],[S11]]+$Z8<=$Y8,Table12[[#This Row],[S11]]+$Z8,""),"") -> 480 | AN8: =IF(Table12[[#This Row],[S12]]<>"",IF(Table12[[#This Row],[S12]]+$Z8<=$Y8,Table12[[#This Row],[S12]]+$Z8,""),"") -> 520 | AO8: =IF(Table12[[#This Row],[S13]]<>"",IF(Table12[[#This Row],[S13]]+$Z8<=$Y8,Table12[[#This Row],[S13]]+$Z8,""),"") -> 560 | AP8: =IF(Table12[[#This Row],[S14]]<>"",IF(Table12[[#This Row],[S14]]+$Z8<=$Y8,Table12[[#This Row],[S14]]+$Z8,""),"") -> 600 | AQ8: =IF(Table12[[#This Row],[S15]]<>"",IF(Table12[[#This Row],[S15]]+$Z8<=$Y8,Table12[[#This Row],[S15]]+$Z8,""),"") -> 640 | AR8: =IF(Table12[[#This Row],[S16]]<>"",IF(Table12[[#This Row],[S16]]+$Z8<=$Y8,Table12[[#This Row],[S16]]+$Z8,""),"") -> 680 | AS8: =IF(Table12[[#This Row],[S17]]<>"",IF(Table12[[#This Row],[S17]]+$Z8<=$Y8,Table12[[#This Row],[S17]]+$Z8,""),"") -> 720 | AT8: =IF(Table12[[#This Row],[S18]]<>"",IF(Table12[[#This Row],[S18]]+$Z8<=$Y8,Table12[[#This Row],[S18]]+$Z8,""),"") -> 760 | AU8: =IF(Table12[[#This Row],[S19]]<>"",IF(Table12[[#This Row],[S19]]+$Z8<=$Y8,Table12[[#This Row],[S19]]+$Z8,""),"") -> 
A9: Denmark | B9: =ROUNDDOWN(_xlfn.XLOOKUP(A9,C_CALC[Country],C_CALC[Max. Wind]),-1) -> 90 | C9: =ROUNDUP(Table12[[#This Row],[W-Max]]/20,-1) -> 10 | D9: 0 | E9: =Table12[[#This Row],[W0]]+Table12[[#This Row],[W-Stps]] -> 10 | F9: =IF(Table12[[#This Row],[W1]]<>"",IF(Table12[[#This Row],[W1]]+$C9<=$B9,Table12[[#This Row],[W1]]+$C9,""),"") -> 20 | G9: =IF(Table12[[#This Row],[W2]]<>"",IF(Table12[[#This Row],[W2]]+$C9<=$B9,Table12[[#This Row],[W2]]+$C9,""),"") -> 30 | H9: =IF(Table12[[#This Row],[W3]]<>"",IF(Table12[[#This Row],[W3]]+$C9<=$B9,Table12[[#This Row],[W3]]+$C9,""),"") -> 40 | I9: =IF(Table12[[#This Row],[W4]]<>"",IF(Table12[[#This Row],[W4]]+$C9<=$B9,Table12[[#This Row],[W4]]+$C9,""),"") -> 50 | J9: =IF(Table12[[#This Row],[W5]]<>"",IF(Table12[[#This Row],[W5]]+$C9<=$B9,Table12[[#This Row],[W5]]+$C9,""),"") -> 60 | K9: =IF(Table12[[#This Row],[W6]]<>"",IF(Table12[[#This Row],[W6]]+$C9<=$B9,Table12[[#This Row],[W6]]+$C9,""),"") -> 70 | L9: =IF(Table12[[#This Row],[W7]]<>"",IF(Table12[[#This Row],[W7]]+$C9<=$B9,Table12[[#This Row],[W7]]+$C9,""),"") -> 80 | M9: =IF(Table12[[#This Row],[W8]]<>"",IF(Table12[[#This Row],[W8]]+$C9<=$B9,Table12[[#This Row],[W8]]+$C9,""),"") -> 90 | N9: =IF(Table12[[#This Row],[W9]]<>"",IF(Table12[[#This Row],[W9]]+$C9<=$B9,Table12[[#This Row],[W9]]+$C9,""),"") ->  | O9: =IF(Table12[[#This Row],[W10]]<>"",IF(Table12[[#This Row],[W10]]+$C9<=$B9,Table12[[#This Row],[W10]]+$C9,""),"") ->  | P9: =IF(Table12[[#This Row],[W11]]<>"",IF(Table12[[#This Row],[W11]]+$C9<=$B9,Table12[[#This Row],[W11]]+$C9,""),"") ->  | Q9: =IF(Table12[[#This Row],[W12]]<>"",IF(Table12[[#This Row],[W12]]+$C9<=$B9,Table12[[#This Row],[W12]]+$C9,""),"") ->  | R9: =IF(Table12[[#This Row],[W13]]<>"",IF(Table12[[#This Row],[W13]]+$C9<=$B9,Table12[[#This Row],[W13]]+$C9,""),"") ->  | S9: =IF(Table12[[#This Row],[W14]]<>"",IF(Table12[[#This Row],[W14]]+$C9<=$B9,Table12[[#This Row],[W14]]+$C9,""),"") ->  | T9: =IF(Table12[[#This Row],[W15]]<>"",IF(Table12[[#This Row],[W15]]+$C9<=$B9,Table12[[#This Row],[W15]]+$C9,""),"") ->  | U9: =IF(Table12[[#This Row],[W16]]<>"",IF(Table12[[#This Row],[W16]]+$C9<=$B9,Table12[[#This Row],[W16]]+$C9,""),"") ->  | V9: =IF(Table12[[#This Row],[W17]]<>"",IF(Table12[[#This Row],[W17]]+$C9<=$B9,Table12[[#This Row],[W17]]+$C9,""),"") ->  | W9: =IF(Table12[[#This Row],[W18]]<>"",IF(Table12[[#This Row],[W18]]+$C9<=$B9,Table12[[#This Row],[W18]]+$C9,""),"") ->  | X9: =IF(Table12[[#This Row],[W19]]<>"",IF(Table12[[#This Row],[W19]]+$C9<=$B9,Table12[[#This Row],[W19]]+$C9,""),"") ->  | Y9: =ROUNDDOWN(_xlfn.XLOOKUP(Table12[[#This Row],[Country]],C_CALC[Country],C_CALC[Max Solar]),-1) -> 440 | Z9: =ROUNDUP(Table12[[#This Row],[S-Max]]/20,-1) -> 30 | AA9: 0 | AB9: =Table12[[#This Row],[S0]]+Table12[[#This Row],[S-Stps]] -> 30 | AC9: =IF(Table12[[#This Row],[S1]]<>"",IF(Table12[[#This Row],[S1]]+$Z9<=$Y9,Table12[[#This Row],[S1]]+$Z9,""),"") -> 60 | AD9: =IF(Table12[[#This Row],[S2]]<>"",IF(Table12[[#This Row],[S2]]+$Z9<=$Y9,Table12[[#This Row],[S2]]+$Z9,""),"") -> 90 | AE9: =IF(Table12[[#This Row],[S3]]<>"",IF(Table12[[#This Row],[S3]]+$Z9<=$Y9,Table12[[#This Row],[S3]]+$Z9,""),"") -> 120 | AF9: =IF(Table12[[#This Row],[S4]]<>"",IF(Table12[[#This Row],[S4]]+$Z9<=$Y9,Table12[[#This Row],[S4]]+$Z9,""),"") -> 150 | AG9: =IF(Table12[[#This Row],[S5]]<>"",IF(Table12[[#This Row],[S5]]+$Z9<=$Y9,Table12[[#This Row],[S5]]+$Z9,""),"") -> 180 | AH9: =IF(Table12[[#This Row],[S6]]<>"",IF(Table12[[#This Row],[S6]]+$Z9<=$Y9,Table12[[#This Row],[S6]]+$Z9,""),"") -> 210 | AI9: =IF(Table12[[#This Row],[S7]]<>"",IF(Table12[[#This Row],[S7]]+$Z9<=$Y9,Table12[[#This Row],[S7]]+$Z9,""),"") -> 240 | AJ9: =IF(Table12[[#This Row],[S8]]<>"",IF(Table12[[#This Row],[S8]]+$Z9<=$Y9,Table12[[#This Row],[S8]]+$Z9,""),"") -> 270 | AK9: =IF(Table12[[#This Row],[S9]]<>"",IF(Table12[[#This Row],[S9]]+$Z9<=$Y9,Table12[[#This Row],[S9]]+$Z9,""),"") -> 300 | AL9: =IF(Table12[[#This Row],[S10]]<>"",IF(Table12[[#This Row],[S10]]+$Z9<=$Y9,Table12[[#This Row],[S10]]+$Z9,""),"") -> 330 | AM9: =IF(Table12[[#This Row],[S11]]<>"",IF(Table12[[#This Row],[S11]]+$Z9<=$Y9,Table12[[#This Row],[S11]]+$Z9,""),"") -> 360 | AN9: =IF(Table12[[#This Row],[S12]]<>"",IF(Table12[[#This Row],[S12]]+$Z9<=$Y9,Table12[[#This Row],[S12]]+$Z9,""),"") -> 390 | AO9: =IF(Table12[[#This Row],[S13]]<>"",IF(Table12[[#This Row],[S13]]+$Z9<=$Y9,Table12[[#This Row],[S13]]+$Z9,""),"") -> 420 | AP9: =IF(Table12[[#This Row],[S14]]<>"",IF(Table12[[#This Row],[S14]]+$Z9<=$Y9,Table12[[#This Row],[S14]]+$Z9,""),"") ->  | AQ9: =IF(Table12[[#This Row],[S15]]<>"",IF(Table12[[#This Row],[S15]]+$Z9<=$Y9,Table12[[#This Row],[S15]]+$Z9,""),"") ->  | AR9: =IF(Table12[[#This Row],[S16]]<>"",IF(Table12[[#This Row],[S16]]+$Z9<=$Y9,Table12[[#This Row],[S16]]+$Z9,""),"") ->  | AS9: =IF(Table12[[#This Row],[S17]]<>"",IF(Table12[[#This Row],[S17]]+$Z9<=$Y9,Table12[[#This Row],[S17]]+$Z9,""),"") ->  | AT9: =IF(Table12[[#This Row],[S18]]<>"",IF(Table12[[#This Row],[S18]]+$Z9<=$Y9,Table12[[#This Row],[S18]]+$Z9,""),"") ->  | AU9: =IF(Table12[[#This Row],[S19]]<>"",IF(Table12[[#This Row],[S19]]+$Z9<=$Y9,Table12[[#This Row],[S19]]+$Z9,""),"") -> 
A10: Estonia | B10: =ROUNDDOWN(_xlfn.XLOOKUP(A10,C_CALC[Country],C_CALC[Max. Wind]),-1) -> 100 | C10: =ROUNDUP(Table12[[#This Row],[W-Max]]/20,-1) -> 10 | D10: 0 | E10: =Table12[[#This Row],[W0]]+Table12[[#This Row],[W-Stps]] -> 10 | F10: =IF(Table12[[#This Row],[W1]]<>"",IF(Table12[[#This Row],[W1]]+$C10<=$B10,Table12[[#This Row],[W1]]+$C10,""),"") -> 20 | G10: =IF(Table12[[#This Row],[W2]]<>"",IF(Table12[[#This Row],[W2]]+$C10<=$B10,Table12[[#This Row],[W2]]+$C10,""),"") -> 30 | H10: =IF(Table12[[#This Row],[W3]]<>"",IF(Table12[[#This Row],[W3]]+$C10<=$B10,Table12[[#This Row],[W3]]+$C10,""),"") -> 40 | I10: =IF(Table12[[#This Row],[W4]]<>"",IF(Table12[[#This Row],[W4]]+$C10<=$B10,Table12[[#This Row],[W4]]+$C10,""),"") -> 50 | J10: =IF(Table12[[#This Row],[W5]]<>"",IF(Table12[[#This Row],[W5]]+$C10<=$B10,Table12[[#This Row],[W5]]+$C10,""),"") -> 60 | K10: =IF(Table12[[#This Row],[W6]]<>"",IF(Table12[[#This Row],[W6]]+$C10<=$B10,Table12[[#This Row],[W6]]+$C10,""),"") -> 70 | L10: =IF(Table12[[#This Row],[W7]]<>"",IF(Table12[[#This Row],[W7]]+$C10<=$B10,Table12[[#This Row],[W7]]+$C10,""),"") -> 80 | M10: =IF(Table12[[#This Row],[W8]]<>"",IF(Table12[[#This Row],[W8]]+$C10<=$B10,Table12[[#This Row],[W8]]+$C10,""),"") -> 90 | N10: =IF(Table12[[#This Row],[W9]]<>"",IF(Table12[[#This Row],[W9]]+$C10<=$B10,Table12[[#This Row],[W9]]+$C10,""),"") -> 100 | O10: =IF(Table12[[#This Row],[W10]]<>"",IF(Table12[[#This Row],[W10]]+$C10<=$B10,Table12[[#This Row],[W10]]+$C10,""),"") ->  | P10: =IF(Table12[[#This Row],[W11]]<>"",IF(Table12[[#This Row],[W11]]+$C10<=$B10,Table12[[#This Row],[W11]]+$C10,""),"") ->  | Q10: =IF(Table12[[#This Row],[W12]]<>"",IF(Table12[[#This Row],[W12]]+$C10<=$B10,Table12[[#This Row],[W12]]+$C10,""),"") ->  | R10: =IF(Table12[[#This Row],[W13]]<>"",IF(Table12[[#This Row],[W13]]+$C10<=$B10,Table12[[#This Row],[W13]]+$C10,""),"") ->  | S10: =IF(Table12[[#This Row],[W14]]<>"",IF(Table12[[#This Row],[W14]]+$C10<=$B10,Table12[[#This Row],[W14]]+$C10,""),"") ->  | T10: =IF(Table12[[#This Row],[W15]]<>"",IF(Table12[[#This Row],[W15]]+$C10<=$B10,Table12[[#This Row],[W15]]+$C10,""),"") ->  | U10: =IF(Table12[[#This Row],[W16]]<>"",IF(Table12[[#This Row],[W16]]+$C10<=$B10,Table12[[#This Row],[W16]]+$C10,""),"") ->  | V10: =IF(Table12[[#This Row],[W17]]<>"",IF(Table12[[#This Row],[W17]]+$C10<=$B10,Table12[[#This Row],[W17]]+$C10,""),"") ->  | W10: =IF(Table12[[#This Row],[W18]]<>"",IF(Table12[[#This Row],[W18]]+$C10<=$B10,Table12[[#This Row],[W18]]+$C10,""),"") ->  | X10: =IF(Table12[[#This Row],[W19]]<>"",IF(Table12[[#This Row],[W19]]+$C10<=$B10,Table12[[#This Row],[W19]]+$C10,""),"") ->  | Y10: =ROUNDDOWN(_xlfn.XLOOKUP(Table12[[#This Row],[Country]],C_CALC[Country],C_CALC[Max Solar]),-1) -> 450 | Z10: =ROUNDUP(Table12[[#This Row],[S-Max]]/20,-1) -> 30 | AA10: 0 | AB10: =Table12[[#This Row],[S0]]+Table12[[#This Row],[S-Stps]] -> 30 | AC10: =IF(Table12[[#This Row],[S1]]<>"",IF(Table12[[#This Row],[S1]]+$Z10<=$Y10,Table12[[#This Row],[S1]]+$Z10,""),"") -> 60 | AD10: =IF(Table12[[#This Row],[S2]]<>"",IF(Table12[[#This Row],[S2]]+$Z10<=$Y10,Table12[[#This Row],[S2]]+$Z10,""),"") -> 90 | AE10: =IF(Table12[[#This Row],[S3]]<>"",IF(Table12[[#This Row],[S3]]+$Z10<=$Y10,Table12[[#This Row],[S3]]+$Z10,""),"") -> 120 | AF10: =IF(Table12[[#This Row],[S4]]<>"",IF(Table12[[#This Row],[S4]]+$Z10<=$Y10,Table12[[#This Row],[S4]]+$Z10,""),"") -> 150 | AG10: =IF(Table12[[#This Row],[S5]]<>"",IF(Table12[[#This Row],[S5]]+$Z10<=$Y10,Table12[[#This Row],[S5]]+$Z10,""),"") -> 180 | AH10: =IF(Table12[[#This Row],[S6]]<>"",IF(Table12[[#This Row],[S6]]+$Z10<=$Y10,Table12[[#This Row],[S6]]+$Z10,""),"") -> 210 | AI10: =IF(Table12[[#This Row],[S7]]<>"",IF(Table12[[#This Row],[S7]]+$Z10<=$Y10,Table12[[#This Row],[S7]]+$Z10,""),"") -> 240 | AJ10: =IF(Table12[[#This Row],[S8]]<>"",IF(Table12[[#This Row],[S8]]+$Z10<=$Y10,Table12[[#This Row],[S8]]+$Z10,""),"") -> 270 | AK10: =IF(Table12[[#This Row],[S9]]<>"",IF(Table12[[#This Row],[S9]]+$Z10<=$Y10,Table12[[#This Row],[S9]]+$Z10,""),"") -> 300 | AL10: =IF(Table12[[#This Row],[S10]]<>"",IF(Table12[[#This Row],[S10]]+$Z10<=$Y10,Table12[[#This Row],[S10]]+$Z10,""),"") -> 330 | AM10: =IF(Table12[[#This Row],[S11]]<>"",IF(Table12[[#This Row],[S11]]+$Z10<=$Y10,Table12[[#This Row],[S11]]+$Z10,""),"") -> 360 | AN10: =IF(Table12[[#This Row],[S12]]<>"",IF(Table12[[#This Row],[S12]]+$Z10<=$Y10,Table12[[#This Row],[S12]]+$Z10,""),"") -> 390 | AO10: =IF(Table12[[#This Row],[S13]]<>"",IF(Table12[[#This Row],[S13]]+$Z10<=$Y10,Table12[[#This Row],[S13]]+$Z10,""),"") -> 420 | AP10: =IF(Table12[[#This Row],[S14]]<>"",IF(Table12[[#This Row],[S14]]+$Z10<=$Y10,Table12[[#This Row],[S14]]+$Z10,""),"") -> 450 | AQ10: =IF(Table12[[#This Row],[S15]]<>"",IF(Table12[[#This Row],[S15]]+$Z10<=$Y10,Table12[[#This Row],[S15]]+$Z10,""),"") ->  | AR10: =IF(Table12[[#This Row],[S16]]<>"",IF(Table12[[#This Row],[S16]]+$Z10<=$Y10,Table12[[#This Row],[S16]]+$Z10,""),"") ->  | AS10: =IF(Table12[[#This Row],[S17]]<>"",IF(Table12[[#This Row],[S17]]+$Z10<=$Y10,Table12[[#This Row],[S17]]+$Z10,""),"") ->  | AT10: =IF(Table12[[#This Row],[S18]]<>"",IF(Table12[[#This Row],[S18]]+$Z10<=$Y10,Table12[[#This Row],[S18]]+$Z10,""),"") ->  | AU10: =IF(Table12[[#This Row],[S19]]<>"",IF(Table12[[#This Row],[S19]]+$Z10<=$Y10,Table12[[#This Row],[S19]]+$Z10,""),"") -> 
A11: Finland | B11: =ROUNDDOWN(_xlfn.XLOOKUP(A11,C_CALC[Country],C_CALC[Max. Wind]),-1) -> 750 | C11: =ROUNDUP(Table12[[#This Row],[W-Max]]/20,-1) -> 40 | D11: 0 | E11: =Table12[[#This Row],[W0]]+Table12[[#This Row],[W-Stps]] -> 40 | F11: =IF(Table12[[#This Row],[W1]]<>"",IF(Table12[[#This Row],[W1]]+$C11<=$B11,Table12[[#This Row],[W1]]+$C11,""),"") -> 80 | G11: =IF(Table12[[#This Row],[W2]]<>"",IF(Table12[[#This Row],[W2]]+$C11<=$B11,Table12[[#This Row],[W2]]+$C11,""),"") -> 120 | H11: =IF(Table12[[#This Row],[W3]]<>"",IF(Table12[[#This Row],[W3]]+$C11<=$B11,Table12[[#This Row],[W3]]+$C11,""),"") -> 160 | I11: =IF(Table12[[#This Row],[W4]]<>"",IF(Table12[[#This Row],[W4]]+$C11<=$B11,Table12[[#This Row],[W4]]+$C11,""),"") -> 200 | J11: =IF(Table12[[#This Row],[W5]]<>"",IF(Table12[[#This Row],[W5]]+$C11<=$B11,Table12[[#This Row],[W5]]+$C11,""),"") -> 240 | K11: =IF(Table12[[#This Row],[W6]]<>"",IF(Table12[[#This Row],[W6]]+$C11<=$B11,Table12[[#This Row],[W6]]+$C11,""),"") -> 280 | L11: =IF(Table12[[#This Row],[W7]]<>"",IF(Table12[[#This Row],[W7]]+$C11<=$B11,Table12[[#This Row],[W7]]+$C11,""),"") -> 320 | M11: =IF(Table12[[#This Row],[W8]]<>"",IF(Table12[[#This Row],[W8]]+$C11<=$B11,Table12[[#This Row],[W8]]+$C11,""),"") -> 360 | N11: =IF(Table12[[#This Row],[W9]]<>"",IF(Table12[[#This Row],[W9]]+$C11<=$B11,Table12[[#This Row],[W9]]+$C11,""),"") -> 400 | O11: =IF(Table12[[#This Row],[W10]]<>"",IF(Table12[[#This Row],[W10]]+$C11<=$B11,Table12[[#This Row],[W10]]+$C11,""),"") -> 440 | P11: =IF(Table12[[#This Row],[W11]]<>"",IF(Table12[[#This Row],[W11]]+$C11<=$B11,Table12[[#This Row],[W11]]+$C11,""),"") -> 480 | Q11: =IF(Table12[[#This Row],[W12]]<>"",IF(Table12[[#This Row],[W12]]+$C11<=$B11,Table12[[#This Row],[W12]]+$C11,""),"") -> 520 | R11: =IF(Table12[[#This Row],[W13]]<>"",IF(Table12[[#This Row],[W13]]+$C11<=$B11,Table12[[#This Row],[W13]]+$C11,""),"") -> 560 | S11: =IF(Table12[[#This Row],[W14]]<>"",IF(Table12[[#This Row],[W14]]+$C11<=$B11,Table12[[#This Row],[W14]]+$C11,""),"") -> 600 | T11: =IF(Table12[[#This Row],[W15]]<>"",IF(Table12[[#This Row],[W15]]+$C11<=$B11,Table12[[#This Row],[W15]]+$C11,""),"") -> 640 | U11: =IF(Table12[[#This Row],[W16]]<>"",IF(Table12[[#This Row],[W16]]+$C11<=$B11,Table12[[#This Row],[W16]]+$C11,""),"") -> 680 | V11: =IF(Table12[[#This Row],[W17]]<>"",IF(Table12[[#This Row],[W17]]+$C11<=$B11,Table12[[#This Row],[W17]]+$C11,""),"") -> 720 | W11: =IF(Table12[[#This Row],[W18]]<>"",IF(Table12[[#This Row],[W18]]+$C11<=$B11,Table12[[#This Row],[W18]]+$C11,""),"") ->  | X11: =IF(Table12[[#This Row],[W19]]<>"",IF(Table12[[#This Row],[W19]]+$C11<=$B11,Table12[[#This Row],[W19]]+$C11,""),"") ->  | Y11: =ROUNDDOWN(_xlfn.XLOOKUP(Table12[[#This Row],[Country]],C_CALC[Country],C_CALC[Max Solar]),-1) -> 3380 | Z11: =ROUNDUP(Table12[[#This Row],[S-Max]]/20,-1) -> 170 | AA11: 0 | AB11: =Table12[[#This Row],[S0]]+Table12[[#This Row],[S-Stps]] -> 170 | AC11: =IF(Table12[[#This Row],[S1]]<>"",IF(Table12[[#This Row],[S1]]+$Z11<=$Y11,Table12[[#This Row],[S1]]+$Z11,""),"") -> 340 | AD11: =IF(Table12[[#This Row],[S2]]<>"",IF(Table12[[#This Row],[S2]]+$Z11<=$Y11,Table12[[#This Row],[S2]]+$Z11,""),"") -> 510 | AE11: =IF(Table12[[#This Row],[S3]]<>"",IF(Table12[[#This Row],[S3]]+$Z11<=$Y11,Table12[[#This Row],[S3]]+$Z11,""),"") -> 680 | AF11: =IF(Table12[[#This Row],[S4]]<>"",IF(Table12[[#This Row],[S4]]+$Z11<=$Y11,Table12[[#This Row],[S4]]+$Z11,""),"") -> 850 | AG11: =IF(Table12[[#This Row],[S5]]<>"",IF(Table12[[#This Row],[S5]]+$Z11<=$Y11,Table12[[#This Row],[S5]]+$Z11,""),"") -> 1020 | AH11: =IF(Table12[[#This Row],[S6]]<>"",IF(Table12[[#This Row],[S6]]+$Z11<=$Y11,Table12[[#This Row],[S6]]+$Z11,""),"") -> 1190 | AI11: =IF(Table12[[#This Row],[S7]]<>"",IF(Table12[[#This Row],[S7]]+$Z11<=$Y11,Table12[[#This Row],[S7]]+$Z11,""),"") -> 1360 | AJ11: =IF(Table12[[#This Row],[S8]]<>"",IF(Table12[[#This Row],[S8]]+$Z11<=$Y11,Table12[[#This Row],[S8]]+$Z11,""),"") -> 1530 | AK11: =IF(Table12[[#This Row],[S9]]<>"",IF(Table12[[#This Row],[S9]]+$Z11<=$Y11,Table12[[#This Row],[S9]]+$Z11,""),"") -> 1700 | AL11: =IF(Table12[[#This Row],[S10]]<>"",IF(Table12[[#This Row],[S10]]+$Z11<=$Y11,Table12[[#This Row],[S10]]+$Z11,""),"") -> 1870 | AM11: =IF(Table12[[#This Row],[S11]]<>"",IF(Table12[[#This Row],[S11]]+$Z11<=$Y11,Table12[[#This Row],[S11]]+$Z11,""),"") -> 2040 | AN11: =IF(Table12[[#This Row],[S12]]<>"",IF(Table12[[#This Row],[S12]]+$Z11<=$Y11,Table12[[#This Row],[S12]]+$Z11,""),"") -> 2210 | AO11: =IF(Table12[[#This Row],[S13]]<>"",IF(Table12[[#This Row],[S13]]+$Z11<=$Y11,Table12[[#This Row],[S13]]+$Z11,""),"") -> 2380 | AP11: =IF(Table12[[#This Row],[S14]]<>"",IF(Table12[[#This Row],[S14]]+$Z11<=$Y11,Table12[[#This Row],[S14]]+$Z11,""),"") -> 2550 | AQ11: =IF(Table12[[#This Row],[S15]]<>"",IF(Table12[[#This Row],[S15]]+$Z11<=$Y11,Table12[[#This Row],[S15]]+$Z11,""),"") -> 2720 | AR11: =IF(Table12[[#This Row],[S16]]<>"",IF(Table12[[#This Row],[S16]]+$Z11<=$Y11,Table12[[#This Row],[S16]]+$Z11,""),"") -> 2890 | AS11: =IF(Table12[[#This Row],[S17]]<>"",IF(Table12[[#This Row],[S17]]+$Z11<=$Y11,Table12[[#This Row],[S17]]+$Z11,""),"") -> 3060 | AT11: =IF(Table12[[#This Row],[S18]]<>"",IF(Table12[[#This Row],[S18]]+$Z11<=$Y11,Table12[[#This Row],[S18]]+$Z11,""),"") -> 3230 | AU11: =IF(Table12[[#This Row],[S19]]<>"",IF(Table12[[#This Row],[S19]]+$Z11<=$Y11,Table12[[#This Row],[S19]]+$Z11,""),"") -> 
A12: France (Coast) | B12: =ROUNDDOWN(_xlfn.XLOOKUP(A12,C_CALC[Country],C_CALC[Max. Wind]),-1) -> 410 | C12: =ROUNDUP(Table12[[#This Row],[W-Max]]/20,-1) -> 30 | D12: 0 | E12: =Table12[[#This Row],[W0]]+Table12[[#This Row],[W-Stps]] -> 30 | F12: =IF(Table12[[#This Row],[W1]]<>"",IF(Table12[[#This Row],[W1]]+$C12<=$B12,Table12[[#This Row],[W1]]+$C12,""),"") -> 60 | G12: =IF(Table12[[#This Row],[W2]]<>"",IF(Table12[[#This Row],[W2]]+$C12<=$B12,Table12[[#This Row],[W2]]+$C12,""),"") -> 90 | H12: =IF(Table12[[#This Row],[W3]]<>"",IF(Table12[[#This Row],[W3]]+$C12<=$B12,Table12[[#This Row],[W3]]+$C12,""),"") -> 120 | I12: =IF(Table12[[#This Row],[W4]]<>"",IF(Table12[[#This Row],[W4]]+$C12<=$B12,Table12[[#This Row],[W4]]+$C12,""),"") -> 150 | J12: =IF(Table12[[#This Row],[W5]]<>"",IF(Table12[[#This Row],[W5]]+$C12<=$B12,Table12[[#This Row],[W5]]+$C12,""),"") -> 180 | K12: =IF(Table12[[#This Row],[W6]]<>"",IF(Table12[[#This Row],[W6]]+$C12<=$B12,Table12[[#This Row],[W6]]+$C12,""),"") -> 210 | L12: =IF(Table12[[#This Row],[W7]]<>"",IF(Table12[[#This Row],[W7]]+$C12<=$B12,Table12[[#This Row],[W7]]+$C12,""),"") -> 240 | M12: =IF(Table12[[#This Row],[W8]]<>"",IF(Table12[[#This Row],[W8]]+$C12<=$B12,Table12[[#This Row],[W8]]+$C12,""),"") -> 270 | N12: =IF(Table12[[#This Row],[W9]]<>"",IF(Table12[[#This Row],[W9]]+$C12<=$B12,Table12[[#This Row],[W9]]+$C12,""),"") -> 300 | O12: =IF(Table12[[#This Row],[W10]]<>"",IF(Table12[[#This Row],[W10]]+$C12<=$B12,Table12[[#This Row],[W10]]+$C12,""),"") -> 330 | P12: =IF(Table12[[#This Row],[W11]]<>"",IF(Table12[[#This Row],[W11]]+$C12<=$B12,Table12[[#This Row],[W11]]+$C12,""),"") -> 360 | Q12: =IF(Table12[[#This Row],[W12]]<>"",IF(Table12[[#This Row],[W12]]+$C12<=$B12,Table12[[#This Row],[W12]]+$C12,""),"") -> 390 | R12: =IF(Table12[[#This Row],[W13]]<>"",IF(Table12[[#This Row],[W13]]+$C12<=$B12,Table12[[#This Row],[W13]]+$C12,""),"") ->  | S12: =IF(Table12[[#This Row],[W14]]<>"",IF(Table12[[#This Row],[W14]]+$C12<=$B12,Table12[[#This Row],[W14]]+$C12,""),"") ->  | T12: =IF(Table12[[#This Row],[W15]]<>"",IF(Table12[[#This Row],[W15]]+$C12<=$B12,Table12[[#This Row],[W15]]+$C12,""),"") ->  | U12: =IF(Table12[[#This Row],[W16]]<>"",IF(Table12[[#This Row],[W16]]+$C12<=$B12,Table12[[#This Row],[W16]]+$C12,""),"") ->  | V12: =IF(Table12[[#This Row],[W17]]<>"",IF(Table12[[#This Row],[W17]]+$C12<=$B12,Table12[[#This Row],[W17]]+$C12,""),"") ->  | W12: =IF(Table12[[#This Row],[W18]]<>"",IF(Table12[[#This Row],[W18]]+$C12<=$B12,Table12[[#This Row],[W18]]+$C12,""),"") ->  | X12: =IF(Table12[[#This Row],[W19]]<>"",IF(Table12[[#This Row],[W19]]+$C12<=$B12,Table12[[#This Row],[W19]]+$C12,""),"") ->  | Y12: =ROUNDDOWN(_xlfn.XLOOKUP(Table12[[#This Row],[Country]],C_CALC[Country],C_CALC[Max Solar]),-1) -> 1870 | Z12: =ROUNDUP(Table12[[#This Row],[S-Max]]/20,-1) -> 100 | AA12: 0 | AB12: =Table12[[#This Row],[S0]]+Table12[[#This Row],[S-Stps]] -> 100 | AC12: =IF(Table12[[#This Row],[S1]]<>"",IF(Table12[[#This Row],[S1]]+$Z12<=$Y12,Table12[[#This Row],[S1]]+$Z12,""),"") -> 200 | AD12: =IF(Table12[[#This Row],[S2]]<>"",IF(Table12[[#This Row],[S2]]+$Z12<=$Y12,Table12[[#This Row],[S2]]+$Z12,""),"") -> 300 | AE12: =IF(Table12[[#This Row],[S3]]<>"",IF(Table12[[#This Row],[S3]]+$Z12<=$Y12,Table12[[#This Row],[S3]]+$Z12,""),"") -> 400 | AF12: =IF(Table12[[#This Row],[S4]]<>"",IF(Table12[[#This Row],[S4]]+$Z12<=$Y12,Table12[[#This Row],[S4]]+$Z12,""),"") -> 500 | AG12: =IF(Table12[[#This Row],[S5]]<>"",IF(Table12[[#This Row],[S5]]+$Z12<=$Y12,Table12[[#This Row],[S5]]+$Z12,""),"") -> 600 | AH12: =IF(Table12[[#This Row],[S6]]<>"",IF(Table12[[#This Row],[S6]]+$Z12<=$Y12,Table12[[#This Row],[S6]]+$Z12,""),"") -> 700 | AI12: =IF(Table12[[#This Row],[S7]]<>"",IF(Table12[[#This Row],[S7]]+$Z12<=$Y12,Table12[[#This Row],[S7]]+$Z12,""),"") -> 800 | AJ12: =IF(Table12[[#This Row],[S8]]<>"",IF(Table12[[#This Row],[S8]]+$Z12<=$Y12,Table12[[#This Row],[S8]]+$Z12,""),"") -> 900 | AK12: =IF(Table12[[#This Row],[S9]]<>"",IF(Table12[[#This Row],[S9]]+$Z12<=$Y12,Table12[[#This Row],[S9]]+$Z12,""),"") -> 1000 | AL12: =IF(Table12[[#This Row],[S10]]<>"",IF(Table12[[#This Row],[S10]]+$Z12<=$Y12,Table12[[#This Row],[S10]]+$Z12,""),"") -> 1100 | AM12: =IF(Table12[[#This Row],[S11]]<>"",IF(Table12[[#This Row],[S11]]+$Z12<=$Y12,Table12[[#This Row],[S11]]+$Z12,""),"") -> 1200 | AN12: =IF(Table12[[#This Row],[S12]]<>"",IF(Table12[[#This Row],[S12]]+$Z12<=$Y12,Table12[[#This Row],[S12]]+$Z12,""),"") -> 1300 | AO12: =IF(Table12[[#This Row],[S13]]<>"",IF(Table12[[#This Row],[S13]]+$Z12<=$Y12,Table12[[#This Row],[S13]]+$Z12,""),"") -> 1400 | AP12: =IF(Table12[[#This Row],[S14]]<>"",IF(Table12[[#This Row],[S14]]+$Z12<=$Y12,Table12[[#This Row],[S14]]+$Z12,""),"") -> 1500 | AQ12: =IF(Table12[[#This Row],[S15]]<>"",IF(Table12[[#This Row],[S15]]+$Z12<=$Y12,Table12[[#This Row],[S15]]+$Z12,""),"") -> 1600 | AR12: =IF(Table12[[#This Row],[S16]]<>"",IF(Table12[[#This Row],[S16]]+$Z12<=$Y12,Table12[[#This Row],[S16]]+$Z12,""),"") -> 1700 | AS12: =IF(Table12[[#This Row],[S17]]<>"",IF(Table12[[#This Row],[S17]]+$Z12<=$Y12,Table12[[#This Row],[S17]]+$Z12,""),"") -> 1800 | AT12: =IF(Table12[[#This Row],[S18]]<>"",IF(Table12[[#This Row],[S18]]+$Z12<=$Y12,Table12[[#This Row],[S18]]+$Z12,""),"") ->  | AU12: =IF(Table12[[#This Row],[S19]]<>"",IF(Table12[[#This Row],[S19]]+$Z12<=$Y12,Table12[[#This Row],[S19]]+$Z12,""),"") -> 
A13: France (Main) | B13: =ROUNDDOWN(_xlfn.XLOOKUP(A13,C_CALC[Country],C_CALC[Max. Wind]),-1) -> 800 | C13: =ROUNDUP(Table12[[#This Row],[W-Max]]/20,-1) -> 40 | D13: 0 | E13: =Table12[[#This Row],[W0]]+Table12[[#This Row],[W-Stps]] -> 40 | F13: =IF(Table12[[#This Row],[W1]]<>"",IF(Table12[[#This Row],[W1]]+$C13<=$B13,Table12[[#This Row],[W1]]+$C13,""),"") -> 80 | G13: =IF(Table12[[#This Row],[W2]]<>"",IF(Table12[[#This Row],[W2]]+$C13<=$B13,Table12[[#This Row],[W2]]+$C13,""),"") -> 120 | H13: =IF(Table12[[#This Row],[W3]]<>"",IF(Table12[[#This Row],[W3]]+$C13<=$B13,Table12[[#This Row],[W3]]+$C13,""),"") -> 160 | I13: =IF(Table12[[#This Row],[W4]]<>"",IF(Table12[[#This Row],[W4]]+$C13<=$B13,Table12[[#This Row],[W4]]+$C13,""),"") -> 200 | J13: =IF(Table12[[#This Row],[W5]]<>"",IF(Table12[[#This Row],[W5]]+$C13<=$B13,Table12[[#This Row],[W5]]+$C13,""),"") -> 240 | K13: =IF(Table12[[#This Row],[W6]]<>"",IF(Table12[[#This Row],[W6]]+$C13<=$B13,Table12[[#This Row],[W6]]+$C13,""),"") -> 280 | L13: =IF(Table12[[#This Row],[W7]]<>"",IF(Table12[[#This Row],[W7]]+$C13<=$B13,Table12[[#This Row],[W7]]+$C13,""),"") -> 320 | M13: =IF(Table12[[#This Row],[W8]]<>"",IF(Table12[[#This Row],[W8]]+$C13<=$B13,Table12[[#This Row],[W8]]+$C13,""),"") -> 360 | N13: =IF(Table12[[#This Row],[W9]]<>"",IF(Table12[[#This Row],[W9]]+$C13<=$B13,Table12[[#This Row],[W9]]+$C13,""),"") -> 400 | O13: =IF(Table12[[#This Row],[W10]]<>"",IF(Table12[[#This Row],[W10]]+$C13<=$B13,Table12[[#This Row],[W10]]+$C13,""),"") -> 440 | P13: =IF(Table12[[#This Row],[W11]]<>"",IF(Table12[[#This Row],[W11]]+$C13<=$B13,Table12[[#This Row],[W11]]+$C13,""),"") -> 480 | Q13: =IF(Table12[[#This Row],[W12]]<>"",IF(Table12[[#This Row],[W12]]+$C13<=$B13,Table12[[#This Row],[W12]]+$C13,""),"") -> 520 | R13: =IF(Table12[[#This Row],[W13]]<>"",IF(Table12[[#This Row],[W13]]+$C13<=$B13,Table12[[#This Row],[W13]]+$C13,""),"") -> 560 | S13: =IF(Table12[[#This Row],[W14]]<>"",IF(Table12[[#This Row],[W14]]+$C13<=$B13,Table12[[#This Row],[W14]]+$C13,""),"") -> 600 | T13: =IF(Table12[[#This Row],[W15]]<>"",IF(Table12[[#This Row],[W15]]+$C13<=$B13,Table12[[#This Row],[W15]]+$C13,""),"") -> 640 | U13: =IF(Table12[[#This Row],[W16]]<>"",IF(Table12[[#This Row],[W16]]+$C13<=$B13,Table12[[#This Row],[W16]]+$C13,""),"") -> 680 | V13: =IF(Table12[[#This Row],[W17]]<>"",IF(Table12[[#This Row],[W17]]+$C13<=$B13,Table12[[#This Row],[W17]]+$C13,""),"") -> 720 | W13: =IF(Table12[[#This Row],[W18]]<>"",IF(Table12[[#This Row],[W18]]+$C13<=$B13,Table12[[#This Row],[W18]]+$C13,""),"") -> 760 | X13: =IF(Table12[[#This Row],[W19]]<>"",IF(Table12[[#This Row],[W19]]+$C13<=$B13,Table12[[#This Row],[W19]]+$C13,""),"") -> 800 | Y13: =ROUNDDOWN(_xlfn.XLOOKUP(Table12[[#This Row],[Country]],C_CALC[Country],C_CALC[Max Solar]),-1) -> 3640 | Z13: =ROUNDUP(Table12[[#This Row],[S-Max]]/20,-1) -> 190 | AA13: 0 | AB13: =Table12[[#This Row],[S0]]+Table12[[#This Row],[S-Stps]] -> 190 | AC13: =IF(Table12[[#This Row],[S1]]<>"",IF(Table12[[#This Row],[S1]]+$Z13<=$Y13,Table12[[#This Row],[S1]]+$Z13,""),"") -> 380 | AD13: =IF(Table12[[#This Row],[S2]]<>"",IF(Table12[[#This Row],[S2]]+$Z13<=$Y13,Table12[[#This Row],[S2]]+$Z13,""),"") -> 570 | AE13: =IF(Table12[[#This Row],[S3]]<>"",IF(Table12[[#This Row],[S3]]+$Z13<=$Y13,Table12[[#This Row],[S3]]+$Z13,""),"") -> 760 | AF13: =IF(Table12[[#This Row],[S4]]<>"",IF(Table12[[#This Row],[S4]]+$Z13<=$Y13,Table12[[#This Row],[S4]]+$Z13,""),"") -> 950 | AG13: =IF(Table12[[#This Row],[S5]]<>"",IF(Table12[[#This Row],[S5]]+$Z13<=$Y13,Table12[[#This Row],[S5]]+$Z13,""),"") -> 1140 | AH13: =IF(Table12[[#This Row],[S6]]<>"",IF(Table12[[#This Row],[S6]]+$Z13<=$Y13,Table12[[#This Row],[S6]]+$Z13,""),"") -> 1330 | AI13: =IF(Table12[[#This Row],[S7]]<>"",IF(Table12[[#This Row],[S7]]+$Z13<=$Y13,Table12[[#This Row],[S7]]+$Z13,""),"") -> 1520 | AJ13: =IF(Table12[[#This Row],[S8]]<>"",IF(Table12[[#This Row],[S8]]+$Z13<=$Y13,Table12[[#This Row],[S8]]+$Z13,""),"") -> 1710 | AK13: =IF(Table12[[#This Row],[S9]]<>"",IF(Table12[[#This Row],[S9]]+$Z13<=$Y13,Table12[[#This Row],[S9]]+$Z13,""),"") -> 1900 | AL13: =IF(Table12[[#This Row],[S10]]<>"",IF(Table12[[#This Row],[S10]]+$Z13<=$Y13,Table12[[#This Row],[S10]]+$Z13,""),"") -> 2090 | AM13: =IF(Table12[[#This Row],[S11]]<>"",IF(Table12[[#This Row],[S11]]+$Z13<=$Y13,Table12[[#This Row],[S11]]+$Z13,""),"") -> 2280 | AN13: =IF(Table12[[#This Row],[S12]]<>"",IF(Table12[[#This Row],[S12]]+$Z13<=$Y13,Table12[[#This Row],[S12]]+$Z13,""),"") -> 2470 | AO13: =IF(Table12[[#This Row],[S13]]<>"",IF(Table12[[#This Row],[S13]]+$Z13<=$Y13,Table12[[#This Row],[S13]]+$Z13,""),"") -> 2660 | AP13: =IF(Table12[[#This Row],[S14]]<>"",IF(Table12[[#This Row],[S14]]+$Z13<=$Y13,Table12[[#This Row],[S14]]+$Z13,""),"") -> 2850 | AQ13: =IF(Table12[[#This Row],[S15]]<>"",IF(Table12[[#This Row],[S15]]+$Z13<=$Y13,Table12[[#This Row],[S15]]+$Z13,""),"") -> 3040 | AR13: =IF(Table12[[#This Row],[S16]]<>"",IF(Table12[[#This Row],[S16]]+$Z13<=$Y13,Table12[[#This Row],[S16]]+$Z13,""),"") -> 3230 | AS13: =IF(Table12[[#This Row],[S17]]<>"",IF(Table12[[#This Row],[S17]]+$Z13<=$Y13,Table12[[#This Row],[S17]]+$Z13,""),"") -> 3420 | AT13: =IF(Table12[[#This Row],[S18]]<>"",IF(Table12[[#This Row],[S18]]+$Z13<=$Y13,Table12[[#This Row],[S18]]+$Z13,""),"") -> 3610 | AU13: =IF(Table12[[#This Row],[S19]]<>"",IF(Table12[[#This Row],[S19]]+$Z13<=$Y13,Table12[[#This Row],[S19]]+$Z13,""),"") -> 
A14: Germany (North) | B14: =ROUNDDOWN(_xlfn.XLOOKUP(A14,C_CALC[Country],C_CALC[Max. Wind]),-1) -> 390 | C14: =ROUNDUP(Table12[[#This Row],[W-Max]]/20,-1) -> 20 | D14: 0 | E14: =Table12[[#This Row],[W0]]+Table12[[#This Row],[W-Stps]] -> 20 | F14: =IF(Table12[[#This Row],[W1]]<>"",IF(Table12[[#This Row],[W1]]+$C14<=$B14,Table12[[#This Row],[W1]]+$C14,""),"") -> 40 | G14: =IF(Table12[[#This Row],[W2]]<>"",IF(Table12[[#This Row],[W2]]+$C14<=$B14,Table12[[#This Row],[W2]]+$C14,""),"") -> 60 | H14: =IF(Table12[[#This Row],[W3]]<>"",IF(Table12[[#This Row],[W3]]+$C14<=$B14,Table12[[#This Row],[W3]]+$C14,""),"") -> 80 | I14: =IF(Table12[[#This Row],[W4]]<>"",IF(Table12[[#This Row],[W4]]+$C14<=$B14,Table12[[#This Row],[W4]]+$C14,""),"") -> 100 | J14: =IF(Table12[[#This Row],[W5]]<>"",IF(Table12[[#This Row],[W5]]+$C14<=$B14,Table12[[#This Row],[W5]]+$C14,""),"") -> 120 | K14: =IF(Table12[[#This Row],[W6]]<>"",IF(Table12[[#This Row],[W6]]+$C14<=$B14,Table12[[#This Row],[W6]]+$C14,""),"") -> 140 | L14: =IF(Table12[[#This Row],[W7]]<>"",IF(Table12[[#This Row],[W7]]+$C14<=$B14,Table12[[#This Row],[W7]]+$C14,""),"") -> 160 | M14: =IF(Table12[[#This Row],[W8]]<>"",IF(Table12[[#This Row],[W8]]+$C14<=$B14,Table12[[#This Row],[W8]]+$C14,""),"") -> 180 | N14: =IF(Table12[[#This Row],[W9]]<>"",IF(Table12[[#This Row],[W9]]+$C14<=$B14,Table12[[#This Row],[W9]]+$C14,""),"") -> 200 | O14: =IF(Table12[[#This Row],[W10]]<>"",IF(Table12[[#This Row],[W10]]+$C14<=$B14,Table12[[#This Row],[W10]]+$C14,""),"") -> 220 | P14: =IF(Table12[[#This Row],[W11]]<>"",IF(Table12[[#This Row],[W11]]+$C14<=$B14,Table12[[#This Row],[W11]]+$C14,""),"") -> 240 | Q14: =IF(Table12[[#This Row],[W12]]<>"",IF(Table12[[#This Row],[W12]]+$C14<=$B14,Table12[[#This Row],[W12]]+$C14,""),"") -> 260 | R14: =IF(Table12[[#This Row],[W13]]<>"",IF(Table12[[#This Row],[W13]]+$C14<=$B14,Table12[[#This Row],[W13]]+$C14,""),"") -> 280 | S14: =IF(Table12[[#This Row],[W14]]<>"",IF(Table12[[#This Row],[W14]]+$C14<=$B14,Table12[[#This Row],[W14]]+$C14,""),"") -> 300 | T14: =IF(Table12[[#This Row],[W15]]<>"",IF(Table12[[#This Row],[W15]]+$C14<=$B14,Table12[[#This Row],[W15]]+$C14,""),"") -> 320 | U14: =IF(Table12[[#This Row],[W16]]<>"",IF(Table12[[#This Row],[W16]]+$C14<=$B14,Table12[[#This Row],[W16]]+$C14,""),"") -> 340 | V14: =IF(Table12[[#This Row],[W17]]<>"",IF(Table12[[#This Row],[W17]]+$C14<=$B14,Table12[[#This Row],[W17]]+$C14,""),"") -> 360 | W14: =IF(Table12[[#This Row],[W18]]<>"",IF(Table12[[#This Row],[W18]]+$C14<=$B14,Table12[[#This Row],[W18]]+$C14,""),"") -> 380 | X14: =IF(Table12[[#This Row],[W19]]<>"",IF(Table12[[#This Row],[W19]]+$C14<=$B14,Table12[[#This Row],[W19]]+$C14,""),"") ->  | Y14: =ROUNDDOWN(_xlfn.XLOOKUP(Table12[[#This Row],[Country]],C_CALC[Country],C_CALC[Max Solar]),-1) -> 1780 | Z14: =ROUNDUP(Table12[[#This Row],[S-Max]]/20,-1) -> 90 | AA14: 0 | AB14: =Table12[[#This Row],[S0]]+Table12[[#This Row],[S-Stps]] -> 90 | AC14: =IF(Table12[[#This Row],[S1]]<>"",IF(Table12[[#This Row],[S1]]+$Z14<=$Y14,Table12[[#This Row],[S1]]+$Z14,""),"") -> 180 | AD14: =IF(Table12[[#This Row],[S2]]<>"",IF(Table12[[#This Row],[S2]]+$Z14<=$Y14,Table12[[#This Row],[S2]]+$Z14,""),"") -> 270 | AE14: =IF(Table12[[#This Row],[S3]]<>"",IF(Table12[[#This Row],[S3]]+$Z14<=$Y14,Table12[[#This Row],[S3]]+$Z14,""),"") -> 360 | AF14: =IF(Table12[[#This Row],[S4]]<>"",IF(Table12[[#This Row],[S4]]+$Z14<=$Y14,Table12[[#This Row],[S4]]+$Z14,""),"") -> 450 | AG14: =IF(Table12[[#This Row],[S5]]<>"",IF(Table12[[#This Row],[S5]]+$Z14<=$Y14,Table12[[#This Row],[S5]]+$Z14,""),"") -> 540 | AH14: =IF(Table12[[#This Row],[S6]]<>"",IF(Table12[[#This Row],[S6]]+$Z14<=$Y14,Table12[[#This Row],[S6]]+$Z14,""),"") -> 630 | AI14: =IF(Table12[[#This Row],[S7]]<>"",IF(Table12[[#This Row],[S7]]+$Z14<=$Y14,Table12[[#This Row],[S7]]+$Z14,""),"") -> 720 | AJ14: =IF(Table12[[#This Row],[S8]]<>"",IF(Table12[[#This Row],[S8]]+$Z14<=$Y14,Table12[[#This Row],[S8]]+$Z14,""),"") -> 810 | AK14: =IF(Table12[[#This Row],[S9]]<>"",IF(Table12[[#This Row],[S9]]+$Z14<=$Y14,Table12[[#This Row],[S9]]+$Z14,""),"") -> 900 | AL14: =IF(Table12[[#This Row],[S10]]<>"",IF(Table12[[#This Row],[S10]]+$Z14<=$Y14,Table12[[#This Row],[S10]]+$Z14,""),"") -> 990 | AM14: =IF(Table12[[#This Row],[S11]]<>"",IF(Table12[[#This Row],[S11]]+$Z14<=$Y14,Table12[[#This Row],[S11]]+$Z14,""),"") -> 1080 | AN14: =IF(Table12[[#This Row],[S12]]<>"",IF(Table12[[#This Row],[S12]]+$Z14<=$Y14,Table12[[#This Row],[S12]]+$Z14,""),"") -> 1170 | AO14: =IF(Table12[[#This Row],[S13]]<>"",IF(Table12[[#This Row],[S13]]+$Z14<=$Y14,Table12[[#This Row],[S13]]+$Z14,""),"") -> 1260 | AP14: =IF(Table12[[#This Row],[S14]]<>"",IF(Table12[[#This Row],[S14]]+$Z14<=$Y14,Table12[[#This Row],[S14]]+$Z14,""),"") -> 1350 | AQ14: =IF(Table12[[#This Row],[S15]]<>"",IF(Table12[[#This Row],[S15]]+$Z14<=$Y14,Table12[[#This Row],[S15]]+$Z14,""),"") -> 1440 | AR14: =IF(Table12[[#This Row],[S16]]<>"",IF(Table12[[#This Row],[S16]]+$Z14<=$Y14,Table12[[#This Row],[S16]]+$Z14,""),"") -> 1530 | AS14: =IF(Table12[[#This Row],[S17]]<>"",IF(Table12[[#This Row],[S17]]+$Z14<=$Y14,Table12[[#This Row],[S17]]+$Z14,""),"") -> 1620 | AT14: =IF(Table12[[#This Row],[S18]]<>"",IF(Table12[[#This Row],[S18]]+$Z14<=$Y14,Table12[[#This Row],[S18]]+$Z14,""),"") -> 1710 | AU14: =IF(Table12[[#This Row],[S19]]<>"",IF(Table12[[#This Row],[S19]]+$Z14<=$Y14,Table12[[#This Row],[S19]]+$Z14,""),"") -> 
A15: Germany (South) | B15: =ROUNDDOWN(_xlfn.XLOOKUP(A15,C_CALC[Country],C_CALC[Max. Wind]),-1) -> 390 | C15: =ROUNDUP(Table12[[#This Row],[W-Max]]/20,-1) -> 20 | D15: 0 | E15: =Table12[[#This Row],[W0]]+Table12[[#This Row],[W-Stps]] -> 20 | F15: =IF(Table12[[#This Row],[W1]]<>"",IF(Table12[[#This Row],[W1]]+$C15<=$B15,Table12[[#This Row],[W1]]+$C15,""),"") -> 40 | G15: =IF(Table12[[#This Row],[W2]]<>"",IF(Table12[[#This Row],[W2]]+$C15<=$B15,Table12[[#This Row],[W2]]+$C15,""),"") -> 60 | H15: =IF(Table12[[#This Row],[W3]]<>"",IF(Table12[[#This Row],[W3]]+$C15<=$B15,Table12[[#This Row],[W3]]+$C15,""),"") -> 80 | I15: =IF(Table12[[#This Row],[W4]]<>"",IF(Table12[[#This Row],[W4]]+$C15<=$B15,Table12[[#This Row],[W4]]+$C15,""),"") -> 100 | J15: =IF(Table12[[#This Row],[W5]]<>"",IF(Table12[[#This Row],[W5]]+$C15<=$B15,Table12[[#This Row],[W5]]+$C15,""),"") -> 120 | K15: =IF(Table12[[#This Row],[W6]]<>"",IF(Table12[[#This Row],[W6]]+$C15<=$B15,Table12[[#This Row],[W6]]+$C15,""),"") -> 140 | L15: =IF(Table12[[#This Row],[W7]]<>"",IF(Table12[[#This Row],[W7]]+$C15<=$B15,Table12[[#This Row],[W7]]+$C15,""),"") -> 160 | M15: =IF(Table12[[#This Row],[W8]]<>"",IF(Table12[[#This Row],[W8]]+$C15<=$B15,Table12[[#This Row],[W8]]+$C15,""),"") -> 180 | N15: =IF(Table12[[#This Row],[W9]]<>"",IF(Table12[[#This Row],[W9]]+$C15<=$B15,Table12[[#This Row],[W9]]+$C15,""),"") -> 200 | O15: =IF(Table12[[#This Row],[W10]]<>"",IF(Table12[[#This Row],[W10]]+$C15<=$B15,Table12[[#This Row],[W10]]+$C15,""),"") -> 220 | P15: =IF(Table12[[#This Row],[W11]]<>"",IF(Table12[[#This Row],[W11]]+$C15<=$B15,Table12[[#This Row],[W11]]+$C15,""),"") -> 240 | Q15: =IF(Table12[[#This Row],[W12]]<>"",IF(Table12[[#This Row],[W12]]+$C15<=$B15,Table12[[#This Row],[W12]]+$C15,""),"") -> 260 | R15: =IF(Table12[[#This Row],[W13]]<>"",IF(Table12[[#This Row],[W13]]+$C15<=$B15,Table12[[#This Row],[W13]]+$C15,""),"") -> 280 | S15: =IF(Table12[[#This Row],[W14]]<>"",IF(Table12[[#This Row],[W14]]+$C15<=$B15,Table12[[#This Row],[W14]]+$C15,""),"") -> 300 | T15: =IF(Table12[[#This Row],[W15]]<>"",IF(Table12[[#This Row],[W15]]+$C15<=$B15,Table12[[#This Row],[W15]]+$C15,""),"") -> 320 | U15: =IF(Table12[[#This Row],[W16]]<>"",IF(Table12[[#This Row],[W16]]+$C15<=$B15,Table12[[#This Row],[W16]]+$C15,""),"") -> 340 | V15: =IF(Table12[[#This Row],[W17]]<>"",IF(Table12[[#This Row],[W17]]+$C15<=$B15,Table12[[#This Row],[W17]]+$C15,""),"") -> 360 | W15: =IF(Table12[[#This Row],[W18]]<>"",IF(Table12[[#This Row],[W18]]+$C15<=$B15,Table12[[#This Row],[W18]]+$C15,""),"") -> 380 | X15: =IF(Table12[[#This Row],[W19]]<>"",IF(Table12[[#This Row],[W19]]+$C15<=$B15,Table12[[#This Row],[W19]]+$C15,""),"") ->  | Y15: =ROUNDDOWN(_xlfn.XLOOKUP(Table12[[#This Row],[Country]],C_CALC[Country],C_CALC[Max Solar]),-1) -> 1780 | Z15: =ROUNDUP(Table12[[#This Row],[S-Max]]/20,-1) -> 90 | AA15: 0 | AB15: =Table12[[#This Row],[S0]]+Table12[[#This Row],[S-Stps]] -> 90 | AC15: =IF(Table12[[#This Row],[S1]]<>"",IF(Table12[[#This Row],[S1]]+$Z15<=$Y15,Table12[[#This Row],[S1]]+$Z15,""),"") -> 180 | AD15: =IF(Table12[[#This Row],[S2]]<>"",IF(Table12[[#This Row],[S2]]+$Z15<=$Y15,Table12[[#This Row],[S2]]+$Z15,""),"") -> 270 | AE15: =IF(Table12[[#This Row],[S3]]<>"",IF(Table12[[#This Row],[S3]]+$Z15<=$Y15,Table12[[#This Row],[S3]]+$Z15,""),"") -> 360 | AF15: =IF(Table12[[#This Row],[S4]]<>"",IF(Table12[[#This Row],[S4]]+$Z15<=$Y15,Table12[[#This Row],[S4]]+$Z15,""),"") -> 450 | AG15: =IF(Table12[[#This Row],[S5]]<>"",IF(Table12[[#This Row],[S5]]+$Z15<=$Y15,Table12[[#This Row],[S5]]+$Z15,""),"") -> 540 | AH15: =IF(Table12[[#This Row],[S6]]<>"",IF(Table12[[#This Row],[S6]]+$Z15<=$Y15,Table12[[#This Row],[S6]]+$Z15,""),"") -> 630 | AI15: =IF(Table12[[#This Row],[S7]]<>"",IF(Table12[[#This Row],[S7]]+$Z15<=$Y15,Table12[[#This Row],[S7]]+$Z15,""),"") -> 720 | AJ15: =IF(Table12[[#This Row],[S8]]<>"",IF(Table12[[#This Row],[S8]]+$Z15<=$Y15,Table12[[#This Row],[S8]]+$Z15,""),"") -> 810 | AK15: =IF(Table12[[#This Row],[S9]]<>"",IF(Table12[[#This Row],[S9]]+$Z15<=$Y15,Table12[[#This Row],[S9]]+$Z15,""),"") -> 900 | AL15: =IF(Table12[[#This Row],[S10]]<>"",IF(Table12[[#This Row],[S10]]+$Z15<=$Y15,Table12[[#This Row],[S10]]+$Z15,""),"") -> 990 | AM15: =IF(Table12[[#This Row],[S11]]<>"",IF(Table12[[#This Row],[S11]]+$Z15<=$Y15,Table12[[#This Row],[S11]]+$Z15,""),"") -> 1080 | AN15: =IF(Table12[[#This Row],[S12]]<>"",IF(Table12[[#This Row],[S12]]+$Z15<=$Y15,Table12[[#This Row],[S12]]+$Z15,""),"") -> 1170 | AO15: =IF(Table12[[#This Row],[S13]]<>"",IF(Table12[[#This Row],[S13]]+$Z15<=$Y15,Table12[[#This Row],[S13]]+$Z15,""),"") -> 1260 | AP15: =IF(Table12[[#This Row],[S14]]<>"",IF(Table12[[#This Row],[S14]]+$Z15<=$Y15,Table12[[#This Row],[S14]]+$Z15,""),"") -> 1350 | AQ15: =IF(Table12[[#This Row],[S15]]<>"",IF(Table12[[#This Row],[S15]]+$Z15<=$Y15,Table12[[#This Row],[S15]]+$Z15,""),"") -> 1440 | AR15: =IF(Table12[[#This Row],[S16]]<>"",IF(Table12[[#This Row],[S16]]+$Z15<=$Y15,Table12[[#This Row],[S16]]+$Z15,""),"") -> 1530 | AS15: =IF(Table12[[#This Row],[S17]]<>"",IF(Table12[[#This Row],[S17]]+$Z15<=$Y15,Table12[[#This Row],[S17]]+$Z15,""),"") -> 1620 | AT15: =IF(Table12[[#This Row],[S18]]<>"",IF(Table12[[#This Row],[S18]]+$Z15<=$Y15,Table12[[#This Row],[S18]]+$Z15,""),"") -> 1710 | AU15: =IF(Table12[[#This Row],[S19]]<>"",IF(Table12[[#This Row],[S19]]+$Z15<=$Y15,Table12[[#This Row],[S19]]+$Z15,""),"") -> 
A16: Greece | B16: =ROUNDDOWN(_xlfn.XLOOKUP(A16,C_CALC[Country],C_CALC[Max. Wind]),-1) -> 290 | C16: =ROUNDUP(Table12[[#This Row],[W-Max]]/20,-1) -> 20 | D16: 0 | E16: =Table12[[#This Row],[W0]]+Table12[[#This Row],[W-Stps]] -> 20 | F16: =IF(Table12[[#This Row],[W1]]<>"",IF(Table12[[#This Row],[W1]]+$C16<=$B16,Table12[[#This Row],[W1]]+$C16,""),"") -> 40 | G16: =IF(Table12[[#This Row],[W2]]<>"",IF(Table12[[#This Row],[W2]]+$C16<=$B16,Table12[[#This Row],[W2]]+$C16,""),"") -> 60 | H16: =IF(Table12[[#This Row],[W3]]<>"",IF(Table12[[#This Row],[W3]]+$C16<=$B16,Table12[[#This Row],[W3]]+$C16,""),"") -> 80 | I16: =IF(Table12[[#This Row],[W4]]<>"",IF(Table12[[#This Row],[W4]]+$C16<=$B16,Table12[[#This Row],[W4]]+$C16,""),"") -> 100 | J16: =IF(Table12[[#This Row],[W5]]<>"",IF(Table12[[#This Row],[W5]]+$C16<=$B16,Table12[[#This Row],[W5]]+$C16,""),"") -> 120 | K16: =IF(Table12[[#This Row],[W6]]<>"",IF(Table12[[#This Row],[W6]]+$C16<=$B16,Table12[[#This Row],[W6]]+$C16,""),"") -> 140 | L16: =IF(Table12[[#This Row],[W7]]<>"",IF(Table12[[#This Row],[W7]]+$C16<=$B16,Table12[[#This Row],[W7]]+$C16,""),"") -> 160 | M16: =IF(Table12[[#This Row],[W8]]<>"",IF(Table12[[#This Row],[W8]]+$C16<=$B16,Table12[[#This Row],[W8]]+$C16,""),"") -> 180 | N16: =IF(Table12[[#This Row],[W9]]<>"",IF(Table12[[#This Row],[W9]]+$C16<=$B16,Table12[[#This Row],[W9]]+$C16,""),"") -> 200 | O16: =IF(Table12[[#This Row],[W10]]<>"",IF(Table12[[#This Row],[W10]]+$C16<=$B16,Table12[[#This Row],[W10]]+$C16,""),"") -> 220 | P16: =IF(Table12[[#This Row],[W11]]<>"",IF(Table12[[#This Row],[W11]]+$C16<=$B16,Table12[[#This Row],[W11]]+$C16,""),"") -> 240 | Q16: =IF(Table12[[#This Row],[W12]]<>"",IF(Table12[[#This Row],[W12]]+$C16<=$B16,Table12[[#This Row],[W12]]+$C16,""),"") -> 260 | R16: =IF(Table12[[#This Row],[W13]]<>"",IF(Table12[[#This Row],[W13]]+$C16<=$B16,Table12[[#This Row],[W13]]+$C16,""),"") -> 280 | S16: =IF(Table12[[#This Row],[W14]]<>"",IF(Table12[[#This Row],[W14]]+$C16<=$B16,Table12[[#This Row],[W14]]+$C16,""),"") ->  | T16: =IF(Table12[[#This Row],[W15]]<>"",IF(Table12[[#This Row],[W15]]+$C16<=$B16,Table12[[#This Row],[W15]]+$C16,""),"") ->  | U16: =IF(Table12[[#This Row],[W16]]<>"",IF(Table12[[#This Row],[W16]]+$C16<=$B16,Table12[[#This Row],[W16]]+$C16,""),"") ->  | V16: =IF(Table12[[#This Row],[W17]]<>"",IF(Table12[[#This Row],[W17]]+$C16<=$B16,Table12[[#This Row],[W17]]+$C16,""),"") ->  | W16: =IF(Table12[[#This Row],[W18]]<>"",IF(Table12[[#This Row],[W18]]+$C16<=$B16,Table12[[#This Row],[W18]]+$C16,""),"") ->  | X16: =IF(Table12[[#This Row],[W19]]<>"",IF(Table12[[#This Row],[W19]]+$C16<=$B16,Table12[[#This Row],[W19]]+$C16,""),"") ->  | Y16: =ROUNDDOWN(_xlfn.XLOOKUP(Table12[[#This Row],[Country]],C_CALC[Country],C_CALC[Max Solar]),-1) -> 1310 | Z16: =ROUNDUP(Table12[[#This Row],[S-Max]]/20,-1) -> 70 | AA16: 0 | AB16: =Table12[[#This Row],[S0]]+Table12[[#This Row],[S-Stps]] -> 70 | AC16: =IF(Table12[[#This Row],[S1]]<>"",IF(Table12[[#This Row],[S1]]+$Z16<=$Y16,Table12[[#This Row],[S1]]+$Z16,""),"") -> 140 | AD16: =IF(Table12[[#This Row],[S2]]<>"",IF(Table12[[#This Row],[S2]]+$Z16<=$Y16,Table12[[#This Row],[S2]]+$Z16,""),"") -> 210 | AE16: =IF(Table12[[#This Row],[S3]]<>"",IF(Table12[[#This Row],[S3]]+$Z16<=$Y16,Table12[[#This Row],[S3]]+$Z16,""),"") -> 280 | AF16: =IF(Table12[[#This Row],[S4]]<>"",IF(Table12[[#This Row],[S4]]+$Z16<=$Y16,Table12[[#This Row],[S4]]+$Z16,""),"") -> 350 | AG16: =IF(Table12[[#This Row],[S5]]<>"",IF(Table12[[#This Row],[S5]]+$Z16<=$Y16,Table12[[#This Row],[S5]]+$Z16,""),"") -> 420 | AH16: =IF(Table12[[#This Row],[S6]]<>"",IF(Table12[[#This Row],[S6]]+$Z16<=$Y16,Table12[[#This Row],[S6]]+$Z16,""),"") -> 490 | AI16: =IF(Table12[[#This Row],[S7]]<>"",IF(Table12[[#This Row],[S7]]+$Z16<=$Y16,Table12[[#This Row],[S7]]+$Z16,""),"") -> 560 | AJ16: =IF(Table12[[#This Row],[S8]]<>"",IF(Table12[[#This Row],[S8]]+$Z16<=$Y16,Table12[[#This Row],[S8]]+$Z16,""),"") -> 630 | AK16: =IF(Table12[[#This Row],[S9]]<>"",IF(Table12[[#This Row],[S9]]+$Z16<=$Y16,Table12[[#This Row],[S9]]+$Z16,""),"") -> 700 | AL16: =IF(Table12[[#This Row],[S10]]<>"",IF(Table12[[#This Row],[S10]]+$Z16<=$Y16,Table12[[#This Row],[S10]]+$Z16,""),"") -> 770 | AM16: =IF(Table12[[#This Row],[S11]]<>"",IF(Table12[[#This Row],[S11]]+$Z16<=$Y16,Table12[[#This Row],[S11]]+$Z16,""),"") -> 840 | AN16: =IF(Table12[[#This Row],[S12]]<>"",IF(Table12[[#This Row],[S12]]+$Z16<=$Y16,Table12[[#This Row],[S12]]+$Z16,""),"") -> 910 | AO16: =IF(Table12[[#This Row],[S13]]<>"",IF(Table12[[#This Row],[S13]]+$Z16<=$Y16,Table12[[#This Row],[S13]]+$Z16,""),"") -> 980 | AP16: =IF(Table12[[#This Row],[S14]]<>"",IF(Table12[[#This Row],[S14]]+$Z16<=$Y16,Table12[[#This Row],[S14]]+$Z16,""),"") -> 1050 | AQ16: =IF(Table12[[#This Row],[S15]]<>"",IF(Table12[[#This Row],[S15]]+$Z16<=$Y16,Table12[[#This Row],[S15]]+$Z16,""),"") -> 1120 | AR16: =IF(Table12[[#This Row],[S16]]<>"",IF(Table12[[#This Row],[S16]]+$Z16<=$Y16,Table12[[#This Row],[S16]]+$Z16,""),"") -> 1190 | AS16: =IF(Table12[[#This Row],[S17]]<>"",IF(Table12[[#This Row],[S17]]+$Z16<=$Y16,Table12[[#This Row],[S17]]+$Z16,""),"") -> 1260 | AT16: =IF(Table12[[#This Row],[S18]]<>"",IF(Table12[[#This Row],[S18]]+$Z16<=$Y16,Table12[[#This Row],[S18]]+$Z16,""),"") ->  | AU16: =IF(Table12[[#This Row],[S19]]<>"",IF(Table12[[#This Row],[S19]]+$Z16<=$Y16,Table12[[#This Row],[S19]]+$Z16,""),"") -> 
A17: Hungaria | B17: =ROUNDDOWN(_xlfn.XLOOKUP(A17,C_CALC[Country],C_CALC[Max. Wind]),-1) -> 200 | C17: =ROUNDUP(Table12[[#This Row],[W-Max]]/20,-1) -> 10 | D17: 0 | E17: =Table12[[#This Row],[W0]]+Table12[[#This Row],[W-Stps]] -> 10 | F17: =IF(Table12[[#This Row],[W1]]<>"",IF(Table12[[#This Row],[W1]]+$C17<=$B17,Table12[[#This Row],[W1]]+$C17,""),"") -> 20 | G17: =IF(Table12[[#This Row],[W2]]<>"",IF(Table12[[#This Row],[W2]]+$C17<=$B17,Table12[[#This Row],[W2]]+$C17,""),"") -> 30 | H17: =IF(Table12[[#This Row],[W3]]<>"",IF(Table12[[#This Row],[W3]]+$C17<=$B17,Table12[[#This Row],[W3]]+$C17,""),"") -> 40 | I17: =IF(Table12[[#This Row],[W4]]<>"",IF(Table12[[#This Row],[W4]]+$C17<=$B17,Table12[[#This Row],[W4]]+$C17,""),"") -> 50 | J17: =IF(Table12[[#This Row],[W5]]<>"",IF(Table12[[#This Row],[W5]]+$C17<=$B17,Table12[[#This Row],[W5]]+$C17,""),"") -> 60 | K17: =IF(Table12[[#This Row],[W6]]<>"",IF(Table12[[#This Row],[W6]]+$C17<=$B17,Table12[[#This Row],[W6]]+$C17,""),"") -> 70 | L17: =IF(Table12[[#This Row],[W7]]<>"",IF(Table12[[#This Row],[W7]]+$C17<=$B17,Table12[[#This Row],[W7]]+$C17,""),"") -> 80 | M17: =IF(Table12[[#This Row],[W8]]<>"",IF(Table12[[#This Row],[W8]]+$C17<=$B17,Table12[[#This Row],[W8]]+$C17,""),"") -> 90 | N17: =IF(Table12[[#This Row],[W9]]<>"",IF(Table12[[#This Row],[W9]]+$C17<=$B17,Table12[[#This Row],[W9]]+$C17,""),"") -> 100 | O17: =IF(Table12[[#This Row],[W10]]<>"",IF(Table12[[#This Row],[W10]]+$C17<=$B17,Table12[[#This Row],[W10]]+$C17,""),"") -> 110 | P17: =IF(Table12[[#This Row],[W11]]<>"",IF(Table12[[#This Row],[W11]]+$C17<=$B17,Table12[[#This Row],[W11]]+$C17,""),"") -> 120 | Q17: =IF(Table12[[#This Row],[W12]]<>"",IF(Table12[[#This Row],[W12]]+$C17<=$B17,Table12[[#This Row],[W12]]+$C17,""),"") -> 130 | R17: =IF(Table12[[#This Row],[W13]]<>"",IF(Table12[[#This Row],[W13]]+$C17<=$B17,Table12[[#This Row],[W13]]+$C17,""),"") -> 140 | S17: =IF(Table12[[#This Row],[W14]]<>"",IF(Table12[[#This Row],[W14]]+$C17<=$B17,Table12[[#This Row],[W14]]+$C17,""),"") -> 150 | T17: =IF(Table12[[#This Row],[W15]]<>"",IF(Table12[[#This Row],[W15]]+$C17<=$B17,Table12[[#This Row],[W15]]+$C17,""),"") -> 160 | U17: =IF(Table12[[#This Row],[W16]]<>"",IF(Table12[[#This Row],[W16]]+$C17<=$B17,Table12[[#This Row],[W16]]+$C17,""),"") -> 170 | V17: =IF(Table12[[#This Row],[W17]]<>"",IF(Table12[[#This Row],[W17]]+$C17<=$B17,Table12[[#This Row],[W17]]+$C17,""),"") -> 180 | W17: =IF(Table12[[#This Row],[W18]]<>"",IF(Table12[[#This Row],[W18]]+$C17<=$B17,Table12[[#This Row],[W18]]+$C17,""),"") -> 190 | X17: =IF(Table12[[#This Row],[W19]]<>"",IF(Table12[[#This Row],[W19]]+$C17<=$B17,Table12[[#This Row],[W19]]+$C17,""),"") -> 200 | Y17: =ROUNDDOWN(_xlfn.XLOOKUP(Table12[[#This Row],[Country]],C_CALC[Country],C_CALC[Max Solar]),-1) -> 930 | Z17: =ROUNDUP(Table12[[#This Row],[S-Max]]/20,-1) -> 50 | AA17: 0 | AB17: =Table12[[#This Row],[S0]]+Table12[[#This Row],[S-Stps]] -> 50 | AC17: =IF(Table12[[#This Row],[S1]]<>"",IF(Table12[[#This Row],[S1]]+$Z17<=$Y17,Table12[[#This Row],[S1]]+$Z17,""),"") -> 100 | AD17: =IF(Table12[[#This Row],[S2]]<>"",IF(Table12[[#This Row],[S2]]+$Z17<=$Y17,Table12[[#This Row],[S2]]+$Z17,""),"") -> 150 | AE17: =IF(Table12[[#This Row],[S3]]<>"",IF(Table12[[#This Row],[S3]]+$Z17<=$Y17,Table12[[#This Row],[S3]]+$Z17,""),"") -> 200 | AF17: =IF(Table12[[#This Row],[S4]]<>"",IF(Table12[[#This Row],[S4]]+$Z17<=$Y17,Table12[[#This Row],[S4]]+$Z17,""),"") -> 250 | AG17: =IF(Table12[[#This Row],[S5]]<>"",IF(Table12[[#This Row],[S5]]+$Z17<=$Y17,Table12[[#This Row],[S5]]+$Z17,""),"") -> 300 | AH17: =IF(Table12[[#This Row],[S6]]<>"",IF(Table12[[#This Row],[S6]]+$Z17<=$Y17,Table12[[#This Row],[S6]]+$Z17,""),"") -> 350 | AI17: =IF(Table12[[#This Row],[S7]]<>"",IF(Table12[[#This Row],[S7]]+$Z17<=$Y17,Table12[[#This Row],[S7]]+$Z17,""),"") -> 400 | AJ17: =IF(Table12[[#This Row],[S8]]<>"",IF(Table12[[#This Row],[S8]]+$Z17<=$Y17,Table12[[#This Row],[S8]]+$Z17,""),"") -> 450 | AK17: =IF(Table12[[#This Row],[S9]]<>"",IF(Table12[[#This Row],[S9]]+$Z17<=$Y17,Table12[[#This Row],[S9]]+$Z17,""),"") -> 500 | AL17: =IF(Table12[[#This Row],[S10]]<>"",IF(Table12[[#This Row],[S10]]+$Z17<=$Y17,Table12[[#This Row],[S10]]+$Z17,""),"") -> 550 | AM17: =IF(Table12[[#This Row],[S11]]<>"",IF(Table12[[#This Row],[S11]]+$Z17<=$Y17,Table12[[#This Row],[S11]]+$Z17,""),"") -> 600 | AN17: =IF(Table12[[#This Row],[S12]]<>"",IF(Table12[[#This Row],[S12]]+$Z17<=$Y17,Table12[[#This Row],[S12]]+$Z17,""),"") -> 650 | AO17: =IF(Table12[[#This Row],[S13]]<>"",IF(Table12[[#This Row],[S13]]+$Z17<=$Y17,Table12[[#This Row],[S13]]+$Z17,""),"") -> 700 | AP17: =IF(Table12[[#This Row],[S14]]<>"",IF(Table12[[#This Row],[S14]]+$Z17<=$Y17,Table12[[#This Row],[S14]]+$Z17,""),"") -> 750 | AQ17: =IF(Table12[[#This Row],[S15]]<>"",IF(Table12[[#This Row],[S15]]+$Z17<=$Y17,Table12[[#This Row],[S15]]+$Z17,""),"") -> 800 | AR17: =IF(Table12[[#This Row],[S16]]<>"",IF(Table12[[#This Row],[S16]]+$Z17<=$Y17,Table12[[#This Row],[S16]]+$Z17,""),"") -> 850 | AS17: =IF(Table12[[#This Row],[S17]]<>"",IF(Table12[[#This Row],[S17]]+$Z17<=$Y17,Table12[[#This Row],[S17]]+$Z17,""),"") -> 900 | AT17: =IF(Table12[[#This Row],[S18]]<>"",IF(Table12[[#This Row],[S18]]+$Z17<=$Y17,Table12[[#This Row],[S18]]+$Z17,""),"") ->  | AU17: =IF(Table12[[#This Row],[S19]]<>"",IF(Table12[[#This Row],[S19]]+$Z17<=$Y17,Table12[[#This Row],[S19]]+$Z17,""),"") -> 
A18: Ireland | B18: =ROUNDDOWN(_xlfn.XLOOKUP(A18,C_CALC[Country],C_CALC[Max. Wind]),-1) -> 150 | C18: =ROUNDUP(Table12[[#This Row],[W-Max]]/20,-1) -> 10 | D18: 0 | E18: =Table12[[#This Row],[W0]]+Table12[[#This Row],[W-Stps]] -> 10 | F18: =IF(Table12[[#This Row],[W1]]<>"",IF(Table12[[#This Row],[W1]]+$C18<=$B18,Table12[[#This Row],[W1]]+$C18,""),"") -> 20 | G18: =IF(Table12[[#This Row],[W2]]<>"",IF(Table12[[#This Row],[W2]]+$C18<=$B18,Table12[[#This Row],[W2]]+$C18,""),"") -> 30 | H18: =IF(Table12[[#This Row],[W3]]<>"",IF(Table12[[#This Row],[W3]]+$C18<=$B18,Table12[[#This Row],[W3]]+$C18,""),"") -> 40 | I18: =IF(Table12[[#This Row],[W4]]<>"",IF(Table12[[#This Row],[W4]]+$C18<=$B18,Table12[[#This Row],[W4]]+$C18,""),"") -> 50 | J18: =IF(Table12[[#This Row],[W5]]<>"",IF(Table12[[#This Row],[W5]]+$C18<=$B18,Table12[[#This Row],[W5]]+$C18,""),"") -> 60 | K18: =IF(Table12[[#This Row],[W6]]<>"",IF(Table12[[#This Row],[W6]]+$C18<=$B18,Table12[[#This Row],[W6]]+$C18,""),"") -> 70 | L18: =IF(Table12[[#This Row],[W7]]<>"",IF(Table12[[#This Row],[W7]]+$C18<=$B18,Table12[[#This Row],[W7]]+$C18,""),"") -> 80 | M18: =IF(Table12[[#This Row],[W8]]<>"",IF(Table12[[#This Row],[W8]]+$C18<=$B18,Table12[[#This Row],[W8]]+$C18,""),"") -> 90 | N18: =IF(Table12[[#This Row],[W9]]<>"",IF(Table12[[#This Row],[W9]]+$C18<=$B18,Table12[[#This Row],[W9]]+$C18,""),"") -> 100 | O18: =IF(Table12[[#This Row],[W10]]<>"",IF(Table12[[#This Row],[W10]]+$C18<=$B18,Table12[[#This Row],[W10]]+$C18,""),"") -> 110 | P18: =IF(Table12[[#This Row],[W11]]<>"",IF(Table12[[#This Row],[W11]]+$C18<=$B18,Table12[[#This Row],[W11]]+$C18,""),"") -> 120 | Q18: =IF(Table12[[#This Row],[W12]]<>"",IF(Table12[[#This Row],[W12]]+$C18<=$B18,Table12[[#This Row],[W12]]+$C18,""),"") -> 130 | R18: =IF(Table12[[#This Row],[W13]]<>"",IF(Table12[[#This Row],[W13]]+$C18<=$B18,Table12[[#This Row],[W13]]+$C18,""),"") -> 140 | S18: =IF(Table12[[#This Row],[W14]]<>"",IF(Table12[[#This Row],[W14]]+$C18<=$B18,Table12[[#This Row],[W14]]+$C18,""),"") -> 150 | T18: =IF(Table12[[#This Row],[W15]]<>"",IF(Table12[[#This Row],[W15]]+$C18<=$B18,Table12[[#This Row],[W15]]+$C18,""),"") ->  | U18: =IF(Table12[[#This Row],[W16]]<>"",IF(Table12[[#This Row],[W16]]+$C18<=$B18,Table12[[#This Row],[W16]]+$C18,""),"") ->  | V18: =IF(Table12[[#This Row],[W17]]<>"",IF(Table12[[#This Row],[W17]]+$C18<=$B18,Table12[[#This Row],[W17]]+$C18,""),"") ->  | W18: =IF(Table12[[#This Row],[W18]]<>"",IF(Table12[[#This Row],[W18]]+$C18<=$B18,Table12[[#This Row],[W18]]+$C18,""),"") ->  | X18: =IF(Table12[[#This Row],[W19]]<>"",IF(Table12[[#This Row],[W19]]+$C18<=$B18,Table12[[#This Row],[W19]]+$C18,""),"") ->  | Y18: =ROUNDDOWN(_xlfn.XLOOKUP(Table12[[#This Row],[Country]],C_CALC[Country],C_CALC[Max Solar]),-1) -> 700 | Z18: =ROUNDUP(Table12[[#This Row],[S-Max]]/20,-1) -> 40 | AA18: 0 | AB18: =Table12[[#This Row],[S0]]+Table12[[#This Row],[S-Stps]] -> 40 | AC18: =IF(Table12[[#This Row],[S1]]<>"",IF(Table12[[#This Row],[S1]]+$Z18<=$Y18,Table12[[#This Row],[S1]]+$Z18,""),"") -> 80 | AD18: =IF(Table12[[#This Row],[S2]]<>"",IF(Table12[[#This Row],[S2]]+$Z18<=$Y18,Table12[[#This Row],[S2]]+$Z18,""),"") -> 120 | AE18: =IF(Table12[[#This Row],[S3]]<>"",IF(Table12[[#This Row],[S3]]+$Z18<=$Y18,Table12[[#This Row],[S3]]+$Z18,""),"") -> 160 | AF18: =IF(Table12[[#This Row],[S4]]<>"",IF(Table12[[#This Row],[S4]]+$Z18<=$Y18,Table12[[#This Row],[S4]]+$Z18,""),"") -> 200 | AG18: =IF(Table12[[#This Row],[S5]]<>"",IF(Table12[[#This Row],[S5]]+$Z18<=$Y18,Table12[[#This Row],[S5]]+$Z18,""),"") -> 240 | AH18: =IF(Table12[[#This Row],[S6]]<>"",IF(Table12[[#This Row],[S6]]+$Z18<=$Y18,Table12[[#This Row],[S6]]+$Z18,""),"") -> 280 | AI18: =IF(Table12[[#This Row],[S7]]<>"",IF(Table12[[#This Row],[S7]]+$Z18<=$Y18,Table12[[#This Row],[S7]]+$Z18,""),"") -> 320 | AJ18: =IF(Table12[[#This Row],[S8]]<>"",IF(Table12[[#This Row],[S8]]+$Z18<=$Y18,Table12[[#This Row],[S8]]+$Z18,""),"") -> 360 | AK18: =IF(Table12[[#This Row],[S9]]<>"",IF(Table12[[#This Row],[S9]]+$Z18<=$Y18,Table12[[#This Row],[S9]]+$Z18,""),"") -> 400 | AL18: =IF(Table12[[#This Row],[S10]]<>"",IF(Table12[[#This Row],[S10]]+$Z18<=$Y18,Table12[[#This Row],[S10]]+$Z18,""),"") -> 440 | AM18: =IF(Table12[[#This Row],[S11]]<>"",IF(Table12[[#This Row],[S11]]+$Z18<=$Y18,Table12[[#This Row],[S11]]+$Z18,""),"") -> 480 | AN18: =IF(Table12[[#This Row],[S12]]<>"",IF(Table12[[#This Row],[S12]]+$Z18<=$Y18,Table12[[#This Row],[S12]]+$Z18,""),"") -> 520 | AO18: =IF(Table12[[#This Row],[S13]]<>"",IF(Table12[[#This Row],[S13]]+$Z18<=$Y18,Table12[[#This Row],[S13]]+$Z18,""),"") -> 560 | AP18: =IF(Table12[[#This Row],[S14]]<>"",IF(Table12[[#This Row],[S14]]+$Z18<=$Y18,Table12[[#This Row],[S14]]+$Z18,""),"") -> 600 | AQ18: =IF(Table12[[#This Row],[S15]]<>"",IF(Table12[[#This Row],[S15]]+$Z18<=$Y18,Table12[[#This Row],[S15]]+$Z18,""),"") -> 640 | AR18: =IF(Table12[[#This Row],[S16]]<>"",IF(Table12[[#This Row],[S16]]+$Z18<=$Y18,Table12[[#This Row],[S16]]+$Z18,""),"") -> 680 | AS18: =IF(Table12[[#This Row],[S17]]<>"",IF(Table12[[#This Row],[S17]]+$Z18<=$Y18,Table12[[#This Row],[S17]]+$Z18,""),"") ->  | AT18: =IF(Table12[[#This Row],[S18]]<>"",IF(Table12[[#This Row],[S18]]+$Z18<=$Y18,Table12[[#This Row],[S18]]+$Z18,""),"") ->  | AU18: =IF(Table12[[#This Row],[S19]]<>"",IF(Table12[[#This Row],[S19]]+$Z18<=$Y18,Table12[[#This Row],[S19]]+$Z18,""),"") -> 
A19: Italy (North) | B19: =ROUNDDOWN(_xlfn.XLOOKUP(A19,C_CALC[Country],C_CALC[Max. Wind]),-1) -> 330 | C19: =ROUNDUP(Table12[[#This Row],[W-Max]]/20,-1) -> 20 | D19: 0 | E19: =Table12[[#This Row],[W0]]+Table12[[#This Row],[W-Stps]] -> 20 | F19: =IF(Table12[[#This Row],[W1]]<>"",IF(Table12[[#This Row],[W1]]+$C19<=$B19,Table12[[#This Row],[W1]]+$C19,""),"") -> 40 | G19: =IF(Table12[[#This Row],[W2]]<>"",IF(Table12[[#This Row],[W2]]+$C19<=$B19,Table12[[#This Row],[W2]]+$C19,""),"") -> 60 | H19: =IF(Table12[[#This Row],[W3]]<>"",IF(Table12[[#This Row],[W3]]+$C19<=$B19,Table12[[#This Row],[W3]]+$C19,""),"") -> 80 | I19: =IF(Table12[[#This Row],[W4]]<>"",IF(Table12[[#This Row],[W4]]+$C19<=$B19,Table12[[#This Row],[W4]]+$C19,""),"") -> 100 | J19: =IF(Table12[[#This Row],[W5]]<>"",IF(Table12[[#This Row],[W5]]+$C19<=$B19,Table12[[#This Row],[W5]]+$C19,""),"") -> 120 | K19: =IF(Table12[[#This Row],[W6]]<>"",IF(Table12[[#This Row],[W6]]+$C19<=$B19,Table12[[#This Row],[W6]]+$C19,""),"") -> 140 | L19: =IF(Table12[[#This Row],[W7]]<>"",IF(Table12[[#This Row],[W7]]+$C19<=$B19,Table12[[#This Row],[W7]]+$C19,""),"") -> 160 | M19: =IF(Table12[[#This Row],[W8]]<>"",IF(Table12[[#This Row],[W8]]+$C19<=$B19,Table12[[#This Row],[W8]]+$C19,""),"") -> 180 | N19: =IF(Table12[[#This Row],[W9]]<>"",IF(Table12[[#This Row],[W9]]+$C19<=$B19,Table12[[#This Row],[W9]]+$C19,""),"") -> 200 | O19: =IF(Table12[[#This Row],[W10]]<>"",IF(Table12[[#This Row],[W10]]+$C19<=$B19,Table12[[#This Row],[W10]]+$C19,""),"") -> 220 | P19: =IF(Table12[[#This Row],[W11]]<>"",IF(Table12[[#This Row],[W11]]+$C19<=$B19,Table12[[#This Row],[W11]]+$C19,""),"") -> 240 | Q19: =IF(Table12[[#This Row],[W12]]<>"",IF(Table12[[#This Row],[W12]]+$C19<=$B19,Table12[[#This Row],[W12]]+$C19,""),"") -> 260 | R19: =IF(Table12[[#This Row],[W13]]<>"",IF(Table12[[#This Row],[W13]]+$C19<=$B19,Table12[[#This Row],[W13]]+$C19,""),"") -> 280 | S19: =IF(Table12[[#This Row],[W14]]<>"",IF(Table12[[#This Row],[W14]]+$C19<=$B19,Table12[[#This Row],[W14]]+$C19,""),"") -> 300 | T19: =IF(Table12[[#This Row],[W15]]<>"",IF(Table12[[#This Row],[W15]]+$C19<=$B19,Table12[[#This Row],[W15]]+$C19,""),"") -> 320 | U19: =IF(Table12[[#This Row],[W16]]<>"",IF(Table12[[#This Row],[W16]]+$C19<=$B19,Table12[[#This Row],[W16]]+$C19,""),"") ->  | V19: =IF(Table12[[#This Row],[W17]]<>"",IF(Table12[[#This Row],[W17]]+$C19<=$B19,Table12[[#This Row],[W17]]+$C19,""),"") ->  | W19: =IF(Table12[[#This Row],[W18]]<>"",IF(Table12[[#This Row],[W18]]+$C19<=$B19,Table12[[#This Row],[W18]]+$C19,""),"") ->  | X19: =IF(Table12[[#This Row],[W19]]<>"",IF(Table12[[#This Row],[W19]]+$C19<=$B19,Table12[[#This Row],[W19]]+$C19,""),"") ->  | Y19: =ROUNDDOWN(_xlfn.XLOOKUP(Table12[[#This Row],[Country]],C_CALC[Country],C_CALC[Max Solar]),-1) -> 1500 | Z19: =ROUNDUP(Table12[[#This Row],[S-Max]]/20,-1) -> 80 | AA19: 0 | AB19: =Table12[[#This Row],[S0]]+Table12[[#This Row],[S-Stps]] -> 80 | AC19: =IF(Table12[[#This Row],[S1]]<>"",IF(Table12[[#This Row],[S1]]+$Z19<=$Y19,Table12[[#This Row],[S1]]+$Z19,""),"") -> 160 | AD19: =IF(Table12[[#This Row],[S2]]<>"",IF(Table12[[#This Row],[S2]]+$Z19<=$Y19,Table12[[#This Row],[S2]]+$Z19,""),"") -> 240 | AE19: =IF(Table12[[#This Row],[S3]]<>"",IF(Table12[[#This Row],[S3]]+$Z19<=$Y19,Table12[[#This Row],[S3]]+$Z19,""),"") -> 320 | AF19: =IF(Table12[[#This Row],[S4]]<>"",IF(Table12[[#This Row],[S4]]+$Z19<=$Y19,Table12[[#This Row],[S4]]+$Z19,""),"") -> 400 | AG19: =IF(Table12[[#This Row],[S5]]<>"",IF(Table12[[#This Row],[S5]]+$Z19<=$Y19,Table12[[#This Row],[S5]]+$Z19,""),"") -> 480 | AH19: =IF(Table12[[#This Row],[S6]]<>"",IF(Table12[[#This Row],[S6]]+$Z19<=$Y19,Table12[[#This Row],[S6]]+$Z19,""),"") -> 560 | AI19: =IF(Table12[[#This Row],[S7]]<>"",IF(Table12[[#This Row],[S7]]+$Z19<=$Y19,Table12[[#This Row],[S7]]+$Z19,""),"") -> 640 | AJ19: =IF(Table12[[#This Row],[S8]]<>"",IF(Table12[[#This Row],[S8]]+$Z19<=$Y19,Table12[[#This Row],[S8]]+$Z19,""),"") -> 720 | AK19: =IF(Table12[[#This Row],[S9]]<>"",IF(Table12[[#This Row],[S9]]+$Z19<=$Y19,Table12[[#This Row],[S9]]+$Z19,""),"") -> 800 | AL19: =IF(Table12[[#This Row],[S10]]<>"",IF(Table12[[#This Row],[S10]]+$Z19<=$Y19,Table12[[#This Row],[S10]]+$Z19,""),"") -> 880 | AM19: =IF(Table12[[#This Row],[S11]]<>"",IF(Table12[[#This Row],[S11]]+$Z19<=$Y19,Table12[[#This Row],[S11]]+$Z19,""),"") -> 960 | AN19: =IF(Table12[[#This Row],[S12]]<>"",IF(Table12[[#This Row],[S12]]+$Z19<=$Y19,Table12[[#This Row],[S12]]+$Z19,""),"") -> 1040 | AO19: =IF(Table12[[#This Row],[S13]]<>"",IF(Table12[[#This Row],[S13]]+$Z19<=$Y19,Table12[[#This Row],[S13]]+$Z19,""),"") -> 1120 | AP19: =IF(Table12[[#This Row],[S14]]<>"",IF(Table12[[#This Row],[S14]]+$Z19<=$Y19,Table12[[#This Row],[S14]]+$Z19,""),"") -> 1200 | AQ19: =IF(Table12[[#This Row],[S15]]<>"",IF(Table12[[#This Row],[S15]]+$Z19<=$Y19,Table12[[#This Row],[S15]]+$Z19,""),"") -> 1280 | AR19: =IF(Table12[[#This Row],[S16]]<>"",IF(Table12[[#This Row],[S16]]+$Z19<=$Y19,Table12[[#This Row],[S16]]+$Z19,""),"") -> 1360 | AS19: =IF(Table12[[#This Row],[S17]]<>"",IF(Table12[[#This Row],[S17]]+$Z19<=$Y19,Table12[[#This Row],[S17]]+$Z19,""),"") -> 1440 | AT19: =IF(Table12[[#This Row],[S18]]<>"",IF(Table12[[#This Row],[S18]]+$Z19<=$Y19,Table12[[#This Row],[S18]]+$Z19,""),"") ->  | AU19: =IF(Table12[[#This Row],[S19]]<>"",IF(Table12[[#This Row],[S19]]+$Z19<=$Y19,Table12[[#This Row],[S19]]+$Z19,""),"") -> 
A20: Italy (South) | B20: =ROUNDDOWN(_xlfn.XLOOKUP(A20,C_CALC[Country],C_CALC[Max. Wind]),-1) -> 330 | C20: =ROUNDUP(Table12[[#This Row],[W-Max]]/20,-1) -> 20 | D20: 0 | E20: =Table12[[#This Row],[W0]]+Table12[[#This Row],[W-Stps]] -> 20 | F20: =IF(Table12[[#This Row],[W1]]<>"",IF(Table12[[#This Row],[W1]]+$C20<=$B20,Table12[[#This Row],[W1]]+$C20,""),"") -> 40 | G20: =IF(Table12[[#This Row],[W2]]<>"",IF(Table12[[#This Row],[W2]]+$C20<=$B20,Table12[[#This Row],[W2]]+$C20,""),"") -> 60 | H20: =IF(Table12[[#This Row],[W3]]<>"",IF(Table12[[#This Row],[W3]]+$C20<=$B20,Table12[[#This Row],[W3]]+$C20,""),"") -> 80 | I20: =IF(Table12[[#This Row],[W4]]<>"",IF(Table12[[#This Row],[W4]]+$C20<=$B20,Table12[[#This Row],[W4]]+$C20,""),"") -> 100 | J20: =IF(Table12[[#This Row],[W5]]<>"",IF(Table12[[#This Row],[W5]]+$C20<=$B20,Table12[[#This Row],[W5]]+$C20,""),"") -> 120 | K20: =IF(Table12[[#This Row],[W6]]<>"",IF(Table12[[#This Row],[W6]]+$C20<=$B20,Table12[[#This Row],[W6]]+$C20,""),"") -> 140 | L20: =IF(Table12[[#This Row],[W7]]<>"",IF(Table12[[#This Row],[W7]]+$C20<=$B20,Table12[[#This Row],[W7]]+$C20,""),"") -> 160 | M20: =IF(Table12[[#This Row],[W8]]<>"",IF(Table12[[#This Row],[W8]]+$C20<=$B20,Table12[[#This Row],[W8]]+$C20,""),"") -> 180 | N20: =IF(Table12[[#This Row],[W9]]<>"",IF(Table12[[#This Row],[W9]]+$C20<=$B20,Table12[[#This Row],[W9]]+$C20,""),"") -> 200 | O20: =IF(Table12[[#This Row],[W10]]<>"",IF(Table12[[#This Row],[W10]]+$C20<=$B20,Table12[[#This Row],[W10]]+$C20,""),"") -> 220 | P20: =IF(Table12[[#This Row],[W11]]<>"",IF(Table12[[#This Row],[W11]]+$C20<=$B20,Table12[[#This Row],[W11]]+$C20,""),"") -> 240 | Q20: =IF(Table12[[#This Row],[W12]]<>"",IF(Table12[[#This Row],[W12]]+$C20<=$B20,Table12[[#This Row],[W12]]+$C20,""),"") -> 260 | R20: =IF(Table12[[#This Row],[W13]]<>"",IF(Table12[[#This Row],[W13]]+$C20<=$B20,Table12[[#This Row],[W13]]+$C20,""),"") -> 280 | S20: =IF(Table12[[#This Row],[W14]]<>"",IF(Table12[[#This Row],[W14]]+$C20<=$B20,Table12[[#This Row],[W14]]+$C20,""),"") -> 300 | T20: =IF(Table12[[#This Row],[W15]]<>"",IF(Table12[[#This Row],[W15]]+$C20<=$B20,Table12[[#This Row],[W15]]+$C20,""),"") -> 320 | U20: =IF(Table12[[#This Row],[W16]]<>"",IF(Table12[[#This Row],[W16]]+$C20<=$B20,Table12[[#This Row],[W16]]+$C20,""),"") ->  | V20: =IF(Table12[[#This Row],[W17]]<>"",IF(Table12[[#This Row],[W17]]+$C20<=$B20,Table12[[#This Row],[W17]]+$C20,""),"") ->  | W20: =IF(Table12[[#This Row],[W18]]<>"",IF(Table12[[#This Row],[W18]]+$C20<=$B20,Table12[[#This Row],[W18]]+$C20,""),"") ->  | X20: =IF(Table12[[#This Row],[W19]]<>"",IF(Table12[[#This Row],[W19]]+$C20<=$B20,Table12[[#This Row],[W19]]+$C20,""),"") ->  | Y20: =ROUNDDOWN(_xlfn.XLOOKUP(Table12[[#This Row],[Country]],C_CALC[Country],C_CALC[Max Solar]),-1) -> 1500 | Z20: =ROUNDUP(Table12[[#This Row],[S-Max]]/20,-1) -> 80 | AA20: 0 | AB20: =Table12[[#This Row],[S0]]+Table12[[#This Row],[S-Stps]] -> 80 | AC20: =IF(Table12[[#This Row],[S1]]<>"",IF(Table12[[#This Row],[S1]]+$Z20<=$Y20,Table12[[#This Row],[S1]]+$Z20,""),"") -> 160 | AD20: =IF(Table12[[#This Row],[S2]]<>"",IF(Table12[[#This Row],[S2]]+$Z20<=$Y20,Table12[[#This Row],[S2]]+$Z20,""),"") -> 240 | AE20: =IF(Table12[[#This Row],[S3]]<>"",IF(Table12[[#This Row],[S3]]+$Z20<=$Y20,Table12[[#This Row],[S3]]+$Z20,""),"") -> 320 | AF20: =IF(Table12[[#This Row],[S4]]<>"",IF(Table12[[#This Row],[S4]]+$Z20<=$Y20,Table12[[#This Row],[S4]]+$Z20,""),"") -> 400 | AG20: =IF(Table12[[#This Row],[S5]]<>"",IF(Table12[[#This Row],[S5]]+$Z20<=$Y20,Table12[[#This Row],[S5]]+$Z20,""),"") -> 480 | AH20: =IF(Table12[[#This Row],[S6]]<>"",IF(Table12[[#This Row],[S6]]+$Z20<=$Y20,Table12[[#This Row],[S6]]+$Z20,""),"") -> 560 | AI20: =IF(Table12[[#This Row],[S7]]<>"",IF(Table12[[#This Row],[S7]]+$Z20<=$Y20,Table12[[#This Row],[S7]]+$Z20,""),"") -> 640 | AJ20: =IF(Table12[[#This Row],[S8]]<>"",IF(Table12[[#This Row],[S8]]+$Z20<=$Y20,Table12[[#This Row],[S8]]+$Z20,""),"") -> 720 | AK20: =IF(Table12[[#This Row],[S9]]<>"",IF(Table12[[#This Row],[S9]]+$Z20<=$Y20,Table12[[#This Row],[S9]]+$Z20,""),"") -> 800 | AL20: =IF(Table12[[#This Row],[S10]]<>"",IF(Table12[[#This Row],[S10]]+$Z20<=$Y20,Table12[[#This Row],[S10]]+$Z20,""),"") -> 880 | AM20: =IF(Table12[[#This Row],[S11]]<>"",IF(Table12[[#This Row],[S11]]+$Z20<=$Y20,Table12[[#This Row],[S11]]+$Z20,""),"") -> 960 | AN20: =IF(Table12[[#This Row],[S12]]<>"",IF(Table12[[#This Row],[S12]]+$Z20<=$Y20,Table12[[#This Row],[S12]]+$Z20,""),"") -> 1040 | AO20: =IF(Table12[[#This Row],[S13]]<>"",IF(Table12[[#This Row],[S13]]+$Z20<=$Y20,Table12[[#This Row],[S13]]+$Z20,""),"") -> 1120 | AP20: =IF(Table12[[#This Row],[S14]]<>"",IF(Table12[[#This Row],[S14]]+$Z20<=$Y20,Table12[[#This Row],[S14]]+$Z20,""),"") -> 1200 | AQ20: =IF(Table12[[#This Row],[S15]]<>"",IF(Table12[[#This Row],[S15]]+$Z20<=$Y20,Table12[[#This Row],[S15]]+$Z20,""),"") -> 1280 | AR20: =IF(Table12[[#This Row],[S16]]<>"",IF(Table12[[#This Row],[S16]]+$Z20<=$Y20,Table12[[#This Row],[S16]]+$Z20,""),"") -> 1360 | AS20: =IF(Table12[[#This Row],[S17]]<>"",IF(Table12[[#This Row],[S17]]+$Z20<=$Y20,Table12[[#This Row],[S17]]+$Z20,""),"") -> 1440 | AT20: =IF(Table12[[#This Row],[S18]]<>"",IF(Table12[[#This Row],[S18]]+$Z20<=$Y20,Table12[[#This Row],[S18]]+$Z20,""),"") ->  | AU20: =IF(Table12[[#This Row],[S19]]<>"",IF(Table12[[#This Row],[S19]]+$Z20<=$Y20,Table12[[#This Row],[S19]]+$Z20,""),"") -> 
A21: Latvia | B21: =ROUNDDOWN(_xlfn.XLOOKUP(A21,C_CALC[Country],C_CALC[Max. Wind]),-1) -> 140 | C21: =ROUNDUP(Table12[[#This Row],[W-Max]]/20,-1) -> 10 | D21: 0 | E21: =Table12[[#This Row],[W0]]+Table12[[#This Row],[W-Stps]] -> 10 | F21: =IF(Table12[[#This Row],[W1]]<>"",IF(Table12[[#This Row],[W1]]+$C21<=$B21,Table12[[#This Row],[W1]]+$C21,""),"") -> 20 | G21: =IF(Table12[[#This Row],[W2]]<>"",IF(Table12[[#This Row],[W2]]+$C21<=$B21,Table12[[#This Row],[W2]]+$C21,""),"") -> 30 | H21: =IF(Table12[[#This Row],[W3]]<>"",IF(Table12[[#This Row],[W3]]+$C21<=$B21,Table12[[#This Row],[W3]]+$C21,""),"") -> 40 | I21: =IF(Table12[[#This Row],[W4]]<>"",IF(Table12[[#This Row],[W4]]+$C21<=$B21,Table12[[#This Row],[W4]]+$C21,""),"") -> 50 | J21: =IF(Table12[[#This Row],[W5]]<>"",IF(Table12[[#This Row],[W5]]+$C21<=$B21,Table12[[#This Row],[W5]]+$C21,""),"") -> 60 | K21: =IF(Table12[[#This Row],[W6]]<>"",IF(Table12[[#This Row],[W6]]+$C21<=$B21,Table12[[#This Row],[W6]]+$C21,""),"") -> 70 | L21: =IF(Table12[[#This Row],[W7]]<>"",IF(Table12[[#This Row],[W7]]+$C21<=$B21,Table12[[#This Row],[W7]]+$C21,""),"") -> 80 | M21: =IF(Table12[[#This Row],[W8]]<>"",IF(Table12[[#This Row],[W8]]+$C21<=$B21,Table12[[#This Row],[W8]]+$C21,""),"") -> 90 | N21: =IF(Table12[[#This Row],[W9]]<>"",IF(Table12[[#This Row],[W9]]+$C21<=$B21,Table12[[#This Row],[W9]]+$C21,""),"") -> 100 | O21: =IF(Table12[[#This Row],[W10]]<>"",IF(Table12[[#This Row],[W10]]+$C21<=$B21,Table12[[#This Row],[W10]]+$C21,""),"") -> 110 | P21: =IF(Table12[[#This Row],[W11]]<>"",IF(Table12[[#This Row],[W11]]+$C21<=$B21,Table12[[#This Row],[W11]]+$C21,""),"") -> 120 | Q21: =IF(Table12[[#This Row],[W12]]<>"",IF(Table12[[#This Row],[W12]]+$C21<=$B21,Table12[[#This Row],[W12]]+$C21,""),"") -> 130 | R21: =IF(Table12[[#This Row],[W13]]<>"",IF(Table12[[#This Row],[W13]]+$C21<=$B21,Table12[[#This Row],[W13]]+$C21,""),"") -> 140 | S21: =IF(Table12[[#This Row],[W14]]<>"",IF(Table12[[#This Row],[W14]]+$C21<=$B21,Table12[[#This Row],[W14]]+$C21,""),"") ->  | T21: =IF(Table12[[#This Row],[W15]]<>"",IF(Table12[[#This Row],[W15]]+$C21<=$B21,Table12[[#This Row],[W15]]+$C21,""),"") ->  | U21: =IF(Table12[[#This Row],[W16]]<>"",IF(Table12[[#This Row],[W16]]+$C21<=$B21,Table12[[#This Row],[W16]]+$C21,""),"") ->  | V21: =IF(Table12[[#This Row],[W17]]<>"",IF(Table12[[#This Row],[W17]]+$C21<=$B21,Table12[[#This Row],[W17]]+$C21,""),"") ->  | W21: =IF(Table12[[#This Row],[W18]]<>"",IF(Table12[[#This Row],[W18]]+$C21<=$B21,Table12[[#This Row],[W18]]+$C21,""),"") ->  | X21: =IF(Table12[[#This Row],[W19]]<>"",IF(Table12[[#This Row],[W19]]+$C21<=$B21,Table12[[#This Row],[W19]]+$C21,""),"") ->  | Y21: =ROUNDDOWN(_xlfn.XLOOKUP(Table12[[#This Row],[Country]],C_CALC[Country],C_CALC[Max Solar]),-1) -> 640 | Z21: =ROUNDUP(Table12[[#This Row],[S-Max]]/20,-1) -> 40 | AA21: 0 | AB21: =Table12[[#This Row],[S0]]+Table12[[#This Row],[S-Stps]] -> 40 | AC21: =IF(Table12[[#This Row],[S1]]<>"",IF(Table12[[#This Row],[S1]]+$Z21<=$Y21,Table12[[#This Row],[S1]]+$Z21,""),"") -> 80 | AD21: =IF(Table12[[#This Row],[S2]]<>"",IF(Table12[[#This Row],[S2]]+$Z21<=$Y21,Table12[[#This Row],[S2]]+$Z21,""),"") -> 120 | AE21: =IF(Table12[[#This Row],[S3]]<>"",IF(Table12[[#This Row],[S3]]+$Z21<=$Y21,Table12[[#This Row],[S3]]+$Z21,""),"") -> 160 | AF21: =IF(Table12[[#This Row],[S4]]<>"",IF(Table12[[#This Row],[S4]]+$Z21<=$Y21,Table12[[#This Row],[S4]]+$Z21,""),"") -> 200 | AG21: =IF(Table12[[#This Row],[S5]]<>"",IF(Table12[[#This Row],[S5]]+$Z21<=$Y21,Table12[[#This Row],[S5]]+$Z21,""),"") -> 240 | AH21: =IF(Table12[[#This Row],[S6]]<>"",IF(Table12[[#This Row],[S6]]+$Z21<=$Y21,Table12[[#This Row],[S6]]+$Z21,""),"") -> 280 | AI21: =IF(Table12[[#This Row],[S7]]<>"",IF(Table12[[#This Row],[S7]]+$Z21<=$Y21,Table12[[#This Row],[S7]]+$Z21,""),"") -> 320 | AJ21: =IF(Table12[[#This Row],[S8]]<>"",IF(Table12[[#This Row],[S8]]+$Z21<=$Y21,Table12[[#This Row],[S8]]+$Z21,""),"") -> 360 | AK21: =IF(Table12[[#This Row],[S9]]<>"",IF(Table12[[#This Row],[S9]]+$Z21<=$Y21,Table12[[#This Row],[S9]]+$Z21,""),"") -> 400 | AL21: =IF(Table12[[#This Row],[S10]]<>"",IF(Table12[[#This Row],[S10]]+$Z21<=$Y21,Table12[[#This Row],[S10]]+$Z21,""),"") -> 440 | AM21: =IF(Table12[[#This Row],[S11]]<>"",IF(Table12[[#This Row],[S11]]+$Z21<=$Y21,Table12[[#This Row],[S11]]+$Z21,""),"") -> 480 | AN21: =IF(Table12[[#This Row],[S12]]<>"",IF(Table12[[#This Row],[S12]]+$Z21<=$Y21,Table12[[#This Row],[S12]]+$Z21,""),"") -> 520 | AO21: =IF(Table12[[#This Row],[S13]]<>"",IF(Table12[[#This Row],[S13]]+$Z21<=$Y21,Table12[[#This Row],[S13]]+$Z21,""),"") -> 560 | AP21: =IF(Table12[[#This Row],[S14]]<>"",IF(Table12[[#This Row],[S14]]+$Z21<=$Y21,Table12[[#This Row],[S14]]+$Z21,""),"") -> 600 | AQ21: =IF(Table12[[#This Row],[S15]]<>"",IF(Table12[[#This Row],[S15]]+$Z21<=$Y21,Table12[[#This Row],[S15]]+$Z21,""),"") -> 640 | AR21: =IF(Table12[[#This Row],[S16]]<>"",IF(Table12[[#This Row],[S16]]+$Z21<=$Y21,Table12[[#This Row],[S16]]+$Z21,""),"") ->  | AS21: =IF(Table12[[#This Row],[S17]]<>"",IF(Table12[[#This Row],[S17]]+$Z21<=$Y21,Table12[[#This Row],[S17]]+$Z21,""),"") ->  | AT21: =IF(Table12[[#This Row],[S18]]<>"",IF(Table12[[#This Row],[S18]]+$Z21<=$Y21,Table12[[#This Row],[S18]]+$Z21,""),"") ->  | AU21: =IF(Table12[[#This Row],[S19]]<>"",IF(Table12[[#This Row],[S19]]+$Z21<=$Y21,Table12[[#This Row],[S19]]+$Z21,""),"") -> 
A22: Lithuania | B22: =ROUNDDOWN(_xlfn.XLOOKUP(A22,C_CALC[Country],C_CALC[Max. Wind]),-1) -> 140 | C22: =ROUNDUP(Table12[[#This Row],[W-Max]]/20,-1) -> 10 | D22: 0 | E22: =Table12[[#This Row],[W0]]+Table12[[#This Row],[W-Stps]] -> 10 | F22: =IF(Table12[[#This Row],[W1]]<>"",IF(Table12[[#This Row],[W1]]+$C22<=$B22,Table12[[#This Row],[W1]]+$C22,""),"") -> 20 | G22: =IF(Table12[[#This Row],[W2]]<>"",IF(Table12[[#This Row],[W2]]+$C22<=$B22,Table12[[#This Row],[W2]]+$C22,""),"") -> 30 | H22: =IF(Table12[[#This Row],[W3]]<>"",IF(Table12[[#This Row],[W3]]+$C22<=$B22,Table12[[#This Row],[W3]]+$C22,""),"") -> 40 | I22: =IF(Table12[[#This Row],[W4]]<>"",IF(Table12[[#This Row],[W4]]+$C22<=$B22,Table12[[#This Row],[W4]]+$C22,""),"") -> 50 | J22: =IF(Table12[[#This Row],[W5]]<>"",IF(Table12[[#This Row],[W5]]+$C22<=$B22,Table12[[#This Row],[W5]]+$C22,""),"") -> 60 | K22: =IF(Table12[[#This Row],[W6]]<>"",IF(Table12[[#This Row],[W6]]+$C22<=$B22,Table12[[#This Row],[W6]]+$C22,""),"") -> 70 | L22: =IF(Table12[[#This Row],[W7]]<>"",IF(Table12[[#This Row],[W7]]+$C22<=$B22,Table12[[#This Row],[W7]]+$C22,""),"") -> 80 | M22: =IF(Table12[[#This Row],[W8]]<>"",IF(Table12[[#This Row],[W8]]+$C22<=$B22,Table12[[#This Row],[W8]]+$C22,""),"") -> 90 | N22: =IF(Table12[[#This Row],[W9]]<>"",IF(Table12[[#This Row],[W9]]+$C22<=$B22,Table12[[#This Row],[W9]]+$C22,""),"") -> 100 | O22: =IF(Table12[[#This Row],[W10]]<>"",IF(Table12[[#This Row],[W10]]+$C22<=$B22,Table12[[#This Row],[W10]]+$C22,""),"") -> 110 | P22: =IF(Table12[[#This Row],[W11]]<>"",IF(Table12[[#This Row],[W11]]+$C22<=$B22,Table12[[#This Row],[W11]]+$C22,""),"") -> 120 | Q22: =IF(Table12[[#This Row],[W12]]<>"",IF(Table12[[#This Row],[W12]]+$C22<=$B22,Table12[[#This Row],[W12]]+$C22,""),"") -> 130 | R22: =IF(Table12[[#This Row],[W13]]<>"",IF(Table12[[#This Row],[W13]]+$C22<=$B22,Table12[[#This Row],[W13]]+$C22,""),"") -> 140 | S22: =IF(Table12[[#This Row],[W14]]<>"",IF(Table12[[#This Row],[W14]]+$C22<=$B22,Table12[[#This Row],[W14]]+$C22,""),"") ->  | T22: =IF(Table12[[#This Row],[W15]]<>"",IF(Table12[[#This Row],[W15]]+$C22<=$B22,Table12[[#This Row],[W15]]+$C22,""),"") ->  | U22: =IF(Table12[[#This Row],[W16]]<>"",IF(Table12[[#This Row],[W16]]+$C22<=$B22,Table12[[#This Row],[W16]]+$C22,""),"") ->  | V22: =IF(Table12[[#This Row],[W17]]<>"",IF(Table12[[#This Row],[W17]]+$C22<=$B22,Table12[[#This Row],[W17]]+$C22,""),"") ->  | W22: =IF(Table12[[#This Row],[W18]]<>"",IF(Table12[[#This Row],[W18]]+$C22<=$B22,Table12[[#This Row],[W18]]+$C22,""),"") ->  | X22: =IF(Table12[[#This Row],[W19]]<>"",IF(Table12[[#This Row],[W19]]+$C22<=$B22,Table12[[#This Row],[W19]]+$C22,""),"") ->  | Y22: =ROUNDDOWN(_xlfn.XLOOKUP(Table12[[#This Row],[Country]],C_CALC[Country],C_CALC[Max Solar]),-1) -> 650 | Z22: =ROUNDUP(Table12[[#This Row],[S-Max]]/20,-1) -> 40 | AA22: 0 | AB22: =Table12[[#This Row],[S0]]+Table12[[#This Row],[S-Stps]] -> 40 | AC22: =IF(Table12[[#This Row],[S1]]<>"",IF(Table12[[#This Row],[S1]]+$Z22<=$Y22,Table12[[#This Row],[S1]]+$Z22,""),"") -> 80 | AD22: =IF(Table12[[#This Row],[S2]]<>"",IF(Table12[[#This Row],[S2]]+$Z22<=$Y22,Table12[[#This Row],[S2]]+$Z22,""),"") -> 120 | AE22: =IF(Table12[[#This Row],[S3]]<>"",IF(Table12[[#This Row],[S3]]+$Z22<=$Y22,Table12[[#This Row],[S3]]+$Z22,""),"") -> 160 | AF22: =IF(Table12[[#This Row],[S4]]<>"",IF(Table12[[#This Row],[S4]]+$Z22<=$Y22,Table12[[#This Row],[S4]]+$Z22,""),"") -> 200 | AG22: =IF(Table12[[#This Row],[S5]]<>"",IF(Table12[[#This Row],[S5]]+$Z22<=$Y22,Table12[[#This Row],[S5]]+$Z22,""),"") -> 240 | AH22: =IF(Table12[[#This Row],[S6]]<>"",IF(Table12[[#This Row],[S6]]+$Z22<=$Y22,Table12[[#This Row],[S6]]+$Z22,""),"") -> 280 | AI22: =IF(Table12[[#This Row],[S7]]<>"",IF(Table12[[#This Row],[S7]]+$Z22<=$Y22,Table12[[#This Row],[S7]]+$Z22,""),"") -> 320 | AJ22: =IF(Table12[[#This Row],[S8]]<>"",IF(Table12[[#This Row],[S8]]+$Z22<=$Y22,Table12[[#This Row],[S8]]+$Z22,""),"") -> 360 | AK22: =IF(Table12[[#This Row],[S9]]<>"",IF(Table12[[#This Row],[S9]]+$Z22<=$Y22,Table12[[#This Row],[S9]]+$Z22,""),"") -> 400 | AL22: =IF(Table12[[#This Row],[S10]]<>"",IF(Table12[[#This Row],[S10]]+$Z22<=$Y22,Table12[[#This Row],[S10]]+$Z22,""),"") -> 440 | AM22: =IF(Table12[[#This Row],[S11]]<>"",IF(Table12[[#This Row],[S11]]+$Z22<=$Y22,Table12[[#This Row],[S11]]+$Z22,""),"") -> 480 | AN22: =IF(Table12[[#This Row],[S12]]<>"",IF(Table12[[#This Row],[S12]]+$Z22<=$Y22,Table12[[#This Row],[S12]]+$Z22,""),"") -> 520 | AO22: =IF(Table12[[#This Row],[S13]]<>"",IF(Table12[[#This Row],[S13]]+$Z22<=$Y22,Table12[[#This Row],[S13]]+$Z22,""),"") -> 560 | AP22: =IF(Table12[[#This Row],[S14]]<>"",IF(Table12[[#This Row],[S14]]+$Z22<=$Y22,Table12[[#This Row],[S14]]+$Z22,""),"") -> 600 | AQ22: =IF(Table12[[#This Row],[S15]]<>"",IF(Table12[[#This Row],[S15]]+$Z22<=$Y22,Table12[[#This Row],[S15]]+$Z22,""),"") -> 640 | AR22: =IF(Table12[[#This Row],[S16]]<>"",IF(Table12[[#This Row],[S16]]+$Z22<=$Y22,Table12[[#This Row],[S16]]+$Z22,""),"") ->  | AS22: =IF(Table12[[#This Row],[S17]]<>"",IF(Table12[[#This Row],[S17]]+$Z22<=$Y22,Table12[[#This Row],[S17]]+$Z22,""),"") ->  | AT22: =IF(Table12[[#This Row],[S18]]<>"",IF(Table12[[#This Row],[S18]]+$Z22<=$Y22,Table12[[#This Row],[S18]]+$Z22,""),"") ->  | AU22: =IF(Table12[[#This Row],[S19]]<>"",IF(Table12[[#This Row],[S19]]+$Z22<=$Y22,Table12[[#This Row],[S19]]+$Z22,""),"") -> 
A23: Moldova | B23: =ROUNDDOWN(_xlfn.XLOOKUP(A23,C_CALC[Country],C_CALC[Max. Wind]),-1) -> 70 | C23: =ROUNDUP(Table12[[#This Row],[W-Max]]/20,-1) -> 10 | D23: 0 | E23: =Table12[[#This Row],[W0]]+Table12[[#This Row],[W-Stps]] -> 10 | F23: =IF(Table12[[#This Row],[W1]]<>"",IF(Table12[[#This Row],[W1]]+$C23<=$B23,Table12[[#This Row],[W1]]+$C23,""),"") -> 20 | G23: =IF(Table12[[#This Row],[W2]]<>"",IF(Table12[[#This Row],[W2]]+$C23<=$B23,Table12[[#This Row],[W2]]+$C23,""),"") -> 30 | H23: =IF(Table12[[#This Row],[W3]]<>"",IF(Table12[[#This Row],[W3]]+$C23<=$B23,Table12[[#This Row],[W3]]+$C23,""),"") -> 40 | I23: =IF(Table12[[#This Row],[W4]]<>"",IF(Table12[[#This Row],[W4]]+$C23<=$B23,Table12[[#This Row],[W4]]+$C23,""),"") -> 50 | J23: =IF(Table12[[#This Row],[W5]]<>"",IF(Table12[[#This Row],[W5]]+$C23<=$B23,Table12[[#This Row],[W5]]+$C23,""),"") -> 60 | K23: =IF(Table12[[#This Row],[W6]]<>"",IF(Table12[[#This Row],[W6]]+$C23<=$B23,Table12[[#This Row],[W6]]+$C23,""),"") -> 70 | L23: =IF(Table12[[#This Row],[W7]]<>"",IF(Table12[[#This Row],[W7]]+$C23<=$B23,Table12[[#This Row],[W7]]+$C23,""),"") ->  | M23: =IF(Table12[[#This Row],[W8]]<>"",IF(Table12[[#This Row],[W8]]+$C23<=$B23,Table12[[#This Row],[W8]]+$C23,""),"") ->  | N23: =IF(Table12[[#This Row],[W9]]<>"",IF(Table12[[#This Row],[W9]]+$C23<=$B23,Table12[[#This Row],[W9]]+$C23,""),"") ->  | O23: =IF(Table12[[#This Row],[W10]]<>"",IF(Table12[[#This Row],[W10]]+$C23<=$B23,Table12[[#This Row],[W10]]+$C23,""),"") ->  | P23: =IF(Table12[[#This Row],[W11]]<>"",IF(Table12[[#This Row],[W11]]+$C23<=$B23,Table12[[#This Row],[W11]]+$C23,""),"") ->  | Q23: =IF(Table12[[#This Row],[W12]]<>"",IF(Table12[[#This Row],[W12]]+$C23<=$B23,Table12[[#This Row],[W12]]+$C23,""),"") ->  | R23: =IF(Table12[[#This Row],[W13]]<>"",IF(Table12[[#This Row],[W13]]+$C23<=$B23,Table12[[#This Row],[W13]]+$C23,""),"") ->  | S23: =IF(Table12[[#This Row],[W14]]<>"",IF(Table12[[#This Row],[W14]]+$C23<=$B23,Table12[[#This Row],[W14]]+$C23,""),"") ->  | T23: =IF(Table12[[#This Row],[W15]]<>"",IF(Table12[[#This Row],[W15]]+$C23<=$B23,Table12[[#This Row],[W15]]+$C23,""),"") ->  | U23: =IF(Table12[[#This Row],[W16]]<>"",IF(Table12[[#This Row],[W16]]+$C23<=$B23,Table12[[#This Row],[W16]]+$C23,""),"") ->  | V23: =IF(Table12[[#This Row],[W17]]<>"",IF(Table12[[#This Row],[W17]]+$C23<=$B23,Table12[[#This Row],[W17]]+$C23,""),"") ->  | W23: =IF(Table12[[#This Row],[W18]]<>"",IF(Table12[[#This Row],[W18]]+$C23<=$B23,Table12[[#This Row],[W18]]+$C23,""),"") ->  | X23: =IF(Table12[[#This Row],[W19]]<>"",IF(Table12[[#This Row],[W19]]+$C23<=$B23,Table12[[#This Row],[W19]]+$C23,""),"") ->  | Y23: =ROUNDDOWN(_xlfn.XLOOKUP(Table12[[#This Row],[Country]],C_CALC[Country],C_CALC[Max Solar]),-1) -> 330 | Z23: =ROUNDUP(Table12[[#This Row],[S-Max]]/20,-1) -> 20 | AA23: 0 | AB23: =Table12[[#This Row],[S0]]+Table12[[#This Row],[S-Stps]] -> 20 | AC23: =IF(Table12[[#This Row],[S1]]<>"",IF(Table12[[#This Row],[S1]]+$Z23<=$Y23,Table12[[#This Row],[S1]]+$Z23,""),"") -> 40 | AD23: =IF(Table12[[#This Row],[S2]]<>"",IF(Table12[[#This Row],[S2]]+$Z23<=$Y23,Table12[[#This Row],[S2]]+$Z23,""),"") -> 60 | AE23: =IF(Table12[[#This Row],[S3]]<>"",IF(Table12[[#This Row],[S3]]+$Z23<=$Y23,Table12[[#This Row],[S3]]+$Z23,""),"") -> 80 | AF23: =IF(Table12[[#This Row],[S4]]<>"",IF(Table12[[#This Row],[S4]]+$Z23<=$Y23,Table12[[#This Row],[S4]]+$Z23,""),"") -> 100 | AG23: =IF(Table12[[#This Row],[S5]]<>"",IF(Table12[[#This Row],[S5]]+$Z23<=$Y23,Table12[[#This Row],[S5]]+$Z23,""),"") -> 120 | AH23: =IF(Table12[[#This Row],[S6]]<>"",IF(Table12[[#This Row],[S6]]+$Z23<=$Y23,Table12[[#This Row],[S6]]+$Z23,""),"") -> 140 | AI23: =IF(Table12[[#This Row],[S7]]<>"",IF(Table12[[#This Row],[S7]]+$Z23<=$Y23,Table12[[#This Row],[S7]]+$Z23,""),"") -> 160 | AJ23: =IF(Table12[[#This Row],[S8]]<>"",IF(Table12[[#This Row],[S8]]+$Z23<=$Y23,Table12[[#This Row],[S8]]+$Z23,""),"") -> 180 | AK23: =IF(Table12[[#This Row],[S9]]<>"",IF(Table12[[#This Row],[S9]]+$Z23<=$Y23,Table12[[#This Row],[S9]]+$Z23,""),"") -> 200 | AL23: =IF(Table12[[#This Row],[S10]]<>"",IF(Table12[[#This Row],[S10]]+$Z23<=$Y23,Table12[[#This Row],[S10]]+$Z23,""),"") -> 220 | AM23: =IF(Table12[[#This Row],[S11]]<>"",IF(Table12[[#This Row],[S11]]+$Z23<=$Y23,Table12[[#This Row],[S11]]+$Z23,""),"") -> 240 | AN23: =IF(Table12[[#This Row],[S12]]<>"",IF(Table12[[#This Row],[S12]]+$Z23<=$Y23,Table12[[#This Row],[S12]]+$Z23,""),"") -> 260 | AO23: =IF(Table12[[#This Row],[S13]]<>"",IF(Table12[[#This Row],[S13]]+$Z23<=$Y23,Table12[[#This Row],[S13]]+$Z23,""),"") -> 280 | AP23: =IF(Table12[[#This Row],[S14]]<>"",IF(Table12[[#This Row],[S14]]+$Z23<=$Y23,Table12[[#This Row],[S14]]+$Z23,""),"") -> 300 | AQ23: =IF(Table12[[#This Row],[S15]]<>"",IF(Table12[[#This Row],[S15]]+$Z23<=$Y23,Table12[[#This Row],[S15]]+$Z23,""),"") -> 320 | AR23: =IF(Table12[[#This Row],[S16]]<>"",IF(Table12[[#This Row],[S16]]+$Z23<=$Y23,Table12[[#This Row],[S16]]+$Z23,""),"") ->  | AS23: =IF(Table12[[#This Row],[S17]]<>"",IF(Table12[[#This Row],[S17]]+$Z23<=$Y23,Table12[[#This Row],[S17]]+$Z23,""),"") ->  | AT23: =IF(Table12[[#This Row],[S18]]<>"",IF(Table12[[#This Row],[S18]]+$Z23<=$Y23,Table12[[#This Row],[S18]]+$Z23,""),"") ->  | AU23: =IF(Table12[[#This Row],[S19]]<>"",IF(Table12[[#This Row],[S19]]+$Z23<=$Y23,Table12[[#This Row],[S19]]+$Z23,""),"") -> 
A24: Netherlands | B24: =ROUNDDOWN(_xlfn.XLOOKUP(A24,C_CALC[Country],C_CALC[Max. Wind]),-1) -> 90 | C24: =ROUNDUP(Table12[[#This Row],[W-Max]]/20,-1) -> 10 | D24: 0 | E24: =Table12[[#This Row],[W0]]+Table12[[#This Row],[W-Stps]] -> 10 | F24: =IF(Table12[[#This Row],[W1]]<>"",IF(Table12[[#This Row],[W1]]+$C24<=$B24,Table12[[#This Row],[W1]]+$C24,""),"") -> 20 | G24: =IF(Table12[[#This Row],[W2]]<>"",IF(Table12[[#This Row],[W2]]+$C24<=$B24,Table12[[#This Row],[W2]]+$C24,""),"") -> 30 | H24: =IF(Table12[[#This Row],[W3]]<>"",IF(Table12[[#This Row],[W3]]+$C24<=$B24,Table12[[#This Row],[W3]]+$C24,""),"") -> 40 | I24: =IF(Table12[[#This Row],[W4]]<>"",IF(Table12[[#This Row],[W4]]+$C24<=$B24,Table12[[#This Row],[W4]]+$C24,""),"") -> 50 | J24: =IF(Table12[[#This Row],[W5]]<>"",IF(Table12[[#This Row],[W5]]+$C24<=$B24,Table12[[#This Row],[W5]]+$C24,""),"") -> 60 | K24: =IF(Table12[[#This Row],[W6]]<>"",IF(Table12[[#This Row],[W6]]+$C24<=$B24,Table12[[#This Row],[W6]]+$C24,""),"") -> 70 | L24: =IF(Table12[[#This Row],[W7]]<>"",IF(Table12[[#This Row],[W7]]+$C24<=$B24,Table12[[#This Row],[W7]]+$C24,""),"") -> 80 | M24: =IF(Table12[[#This Row],[W8]]<>"",IF(Table12[[#This Row],[W8]]+$C24<=$B24,Table12[[#This Row],[W8]]+$C24,""),"") -> 90 | N24: =IF(Table12[[#This Row],[W9]]<>"",IF(Table12[[#This Row],[W9]]+$C24<=$B24,Table12[[#This Row],[W9]]+$C24,""),"") ->  | O24: =IF(Table12[[#This Row],[W10]]<>"",IF(Table12[[#This Row],[W10]]+$C24<=$B24,Table12[[#This Row],[W10]]+$C24,""),"") ->  | P24: =IF(Table12[[#This Row],[W11]]<>"",IF(Table12[[#This Row],[W11]]+$C24<=$B24,Table12[[#This Row],[W11]]+$C24,""),"") ->  | Q24: =IF(Table12[[#This Row],[W12]]<>"",IF(Table12[[#This Row],[W12]]+$C24<=$B24,Table12[[#This Row],[W12]]+$C24,""),"") ->  | R24: =IF(Table12[[#This Row],[W13]]<>"",IF(Table12[[#This Row],[W13]]+$C24<=$B24,Table12[[#This Row],[W13]]+$C24,""),"") ->  | S24: =IF(Table12[[#This Row],[W14]]<>"",IF(Table12[[#This Row],[W14]]+$C24<=$B24,Table12[[#This Row],[W14]]+$C24,""),"") ->  | T24: =IF(Table12[[#This Row],[W15]]<>"",IF(Table12[[#This Row],[W15]]+$C24<=$B24,Table12[[#This Row],[W15]]+$C24,""),"") ->  | U24: =IF(Table12[[#This Row],[W16]]<>"",IF(Table12[[#This Row],[W16]]+$C24<=$B24,Table12[[#This Row],[W16]]+$C24,""),"") ->  | V24: =IF(Table12[[#This Row],[W17]]<>"",IF(Table12[[#This Row],[W17]]+$C24<=$B24,Table12[[#This Row],[W17]]+$C24,""),"") ->  | W24: =IF(Table12[[#This Row],[W18]]<>"",IF(Table12[[#This Row],[W18]]+$C24<=$B24,Table12[[#This Row],[W18]]+$C24,""),"") ->  | X24: =IF(Table12[[#This Row],[W19]]<>"",IF(Table12[[#This Row],[W19]]+$C24<=$B24,Table12[[#This Row],[W19]]+$C24,""),"") ->  | Y24: =ROUNDDOWN(_xlfn.XLOOKUP(Table12[[#This Row],[Country]],C_CALC[Country],C_CALC[Max Solar]),-1) -> 410 | Z24: =ROUNDUP(Table12[[#This Row],[S-Max]]/20,-1) -> 30 | AA24: 0 | AB24: =Table12[[#This Row],[S0]]+Table12[[#This Row],[S-Stps]] -> 30 | AC24: =IF(Table12[[#This Row],[S1]]<>"",IF(Table12[[#This Row],[S1]]+$Z24<=$Y24,Table12[[#This Row],[S1]]+$Z24,""),"") -> 60 | AD24: =IF(Table12[[#This Row],[S2]]<>"",IF(Table12[[#This Row],[S2]]+$Z24<=$Y24,Table12[[#This Row],[S2]]+$Z24,""),"") -> 90 | AE24: =IF(Table12[[#This Row],[S3]]<>"",IF(Table12[[#This Row],[S3]]+$Z24<=$Y24,Table12[[#This Row],[S3]]+$Z24,""),"") -> 120 | AF24: =IF(Table12[[#This Row],[S4]]<>"",IF(Table12[[#This Row],[S4]]+$Z24<=$Y24,Table12[[#This Row],[S4]]+$Z24,""),"") -> 150 | AG24: =IF(Table12[[#This Row],[S5]]<>"",IF(Table12[[#This Row],[S5]]+$Z24<=$Y24,Table12[[#This Row],[S5]]+$Z24,""),"") -> 180 | AH24: =IF(Table12[[#This Row],[S6]]<>"",IF(Table12[[#This Row],[S6]]+$Z24<=$Y24,Table12[[#This Row],[S6]]+$Z24,""),"") -> 210 | AI24: =IF(Table12[[#This Row],[S7]]<>"",IF(Table12[[#This Row],[S7]]+$Z24<=$Y24,Table12[[#This Row],[S7]]+$Z24,""),"") -> 240 | AJ24: =IF(Table12[[#This Row],[S8]]<>"",IF(Table12[[#This Row],[S8]]+$Z24<=$Y24,Table12[[#This Row],[S8]]+$Z24,""),"") -> 270 | AK24: =IF(Table12[[#This Row],[S9]]<>"",IF(Table12[[#This Row],[S9]]+$Z24<=$Y24,Table12[[#This Row],[S9]]+$Z24,""),"") -> 300 | AL24: =IF(Table12[[#This Row],[S10]]<>"",IF(Table12[[#This Row],[S10]]+$Z24<=$Y24,Table12[[#This Row],[S10]]+$Z24,""),"") -> 330 | AM24: =IF(Table12[[#This Row],[S11]]<>"",IF(Table12[[#This Row],[S11]]+$Z24<=$Y24,Table12[[#This Row],[S11]]+$Z24,""),"") -> 360 | AN24: =IF(Table12[[#This Row],[S12]]<>"",IF(Table12[[#This Row],[S12]]+$Z24<=$Y24,Table12[[#This Row],[S12]]+$Z24,""),"") -> 390 | AO24: =IF(Table12[[#This Row],[S13]]<>"",IF(Table12[[#This Row],[S13]]+$Z24<=$Y24,Table12[[#This Row],[S13]]+$Z24,""),"") ->  | AP24: =IF(Table12[[#This Row],[S14]]<>"",IF(Table12[[#This Row],[S14]]+$Z24<=$Y24,Table12[[#This Row],[S14]]+$Z24,""),"") ->  | AQ24: =IF(Table12[[#This Row],[S15]]<>"",IF(Table12[[#This Row],[S15]]+$Z24<=$Y24,Table12[[#This Row],[S15]]+$Z24,""),"") ->  | AR24: =IF(Table12[[#This Row],[S16]]<>"",IF(Table12[[#This Row],[S16]]+$Z24<=$Y24,Table12[[#This Row],[S16]]+$Z24,""),"") ->  | AS24: =IF(Table12[[#This Row],[S17]]<>"",IF(Table12[[#This Row],[S17]]+$Z24<=$Y24,Table12[[#This Row],[S17]]+$Z24,""),"") ->  | AT24: =IF(Table12[[#This Row],[S18]]<>"",IF(Table12[[#This Row],[S18]]+$Z24<=$Y24,Table12[[#This Row],[S18]]+$Z24,""),"") ->  | AU24: =IF(Table12[[#This Row],[S19]]<>"",IF(Table12[[#This Row],[S19]]+$Z24<=$Y24,Table12[[#This Row],[S19]]+$Z24,""),"") -> 
A25: North Macedonia | B25: =ROUNDDOWN(_xlfn.XLOOKUP(A25,C_CALC[Country],C_CALC[Max. Wind]),-1) -> 50 | C25: =ROUNDUP(Table12[[#This Row],[W-Max]]/20,-1) -> 10 | D25: 0 | E25: =Table12[[#This Row],[W0]]+Table12[[#This Row],[W-Stps]] -> 10 | F25: =IF(Table12[[#This Row],[W1]]<>"",IF(Table12[[#This Row],[W1]]+$C25<=$B25,Table12[[#This Row],[W1]]+$C25,""),"") -> 20 | G25: =IF(Table12[[#This Row],[W2]]<>"",IF(Table12[[#This Row],[W2]]+$C25<=$B25,Table12[[#This Row],[W2]]+$C25,""),"") -> 30 | H25: =IF(Table12[[#This Row],[W3]]<>"",IF(Table12[[#This Row],[W3]]+$C25<=$B25,Table12[[#This Row],[W3]]+$C25,""),"") -> 40 | I25: =IF(Table12[[#This Row],[W4]]<>"",IF(Table12[[#This Row],[W4]]+$C25<=$B25,Table12[[#This Row],[W4]]+$C25,""),"") -> 50 | J25: =IF(Table12[[#This Row],[W5]]<>"",IF(Table12[[#This Row],[W5]]+$C25<=$B25,Table12[[#This Row],[W5]]+$C25,""),"") ->  | K25: =IF(Table12[[#This Row],[W6]]<>"",IF(Table12[[#This Row],[W6]]+$C25<=$B25,Table12[[#This Row],[W6]]+$C25,""),"") ->  | L25: =IF(Table12[[#This Row],[W7]]<>"",IF(Table12[[#This Row],[W7]]+$C25<=$B25,Table12[[#This Row],[W7]]+$C25,""),"") ->  | M25: =IF(Table12[[#This Row],[W8]]<>"",IF(Table12[[#This Row],[W8]]+$C25<=$B25,Table12[[#This Row],[W8]]+$C25,""),"") ->  | N25: =IF(Table12[[#This Row],[W9]]<>"",IF(Table12[[#This Row],[W9]]+$C25<=$B25,Table12[[#This Row],[W9]]+$C25,""),"") ->  | O25: =IF(Table12[[#This Row],[W10]]<>"",IF(Table12[[#This Row],[W10]]+$C25<=$B25,Table12[[#This Row],[W10]]+$C25,""),"") ->  | P25: =IF(Table12[[#This Row],[W11]]<>"",IF(Table12[[#This Row],[W11]]+$C25<=$B25,Table12[[#This Row],[W11]]+$C25,""),"") ->  | Q25: =IF(Table12[[#This Row],[W12]]<>"",IF(Table12[[#This Row],[W12]]+$C25<=$B25,Table12[[#This Row],[W12]]+$C25,""),"") ->  | R25: =IF(Table12[[#This Row],[W13]]<>"",IF(Table12[[#This Row],[W13]]+$C25<=$B25,Table12[[#This Row],[W13]]+$C25,""),"") ->  | S25: =IF(Table12[[#This Row],[W14]]<>"",IF(Table12[[#This Row],[W14]]+$C25<=$B25,Table12[[#This Row],[W14]]+$C25,""),"") ->  | T25: =IF(Table12[[#This Row],[W15]]<>"",IF(Table12[[#This Row],[W15]]+$C25<=$B25,Table12[[#This Row],[W15]]+$C25,""),"") ->  | U25: =IF(Table12[[#This Row],[W16]]<>"",IF(Table12[[#This Row],[W16]]+$C25<=$B25,Table12[[#This Row],[W16]]+$C25,""),"") ->  | V25: =IF(Table12[[#This Row],[W17]]<>"",IF(Table12[[#This Row],[W17]]+$C25<=$B25,Table12[[#This Row],[W17]]+$C25,""),"") ->  | W25: =IF(Table12[[#This Row],[W18]]<>"",IF(Table12[[#This Row],[W18]]+$C25<=$B25,Table12[[#This Row],[W18]]+$C25,""),"") ->  | X25: =IF(Table12[[#This Row],[W19]]<>"",IF(Table12[[#This Row],[W19]]+$C25<=$B25,Table12[[#This Row],[W19]]+$C25,""),"") ->  | Y25: =ROUNDDOWN(_xlfn.XLOOKUP(Table12[[#This Row],[Country]],C_CALC[Country],C_CALC[Max Solar]),-1) -> 250 | Z25: =ROUNDUP(Table12[[#This Row],[S-Max]]/20,-1) -> 20 | AA25: 0 | AB25: =Table12[[#This Row],[S0]]+Table12[[#This Row],[S-Stps]] -> 20 | AC25: =IF(Table12[[#This Row],[S1]]<>"",IF(Table12[[#This Row],[S1]]+$Z25<=$Y25,Table12[[#This Row],[S1]]+$Z25,""),"") -> 40 | AD25: =IF(Table12[[#This Row],[S2]]<>"",IF(Table12[[#This Row],[S2]]+$Z25<=$Y25,Table12[[#This Row],[S2]]+$Z25,""),"") -> 60 | AE25: =IF(Table12[[#This Row],[S3]]<>"",IF(Table12[[#This Row],[S3]]+$Z25<=$Y25,Table12[[#This Row],[S3]]+$Z25,""),"") -> 80 | AF25: =IF(Table12[[#This Row],[S4]]<>"",IF(Table12[[#This Row],[S4]]+$Z25<=$Y25,Table12[[#This Row],[S4]]+$Z25,""),"") -> 100 | AG25: =IF(Table12[[#This Row],[S5]]<>"",IF(Table12[[#This Row],[S5]]+$Z25<=$Y25,Table12[[#This Row],[S5]]+$Z25,""),"") -> 120 | AH25: =IF(Table12[[#This Row],[S6]]<>"",IF(Table12[[#This Row],[S6]]+$Z25<=$Y25,Table12[[#This Row],[S6]]+$Z25,""),"") -> 140 | AI25: =IF(Table12[[#This Row],[S7]]<>"",IF(Table12[[#This Row],[S7]]+$Z25<=$Y25,Table12[[#This Row],[S7]]+$Z25,""),"") -> 160 | AJ25: =IF(Table12[[#This Row],[S8]]<>"",IF(Table12[[#This Row],[S8]]+$Z25<=$Y25,Table12[[#This Row],[S8]]+$Z25,""),"") -> 180 | AK25: =IF(Table12[[#This Row],[S9]]<>"",IF(Table12[[#This Row],[S9]]+$Z25<=$Y25,Table12[[#This Row],[S9]]+$Z25,""),"") -> 200 | AL25: =IF(Table12[[#This Row],[S10]]<>"",IF(Table12[[#This Row],[S10]]+$Z25<=$Y25,Table12[[#This Row],[S10]]+$Z25,""),"") -> 220 | AM25: =IF(Table12[[#This Row],[S11]]<>"",IF(Table12[[#This Row],[S11]]+$Z25<=$Y25,Table12[[#This Row],[S11]]+$Z25,""),"") -> 240 | AN25: =IF(Table12[[#This Row],[S12]]<>"",IF(Table12[[#This Row],[S12]]+$Z25<=$Y25,Table12[[#This Row],[S12]]+$Z25,""),"") ->  | AO25: =IF(Table12[[#This Row],[S13]]<>"",IF(Table12[[#This Row],[S13]]+$Z25<=$Y25,Table12[[#This Row],[S13]]+$Z25,""),"") ->  | AP25: =IF(Table12[[#This Row],[S14]]<>"",IF(Table12[[#This Row],[S14]]+$Z25<=$Y25,Table12[[#This Row],[S14]]+$Z25,""),"") ->  | AQ25: =IF(Table12[[#This Row],[S15]]<>"",IF(Table12[[#This Row],[S15]]+$Z25<=$Y25,Table12[[#This Row],[S15]]+$Z25,""),"") ->  | AR25: =IF(Table12[[#This Row],[S16]]<>"",IF(Table12[[#This Row],[S16]]+$Z25<=$Y25,Table12[[#This Row],[S16]]+$Z25,""),"") ->  | AS25: =IF(Table12[[#This Row],[S17]]<>"",IF(Table12[[#This Row],[S17]]+$Z25<=$Y25,Table12[[#This Row],[S17]]+$Z25,""),"") ->  | AT25: =IF(Table12[[#This Row],[S18]]<>"",IF(Table12[[#This Row],[S18]]+$Z25<=$Y25,Table12[[#This Row],[S18]]+$Z25,""),"") ->  | AU25: =IF(Table12[[#This Row],[S19]]<>"",IF(Table12[[#This Row],[S19]]+$Z25<=$Y25,Table12[[#This Row],[S19]]+$Z25,""),"") -> 
A26: Norway | B26: =ROUNDDOWN(_xlfn.XLOOKUP(A26,C_CALC[Country],C_CALC[Max. Wind]),-1) -> 850 | C26: =ROUNDUP(Table12[[#This Row],[W-Max]]/20,-1) -> 50 | D26: 0 | E26: =Table12[[#This Row],[W0]]+Table12[[#This Row],[W-Stps]] -> 50 | F26: =IF(Table12[[#This Row],[W1]]<>"",IF(Table12[[#This Row],[W1]]+$C26<=$B26,Table12[[#This Row],[W1]]+$C26,""),"") -> 100 | G26: =IF(Table12[[#This Row],[W2]]<>"",IF(Table12[[#This Row],[W2]]+$C26<=$B26,Table12[[#This Row],[W2]]+$C26,""),"") -> 150 | H26: =IF(Table12[[#This Row],[W3]]<>"",IF(Table12[[#This Row],[W3]]+$C26<=$B26,Table12[[#This Row],[W3]]+$C26,""),"") -> 200 | I26: =IF(Table12[[#This Row],[W4]]<>"",IF(Table12[[#This Row],[W4]]+$C26<=$B26,Table12[[#This Row],[W4]]+$C26,""),"") -> 250 | J26: =IF(Table12[[#This Row],[W5]]<>"",IF(Table12[[#This Row],[W5]]+$C26<=$B26,Table12[[#This Row],[W5]]+$C26,""),"") -> 300 | K26: =IF(Table12[[#This Row],[W6]]<>"",IF(Table12[[#This Row],[W6]]+$C26<=$B26,Table12[[#This Row],[W6]]+$C26,""),"") -> 350 | L26: =IF(Table12[[#This Row],[W7]]<>"",IF(Table12[[#This Row],[W7]]+$C26<=$B26,Table12[[#This Row],[W7]]+$C26,""),"") -> 400 | M26: =IF(Table12[[#This Row],[W8]]<>"",IF(Table12[[#This Row],[W8]]+$C26<=$B26,Table12[[#This Row],[W8]]+$C26,""),"") -> 450 | N26: =IF(Table12[[#This Row],[W9]]<>"",IF(Table12[[#This Row],[W9]]+$C26<=$B26,Table12[[#This Row],[W9]]+$C26,""),"") -> 500 | O26: =IF(Table12[[#This Row],[W10]]<>"",IF(Table12[[#This Row],[W10]]+$C26<=$B26,Table12[[#This Row],[W10]]+$C26,""),"") -> 550 | P26: =IF(Table12[[#This Row],[W11]]<>"",IF(Table12[[#This Row],[W11]]+$C26<=$B26,Table12[[#This Row],[W11]]+$C26,""),"") -> 600 | Q26: =IF(Table12[[#This Row],[W12]]<>"",IF(Table12[[#This Row],[W12]]+$C26<=$B26,Table12[[#This Row],[W12]]+$C26,""),"") -> 650 | R26: =IF(Table12[[#This Row],[W13]]<>"",IF(Table12[[#This Row],[W13]]+$C26<=$B26,Table12[[#This Row],[W13]]+$C26,""),"") -> 700 | S26: =IF(Table12[[#This Row],[W14]]<>"",IF(Table12[[#This Row],[W14]]+$C26<=$B26,Table12[[#This Row],[W14]]+$C26,""),"") -> 750 | T26: =IF(Table12[[#This Row],[W15]]<>"",IF(Table12[[#This Row],[W15]]+$C26<=$B26,Table12[[#This Row],[W15]]+$C26,""),"") -> 800 | U26: =IF(Table12[[#This Row],[W16]]<>"",IF(Table12[[#This Row],[W16]]+$C26<=$B26,Table12[[#This Row],[W16]]+$C26,""),"") -> 850 | V26: =IF(Table12[[#This Row],[W17]]<>"",IF(Table12[[#This Row],[W17]]+$C26<=$B26,Table12[[#This Row],[W17]]+$C26,""),"") ->  | W26: =IF(Table12[[#This Row],[W18]]<>"",IF(Table12[[#This Row],[W18]]+$C26<=$B26,Table12[[#This Row],[W18]]+$C26,""),"") ->  | X26: =IF(Table12[[#This Row],[W19]]<>"",IF(Table12[[#This Row],[W19]]+$C26<=$B26,Table12[[#This Row],[W19]]+$C26,""),"") ->  | Y26: =ROUNDDOWN(_xlfn.XLOOKUP(Table12[[#This Row],[Country]],C_CALC[Country],C_CALC[Max Solar]),-1) -> 3850 | Z26: =ROUNDUP(Table12[[#This Row],[S-Max]]/20,-1) -> 200 | AA26: 0 | AB26: =Table12[[#This Row],[S0]]+Table12[[#This Row],[S-Stps]] -> 200 | AC26: =IF(Table12[[#This Row],[S1]]<>"",IF(Table12[[#This Row],[S1]]+$Z26<=$Y26,Table12[[#This Row],[S1]]+$Z26,""),"") -> 400 | AD26: =IF(Table12[[#This Row],[S2]]<>"",IF(Table12[[#This Row],[S2]]+$Z26<=$Y26,Table12[[#This Row],[S2]]+$Z26,""),"") -> 600 | AE26: =IF(Table12[[#This Row],[S3]]<>"",IF(Table12[[#This Row],[S3]]+$Z26<=$Y26,Table12[[#This Row],[S3]]+$Z26,""),"") -> 800 | AF26: =IF(Table12[[#This Row],[S4]]<>"",IF(Table12[[#This Row],[S4]]+$Z26<=$Y26,Table12[[#This Row],[S4]]+$Z26,""),"") -> 1000 | AG26: =IF(Table12[[#This Row],[S5]]<>"",IF(Table12[[#This Row],[S5]]+$Z26<=$Y26,Table12[[#This Row],[S5]]+$Z26,""),"") -> 1200 | AH26: =IF(Table12[[#This Row],[S6]]<>"",IF(Table12[[#This Row],[S6]]+$Z26<=$Y26,Table12[[#This Row],[S6]]+$Z26,""),"") -> 1400 | AI26: =IF(Table12[[#This Row],[S7]]<>"",IF(Table12[[#This Row],[S7]]+$Z26<=$Y26,Table12[[#This Row],[S7]]+$Z26,""),"") -> 1600 | AJ26: =IF(Table12[[#This Row],[S8]]<>"",IF(Table12[[#This Row],[S8]]+$Z26<=$Y26,Table12[[#This Row],[S8]]+$Z26,""),"") -> 1800 | AK26: =IF(Table12[[#This Row],[S9]]<>"",IF(Table12[[#This Row],[S9]]+$Z26<=$Y26,Table12[[#This Row],[S9]]+$Z26,""),"") -> 2000 | AL26: =IF(Table12[[#This Row],[S10]]<>"",IF(Table12[[#This Row],[S10]]+$Z26<=$Y26,Table12[[#This Row],[S10]]+$Z26,""),"") -> 2200 | AM26: =IF(Table12[[#This Row],[S11]]<>"",IF(Table12[[#This Row],[S11]]+$Z26<=$Y26,Table12[[#This Row],[S11]]+$Z26,""),"") -> 2400 | AN26: =IF(Table12[[#This Row],[S12]]<>"",IF(Table12[[#This Row],[S12]]+$Z26<=$Y26,Table12[[#This Row],[S12]]+$Z26,""),"") -> 2600 | AO26: =IF(Table12[[#This Row],[S13]]<>"",IF(Table12[[#This Row],[S13]]+$Z26<=$Y26,Table12[[#This Row],[S13]]+$Z26,""),"") -> 2800 | AP26: =IF(Table12[[#This Row],[S14]]<>"",IF(Table12[[#This Row],[S14]]+$Z26<=$Y26,Table12[[#This Row],[S14]]+$Z26,""),"") -> 3000 | AQ26: =IF(Table12[[#This Row],[S15]]<>"",IF(Table12[[#This Row],[S15]]+$Z26<=$Y26,Table12[[#This Row],[S15]]+$Z26,""),"") -> 3200 | AR26: =IF(Table12[[#This Row],[S16]]<>"",IF(Table12[[#This Row],[S16]]+$Z26<=$Y26,Table12[[#This Row],[S16]]+$Z26,""),"") -> 3400 | AS26: =IF(Table12[[#This Row],[S17]]<>"",IF(Table12[[#This Row],[S17]]+$Z26<=$Y26,Table12[[#This Row],[S17]]+$Z26,""),"") -> 3600 | AT26: =IF(Table12[[#This Row],[S18]]<>"",IF(Table12[[#This Row],[S18]]+$Z26<=$Y26,Table12[[#This Row],[S18]]+$Z26,""),"") -> 3800 | AU26: =IF(Table12[[#This Row],[S19]]<>"",IF(Table12[[#This Row],[S19]]+$Z26<=$Y26,Table12[[#This Row],[S19]]+$Z26,""),"") -> 
A27: Poland | B27: =ROUNDDOWN(_xlfn.XLOOKUP(A27,C_CALC[Country],C_CALC[Max. Wind]),-1) -> 690 | C27: =ROUNDUP(Table12[[#This Row],[W-Max]]/20,-1) -> 40 | D27: 0 | E27: =Table12[[#This Row],[W0]]+Table12[[#This Row],[W-Stps]] -> 40 | F27: =IF(Table12[[#This Row],[W1]]<>"",IF(Table12[[#This Row],[W1]]+$C27<=$B27,Table12[[#This Row],[W1]]+$C27,""),"") -> 80 | G27: =IF(Table12[[#This Row],[W2]]<>"",IF(Table12[[#This Row],[W2]]+$C27<=$B27,Table12[[#This Row],[W2]]+$C27,""),"") -> 120 | H27: =IF(Table12[[#This Row],[W3]]<>"",IF(Table12[[#This Row],[W3]]+$C27<=$B27,Table12[[#This Row],[W3]]+$C27,""),"") -> 160 | I27: =IF(Table12[[#This Row],[W4]]<>"",IF(Table12[[#This Row],[W4]]+$C27<=$B27,Table12[[#This Row],[W4]]+$C27,""),"") -> 200 | J27: =IF(Table12[[#This Row],[W5]]<>"",IF(Table12[[#This Row],[W5]]+$C27<=$B27,Table12[[#This Row],[W5]]+$C27,""),"") -> 240 | K27: =IF(Table12[[#This Row],[W6]]<>"",IF(Table12[[#This Row],[W6]]+$C27<=$B27,Table12[[#This Row],[W6]]+$C27,""),"") -> 280 | L27: =IF(Table12[[#This Row],[W7]]<>"",IF(Table12[[#This Row],[W7]]+$C27<=$B27,Table12[[#This Row],[W7]]+$C27,""),"") -> 320 | M27: =IF(Table12[[#This Row],[W8]]<>"",IF(Table12[[#This Row],[W8]]+$C27<=$B27,Table12[[#This Row],[W8]]+$C27,""),"") -> 360 | N27: =IF(Table12[[#This Row],[W9]]<>"",IF(Table12[[#This Row],[W9]]+$C27<=$B27,Table12[[#This Row],[W9]]+$C27,""),"") -> 400 | O27: =IF(Table12[[#This Row],[W10]]<>"",IF(Table12[[#This Row],[W10]]+$C27<=$B27,Table12[[#This Row],[W10]]+$C27,""),"") -> 440 | P27: =IF(Table12[[#This Row],[W11]]<>"",IF(Table12[[#This Row],[W11]]+$C27<=$B27,Table12[[#This Row],[W11]]+$C27,""),"") -> 480 | Q27: =IF(Table12[[#This Row],[W12]]<>"",IF(Table12[[#This Row],[W12]]+$C27<=$B27,Table12[[#This Row],[W12]]+$C27,""),"") -> 520 | R27: =IF(Table12[[#This Row],[W13]]<>"",IF(Table12[[#This Row],[W13]]+$C27<=$B27,Table12[[#This Row],[W13]]+$C27,""),"") -> 560 | S27: =IF(Table12[[#This Row],[W14]]<>"",IF(Table12[[#This Row],[W14]]+$C27<=$B27,Table12[[#This Row],[W14]]+$C27,""),"") -> 600 | T27: =IF(Table12[[#This Row],[W15]]<>"",IF(Table12[[#This Row],[W15]]+$C27<=$B27,Table12[[#This Row],[W15]]+$C27,""),"") -> 640 | U27: =IF(Table12[[#This Row],[W16]]<>"",IF(Table12[[#This Row],[W16]]+$C27<=$B27,Table12[[#This Row],[W16]]+$C27,""),"") -> 680 | V27: =IF(Table12[[#This Row],[W17]]<>"",IF(Table12[[#This Row],[W17]]+$C27<=$B27,Table12[[#This Row],[W17]]+$C27,""),"") ->  | W27: =IF(Table12[[#This Row],[W18]]<>"",IF(Table12[[#This Row],[W18]]+$C27<=$B27,Table12[[#This Row],[W18]]+$C27,""),"") ->  | X27: =IF(Table12[[#This Row],[W19]]<>"",IF(Table12[[#This Row],[W19]]+$C27<=$B27,Table12[[#This Row],[W19]]+$C27,""),"") ->  | Y27: =ROUNDDOWN(_xlfn.XLOOKUP(Table12[[#This Row],[Country]],C_CALC[Country],C_CALC[Max Solar]),-1) -> 3120 | Z27: =ROUNDUP(Table12[[#This Row],[S-Max]]/20,-1) -> 160 | AA27: 0 | AB27: =Table12[[#This Row],[S0]]+Table12[[#This Row],[S-Stps]] -> 160 | AC27: =IF(Table12[[#This Row],[S1]]<>"",IF(Table12[[#This Row],[S1]]+$Z27<=$Y27,Table12[[#This Row],[S1]]+$Z27,""),"") -> 320 | AD27: =IF(Table12[[#This Row],[S2]]<>"",IF(Table12[[#This Row],[S2]]+$Z27<=$Y27,Table12[[#This Row],[S2]]+$Z27,""),"") -> 480 | AE27: =IF(Table12[[#This Row],[S3]]<>"",IF(Table12[[#This Row],[S3]]+$Z27<=$Y27,Table12[[#This Row],[S3]]+$Z27,""),"") -> 640 | AF27: =IF(Table12[[#This Row],[S4]]<>"",IF(Table12[[#This Row],[S4]]+$Z27<=$Y27,Table12[[#This Row],[S4]]+$Z27,""),"") -> 800 | AG27: =IF(Table12[[#This Row],[S5]]<>"",IF(Table12[[#This Row],[S5]]+$Z27<=$Y27,Table12[[#This Row],[S5]]+$Z27,""),"") -> 960 | AH27: =IF(Table12[[#This Row],[S6]]<>"",IF(Table12[[#This Row],[S6]]+$Z27<=$Y27,Table12[[#This Row],[S6]]+$Z27,""),"") -> 1120 | AI27: =IF(Table12[[#This Row],[S7]]<>"",IF(Table12[[#This Row],[S7]]+$Z27<=$Y27,Table12[[#This Row],[S7]]+$Z27,""),"") -> 1280 | AJ27: =IF(Table12[[#This Row],[S8]]<>"",IF(Table12[[#This Row],[S8]]+$Z27<=$Y27,Table12[[#This Row],[S8]]+$Z27,""),"") -> 1440 | AK27: =IF(Table12[[#This Row],[S9]]<>"",IF(Table12[[#This Row],[S9]]+$Z27<=$Y27,Table12[[#This Row],[S9]]+$Z27,""),"") -> 1600 | AL27: =IF(Table12[[#This Row],[S10]]<>"",IF(Table12[[#This Row],[S10]]+$Z27<=$Y27,Table12[[#This Row],[S10]]+$Z27,""),"") -> 1760 | AM27: =IF(Table12[[#This Row],[S11]]<>"",IF(Table12[[#This Row],[S11]]+$Z27<=$Y27,Table12[[#This Row],[S11]]+$Z27,""),"") -> 1920 | AN27: =IF(Table12[[#This Row],[S12]]<>"",IF(Table12[[#This Row],[S12]]+$Z27<=$Y27,Table12[[#This Row],[S12]]+$Z27,""),"") -> 2080 | AO27: =IF(Table12[[#This Row],[S13]]<>"",IF(Table12[[#This Row],[S13]]+$Z27<=$Y27,Table12[[#This Row],[S13]]+$Z27,""),"") -> 2240 | AP27: =IF(Table12[[#This Row],[S14]]<>"",IF(Table12[[#This Row],[S14]]+$Z27<=$Y27,Table12[[#This Row],[S14]]+$Z27,""),"") -> 2400 | AQ27: =IF(Table12[[#This Row],[S15]]<>"",IF(Table12[[#This Row],[S15]]+$Z27<=$Y27,Table12[[#This Row],[S15]]+$Z27,""),"") -> 2560 | AR27: =IF(Table12[[#This Row],[S16]]<>"",IF(Table12[[#This Row],[S16]]+$Z27<=$Y27,Table12[[#This Row],[S16]]+$Z27,""),"") -> 2720 | AS27: =IF(Table12[[#This Row],[S17]]<>"",IF(Table12[[#This Row],[S17]]+$Z27<=$Y27,Table12[[#This Row],[S17]]+$Z27,""),"") -> 2880 | AT27: =IF(Table12[[#This Row],[S18]]<>"",IF(Table12[[#This Row],[S18]]+$Z27<=$Y27,Table12[[#This Row],[S18]]+$Z27,""),"") -> 3040 | AU27: =IF(Table12[[#This Row],[S19]]<>"",IF(Table12[[#This Row],[S19]]+$Z27<=$Y27,Table12[[#This Row],[S19]]+$Z27,""),"") -> 
A28: Portugal | B28: =ROUNDDOWN(_xlfn.XLOOKUP(A28,C_CALC[Country],C_CALC[Max. Wind]),-1) -> 190 | C28: =ROUNDUP(Table12[[#This Row],[W-Max]]/20,-1) -> 10 | D28: 0 | E28: =Table12[[#This Row],[W0]]+Table12[[#This Row],[W-Stps]] -> 10 | F28: =IF(Table12[[#This Row],[W1]]<>"",IF(Table12[[#This Row],[W1]]+$C28<=$B28,Table12[[#This Row],[W1]]+$C28,""),"") -> 20 | G28: =IF(Table12[[#This Row],[W2]]<>"",IF(Table12[[#This Row],[W2]]+$C28<=$B28,Table12[[#This Row],[W2]]+$C28,""),"") -> 30 | H28: =IF(Table12[[#This Row],[W3]]<>"",IF(Table12[[#This Row],[W3]]+$C28<=$B28,Table12[[#This Row],[W3]]+$C28,""),"") -> 40 | I28: =IF(Table12[[#This Row],[W4]]<>"",IF(Table12[[#This Row],[W4]]+$C28<=$B28,Table12[[#This Row],[W4]]+$C28,""),"") -> 50 | J28: =IF(Table12[[#This Row],[W5]]<>"",IF(Table12[[#This Row],[W5]]+$C28<=$B28,Table12[[#This Row],[W5]]+$C28,""),"") -> 60 | K28: =IF(Table12[[#This Row],[W6]]<>"",IF(Table12[[#This Row],[W6]]+$C28<=$B28,Table12[[#This Row],[W6]]+$C28,""),"") -> 70 | L28: =IF(Table12[[#This Row],[W7]]<>"",IF(Table12[[#This Row],[W7]]+$C28<=$B28,Table12[[#This Row],[W7]]+$C28,""),"") -> 80 | M28: =IF(Table12[[#This Row],[W8]]<>"",IF(Table12[[#This Row],[W8]]+$C28<=$B28,Table12[[#This Row],[W8]]+$C28,""),"") -> 90 | N28: =IF(Table12[[#This Row],[W9]]<>"",IF(Table12[[#This Row],[W9]]+$C28<=$B28,Table12[[#This Row],[W9]]+$C28,""),"") -> 100 | O28: =IF(Table12[[#This Row],[W10]]<>"",IF(Table12[[#This Row],[W10]]+$C28<=$B28,Table12[[#This Row],[W10]]+$C28,""),"") -> 110 | P28: =IF(Table12[[#This Row],[W11]]<>"",IF(Table12[[#This Row],[W11]]+$C28<=$B28,Table12[[#This Row],[W11]]+$C28,""),"") -> 120 | Q28: =IF(Table12[[#This Row],[W12]]<>"",IF(Table12[[#This Row],[W12]]+$C28<=$B28,Table12[[#This Row],[W12]]+$C28,""),"") -> 130 | R28: =IF(Table12[[#This Row],[W13]]<>"",IF(Table12[[#This Row],[W13]]+$C28<=$B28,Table12[[#This Row],[W13]]+$C28,""),"") -> 140 | S28: =IF(Table12[[#This Row],[W14]]<>"",IF(Table12[[#This Row],[W14]]+$C28<=$B28,Table12[[#This Row],[W14]]+$C28,""),"") -> 150 | T28: =IF(Table12[[#This Row],[W15]]<>"",IF(Table12[[#This Row],[W15]]+$C28<=$B28,Table12[[#This Row],[W15]]+$C28,""),"") -> 160 | U28: =IF(Table12[[#This Row],[W16]]<>"",IF(Table12[[#This Row],[W16]]+$C28<=$B28,Table12[[#This Row],[W16]]+$C28,""),"") -> 170 | V28: =IF(Table12[[#This Row],[W17]]<>"",IF(Table12[[#This Row],[W17]]+$C28<=$B28,Table12[[#This Row],[W17]]+$C28,""),"") -> 180 | W28: =IF(Table12[[#This Row],[W18]]<>"",IF(Table12[[#This Row],[W18]]+$C28<=$B28,Table12[[#This Row],[W18]]+$C28,""),"") -> 190 | X28: =IF(Table12[[#This Row],[W19]]<>"",IF(Table12[[#This Row],[W19]]+$C28<=$B28,Table12[[#This Row],[W19]]+$C28,""),"") ->  | Y28: =ROUNDDOWN(_xlfn.XLOOKUP(Table12[[#This Row],[Country]],C_CALC[Country],C_CALC[Max Solar]),-1) -> 880 | Z28: =ROUNDUP(Table12[[#This Row],[S-Max]]/20,-1) -> 50 | AA28: 0 | AB28: =Table12[[#This Row],[S0]]+Table12[[#This Row],[S-Stps]] -> 50 | AC28: =IF(Table12[[#This Row],[S1]]<>"",IF(Table12[[#This Row],[S1]]+$Z28<=$Y28,Table12[[#This Row],[S1]]+$Z28,""),"") -> 100 | AD28: =IF(Table12[[#This Row],[S2]]<>"",IF(Table12[[#This Row],[S2]]+$Z28<=$Y28,Table12[[#This Row],[S2]]+$Z28,""),"") -> 150 | AE28: =IF(Table12[[#This Row],[S3]]<>"",IF(Table12[[#This Row],[S3]]+$Z28<=$Y28,Table12[[#This Row],[S3]]+$Z28,""),"") -> 200 | AF28: =IF(Table12[[#This Row],[S4]]<>"",IF(Table12[[#This Row],[S4]]+$Z28<=$Y28,Table12[[#This Row],[S4]]+$Z28,""),"") -> 250 | AG28: =IF(Table12[[#This Row],[S5]]<>"",IF(Table12[[#This Row],[S5]]+$Z28<=$Y28,Table12[[#This Row],[S5]]+$Z28,""),"") -> 300 | AH28: =IF(Table12[[#This Row],[S6]]<>"",IF(Table12[[#This Row],[S6]]+$Z28<=$Y28,Table12[[#This Row],[S6]]+$Z28,""),"") -> 350 | AI28: =IF(Table12[[#This Row],[S7]]<>"",IF(Table12[[#This Row],[S7]]+$Z28<=$Y28,Table12[[#This Row],[S7]]+$Z28,""),"") -> 400 | AJ28: =IF(Table12[[#This Row],[S8]]<>"",IF(Table12[[#This Row],[S8]]+$Z28<=$Y28,Table12[[#This Row],[S8]]+$Z28,""),"") -> 450 | AK28: =IF(Table12[[#This Row],[S9]]<>"",IF(Table12[[#This Row],[S9]]+$Z28<=$Y28,Table12[[#This Row],[S9]]+$Z28,""),"") -> 500 | AL28: =IF(Table12[[#This Row],[S10]]<>"",IF(Table12[[#This Row],[S10]]+$Z28<=$Y28,Table12[[#This Row],[S10]]+$Z28,""),"") -> 550 | AM28: =IF(Table12[[#This Row],[S11]]<>"",IF(Table12[[#This Row],[S11]]+$Z28<=$Y28,Table12[[#This Row],[S11]]+$Z28,""),"") -> 600 | AN28: =IF(Table12[[#This Row],[S12]]<>"",IF(Table12[[#This Row],[S12]]+$Z28<=$Y28,Table12[[#This Row],[S12]]+$Z28,""),"") -> 650 | AO28: =IF(Table12[[#This Row],[S13]]<>"",IF(Table12[[#This Row],[S13]]+$Z28<=$Y28,Table12[[#This Row],[S13]]+$Z28,""),"") -> 700 | AP28: =IF(Table12[[#This Row],[S14]]<>"",IF(Table12[[#This Row],[S14]]+$Z28<=$Y28,Table12[[#This Row],[S14]]+$Z28,""),"") -> 750 | AQ28: =IF(Table12[[#This Row],[S15]]<>"",IF(Table12[[#This Row],[S15]]+$Z28<=$Y28,Table12[[#This Row],[S15]]+$Z28,""),"") -> 800 | AR28: =IF(Table12[[#This Row],[S16]]<>"",IF(Table12[[#This Row],[S16]]+$Z28<=$Y28,Table12[[#This Row],[S16]]+$Z28,""),"") -> 850 | AS28: =IF(Table12[[#This Row],[S17]]<>"",IF(Table12[[#This Row],[S17]]+$Z28<=$Y28,Table12[[#This Row],[S17]]+$Z28,""),"") ->  | AT28: =IF(Table12[[#This Row],[S18]]<>"",IF(Table12[[#This Row],[S18]]+$Z28<=$Y28,Table12[[#This Row],[S18]]+$Z28,""),"") ->  | AU28: =IF(Table12[[#This Row],[S19]]<>"",IF(Table12[[#This Row],[S19]]+$Z28<=$Y28,Table12[[#This Row],[S19]]+$Z28,""),"") -> 
A29: Romania | B29: =ROUNDDOWN(_xlfn.XLOOKUP(A29,C_CALC[Country],C_CALC[Max. Wind]),-1) -> 530 | C29: =ROUNDUP(Table12[[#This Row],[W-Max]]/20,-1) -> 30 | D29: 0 | E29: =Table12[[#This Row],[W0]]+Table12[[#This Row],[W-Stps]] -> 30 | F29: =IF(Table12[[#This Row],[W1]]<>"",IF(Table12[[#This Row],[W1]]+$C29<=$B29,Table12[[#This Row],[W1]]+$C29,""),"") -> 60 | G29: =IF(Table12[[#This Row],[W2]]<>"",IF(Table12[[#This Row],[W2]]+$C29<=$B29,Table12[[#This Row],[W2]]+$C29,""),"") -> 90 | H29: =IF(Table12[[#This Row],[W3]]<>"",IF(Table12[[#This Row],[W3]]+$C29<=$B29,Table12[[#This Row],[W3]]+$C29,""),"") -> 120 | I29: =IF(Table12[[#This Row],[W4]]<>"",IF(Table12[[#This Row],[W4]]+$C29<=$B29,Table12[[#This Row],[W4]]+$C29,""),"") -> 150 | J29: =IF(Table12[[#This Row],[W5]]<>"",IF(Table12[[#This Row],[W5]]+$C29<=$B29,Table12[[#This Row],[W5]]+$C29,""),"") -> 180 | K29: =IF(Table12[[#This Row],[W6]]<>"",IF(Table12[[#This Row],[W6]]+$C29<=$B29,Table12[[#This Row],[W6]]+$C29,""),"") -> 210 | L29: =IF(Table12[[#This Row],[W7]]<>"",IF(Table12[[#This Row],[W7]]+$C29<=$B29,Table12[[#This Row],[W7]]+$C29,""),"") -> 240 | M29: =IF(Table12[[#This Row],[W8]]<>"",IF(Table12[[#This Row],[W8]]+$C29<=$B29,Table12[[#This Row],[W8]]+$C29,""),"") -> 270 | N29: =IF(Table12[[#This Row],[W9]]<>"",IF(Table12[[#This Row],[W9]]+$C29<=$B29,Table12[[#This Row],[W9]]+$C29,""),"") -> 300 | O29: =IF(Table12[[#This Row],[W10]]<>"",IF(Table12[[#This Row],[W10]]+$C29<=$B29,Table12[[#This Row],[W10]]+$C29,""),"") -> 330 | P29: =IF(Table12[[#This Row],[W11]]<>"",IF(Table12[[#This Row],[W11]]+$C29<=$B29,Table12[[#This Row],[W11]]+$C29,""),"") -> 360 | Q29: =IF(Table12[[#This Row],[W12]]<>"",IF(Table12[[#This Row],[W12]]+$C29<=$B29,Table12[[#This Row],[W12]]+$C29,""),"") -> 390 | R29: =IF(Table12[[#This Row],[W13]]<>"",IF(Table12[[#This Row],[W13]]+$C29<=$B29,Table12[[#This Row],[W13]]+$C29,""),"") -> 420 | S29: =IF(Table12[[#This Row],[W14]]<>"",IF(Table12[[#This Row],[W14]]+$C29<=$B29,Table12[[#This Row],[W14]]+$C29,""),"") -> 450 | T29: =IF(Table12[[#This Row],[W15]]<>"",IF(Table12[[#This Row],[W15]]+$C29<=$B29,Table12[[#This Row],[W15]]+$C29,""),"") -> 480 | U29: =IF(Table12[[#This Row],[W16]]<>"",IF(Table12[[#This Row],[W16]]+$C29<=$B29,Table12[[#This Row],[W16]]+$C29,""),"") -> 510 | V29: =IF(Table12[[#This Row],[W17]]<>"",IF(Table12[[#This Row],[W17]]+$C29<=$B29,Table12[[#This Row],[W17]]+$C29,""),"") ->  | W29: =IF(Table12[[#This Row],[W18]]<>"",IF(Table12[[#This Row],[W18]]+$C29<=$B29,Table12[[#This Row],[W18]]+$C29,""),"") ->  | X29: =IF(Table12[[#This Row],[W19]]<>"",IF(Table12[[#This Row],[W19]]+$C29<=$B29,Table12[[#This Row],[W19]]+$C29,""),"") ->  | Y29: =ROUNDDOWN(_xlfn.XLOOKUP(Table12[[#This Row],[Country]],C_CALC[Country],C_CALC[Max Solar]),-1) -> 2380 | Z29: =ROUNDUP(Table12[[#This Row],[S-Max]]/20,-1) -> 120 | AA29: 0 | AB29: =Table12[[#This Row],[S0]]+Table12[[#This Row],[S-Stps]] -> 120 | AC29: =IF(Table12[[#This Row],[S1]]<>"",IF(Table12[[#This Row],[S1]]+$Z29<=$Y29,Table12[[#This Row],[S1]]+$Z29,""),"") -> 240 | AD29: =IF(Table12[[#This Row],[S2]]<>"",IF(Table12[[#This Row],[S2]]+$Z29<=$Y29,Table12[[#This Row],[S2]]+$Z29,""),"") -> 360 | AE29: =IF(Table12[[#This Row],[S3]]<>"",IF(Table12[[#This Row],[S3]]+$Z29<=$Y29,Table12[[#This Row],[S3]]+$Z29,""),"") -> 480 | AF29: =IF(Table12[[#This Row],[S4]]<>"",IF(Table12[[#This Row],[S4]]+$Z29<=$Y29,Table12[[#This Row],[S4]]+$Z29,""),"") -> 600 | AG29: =IF(Table12[[#This Row],[S5]]<>"",IF(Table12[[#This Row],[S5]]+$Z29<=$Y29,Table12[[#This Row],[S5]]+$Z29,""),"") -> 720 | AH29: =IF(Table12[[#This Row],[S6]]<>"",IF(Table12[[#This Row],[S6]]+$Z29<=$Y29,Table12[[#This Row],[S6]]+$Z29,""),"") -> 840 | AI29: =IF(Table12[[#This Row],[S7]]<>"",IF(Table12[[#This Row],[S7]]+$Z29<=$Y29,Table12[[#This Row],[S7]]+$Z29,""),"") -> 960 | AJ29: =IF(Table12[[#This Row],[S8]]<>"",IF(Table12[[#This Row],[S8]]+$Z29<=$Y29,Table12[[#This Row],[S8]]+$Z29,""),"") -> 1080 | AK29: =IF(Table12[[#This Row],[S9]]<>"",IF(Table12[[#This Row],[S9]]+$Z29<=$Y29,Table12[[#This Row],[S9]]+$Z29,""),"") -> 1200 | AL29: =IF(Table12[[#This Row],[S10]]<>"",IF(Table12[[#This Row],[S10]]+$Z29<=$Y29,Table12[[#This Row],[S10]]+$Z29,""),"") -> 1320 | AM29: =IF(Table12[[#This Row],[S11]]<>"",IF(Table12[[#This Row],[S11]]+$Z29<=$Y29,Table12[[#This Row],[S11]]+$Z29,""),"") -> 1440 | AN29: =IF(Table12[[#This Row],[S12]]<>"",IF(Table12[[#This Row],[S12]]+$Z29<=$Y29,Table12[[#This Row],[S12]]+$Z29,""),"") -> 1560 | AO29: =IF(Table12[[#This Row],[S13]]<>"",IF(Table12[[#This Row],[S13]]+$Z29<=$Y29,Table12[[#This Row],[S13]]+$Z29,""),"") -> 1680 | AP29: =IF(Table12[[#This Row],[S14]]<>"",IF(Table12[[#This Row],[S14]]+$Z29<=$Y29,Table12[[#This Row],[S14]]+$Z29,""),"") -> 1800 | AQ29: =IF(Table12[[#This Row],[S15]]<>"",IF(Table12[[#This Row],[S15]]+$Z29<=$Y29,Table12[[#This Row],[S15]]+$Z29,""),"") -> 1920 | AR29: =IF(Table12[[#This Row],[S16]]<>"",IF(Table12[[#This Row],[S16]]+$Z29<=$Y29,Table12[[#This Row],[S16]]+$Z29,""),"") -> 2040 | AS29: =IF(Table12[[#This Row],[S17]]<>"",IF(Table12[[#This Row],[S17]]+$Z29<=$Y29,Table12[[#This Row],[S17]]+$Z29,""),"") -> 2160 | AT29: =IF(Table12[[#This Row],[S18]]<>"",IF(Table12[[#This Row],[S18]]+$Z29<=$Y29,Table12[[#This Row],[S18]]+$Z29,""),"") -> 2280 | AU29: =IF(Table12[[#This Row],[S19]]<>"",IF(Table12[[#This Row],[S19]]+$Z29<=$Y29,Table12[[#This Row],[S19]]+$Z29,""),"") -> 
A30: Serbia | B30: =ROUNDDOWN(_xlfn.XLOOKUP(A30,C_CALC[Country],C_CALC[Max. Wind]),-1) -> 190 | C30: =ROUNDUP(Table12[[#This Row],[W-Max]]/20,-1) -> 10 | D30: 0 | E30: =Table12[[#This Row],[W0]]+Table12[[#This Row],[W-Stps]] -> 10 | F30: =IF(Table12[[#This Row],[W1]]<>"",IF(Table12[[#This Row],[W1]]+$C30<=$B30,Table12[[#This Row],[W1]]+$C30,""),"") -> 20 | G30: =IF(Table12[[#This Row],[W2]]<>"",IF(Table12[[#This Row],[W2]]+$C30<=$B30,Table12[[#This Row],[W2]]+$C30,""),"") -> 30 | H30: =IF(Table12[[#This Row],[W3]]<>"",IF(Table12[[#This Row],[W3]]+$C30<=$B30,Table12[[#This Row],[W3]]+$C30,""),"") -> 40 | I30: =IF(Table12[[#This Row],[W4]]<>"",IF(Table12[[#This Row],[W4]]+$C30<=$B30,Table12[[#This Row],[W4]]+$C30,""),"") -> 50 | J30: =IF(Table12[[#This Row],[W5]]<>"",IF(Table12[[#This Row],[W5]]+$C30<=$B30,Table12[[#This Row],[W5]]+$C30,""),"") -> 60 | K30: =IF(Table12[[#This Row],[W6]]<>"",IF(Table12[[#This Row],[W6]]+$C30<=$B30,Table12[[#This Row],[W6]]+$C30,""),"") -> 70 | L30: =IF(Table12[[#This Row],[W7]]<>"",IF(Table12[[#This Row],[W7]]+$C30<=$B30,Table12[[#This Row],[W7]]+$C30,""),"") -> 80 | M30: =IF(Table12[[#This Row],[W8]]<>"",IF(Table12[[#This Row],[W8]]+$C30<=$B30,Table12[[#This Row],[W8]]+$C30,""),"") -> 90 | N30: =IF(Table12[[#This Row],[W9]]<>"",IF(Table12[[#This Row],[W9]]+$C30<=$B30,Table12[[#This Row],[W9]]+$C30,""),"") -> 100 | O30: =IF(Table12[[#This Row],[W10]]<>"",IF(Table12[[#This Row],[W10]]+$C30<=$B30,Table12[[#This Row],[W10]]+$C30,""),"") -> 110 | P30: =IF(Table12[[#This Row],[W11]]<>"",IF(Table12[[#This Row],[W11]]+$C30<=$B30,Table12[[#This Row],[W11]]+$C30,""),"") -> 120 | Q30: =IF(Table12[[#This Row],[W12]]<>"",IF(Table12[[#This Row],[W12]]+$C30<=$B30,Table12[[#This Row],[W12]]+$C30,""),"") -> 130 | R30: =IF(Table12[[#This Row],[W13]]<>"",IF(Table12[[#This Row],[W13]]+$C30<=$B30,Table12[[#This Row],[W13]]+$C30,""),"") -> 140 | S30: =IF(Table12[[#This Row],[W14]]<>"",IF(Table12[[#This Row],[W14]]+$C30<=$B30,Table12[[#This Row],[W14]]+$C30,""),"") -> 150 | T30: =IF(Table12[[#This Row],[W15]]<>"",IF(Table12[[#This Row],[W15]]+$C30<=$B30,Table12[[#This Row],[W15]]+$C30,""),"") -> 160 | U30: =IF(Table12[[#This Row],[W16]]<>"",IF(Table12[[#This Row],[W16]]+$C30<=$B30,Table12[[#This Row],[W16]]+$C30,""),"") -> 170 | V30: =IF(Table12[[#This Row],[W17]]<>"",IF(Table12[[#This Row],[W17]]+$C30<=$B30,Table12[[#This Row],[W17]]+$C30,""),"") -> 180 | W30: =IF(Table12[[#This Row],[W18]]<>"",IF(Table12[[#This Row],[W18]]+$C30<=$B30,Table12[[#This Row],[W18]]+$C30,""),"") -> 190 | X30: =IF(Table12[[#This Row],[W19]]<>"",IF(Table12[[#This Row],[W19]]+$C30<=$B30,Table12[[#This Row],[W19]]+$C30,""),"") ->  | Y30: =ROUNDDOWN(_xlfn.XLOOKUP(Table12[[#This Row],[Country]],C_CALC[Country],C_CALC[Max Solar]),-1) -> 880 | Z30: =ROUNDUP(Table12[[#This Row],[S-Max]]/20,-1) -> 50 | AA30: 0 | AB30: =Table12[[#This Row],[S0]]+Table12[[#This Row],[S-Stps]] -> 50 | AC30: =IF(Table12[[#This Row],[S1]]<>"",IF(Table12[[#This Row],[S1]]+$Z30<=$Y30,Table12[[#This Row],[S1]]+$Z30,""),"") -> 100 | AD30: =IF(Table12[[#This Row],[S2]]<>"",IF(Table12[[#This Row],[S2]]+$Z30<=$Y30,Table12[[#This Row],[S2]]+$Z30,""),"") -> 150 | AE30: =IF(Table12[[#This Row],[S3]]<>"",IF(Table12[[#This Row],[S3]]+$Z30<=$Y30,Table12[[#This Row],[S3]]+$Z30,""),"") -> 200 | AF30: =IF(Table12[[#This Row],[S4]]<>"",IF(Table12[[#This Row],[S4]]+$Z30<=$Y30,Table12[[#This Row],[S4]]+$Z30,""),"") -> 250 | AG30: =IF(Table12[[#This Row],[S5]]<>"",IF(Table12[[#This Row],[S5]]+$Z30<=$Y30,Table12[[#This Row],[S5]]+$Z30,""),"") -> 300 | AH30: =IF(Table12[[#This Row],[S6]]<>"",IF(Table12[[#This Row],[S6]]+$Z30<=$Y30,Table12[[#This Row],[S6]]+$Z30,""),"") -> 350 | AI30: =IF(Table12[[#This Row],[S7]]<>"",IF(Table12[[#This Row],[S7]]+$Z30<=$Y30,Table12[[#This Row],[S7]]+$Z30,""),"") -> 400 | AJ30: =IF(Table12[[#This Row],[S8]]<>"",IF(Table12[[#This Row],[S8]]+$Z30<=$Y30,Table12[[#This Row],[S8]]+$Z30,""),"") -> 450 | AK30: =IF(Table12[[#This Row],[S9]]<>"",IF(Table12[[#This Row],[S9]]+$Z30<=$Y30,Table12[[#This Row],[S9]]+$Z30,""),"") -> 500 | AL30: =IF(Table12[[#This Row],[S10]]<>"",IF(Table12[[#This Row],[S10]]+$Z30<=$Y30,Table12[[#This Row],[S10]]+$Z30,""),"") -> 550 | AM30: =IF(Table12[[#This Row],[S11]]<>"",IF(Table12[[#This Row],[S11]]+$Z30<=$Y30,Table12[[#This Row],[S11]]+$Z30,""),"") -> 600 | AN30: =IF(Table12[[#This Row],[S12]]<>"",IF(Table12[[#This Row],[S12]]+$Z30<=$Y30,Table12[[#This Row],[S12]]+$Z30,""),"") -> 650 | AO30: =IF(Table12[[#This Row],[S13]]<>"",IF(Table12[[#This Row],[S13]]+$Z30<=$Y30,Table12[[#This Row],[S13]]+$Z30,""),"") -> 700 | AP30: =IF(Table12[[#This Row],[S14]]<>"",IF(Table12[[#This Row],[S14]]+$Z30<=$Y30,Table12[[#This Row],[S14]]+$Z30,""),"") -> 750 | AQ30: =IF(Table12[[#This Row],[S15]]<>"",IF(Table12[[#This Row],[S15]]+$Z30<=$Y30,Table12[[#This Row],[S15]]+$Z30,""),"") -> 800 | AR30: =IF(Table12[[#This Row],[S16]]<>"",IF(Table12[[#This Row],[S16]]+$Z30<=$Y30,Table12[[#This Row],[S16]]+$Z30,""),"") -> 850 | AS30: =IF(Table12[[#This Row],[S17]]<>"",IF(Table12[[#This Row],[S17]]+$Z30<=$Y30,Table12[[#This Row],[S17]]+$Z30,""),"") ->  | AT30: =IF(Table12[[#This Row],[S18]]<>"",IF(Table12[[#This Row],[S18]]+$Z30<=$Y30,Table12[[#This Row],[S18]]+$Z30,""),"") ->  | AU30: =IF(Table12[[#This Row],[S19]]<>"",IF(Table12[[#This Row],[S19]]+$Z30<=$Y30,Table12[[#This Row],[S19]]+$Z30,""),"") -> 
A31: Slovakia | B31: =ROUNDDOWN(_xlfn.XLOOKUP(A31,C_CALC[Country],C_CALC[Max. Wind]),-1) -> 100 | C31: =ROUNDUP(Table12[[#This Row],[W-Max]]/20,-1) -> 10 | D31: 0 | E31: =Table12[[#This Row],[W0]]+Table12[[#This Row],[W-Stps]] -> 10 | F31: =IF(Table12[[#This Row],[W1]]<>"",IF(Table12[[#This Row],[W1]]+$C31<=$B31,Table12[[#This Row],[W1]]+$C31,""),"") -> 20 | G31: =IF(Table12[[#This Row],[W2]]<>"",IF(Table12[[#This Row],[W2]]+$C31<=$B31,Table12[[#This Row],[W2]]+$C31,""),"") -> 30 | H31: =IF(Table12[[#This Row],[W3]]<>"",IF(Table12[[#This Row],[W3]]+$C31<=$B31,Table12[[#This Row],[W3]]+$C31,""),"") -> 40 | I31: =IF(Table12[[#This Row],[W4]]<>"",IF(Table12[[#This Row],[W4]]+$C31<=$B31,Table12[[#This Row],[W4]]+$C31,""),"") -> 50 | J31: =IF(Table12[[#This Row],[W5]]<>"",IF(Table12[[#This Row],[W5]]+$C31<=$B31,Table12[[#This Row],[W5]]+$C31,""),"") -> 60 | K31: =IF(Table12[[#This Row],[W6]]<>"",IF(Table12[[#This Row],[W6]]+$C31<=$B31,Table12[[#This Row],[W6]]+$C31,""),"") -> 70 | L31: =IF(Table12[[#This Row],[W7]]<>"",IF(Table12[[#This Row],[W7]]+$C31<=$B31,Table12[[#This Row],[W7]]+$C31,""),"") -> 80 | M31: =IF(Table12[[#This Row],[W8]]<>"",IF(Table12[[#This Row],[W8]]+$C31<=$B31,Table12[[#This Row],[W8]]+$C31,""),"") -> 90 | N31: =IF(Table12[[#This Row],[W9]]<>"",IF(Table12[[#This Row],[W9]]+$C31<=$B31,Table12[[#This Row],[W9]]+$C31,""),"") -> 100 | O31: =IF(Table12[[#This Row],[W10]]<>"",IF(Table12[[#This Row],[W10]]+$C31<=$B31,Table12[[#This Row],[W10]]+$C31,""),"") ->  | P31: =IF(Table12[[#This Row],[W11]]<>"",IF(Table12[[#This Row],[W11]]+$C31<=$B31,Table12[[#This Row],[W11]]+$C31,""),"") ->  | Q31: =IF(Table12[[#This Row],[W12]]<>"",IF(Table12[[#This Row],[W12]]+$C31<=$B31,Table12[[#This Row],[W12]]+$C31,""),"") ->  | R31: =IF(Table12[[#This Row],[W13]]<>"",IF(Table12[[#This Row],[W13]]+$C31<=$B31,Table12[[#This Row],[W13]]+$C31,""),"") ->  | S31: =IF(Table12[[#This Row],[W14]]<>"",IF(Table12[[#This Row],[W14]]+$C31<=$B31,Table12[[#This Row],[W14]]+$C31,""),"") ->  | T31: =IF(Table12[[#This Row],[W15]]<>"",IF(Table12[[#This Row],[W15]]+$C31<=$B31,Table12[[#This Row],[W15]]+$C31,""),"") ->  | U31: =IF(Table12[[#This Row],[W16]]<>"",IF(Table12[[#This Row],[W16]]+$C31<=$B31,Table12[[#This Row],[W16]]+$C31,""),"") ->  | V31: =IF(Table12[[#This Row],[W17]]<>"",IF(Table12[[#This Row],[W17]]+$C31<=$B31,Table12[[#This Row],[W17]]+$C31,""),"") ->  | W31: =IF(Table12[[#This Row],[W18]]<>"",IF(Table12[[#This Row],[W18]]+$C31<=$B31,Table12[[#This Row],[W18]]+$C31,""),"") ->  | X31: =IF(Table12[[#This Row],[W19]]<>"",IF(Table12[[#This Row],[W19]]+$C31<=$B31,Table12[[#This Row],[W19]]+$C31,""),"") ->  | Y31: =ROUNDDOWN(_xlfn.XLOOKUP(Table12[[#This Row],[Country]],C_CALC[Country],C_CALC[Max Solar]),-1) -> 490 | Z31: =ROUNDUP(Table12[[#This Row],[S-Max]]/20,-1) -> 30 | AA31: 0 | AB31: =Table12[[#This Row],[S0]]+Table12[[#This Row],[S-Stps]] -> 30 | AC31: =IF(Table12[[#This Row],[S1]]<>"",IF(Table12[[#This Row],[S1]]+$Z31<=$Y31,Table12[[#This Row],[S1]]+$Z31,""),"") -> 60 | AD31: =IF(Table12[[#This Row],[S2]]<>"",IF(Table12[[#This Row],[S2]]+$Z31<=$Y31,Table12[[#This Row],[S2]]+$Z31,""),"") -> 90 | AE31: =IF(Table12[[#This Row],[S3]]<>"",IF(Table12[[#This Row],[S3]]+$Z31<=$Y31,Table12[[#This Row],[S3]]+$Z31,""),"") -> 120 | AF31: =IF(Table12[[#This Row],[S4]]<>"",IF(Table12[[#This Row],[S4]]+$Z31<=$Y31,Table12[[#This Row],[S4]]+$Z31,""),"") -> 150 | AG31: =IF(Table12[[#This Row],[S5]]<>"",IF(Table12[[#This Row],[S5]]+$Z31<=$Y31,Table12[[#This Row],[S5]]+$Z31,""),"") -> 180 | AH31: =IF(Table12[[#This Row],[S6]]<>"",IF(Table12[[#This Row],[S6]]+$Z31<=$Y31,Table12[[#This Row],[S6]]+$Z31,""),"") -> 210 | AI31: =IF(Table12[[#This Row],[S7]]<>"",IF(Table12[[#This Row],[S7]]+$Z31<=$Y31,Table12[[#This Row],[S7]]+$Z31,""),"") -> 240 | AJ31: =IF(Table12[[#This Row],[S8]]<>"",IF(Table12[[#This Row],[S8]]+$Z31<=$Y31,Table12[[#This Row],[S8]]+$Z31,""),"") -> 270 | AK31: =IF(Table12[[#This Row],[S9]]<>"",IF(Table12[[#This Row],[S9]]+$Z31<=$Y31,Table12[[#This Row],[S9]]+$Z31,""),"") -> 300 | AL31: =IF(Table12[[#This Row],[S10]]<>"",IF(Table12[[#This Row],[S10]]+$Z31<=$Y31,Table12[[#This Row],[S10]]+$Z31,""),"") -> 330 | AM31: =IF(Table12[[#This Row],[S11]]<>"",IF(Table12[[#This Row],[S11]]+$Z31<=$Y31,Table12[[#This Row],[S11]]+$Z31,""),"") -> 360 | AN31: =IF(Table12[[#This Row],[S12]]<>"",IF(Table12[[#This Row],[S12]]+$Z31<=$Y31,Table12[[#This Row],[S12]]+$Z31,""),"") -> 390 | AO31: =IF(Table12[[#This Row],[S13]]<>"",IF(Table12[[#This Row],[S13]]+$Z31<=$Y31,Table12[[#This Row],[S13]]+$Z31,""),"") -> 420 | AP31: =IF(Table12[[#This Row],[S14]]<>"",IF(Table12[[#This Row],[S14]]+$Z31<=$Y31,Table12[[#This Row],[S14]]+$Z31,""),"") -> 450 | AQ31: =IF(Table12[[#This Row],[S15]]<>"",IF(Table12[[#This Row],[S15]]+$Z31<=$Y31,Table12[[#This Row],[S15]]+$Z31,""),"") -> 480 | AR31: =IF(Table12[[#This Row],[S16]]<>"",IF(Table12[[#This Row],[S16]]+$Z31<=$Y31,Table12[[#This Row],[S16]]+$Z31,""),"") ->  | AS31: =IF(Table12[[#This Row],[S17]]<>"",IF(Table12[[#This Row],[S17]]+$Z31<=$Y31,Table12[[#This Row],[S17]]+$Z31,""),"") ->  | AT31: =IF(Table12[[#This Row],[S18]]<>"",IF(Table12[[#This Row],[S18]]+$Z31<=$Y31,Table12[[#This Row],[S18]]+$Z31,""),"") ->  | AU31: =IF(Table12[[#This Row],[S19]]<>"",IF(Table12[[#This Row],[S19]]+$Z31<=$Y31,Table12[[#This Row],[S19]]+$Z31,""),"") -> 
A32: Slovenia | B32: =ROUNDDOWN(_xlfn.XLOOKUP(A32,C_CALC[Country],C_CALC[Max. Wind]),-1) -> 40 | C32: =ROUNDUP(Table12[[#This Row],[W-Max]]/20,-1) -> 10 | D32: 0 | E32: =Table12[[#This Row],[W0]]+Table12[[#This Row],[W-Stps]] -> 10 | F32: =IF(Table12[[#This Row],[W1]]<>"",IF(Table12[[#This Row],[W1]]+$C32<=$B32,Table12[[#This Row],[W1]]+$C32,""),"") -> 20 | G32: =IF(Table12[[#This Row],[W2]]<>"",IF(Table12[[#This Row],[W2]]+$C32<=$B32,Table12[[#This Row],[W2]]+$C32,""),"") -> 30 | H32: =IF(Table12[[#This Row],[W3]]<>"",IF(Table12[[#This Row],[W3]]+$C32<=$B32,Table12[[#This Row],[W3]]+$C32,""),"") -> 40 | I32: =IF(Table12[[#This Row],[W4]]<>"",IF(Table12[[#This Row],[W4]]+$C32<=$B32,Table12[[#This Row],[W4]]+$C32,""),"") ->  | J32: =IF(Table12[[#This Row],[W5]]<>"",IF(Table12[[#This Row],[W5]]+$C32<=$B32,Table12[[#This Row],[W5]]+$C32,""),"") ->  | K32: =IF(Table12[[#This Row],[W6]]<>"",IF(Table12[[#This Row],[W6]]+$C32<=$B32,Table12[[#This Row],[W6]]+$C32,""),"") ->  | L32: =IF(Table12[[#This Row],[W7]]<>"",IF(Table12[[#This Row],[W7]]+$C32<=$B32,Table12[[#This Row],[W7]]+$C32,""),"") ->  | M32: =IF(Table12[[#This Row],[W8]]<>"",IF(Table12[[#This Row],[W8]]+$C32<=$B32,Table12[[#This Row],[W8]]+$C32,""),"") ->  | N32: =IF(Table12[[#This Row],[W9]]<>"",IF(Table12[[#This Row],[W9]]+$C32<=$B32,Table12[[#This Row],[W9]]+$C32,""),"") ->  | O32: =IF(Table12[[#This Row],[W10]]<>"",IF(Table12[[#This Row],[W10]]+$C32<=$B32,Table12[[#This Row],[W10]]+$C32,""),"") ->  | P32: =IF(Table12[[#This Row],[W11]]<>"",IF(Table12[[#This Row],[W11]]+$C32<=$B32,Table12[[#This Row],[W11]]+$C32,""),"") ->  | Q32: =IF(Table12[[#This Row],[W12]]<>"",IF(Table12[[#This Row],[W12]]+$C32<=$B32,Table12[[#This Row],[W12]]+$C32,""),"") ->  | R32: =IF(Table12[[#This Row],[W13]]<>"",IF(Table12[[#This Row],[W13]]+$C32<=$B32,Table12[[#This Row],[W13]]+$C32,""),"") ->  | S32: =IF(Table12[[#This Row],[W14]]<>"",IF(Table12[[#This Row],[W14]]+$C32<=$B32,Table12[[#This Row],[W14]]+$C32,""),"") ->  | T32: =IF(Table12[[#This Row],[W15]]<>"",IF(Table12[[#This Row],[W15]]+$C32<=$B32,Table12[[#This Row],[W15]]+$C32,""),"") ->  | U32: =IF(Table12[[#This Row],[W16]]<>"",IF(Table12[[#This Row],[W16]]+$C32<=$B32,Table12[[#This Row],[W16]]+$C32,""),"") ->  | V32: =IF(Table12[[#This Row],[W17]]<>"",IF(Table12[[#This Row],[W17]]+$C32<=$B32,Table12[[#This Row],[W17]]+$C32,""),"") ->  | W32: =IF(Table12[[#This Row],[W18]]<>"",IF(Table12[[#This Row],[W18]]+$C32<=$B32,Table12[[#This Row],[W18]]+$C32,""),"") ->  | X32: =IF(Table12[[#This Row],[W19]]<>"",IF(Table12[[#This Row],[W19]]+$C32<=$B32,Table12[[#This Row],[W19]]+$C32,""),"") ->  | Y32: =ROUNDDOWN(_xlfn.XLOOKUP(Table12[[#This Row],[Country]],C_CALC[Country],C_CALC[Max Solar]),-1) -> 200 | Z32: =ROUNDUP(Table12[[#This Row],[S-Max]]/20,-1) -> 10 | AA32: 0 | AB32: =Table12[[#This Row],[S0]]+Table12[[#This Row],[S-Stps]] -> 10 | AC32: =IF(Table12[[#This Row],[S1]]<>"",IF(Table12[[#This Row],[S1]]+$Z32<=$Y32,Table12[[#This Row],[S1]]+$Z32,""),"") -> 20 | AD32: =IF(Table12[[#This Row],[S2]]<>"",IF(Table12[[#This Row],[S2]]+$Z32<=$Y32,Table12[[#This Row],[S2]]+$Z32,""),"") -> 30 | AE32: =IF(Table12[[#This Row],[S3]]<>"",IF(Table12[[#This Row],[S3]]+$Z32<=$Y32,Table12[[#This Row],[S3]]+$Z32,""),"") -> 40 | AF32: =IF(Table12[[#This Row],[S4]]<>"",IF(Table12[[#This Row],[S4]]+$Z32<=$Y32,Table12[[#This Row],[S4]]+$Z32,""),"") -> 50 | AG32: =IF(Table12[[#This Row],[S5]]<>"",IF(Table12[[#This Row],[S5]]+$Z32<=$Y32,Table12[[#This Row],[S5]]+$Z32,""),"") -> 60 | AH32: =IF(Table12[[#This Row],[S6]]<>"",IF(Table12[[#This Row],[S6]]+$Z32<=$Y32,Table12[[#This Row],[S6]]+$Z32,""),"") -> 70 | AI32: =IF(Table12[[#This Row],[S7]]<>"",IF(Table12[[#This Row],[S7]]+$Z32<=$Y32,Table12[[#This Row],[S7]]+$Z32,""),"") -> 80 | AJ32: =IF(Table12[[#This Row],[S8]]<>"",IF(Table12[[#This Row],[S8]]+$Z32<=$Y32,Table12[[#This Row],[S8]]+$Z32,""),"") -> 90 | AK32: =IF(Table12[[#This Row],[S9]]<>"",IF(Table12[[#This Row],[S9]]+$Z32<=$Y32,Table12[[#This Row],[S9]]+$Z32,""),"") -> 100 | AL32: =IF(Table12[[#This Row],[S10]]<>"",IF(Table12[[#This Row],[S10]]+$Z32<=$Y32,Table12[[#This Row],[S10]]+$Z32,""),"") -> 110 | AM32: =IF(Table12[[#This Row],[S11]]<>"",IF(Table12[[#This Row],[S11]]+$Z32<=$Y32,Table12[[#This Row],[S11]]+$Z32,""),"") -> 120 | AN32: =IF(Table12[[#This Row],[S12]]<>"",IF(Table12[[#This Row],[S12]]+$Z32<=$Y32,Table12[[#This Row],[S12]]+$Z32,""),"") -> 130 | AO32: =IF(Table12[[#This Row],[S13]]<>"",IF(Table12[[#This Row],[S13]]+$Z32<=$Y32,Table12[[#This Row],[S13]]+$Z32,""),"") -> 140 | AP32: =IF(Table12[[#This Row],[S14]]<>"",IF(Table12[[#This Row],[S14]]+$Z32<=$Y32,Table12[[#This Row],[S14]]+$Z32,""),"") -> 150 | AQ32: =IF(Table12[[#This Row],[S15]]<>"",IF(Table12[[#This Row],[S15]]+$Z32<=$Y32,Table12[[#This Row],[S15]]+$Z32,""),"") -> 160 | AR32: =IF(Table12[[#This Row],[S16]]<>"",IF(Table12[[#This Row],[S16]]+$Z32<=$Y32,Table12[[#This Row],[S16]]+$Z32,""),"") -> 170 | AS32: =IF(Table12[[#This Row],[S17]]<>"",IF(Table12[[#This Row],[S17]]+$Z32<=$Y32,Table12[[#This Row],[S17]]+$Z32,""),"") -> 180 | AT32: =IF(Table12[[#This Row],[S18]]<>"",IF(Table12[[#This Row],[S18]]+$Z32<=$Y32,Table12[[#This Row],[S18]]+$Z32,""),"") -> 190 | AU32: =IF(Table12[[#This Row],[S19]]<>"",IF(Table12[[#This Row],[S19]]+$Z32<=$Y32,Table12[[#This Row],[S19]]+$Z32,""),"") -> 200
A33: Spain | B33: =ROUNDDOWN(_xlfn.XLOOKUP(A33,C_CALC[Country],C_CALC[Max. Wind]),-1) -> 1100 | C33: =ROUNDUP(Table12[[#This Row],[W-Max]]/20,-1) -> 60 | D33: 0 | E33: =Table12[[#This Row],[W0]]+Table12[[#This Row],[W-Stps]] -> 60 | F33: =IF(Table12[[#This Row],[W1]]<>"",IF(Table12[[#This Row],[W1]]+$C33<=$B33,Table12[[#This Row],[W1]]+$C33,""),"") -> 120 | G33: =IF(Table12[[#This Row],[W2]]<>"",IF(Table12[[#This Row],[W2]]+$C33<=$B33,Table12[[#This Row],[W2]]+$C33,""),"") -> 180 | H33: =IF(Table12[[#This Row],[W3]]<>"",IF(Table12[[#This Row],[W3]]+$C33<=$B33,Table12[[#This Row],[W3]]+$C33,""),"") -> 240 | I33: =IF(Table12[[#This Row],[W4]]<>"",IF(Table12[[#This Row],[W4]]+$C33<=$B33,Table12[[#This Row],[W4]]+$C33,""),"") -> 300 | J33: =IF(Table12[[#This Row],[W5]]<>"",IF(Table12[[#This Row],[W5]]+$C33<=$B33,Table12[[#This Row],[W5]]+$C33,""),"") -> 360 | K33: =IF(Table12[[#This Row],[W6]]<>"",IF(Table12[[#This Row],[W6]]+$C33<=$B33,Table12[[#This Row],[W6]]+$C33,""),"") -> 420 | L33: =IF(Table12[[#This Row],[W7]]<>"",IF(Table12[[#This Row],[W7]]+$C33<=$B33,Table12[[#This Row],[W7]]+$C33,""),"") -> 480 | M33: =IF(Table12[[#This Row],[W8]]<>"",IF(Table12[[#This Row],[W8]]+$C33<=$B33,Table12[[#This Row],[W8]]+$C33,""),"") -> 540 | N33: =IF(Table12[[#This Row],[W9]]<>"",IF(Table12[[#This Row],[W9]]+$C33<=$B33,Table12[[#This Row],[W9]]+$C33,""),"") -> 600 | O33: =IF(Table12[[#This Row],[W10]]<>"",IF(Table12[[#This Row],[W10]]+$C33<=$B33,Table12[[#This Row],[W10]]+$C33,""),"") -> 660 | P33: =IF(Table12[[#This Row],[W11]]<>"",IF(Table12[[#This Row],[W11]]+$C33<=$B33,Table12[[#This Row],[W11]]+$C33,""),"") -> 720 | Q33: =IF(Table12[[#This Row],[W12]]<>"",IF(Table12[[#This Row],[W12]]+$C33<=$B33,Table12[[#This Row],[W12]]+$C33,""),"") -> 780 | R33: =IF(Table12[[#This Row],[W13]]<>"",IF(Table12[[#This Row],[W13]]+$C33<=$B33,Table12[[#This Row],[W13]]+$C33,""),"") -> 840 | S33: =IF(Table12[[#This Row],[W14]]<>"",IF(Table12[[#This Row],[W14]]+$C33<=$B33,Table12[[#This Row],[W14]]+$C33,""),"") -> 900 | T33: =IF(Table12[[#This Row],[W15]]<>"",IF(Table12[[#This Row],[W15]]+$C33<=$B33,Table12[[#This Row],[W15]]+$C33,""),"") -> 960 | U33: =IF(Table12[[#This Row],[W16]]<>"",IF(Table12[[#This Row],[W16]]+$C33<=$B33,Table12[[#This Row],[W16]]+$C33,""),"") -> 1020 | V33: =IF(Table12[[#This Row],[W17]]<>"",IF(Table12[[#This Row],[W17]]+$C33<=$B33,Table12[[#This Row],[W17]]+$C33,""),"") -> 1080 | W33: =IF(Table12[[#This Row],[W18]]<>"",IF(Table12[[#This Row],[W18]]+$C33<=$B33,Table12[[#This Row],[W18]]+$C33,""),"") ->  | X33: =IF(Table12[[#This Row],[W19]]<>"",IF(Table12[[#This Row],[W19]]+$C33<=$B33,Table12[[#This Row],[W19]]+$C33,""),"") ->  | Y33: =ROUNDDOWN(_xlfn.XLOOKUP(Table12[[#This Row],[Country]],C_CALC[Country],C_CALC[Max Solar]),-1) -> 4980 | Z33: =ROUNDUP(Table12[[#This Row],[S-Max]]/20,-1) -> 250 | AA33: 0 | AB33: =Table12[[#This Row],[S0]]+Table12[[#This Row],[S-Stps]] -> 250 | AC33: =IF(Table12[[#This Row],[S1]]<>"",IF(Table12[[#This Row],[S1]]+$Z33<=$Y33,Table12[[#This Row],[S1]]+$Z33,""),"") -> 500 | AD33: =IF(Table12[[#This Row],[S2]]<>"",IF(Table12[[#This Row],[S2]]+$Z33<=$Y33,Table12[[#This Row],[S2]]+$Z33,""),"") -> 750 | AE33: =IF(Table12[[#This Row],[S3]]<>"",IF(Table12[[#This Row],[S3]]+$Z33<=$Y33,Table12[[#This Row],[S3]]+$Z33,""),"") -> 1000 | AF33: =IF(Table12[[#This Row],[S4]]<>"",IF(Table12[[#This Row],[S4]]+$Z33<=$Y33,Table12[[#This Row],[S4]]+$Z33,""),"") -> 1250 | AG33: =IF(Table12[[#This Row],[S5]]<>"",IF(Table12[[#This Row],[S5]]+$Z33<=$Y33,Table12[[#This Row],[S5]]+$Z33,""),"") -> 1500 | AH33: =IF(Table12[[#This Row],[S6]]<>"",IF(Table12[[#This Row],[S6]]+$Z33<=$Y33,Table12[[#This Row],[S6]]+$Z33,""),"") -> 1750 | AI33: =IF(Table12[[#This Row],[S7]]<>"",IF(Table12[[#This Row],[S7]]+$Z33<=$Y33,Table12[[#This Row],[S7]]+$Z33,""),"") -> 2000 | AJ33: =IF(Table12[[#This Row],[S8]]<>"",IF(Table12[[#This Row],[S8]]+$Z33<=$Y33,Table12[[#This Row],[S8]]+$Z33,""),"") -> 2250 | AK33: =IF(Table12[[#This Row],[S9]]<>"",IF(Table12[[#This Row],[S9]]+$Z33<=$Y33,Table12[[#This Row],[S9]]+$Z33,""),"") -> 2500 | AL33: =IF(Table12[[#This Row],[S10]]<>"",IF(Table12[[#This Row],[S10]]+$Z33<=$Y33,Table12[[#This Row],[S10]]+$Z33,""),"") -> 2750 | AM33: =IF(Table12[[#This Row],[S11]]<>"",IF(Table12[[#This Row],[S11]]+$Z33<=$Y33,Table12[[#This Row],[S11]]+$Z33,""),"") -> 3000 | AN33: =IF(Table12[[#This Row],[S12]]<>"",IF(Table12[[#This Row],[S12]]+$Z33<=$Y33,Table12[[#This Row],[S12]]+$Z33,""),"") -> 3250 | AO33: =IF(Table12[[#This Row],[S13]]<>"",IF(Table12[[#This Row],[S13]]+$Z33<=$Y33,Table12[[#This Row],[S13]]+$Z33,""),"") -> 3500 | AP33: =IF(Table12[[#This Row],[S14]]<>"",IF(Table12[[#This Row],[S14]]+$Z33<=$Y33,Table12[[#This Row],[S14]]+$Z33,""),"") -> 3750 | AQ33: =IF(Table12[[#This Row],[S15]]<>"",IF(Table12[[#This Row],[S15]]+$Z33<=$Y33,Table12[[#This Row],[S15]]+$Z33,""),"") -> 4000 | AR33: =IF(Table12[[#This Row],[S16]]<>"",IF(Table12[[#This Row],[S16]]+$Z33<=$Y33,Table12[[#This Row],[S16]]+$Z33,""),"") -> 4250 | AS33: =IF(Table12[[#This Row],[S17]]<>"",IF(Table12[[#This Row],[S17]]+$Z33<=$Y33,Table12[[#This Row],[S17]]+$Z33,""),"") -> 4500 | AT33: =IF(Table12[[#This Row],[S18]]<>"",IF(Table12[[#This Row],[S18]]+$Z33<=$Y33,Table12[[#This Row],[S18]]+$Z33,""),"") -> 4750 | AU33: =IF(Table12[[#This Row],[S19]]<>"",IF(Table12[[#This Row],[S19]]+$Z33<=$Y33,Table12[[#This Row],[S19]]+$Z33,""),"") -> 
